Workbook

Sheet Input
A1: L2/L1 = | B1: 1.5
A3: Mi | B3: (L1/10) | C3: Moment influence line for point i
A4: Ri | B4: (1) | C4: Reaction influence line for support i
A5: Qi | B5: (1) | C5: Shear influence line for point i
A6: Di | B6: (L1^3/EI)/100 | C6: Deflection influence line for point i
A7: Si | B7: (L1^2/EI)/10 | C7: Rotation angle influence line for support i
A8: M-i | B8: (L1/10) | C8: Moment diagram when a unit point load is applied at point i
A9: MSi | B9: (L1^2/10) | C9: Moment diagram when uniformly distributed loads are applied at span i
A10: Q-i | B10: (1) | C10: Shear diagram when a unit point load is applied at point i
A11: QSi | B11: (L1) | C11: Shear diagram when uniformly distributed loads are applied at span i
A12: D-i | B12: (L1^3/EI)/100 | C12: Deflection diagram when a unit point load is applied at point i
A13: DSi | B13: (L1^4/EI)/100 | C13: Deflection diagram when uniformly distributed loads are applied at span i
A14: SSi | B14: (L1^3/EI)/10 | C14: Rotation angle diagram when uniformly distributed loads are applied at support i

Sheet 5 span Calculation (hidden)
HY2: Span | HZ2: 1 | II2: 2 | IR2: 3 | IY2: 1 | JH2: 2 | JQ2: 3 | JY2: 1 | KH2: 2 | KQ2: 3 | LB2: 1 | LK2: 2 | LT2: 3 | MF2: 1 | MO2: 2 | MX2: 3 | ND2: 1 | NM2: 2 | NV2: 3
HY3: x/L | HZ3: 0 | IA3: =+HZ3+1/8 -> 0.125 | IB3: 0.25 | IC3: 0.375 | ID3: 0.5 | IE3: 0.625 | IF3: 0.75 | IG3: 0.875 | IH3: 1 | II3: 0 | IJ3: =+II3+1/8 -> 0.125 | IK3: =+IJ3+1/8 -> 0.25 | IL3: =+IK3+1/8 -> 0.375 | IM3: =+IL3+1/8 -> 0.5 | IN3: =+IM3+1/8 -> 0.625 | IO3: 0.75 | IP3: 0.875 | IQ3: 1 | IR3: 0 | IS3: =+IR3+1/8 -> 0.125 | IT3: =+IS3+1/8 -> 0.25 | IU3: =+IT3+1/8 -> 0.375 | IV3: =+IU3+1/8 -> 0.5 | IY3: 0 | IZ3: =+IY3+1/8 -> 0.125 | JA3: =+IZ3+1/8 -> 0.25 | JB3: =+JA3+1/8 -> 0.375 | JC3: =+JB3+1/8 -> 0.5 | JD3: =+JC3+1/8 -> 0.625 | JE3: =+JD3+1/8 -> 0.75 | JF3: =+JE3+1/8 -> 0.875 | JG3: =+JF3+1/8 -> 1 | JH3: 0 | JI3: =+JH3+1/8 -> 0.125 | JJ3: =+JI3+1/8 -> 0.25 | JK3: =+JJ3+1/8 -> 0.375 | JL3: =+JK3+1/8 -> 0.5 | JM3: =+JL3+1/8 -> 0.625 | JN3: =+JM3+1/8 -> 0.75 | JO3: =+JN3+1/8 -> 0.875 | JP3: =+JO3+1/8 -> 1 | JQ3: 0 | JR3: =+JQ3+1/8 -> 0.125 | JS3: =+JR3+1/8 -> 0.25 | JT3: =+JS3+1/8 -> 0.375 | JU3: =+JT3+1/8 -> 0.5 | JY3: 0 | JZ3: =+JY3+1/8 -> 0.125 | KA3: =+JZ3+1/8 -> 0.25 | KB3: =+KA3+1/8 -> 0.375 | KC3: =+KB3+1/8 -> 0.5 | KD3: =+KC3+1/8 -> 0.625 | KE3: =+KD3+1/8 -> 0.75 | KF3: =+KE3+1/8 -> 0.875 | KG3: =+KF3+1/8 -> 1 | KH3: 0 | KI3: =+KH3+1/8 -> 0.125 | KJ3: =+KI3+1/8 -> 0.25 | KK3: =+KJ3+1/8 -> 0.375 | KL3: =+KK3+1/8 -> 0.5 | KM3: =+KL3+1/8 -> 0.625 | KN3: =+KM3+1/8 -> 0.75 | KO3: =+KN3+1/8 -> 0.875 | KP3: =+KO3+1/8 -> 1 | KQ3: 0 | KR3: =+KQ3+1/8 -> 0.125 | KS3: =+KR3+1/8 -> 0.25 | KT3: =+KS3+1/8 -> 0.375 | KU3: =+KT3+1/8 -> 0.5 | LB3: 0 | LC3: =+LB3+1/8 -> 0.125 | LD3: =+LC3+1/8 -> 0.25 | LE3: =+LD3+1/8 -> 0.375 | LF3: =+LE3+1/8 -> 0.5 | LG3: =+LF3+1/8 -> 0.625 | LH3: =+LG3+1/8 -> 0.75 | LI3: =+LH3+1/8 -> 0.875 | LJ3: =+LI3+1/8 -> 1 | LK3: 0 | LL3: =+LK3+1/8 -> 0.125 | LM3: =+LL3+1/8 -> 0.25 | LN3: =+LM3+1/8 -> 0.375 | LO3: =+LN3+1/8 -> 0.5 | LP3: =+LO3+1/8 -> 0.625 | LQ3: 0.75 | LR3: 0.875 | LS3: 1 | LT3: 0 | LU3: =+LT3+1/8 -> 0.125 | LV3: =+LU3+1/8 -> 0.25 | LW3: =+LV3+1/8 -> 0.375 | LX3: =+LW3+1/8 -> 0.5 | MF3: 0 | MG3: =+MF3+1/8 -> 0.125 | MH3: =+MG3+1/8 -> 0.25 | MI3: =+MH3+1/8 -> 0.375 | MJ3: =+MI3+1/8 -> 0.5 | MK3: =+MJ3+1/8 -> 0.625 | ML3: =+MK3+1/8 -> 0.75 | MM3: =+ML3+1/8 -> 0.875 | MN3: =+MM3+1/8 -> 1 | MO3: 0 | MP3: =+MO3+1/8 -> 0.125 | MQ3: =+MP3+1/8 -> 0.25 | MR3: =+MQ3+1/8 -> 0.375 | MS3: =+MR3+1/8 -> 0.5 | MT3: =+MS3+1/8 -> 0.625 | MU3: 0.75 | MV3: 0.875 | MW3: 1 | MX3: 0 | MY3: =+MX3+1/8 -> 0.125 | MZ3: =+MY3+1/8 -> 0.25 | NA3: =+MZ3+1/8 -> 0.375 | NB3: =+NA3+1/8 -> 0.5 | ND3: 0 | NE3: =+ND3+1/8 -> 0.125 | NF3: =+NE3+1/8 -> 0.25 | NG3: =+NF3+1/8 -> 0.375 | NH3: =+NG3+1/8 -> 0.5 | NI3: =+NH3+1/8 -> 0.625 | NJ3: =+NI3+1/8 -> 0.75 | NK3: =+NJ3+1/8 -> 0.875 | NL3: =+NK3+1/8 -> 1 | NM3: 0 | NN3: =+NM3+1/8 -> 0.125 | NO3: =+NN3+1/8 -> 0.25 | NP3: =+NO3+1/8 -> 0.375 | NQ3: =+NP3+1/8 -> 0.5 | NR3: =+NQ3+1/8 -> 0.625 | NS3: 0.75 | NT3: 0.875 | NU3: 1 | NV3: 0 | NW3: =+NV3+1/8 -> 0.125 | NX3: =+NW3+1/8 -> 0.25 | NY3: =+NX3+1/8 -> 0.375 | NZ3: =+NY3+1/8 -> 0.5
HY4: 1-x/L | HZ4: =1-HZ3 -> 1 | IA4: =1-IA3 -> 0.875 | IB4: 0.75 | IC4: 0.625 | ID4: 0.5 | IE4: 0.375 | IF4: 0.25 | IG4: 0.125 | IH4: 0 | II4: 1 | IJ4: 0.875 | IK4: 0.75 | IL4: 0.625 | IM4: 0.5 | IN4: =1-IN3 -> 0.375 | IO4: 0.25 | IP4: 0.125 | IQ4: 0 | IR4: 1 | IS4: 0.875 | IT4: 0.75 | IU4: 0.625 | IV4: 0.5
HY5: Mx0 | HZ5: =+HZ3*(1-HZ3) -> 0 | IA5: 0.109375 | IB5: 0.1875 | IC5: 0.234375 | ID5: 0.25 | IE5: 0.234375 | IF5: 0.1875 | IG5: 0.109375 | IH5: 0 | II5: 0 | IJ5: 0.109375 | IK5: 0.1875 | IL5: 0.234375 | IM5: 0.25 | IN5: =+IN3*(1-IN3) -> 0.234375 | IO5: 0.1875 | IP5: 0.109375 | IQ5: 0 | IR5: 0 | IS5: 0.109375 | IT5: 0.1875 | IU5: 0.234375 | IV5: 0.25
HY6: Mx1 | HZ6: =+HZ3 -> 0 | IA6: 0.125 | IB6: 0.25 | IC6: 0.375 | ID6: 0.5 | IE6: 0.625 | IF6: 0.75 | IG6: 0.875 | IH6: 1 | II6: =+II4 -> 1 | IJ6: =+IJ4 -> 0.875 | IK6: 0.75 | IL6: 0.625 | IM6: 0.5 | IN6: 0.375 | IO6: 0.25 | IP6: 0.125 | IQ6: 0
HY7: Mx2 | HZ7: =+HZ3 -> 0 | IA7: 0.125 | IB7: 0.25 | IC7: 0.375 | ID7: 0.5 | IE7: 0.625 | IF7: 0.75 | IG7: 0.875 | IH7: 1 | II7: =+II4 -> 1 | IJ7: =+IJ4 -> 0.875 | IK7: 0.75 | IL7: 0.625 | IM7: 0.5 | IN7: 0.375 | IO7: 0.25 | IP7: 0.125 | IQ7: 0
D8: Bending Moment | AA8: Shear Force | AE8: Reaction | HY8: Mx3 | II8: =+II3 -> 0 | IJ8: =+IJ3 -> 0.125 | IK8: 0.25 | IL8: 0.375 | IM8: 0.5 | IN8: 0.625 | IO8: 0.75 | IP8: 0.875 | IQ8: 1 | IR8: 1 | IS8: 1 | IT8: 1 | IU8: 1 | IV8: 1
D9: 0 | E9: =+D9+1 -> 1 | F9: 2 | G9: 3 | H9: 4 | I9: 5 | J9: 6 | K9: 7 | L9: 8 | M9: =+L9 -> 8 | N9: =+M9+1 -> 9 | O9: 10 | P9: 11 | Q9: 12 | R9: 13 | S9: 14 | T9: 15 | U9: 16 | V9: 16 | W9: =+V9+1 -> 17 | X9: =+W9+1 -> 18 | Y9: =+X9+1 -> 19 | Z9: =+Y9+1 -> 20 | AA9: lQB | AB9: rQB | AC9: lQC | AD9: rQc | AE9: RA | AF9: RB | AG9: RC | AX9: lQD | HY9: Mx4 | II9: =+II3 -> 0 | IJ9: =+IJ3 -> 0.125 | IK9: 0.25 | IL9: 0.375 | IM9: 0.5 | IN9: 0.625 | IO9: 0.75 | IP9: 0.875 | IQ9: 1 | IR9: 1 | IS9: =+IR9-2/8 -> 0.75 | IT9: 0.5 | IU9: 0.25 | IV9: 0
D10: =+E10+1 -> 40 | E10: 39 | F10: 38 | G10: 37 | H10: 36 | I10: 35 | J10: 34 | K10: 33 | L10: =+M10 -> 32 | M10: =+N10+1 -> 32 | N10: 31 | O10: 30 | P10: 29 | Q10: 28 | R10: 27 | S10: 26 | T10: 25 | U10: 24 | V10: =+W10+1 -> 24 | W10: =+X10+1 -> 23 | X10: =+Y10+1 -> 22 | Y10: =+Z10+1 -> 21 | Z10: =+Z9 -> 20 | AZ10: 0 | BA10: 0 | BB10: =+AZ10+1 -> 1 | BC10: 1 | BD10: 2 | BE10: 2 | BF10: 3 | BG10: 3 | BH10: 4 | BI10: 4 | BJ10: 5 | BK10: 5 | BL10: 6 | BM10: 6 | BN10: 7 | BO10: 7 | BP10: 8 | BQ10: 8 | BR10: 9 | BS10: 9 | BT10: 10 | BU10: 10 | BV10: 11 | BW10: 11 | BX10: 12 | BY10: 12 | BZ10: 13 | CA10: 13 | CB10: 14 | CC10: 14 | CD10: 15 | CE10: 15 | CF10: 16 | CG10: 16 | CH10: =+CF10+1 -> 17 | CI10: 17 | CJ10: 18 | CK10: 18 | CL10: 19 | CM10: 19 | CN10: 20 | CO10: 20 | CP10: 21 | CQ10: 21 | CR10: 22 | CS10: 22 | CT10: 23 | CU10: 23 | CV10: 24 | CW10: 24 | CX10: 25 | CY10: 25 | CZ10: 26 | DA10: 26 | DB10: 27 | DC10: 27 | DD10: 28 | DE10: 28 | DF10: 29 | DG10: 29 | DH10: 30 | DI10: 30 | DJ10: 31 | DK10: 31 | DL10: 32 | DM10: 32 | DN10: =+DL10+1 -> 33 | DO10: 33 | DP10: 34 | DQ10: 34 | DR10: 35 | DS10: 35 | DT10: 36 | DU10: 36 | DV10: 37 | DW10: 37 | DX10: 38 | DY10: 38 | DZ10: 39 | EA10: 39 | EB10: 40 | EC10: 40
C11: =+E11 -> 0 | D11: =+JY25 -> 0 | E11: =+JZ25 -> 0 | F11: =+KA25 -> 0 | G11: =+KB25 -> 0 | H11: =+KC25 -> 0 | I11: =+KD25 -> 0 | J11: =+KE25 -> 0 | K11: =+KF25 -> 0 | L11: =+KG25 -> 0 | M11: =+KH25 -> 0 | N11: =+KI25 -> 0 | O11: =+KJ25 -> 0 | P11: =+KK25 -> 0 | Q11: =+KL25 -> 0 | R11: =+KM25 -> 0 | S11: =+KN25 -> 0 | T11: =+KO25 -> 0 | U11: =+KP25 -> 0 | V11: =+KQ25 -> 0 | W11: =+KR25 -> 0 | X11: =+KS25 -> 0 | Y11: =+KT25 -> 0 | Z11: =+KU25 -> 0 | AA11: =+FM25 -> 0 | AB11: =+FO25 -> 0 | AC11: =+FQ25 -> 0 | AD11: =+FS25 -> 0 | AE11: =+FG25 -> 1 | AF11: =+FI25 -> 0 | AG11: =+FK25 -> 0 | AX11: =+FU25 -> 0 | HY11: fx1 | HZ11: =+(HZ3-HZ3^3)/6 -> 0 | IA11: =+(IA3-IA3^3)/6 -> 0.0205078125 | IB11: 0.0390625 | IC11: 0.0537109375 | ID11: 0.0625 | IE11: 0.0634765625 | IF11: 0.0546875 | IG11: 0.0341796875 | IH11: 0 | II11: =+(2*II3-3*II3^2+II3^3)/6*Input!$B$1^2 -> 0 | IJ11: =+(2*IJ3-3*IJ3^2+IJ3^3)/6*Input!$B$1^2 -> 0.07690429688 | IK11: =+(2*IK3-3*IK3^2+IK3^3)/6*Input!$B$1^2 -> 0.123046875 | IL11: =+(2*IL3-3*IL3^2+IL3^3)/6*Input!$B$1^2 -> 0.1428222656 | IM11: =+(2*IM3-3*IM3^2+IM3^3)/6*Input!$B$1^2 -> 0.140625 | IN11: =+(2*IN3-3*IN3^2+IN3^3)/6*Input!$B$1^2 -> 0.1208496094 | IO11: =+(2*IO3-3*IO3^2+IO3^3)/6*Input!$B$1^2 -> 0.087890625 | IP11: =+(2*IP3-3*IP3^2+IP3^3)/6*Input!$B$1^2 -> 0.04614257812 | IQ11: =+(2*IQ3-3*IQ3^2+IQ3^3)/6*Input!$B$1^2 -> 0
C12: =+C11+1 -> 1 | D12: 0 | E12: 1.06029754 | F12: 0.8705950798 | G12: 0.6808926197 | H12: 0.4911901596 | I12: 0.3014876995 | J12: 0.1117852394 | K12: -0.07791722074 | L12: -0.2676196809 | M12: -0.2676196809 | N12: -0.2251980829 | O12: -0.1827764849 | P12: -0.140354887 | Q12: -0.09793328901 | R12: -0.05551169105 | S12: -0.01309009309 | T12: 0.02933150488 | U12: 0.07175310284 | V12: 0.07175310284 | W12: 0.06035987367 | X12: 0.0489666445 | Y12: 0.03757341534 | Z12: 0.02618018617 | AA12: -0.1517619681 | AB12: 0.02262485225 | AC12: 0.02262485225 | AD12: -0.006076388889 | AE12: 0.8482380319 | AF12: 0.1743868203 | AG12: -0.02870124113 | AX12: -0.006076388889 | AZ12: 0 | BA12: =+$AE12 -> 0.8482380319 | BB12: =+$AE12 -> 0.8482380319 | BC12: =+$AA12 -> -0.1517619681 | BP12: =+$AA12 -> -0.1517619681 | BQ12: =+$AB12 -> 0.02262485225 | CF12: =+$AB12 -> 0.02262485225 | CG12: =+$AD12 -> -0.006076388889 | CV12: =+$AD12 -> -0.006076388889 | CW12: =+DL12 -> 0.00168070331 | DL12: =-AB54 -> 0.00168070331 | DM12: =-AE54 -> -0.0005817819149 | EB12: =+DM12 -> -0.0005817819149 | EC12: 0 | EI12: =2*(1+Input!$B$1) -> 5 | EJ12: 0 | EK12: =Input!B1 -> 1.5 | EL12: 0 | HY12: fx2 | HZ12: =+HZ11 -> 0 | IA12: =+IA11 -> 0.0205078125 | IB12: 0.0390625 | IC12: 0.0537109375 | ID12: 0.0625 | IE12: 0.0634765625 | IF12: 0.0546875 | IG12: 0.0341796875 | IH12: 0 | II12: =+II11 -> 0 | IJ12: =+IJ11 -> 0.07690429688 | IK12: 0.123046875 | IL12: 0.1428222656 | IM12: 0.140625 | IN12: 0.1208496094 | IO12: 0.087890625 | IP12: 0.04614257812 | IQ12: 0
C13: 2 | D13: 0 | E13: 0.8737810284 | F13: 1.747562057 | G13: 1.371343085 | H13: 0.9951241135 | I13: 0.6189051418 | J13: 0.2426861702 | K13: -0.1335328014 | L13: -0.509751773 | M13: -0.509751773 | N13: -0.4289487293 | O13: -0.3481456856 | P13: -0.2673426418 | Q13: -0.1865395981 | R13: -0.1057365544 | S13: -0.02493351064 | T13: 0.0558695331 | U13: 0.1366725768 | V13: 0.1366725768 | W13: 0.1149711879 | X13: 0.09326979905 | Y13: 0.07156841017 | Z13: 0.04986702128 | AA13: -0.3009751773 | AB13: 0.04309495666 | AC13: 0.04309495666 | AD13: -0.01157407407 | AE13: 0.6990248227 | AF13: 0.344070134 | AG13: -0.05466903073 | AX13: -0.01157407407 | AZ13: 0 | BA13: =+$AE13 -> 0.6990248227 | BD13: =+$AE13 -> 0.6990248227 | BE13: =+$AA13 -> -0.3009751773 | BP13: -0.3009751773 | BQ13: 0.04309495666 | CF13: 0.04309495666 | CG13: -0.01157407407 | CV13: -0.01157407407 | CW13: 0.003201339638 | DL13: =-AB53 -> 0.003201339638 | DM13: =-AE53 -> -0.001108156028 | EB13: -0.001108156028 | EC13: 0 | EI13: 0 | EJ13: =+EI12 -> 5 | EK13: 0 | EL13: =+EK12 -> 1.5 | HY13: fx3 | II13: =+(II3-II3^3)/6*Input!$B$1^2 -> 0 | IJ13: =+(IJ3-IJ3^3)/6*Input!$B$1^2 -> 0.04614257812 | IK13: =+(IK3-IK3^3)/6*Input!$B$1^2 -> 0.087890625 | IL13: =+(IL3-IL3^3)/6*Input!$B$1^2 -> 0.1208496094 | IM13: =+(IM3-IM3^3)/6*Input!$B$1^2 -> 0.140625 | IN13: =+(IN3-IN3^3)/6*Input!$B$1^2 -> 0.1428222656 | IO13: =+(IO3-IO3^3)/6*Input!$B$1^2 -> 0.123046875 | IP13: =+(IP3-IP3^3)/6*Input!$B$1^2 -> 0.07690429688 | IQ13: =+(IQ3-IQ3^3)/6*Input!$B$1^2 -> 0 | IR13: =3*(IR3-IR3^2)/6*Input!$B$1^2 -> 0 | IS13: =3*(IS3-IS3^2)/6*Input!$B$1^2 -> 0.123046875 | IT13: =3*(IT3-IT3^2)/6*Input!$B$1^2 -> 0.2109375 | IU13: =3*(IU3-IU3^2)/6*Input!$B$1^2 -> 0.263671875 | IV13: =3*(IV3-IV3^2)/6*Input!$B$1^2 -> 0.28125
C14: 3 | D14: 0 | E14: 0.693636414 | F14: 1.387272828 | G14: 2.080909242 | H14: 1.524545656 | I14: 0.96818207 | J14: 0.411818484 | K14: -0.144545102 | L14: -0.7009086879 | M14: -0.7009086879 | N14: -0.5898045028 | O14: -0.4787003177 | P14: -0.3675961325 | Q14: -0.2564919474 | R14: -0.1453877623 | S14: -0.03428357713 | T14: 0.07682060801 | U14: 0.1879247931 | V14: 0.1879247931 | W14: 0.1580853834 | X14: 0.1282459737 | Y14: 0.09840656398 | Z14: 0.06856715426 | AA14: -0.4450908688 | AB14: 0.05925556541 | AC14: 0.05925556541 | AD14: -0.01591435185 | AE14: 0.5549091312 | AF14: 0.5043464342 | AG14: -0.07516991726 | AX14: -0.01591435185 | AZ14: 0 | BA14: 0.5549091312 | BF14: =+$AE14 -> 0.5549091312 | BG14: =+$AA14 -> -0.4450908688 | BP14: -0.4450908688 | BQ14: 0.05925556541 | CF14: 0.05925556541 | CG14: -0.01591435185 | CV14: -0.01591435185 | CW14: 0.004401842002 | DL14: =-AB52 -> 0.004401842002 | DM14: =-AE52 -> -0.001523714539 | EB14: -0.001523714539 | EC14: 0 | EI14: =+EK12 -> 1.5 | EJ14: =+EK13 -> 0 | EK14: =5*Input!B1 -> 7.5 | EL14: 0 | HY14: fx4 | II14: =+II13 -> 0 | IJ14: =+IJ13 -> 0.04614257812 | IK14: 0.087890625 | IL14: 0.1208496094 | IM14: 0.140625 | IN14: 0.1428222656 | IO14: 0.123046875 | IP14: 0.07690429688 | IQ14: 0 | IR14: =+(IR3-3*IR3^2+2*IR3^3)/6*Input!$B$1^2 -> 0 | IS14: =+(IS3-3*IS3^2+2*IS3^3)/6*Input!$B$1^2 -> 0.03076171875 | IT14: =+(IT3-3*IT3^2+2*IT3^3)/6*Input!$B$1^2 -> 0.03515625 | IU14: =+(IU3-3*IU3^2+2*IU3^3)/6*Input!$B$1^2 -> 0.02197265625 | IV14: =+(IV3-3*IV3^2+2*IV3^3)/6*Input!$B$1^2 -> 0
C15: 4 | D15: 0 | E15: 0.5230496454 | F15: 1.046099291 | G15: 1.569148936 | H15: 2.092198582 | I15: 1.365248227 | J15: 0.6382978723 | K15: -0.08865248227 | L15: -0.8156028369 | M15: -0.8156028369 | N15: -0.6863179669 | O15: -0.5570330969 | P15: -0.427748227 | Q15: -0.298463357 | R15: -0.169178487 | S15: -0.03989361702 | T15: 0.08939125296 | U15: 0.2186761229 | V15: 0.2186761229 | W15: 0.1839539007 | X15: 0.1492316785 | Y15: 0.1145094563 | Z15: 0.07978723404 | AA15: -0.5815602837 | AB15: 0.06895193065 | AC15: 0.06895193065 | AD15: -0.01851851852 | AE15: 0.4184397163 | AF15: 0.6505122143 | AG15: -0.08747044917 | AX15: -0.01851851852 | AZ15: 0 | BA15: 0.4184397163 | BH15: =+$AE15 -> 0.4184397163 | BI15: =+$AA15 -> -0.5815602837 | BP15: -0.5815602837 | BQ15: 0.06895193065 | CF15: 0.06895193065 | CG15: -0.01851851852 | CV15: -0.01851851852 | CW15: 0.00512214342 | DL15: =-AB51 -> 0.00512214342 | DM15: =-AE51 -> -0.001773049645 | EB15: -0.001773049645 | EC15: 0 | EI15: =+EL12 -> 0 | EJ15: =+EL13 -> 1.5 | EK15: =+EL14 -> 0 | EL15: =3*Input!B1 -> 4.5
C16: 5 | D16: 0 | E16: 0.3652066711 | F16: 0.7304133422 | G16: 1.095620013 | H16: 1.460826684 | I16: 1.826033355 | J16: 0.9412400266 | K16: 0.0564466977 | L16: -0.8283466312 | M16: -0.8283466312 | N16: -0.6970416851 | O16: -0.5657367391 | P16: -0.434431793 | Q16: -0.3031268469 | R16: -0.1718219009 | S16: -0.04051695479 | T16: 0.09078799128 | U16: 0.2220929374 | V16: 0.2220929374 | W16: 0.1868281804 | X16: 0.1515634235 | Y16: 0.1162986665 | Z16: 0.08103390957 | AA16: -0.7078346631 | AB16: 0.07002930457 | AC16: 0.07002930457 | AD16: -0.01880787037 | AE16: 0.2921653369 | AF16: 0.7778639677 | AG16: -0.08883717494 | AX16: -0.01880787037 | AZ16: 0 | BA16: 0.2921653369 | BJ16: =+$AE16 -> 0.2921653369 | BK16: =+$AA16 -> -0.7078346631 | BP16: -0.7078346631 | BQ16: 0.07002930457 | CF16: 0.07002930457 | CG16: -0.01880787037 | CV16: -0.01880787037 | CW16: 0.005202176911 | DL16: =-AB50 -> 0.005202176911 | DM16: =-AE50 -> -0.001800753546 | EB16: -0.001800753546 | EC16: 0
C17: 6 | D17: 0 | E17: 0.2232934397 | F17: 0.4465868794 | G17: 0.6698803191 | H17: 0.8931737589 | I17: 1.116467199 | J17: 1.339760638 | K17: 0.313054078 | L17: -0.7136524823 | M17: -0.7136524823 | N17: -0.600528221 | O17: -0.4874039598 | P17: -0.3742796986 | Q17: -0.2611554374 | R17: -0.1480311761 | S17: -0.03490691489 | T17: 0.07821734634 | U17: 0.1913416076 | V17: 0.1913416076 | W17: 0.1609596631 | X17: 0.1305777187 | Y17: 0.1001957742 | Z17: 0.06981382979 | AA17: -0.8213652482 | AB17: 0.06033293932 | AC17: 0.06033293932 | AD17: -0.0162037037 | AE17: 0.1786347518 | AF17: 0.8816981875 | AG17: -0.07653664303 | AX17: -0.0162037037 | AZ17: 0 | BA17: 0.1786347518 | BL17: =+$AE17 -> 0.1786347518 | BM17: =+$AA17 -> -0.8213652482 | BP17: -0.8213652482 | BQ17: 0.06033293932 | CF17: 0.06033293932 | CG17: -0.0162037037 | CV17: -0.0162037037 | CW17: 0.004481875493 | DL17: =-AB49 -> 0.004481875493 | DM17: =-AE49 -> -0.00155141844 | EB17: -0.00155141844 | EC17: 0 | FF17: X(1) | FG17: 1 | FI17: =-(1+1/Input!B1) -> -1.666666667 | FK17: =1/Input!B1 -> 0.6666666667 | FM17: 1 | FO17: =-1/Input!B1 -> -0.6666666667 | FQ17: =-1/Input!$B$1 -> -0.6666666667 | FS17: 0
C18: 7 | D18: 0 | E18: 0.1004958998 | F18: 0.2009917996 | G18: 0.3014876995 | H18: 0.4019835993 | I18: 0.5024794991 | J18: 0.6029753989 | K18: 0.7034712988 | L18: -0.4460328014 | M18: -0.4460328014 | N18: -0.3753301382 | O18: -0.3046274749 | P18: -0.2339248116 | Q18: -0.1632221483 | R18: -0.09251948508 | S18: -0.02181682181 | T18: 0.04888584146 | U18: 0.1195885047 | V18: 0.1195885047 | W18: 0.1005997895 | X18: 0.08161107417 | Y18: 0.06262235889 | Z18: 0.04363364362 | AA18: -0.9196032801 | AB18: 0.03770808708 | AC18: 0.03770808708 | AD18: -0.01012731481 | AE18: 0.08039671986 | AF18: 0.9573113672 | AG18: -0.04783540189 | AX18: -0.01012731481 | AZ18: 0 | BA18: 0.08039671986 | BN18: =+$AE18 -> 0.08039671986 | BO18: =+$AA18 -> -0.9196032801 | BP18: -0.9196032801 | BQ18: 0.03770808708 | CF18: 0.03770808708 | CG18: -0.01012731481 | CV18: -0.01012731481 | CW18: 0.002801172183 | DL18: =-AB48 -> 0.002801172183 | DM18: =-AE48 -> -0.0009696365248 | EB18: -0.0009696365248 | EC18: 0 | EH18: Span | EI18: X(1) | EJ18: X(2) | EK18: X(3) | EL18: X(4) | FF18: X(2) | FG18: 1 | FI18: =-(1+1/Input!B1) -> -1.666666667 | FK18: =+FK17 -> 0.6666666667 | FM18: 1 | FO18: =+FO17 -> -0.6666666667 | FQ18: =+FQ17 -> -0.6666666667 | FS18: 0
C19: 8 | D19: 0 | E19: 0 | F19: 0 | G19: 0 | H19: 0 | I19: 0 | J19: 0 | K19: 0 | L19: 0 | M19: 0 | N19: 0 | O19: 0 | P19: 0 | Q19: 0 | R19: 0 | S19: 0 | T19: 0 | U19: 0 | V19: 0 | W19: 0 | X19: 0 | Y19: 0 | Z19: 0 | AA19: -1 | AB19: 0 | AC19: 0 | AD19: 0 | AE19: 0 | AF19: 1 | AG19: 0 | AX19: 0 | EH19: 1 | EI19: 0.25 | EJ19: =+EI19 -> 0.25 | EK19: 0 | EL19: 0 | FF19: X(3) | FG19: 0 | FI19: =1/Input!B1 -> 0.6666666667 | FK19: =-FK18 -> -0.6666666667 | FM19: 0 | FO19: =-FO18 -> 0.6666666667 | FQ19: =-FQ18 -> 0.6666666667 | FS19: 0
C20: =+C19 -> 8 | D20: 0 | E20: 0 | F20: 0 | G20: 0 | H20: 0 | I20: 0 | J20: 0 | K20: 0 | L20: 0 | M20: 0 | N20: 0 | O20: 0 | P20: 0 | Q20: 0 | R20: 0 | S20: 0 | T20: 0 | U20: 0 | V20: 0 | W20: 0 | X20: 0 | Y20: 0 | Z20: 0 | AA20: 0 | AB20: 1 | AC20: 0 | AD20: 0 | AE20: 0 | AF20: 1 | AG20: 0 | AX20: 0 | EH20: 2 | EI20: =1/4*Input!$B$1^3 -> 0.84375 | EJ20: =+EI20 -> 0.84375 | EK20: =+EI22 -> 0.84375 | EL20: =+EK20 -> 0.84375 | FF20: X(4) | FG20: 0 | FI20: =+FI19 -> 0.6666666667 | FK20: =3*FK19 -> -2 | FM20: 0 | FO20: =+FO19 -> 0.6666666667 | FQ20: =+FQ19 -> 0.6666666667 | FS20: =-2/Input!B1 -> -1.333333333 | FU20: =+FS20 -> -1.333333333 | FX20: =-1/6 -> -0.1666666667 | FY20: =-1/6 -> -0.1666666667 | GE20: =1/3 -> 0.3333333333 | GF20: =1/3 -> 0.3333333333 | GL20: =-1/3*Input!B1 -> -0.5 | GM20: =-1/3*Input!B1 -> -0.5 | GN20: =-1/6*Input!B1 -> -0.25 | GO20: =-1/6*Input!B1 -> -0.25 | GS20: =1/6*Input!B1 -> 0.25 | GT20: =1/6*Input!B1 -> 0.25 | GU20: =1/3*Input!B1 -> 0.5 | GV20: =1/3*Input!B1 -> 0.5 | HB20: =-1/2*Input!B1 -> -0.75 | HC20: =-1/6*Input!B1 -> -0.25
C21: =+C20+1 -> 9 | D21: 0 | E21: -0.1052661652 | F21: -0.2105323305 | G21: -0.3157984957 | H21: -0.4210646609 | I21: -0.5263308261 | J21: -0.6315969914 | K21: -0.7368631566 | L21: -0.8421293218 | M21: -0.8421293218 | N21: 0.8701275765 | O21: 0.7073844747 | P21: 0.544641373 | Q21: 0.3818982713 | R21: 0.2191551695 | S21: 0.05641206782 | T21: -0.1063310339 | U21: -0.2690741356 | V21: -0.2690741356 | W21: -0.2263495263 | X21: -0.1836249169 | Y21: -0.1409003075 | Z21: -0.09817569814 | AA21: -0.08421293218 | AB21: 0.9132036791 | AC21: -0.08679632092 | AD21: 0.02278645833 | AE21: -0.08421293218 | AF21: 0.9974166113 | AG21: 0.1095827793 | AX21: 0.02278645833 | AZ21: 0 | BA21: =+$AE21 -> -0.08421293218 | BP21: =+BA21 -> -0.08421293218 | BQ21: =+$AB21 -> 0.9132036791 | BR21: =+$AB21 -> 0.9132036791 | BS21: =+$AC21 -> -0.08679632092 | CF21: =+$AC21 -> -0.08679632092 | CG21: =+$AD21 -> 0.02278645833 | CV21: =+AD21 -> 0.02278645833 | CW21: =-AB45 -> -0.006302637411 | DL21: =+CW21 -> -0.006302637411 | DM21: =+EB21 -> 0.002181682181 | EB21: =-AE45 -> 0.002181682181 | EC21: 0 | EH21: 3 | EI21: 0 | EJ21: 0 | EK21: =3/6*Input!B1^3 -> 1.6875 | EL21: 0
C22: 10 | D22: 0 | E22: -0.1622755984 | F22: -0.3245511968 | G22: -0.4868267952 | H22: -0.6491023936 | I22: -0.811377992 | J22: -0.9736535904 | K22: -1.135929189 | L22: -1.298204787 | M22: -1.298204787 | N22: 0.1960050975 | O22: 1.690214982 | P22: 1.309424867 | Q22: 0.9286347518 | R22: 0.5478446365 | S22: 0.1670545213 | T22: -0.213735594 | U22: -0.5945257092 | V22: -0.5945257092 | W22: -0.5001246676 | X22: -0.4057236259 | Y22: -0.3113225842 | Z22: -0.2169215426 | AA22: -0.1298204787 | AB22: 0.7969119385 | AC22: -0.2030880615 | AD22: 0.05034722222 | AE22: -0.1298204787 | AF22: 0.9267324173 | AG22: 0.2534352837 | AX22: 0.05034722222 | AZ22: 0 | BA22: -0.1298204787 | BP22: -0.1298204787 | BQ22: =+$AB22 -> 0.7969119385 | BT22: =+$AB22 -> 0.7969119385 | BU22: =+$AC22 -> -0.2030880615 | CF22: -0.2030880615 | CG22: 0.05034722222 | CV22: 0.05034722222 | CW22: =-AB44 -> -0.01392582742 | DL22: -0.01392582742 | DM22: 0.004820478723 | EB22: =-AE44 -> 0.004820478723 | EC22: 0 | EH22: 4 | EI22: =1/4*Input!$B$1^3 -> 0.84375 | EJ22: =-EI22 -> -0.84375 | EK22: =+EI20 -> 0.84375 | EL22: =-EJ20 -> -0.84375
C23: 11 | D23: 0 | E23: -0.180118642 | F23: -0.3602372839 | G23: -0.5403559259 | H23: -0.7204745678 | I23: -0.9005932098 | J23: -1.080711852 | K23: -1.260830494 | L23: -1.440949136 | M23: -1.440949136 | N23: -0.2026713486 | O23: 1.035606438 | P23: 2.273884225 | Q23: 1.637162012 | R23: 1.000439799 | S23: 0.3637175864 | T23: -0.2730046266 | U23: -0.9097268395 | V23: -0.9097268395 | W23: -0.7652769697 | X23: -0.6208271 | Y23: -0.4763772302 | Z23: -0.3319273604 | AA23: -0.1440949136 | AB23: 0.6604148197 | AC23: -0.3395851803 | AD23: 0.07703993056 | AE23: -0.1440949136 | AF23: 0.8045097333 | AG23: 0.4166251108 | AX23: 0.07703993056 | AZ23: 0 | BA23: -0.1440949136 | BP23: -0.1440949136 | BQ23: 0.6604148197 | BV23: =+$AB23 -> 0.6604148197 | BW23: =+$AC23 -> -0.3395851803 | CF23: -0.3395851803 | CG23: 0.07703993056 | CV23: 0.07703993056 | CW23: =-AB43 -> -0.02130891696 | DL23: -0.02130891696 | DM23: 0.007376163564 | EB23: =-AE43 -> 0.007376163564 | EC23: 0 | EH23: 5 | EI23: =1/4 -> 0.25 | EJ23: =-EI23 -> -0.25 | EK23: 0 | EL23: 0 | EV23: d(1,0) | EW23: d(2,0) | EX23: d(3,0) | EY23: d(4,0)
C24: 12 | D24: 0 | E24: -0.1678856383 | F24: -0.3357712766 | G24: -0.5036569149 | H24: -0.6715425532 | I24: -0.8394281915 | J24: -1.00731383 | K24: -1.175199468 | L24: -1.343085106 | M24: -1.343085106 | N24: -0.3812056738 | O24: 0.5806737589 | P24: 1.542553191 | Q24: 2.504432624 | R24: 1.591312057 | S24: 0.6781914894 | T24: -0.234929078 | U24: -1.148049645 | V24: -1.148049645 | W24: -0.9657579787 | X24: -0.7834663121 | Y24: -0.6011746454 | Z24: -0.4188829787 | AA24: -0.1343085106 | AB24: 0.5130023641 | AC24: -0.4869976359 | AD24: 0.09722222222 | AE24: -0.1343085106 | AF24: 0.6473108747 | AG24: 0.5842198582 | AX24: 0.09722222222 | AZ24: 0 | BA24: -0.1343085106 | BP24: -0.1343085106 | BQ24: 0.5130023641 | BX24: =+$AB24 -> 0.5130023641 | BY24: =+$AC24 -> -0.4869976359 | CF24: -0.4869976359 | CG24: 0.09722222222 | CV24: 0.09722222222 | CW24: =-AB42 -> -0.02689125296 | DL24: -0.02689125296 | DM24: 0.009308510638 | EB24: =-AE42 -> 0.009308510638 | EC24: 0 | ET24: Span | EU24: e/L | FB24: X(1)/L1 | FC24: X(2)/L1 | FD24: X(3)/L1 | FE24: X(4)/L1 | FF24: RA0 | FG24: RA | FH24: RB0 | FI24: RB | FJ24: RC0 | FK24: RC | FL24: lQB0 | FM24: lQB | FN24: rQB0 | FO24: rQB | FP24: lQC0 | FQ24: lQC | FR24: rQC0 | FS24: rQC | FT24: lQD0 | FU24: lQD | FW24: SA0 | FX24: SA1 | FY24: SA2 | FZ24: SA3 | GA24: SA4 | GB24: SA | GD24: lSB0 | GE24: lSB1 | GF24: lSB2 | GG24: lSB3 | GH24: lSB4 | GI24: lSB | GK24: rSB0 | GL24: rSB1 | GM24: rSB2 | GN24: rSB3 | GO24: rSB4 | GP24: rSB | GR24: lSC0 | GS24: lSC1 | GT24: lSC2 | GU24: lSC3 | GV24: lSC4 | GW24: lSC | GY24: rSC0 | GZ24: rSC1 | HA24: rSC2 | HB24: rSC3 | HC24: rSC4 | HD24: rSC
C25: 13 | D25: 0 | E25: -0.1346669299 | F25: -0.2693338597 | G25: -0.4040007896 | H25: -0.5386677194 | I25: -0.6733346493 | J25: -0.8080015791 | K25: -0.942668509 | L25: -1.077335439 | M25: -1.077335439 | N25: -0.3949017897 | O25: 0.2875318595 | P25: 0.9699655086 | Q25: 1.652399158 | R25: 2.334832807 | S25: 1.142266456 | T25: -0.05029989473 | U25: -1.242866246 | V25: -1.242866246 | W25: -1.04551924 | X25: -0.8481722352 | Y25: -0.6508252299 | Z25: -0.4534782247 | AA25: -0.1077335439 | AB25: 0.3639646129 | AC25: -0.6360353871 | AD25: 0.1052517361 | AE25: -0.1077335439 | AF25: 0.4716981568 | AG25: 0.7412871232 | AX25: 0.1052517361 | AZ25: 0 | BA25: -0.1077335439 | BP25: -0.1077335439 | BQ25: 0.3639646129 | BZ25: =+$AB25 -> 0.3639646129 | CA25: =+$AC25 -> -0.6360353871 | CF25: -0.6360353871 | CG25: 0.1052517361 | CV25: 0.1052517361 | CW25: =-AB41 -> -0.02911218233 | DL25: -0.02911218233 | DM25: 0.01007729388 | EB25: =-AE41 -> 0.01007729388 | EC25: 0 | ES25: =+EU25 -> 0 | ET25: 1 | EU25: 0 | EV25: =$EU25-$EU25^3 -> 0 | EW25: =+EV25 -> 0 | FB25: =+(-EV25*$EK$14+EX25*$EK$12)/($EI$12*$EK$14-$EI$14*$EK$12)/2 -> 0 | FC25: =+(-EW25*$EL$15+EY25*$EL$13)/($EJ$13*$EL$15-$EJ$15*$EL$13)/2 -> 0 | FD25: =-(EV25/2+$EI$12*FB25)/$EK$12 -> 0 | FE25: =-(EW25/2+$EJ$13*FC25)/$EL$13 -> 0 | FF25: =1-1*EU25 -> 1 | FG25: =+FF25+FG$17*$FB25+FG$18*$FC25+FG$19*$FD25+FG$20*$FE25 -> 1 | FH25: =+EU25 -> 0 | FI25: =+FH25+FI$17*$FB25+FI$18*$FC25+FI$19*$FD25+FI$20*$FE25 -> 0 | FK25: =+FJ25+FK$17*$FB25+FK$18*$FC25+FK$19*$FD25+FK$20*$FE25 -> 0 | FL25: =-$EU25 -> 0 | FM25: =+FL25+FM$17*$FB25+FM$18*$FC25+FM$19*$FD25+FM$20*$FE25 -> 0 | FO25: =+FN25+FO$17*$FB25+FO$18*$FC25+FO$19*$FD25+FO$20*$FE25 -> 0 | FQ25: =+FP25+FQ$17*$FB25+FQ$18*$FC25+FQ$19*$FD25+FQ$20*$FE25 -> 0 | FS25: 0 | FU25: 0 | FW25: =-(1-EU25)*(1-(1-EU25)^2)/6 -> 0 | FX25: =+FX$20*$FB25 -> 0 | FY25: =+FY$20*$FC25 -> 0 | FZ25: =+FZ$20*$FD25 -> 0 | GA25: =+GA$20*$FE25 -> 0 | GB25: =+SUM(FW25:GA25) -> 0 | GD25: =+EU25*(1-EU25^2)/6 -> 0 | GE25: =+GE$20*$FB25 -> 0 | GF25: =+GF$20*$FC25 -> 0 | GG25: =+GG$20*$FD25 -> 0 | GH25: =+GH$20*$FE25 -> 0 | GI25: =+SUM(GD25:GH25) -> 0 | GL25: =+GL$20*$FB25 -> 0 | GM25: =+GM$20*$FC25 -> 0 | GN25: =+GN$20*$FD25 -> 0 | GO25: =+GO$20*$FE25 -> 0 | GP25: =+SUM(GK25:GO25) -> 0 | GS25: =+GS$20*$FB25 -> 0 | GT25: =+GT$20*$FC25 -> 0 | GU25: =+GU$20*$FD25 -> 0 | GV25: =+GV$20*$FE25 -> 0 | GW25: =+SUM(GR25:GV25) -> 0 | GZ25: =+GZ$20*$FB25 -> 0 | HA25: =+HA$20*$FC25 -> 0 | HB25: =+HB$20*$FD25 -> 0 | HC25: =+HC$20*$FE25 -> 0 | HD25: =+SUM(GY25:HC25) -> 0 | HZ25: 0 | IA25: =+IF($EU25<=IA$3,IA$5/IA$3*$EU25,IA$5-IA$5/(1-IA$3)*($EU25-IA$3)) -> 0 | IB25: 0 | IC25: 0 | ID25: 0 | IE25: 0 | IF25: 0 | IG25: 0 | IH25: 0 | IY25: =+HZ25+HZ$6*$FB25+HZ$7*$FC25+HZ$8*$FD25+HZ$9*$FE25 -> 0 | IZ25: =+IA25+IA$6*$FB25+IA$7*$FC25+IA$8*$FD25+IA$9*$FE25 -> 0 | JA25: 0 | JB25: 0 | JC25: 0 | JD25: 0 | JE25: 0 | JF25: 0 | JG25: 0 | JH25: 0 | JI25: 0 | JJ25: 0 | JK25: 0 | JL25: 0 | JM25: 0 | JN25: 0 | JO25: 0 | JP25: 0 | JQ25: 0 | JR25: 0 | JS25: 0 | JT25: 0 | JU25: 0 | JY25: =+IY25*10 -> 0 | JZ25: =+IZ25*10 -> 0 | KA25: =+JA25*10 -> 0 | KB25: =+JB25*10 -> 0 | KC25: =+JC25*10 -> 0 | KD25: =+JD25*10 -> 0 | KE25: =+JE25*10 -> 0 | KF25: =+JF25*10 -> 0 | KG25: =+JG25*10 -> 0 | KH25: =+JH25*10 -> 0 | KI25: =+JI25*10 -> 0 | KJ25: =+JJ25*10 -> 0 | KK25: =+JK25*10 -> 0 | KL25: =+JL25*10 -> 0 | KM25: =+JM25*10 -> 0 | KN25: 0 | KO25: 0 | KP25: 0 | KQ25: =+JQ25*10 -> 0 | KR25: =+JR25*10 -> 0 | KS25: =+JS25*10 -> 0 | KT25: =+JT25*10 -> 0 | KU25: =+JU25*10 -> 0 | LB25: =+IF($EU25<=HZ$3,1/6*(1-HZ$3)*$EU25*(1-(1-HZ$3)^2-$EU25^2),1/6*HZ$3*(1-$EU25)*(1-HZ$3^2-(1-$EU25)^2)) -> 0 | LC25: =+IF($EU25<=IA$3,1/6*(1-IA$3)*$EU25*(1-(1-IA$3)^2-$EU25^2),1/6*IA$3*(1-$EU25)*(1-IA$3^2-(1-$EU25)^2)) -> 0 | LD25: =+IF($EU25<=IB$3,1/6*(1-IB$3)*$EU25*(1-(1-IB$3)^2-$EU25^2),1/6*IB$3*(1-$EU25)*(1-IB$3^2-(1-$EU25)^2)) -> 0 | LE25: =+IF($EU25<=IC$3,1/6*(1-IC$3)*$EU25*(1-(1-IC$3)^2-$EU25^2),1/6*IC$3*(1-$EU25)*(1-IC$3^2-(1-$EU25)^2)) -> 0 | LF25: =+IF($EU25<=ID$3,1/6*(1-ID$3)*$EU25*(1-(1-ID$3)^2-$EU25^2),1/6*ID$3*(1-$EU25)*(1-ID$3^2-(1-$EU25)^2)) -> 0 | LG25: =+IF($EU25<=IE$3,1/6*(1-IE$3)*$EU25*(1-(1-IE$3)^2-$EU25^2),1/6*IE$3*(1-$EU25)*(1-IE$3^2-(1-$EU25)^2)) -> 0 | LH25: =+IF($EU25<=IF$3,1/6*(1-IF$3)*$EU25*(1-(1-IF$3)^2-$EU25^2),1/6*IF$3*(1-$EU25)*(1-IF$3^2-(1-$EU25)^2)) -> 0 | LI25: =+IF($EU25<=IG$3,1/6*(1-IG$3)*$EU25*(1-(1-IG$3)^2-$EU25^2),1/6*IG$3*(1-$EU25)*(1-IG$3^2-(1-$EU25)^2)) -> 0 | LJ25: =+IF($EU25<=IH$3,1/6*(1-IH$3)*$EU25*(1-(1-IH$3)^2-$EU25^2),1/6*IH$3*(1-$EU25)*(1-IH$3^2-(1-$EU25)^2)) -> 0 | MF25: =+LB25+HZ$11*$FB25+HZ$12*$FC25+HZ$13*$FD25+HZ$14*$FE25 -> 0 | MG25: =+LC25+IA$11*$FB25+IA$12*$FC25+IA$13*$FD25+IA$14*$FE25 -> 0 | MH25: 0 | MI25: 0 | MJ25: 0 | MK25: 0 | ML25: 0 | MM25: 0 | MN25: 0 | MO25: 0 | MP25: 0 | MQ25: 0 | MR25: 0 | MS25: 0 | MT25: 0 | MU25: 0 | MV25: 0 | MW25: 0 | MX25: 0 | MY25: 0 | MZ25: 0 | NA25: 0 | NB25: 0 | ND25: =+MF25*100 -> 0 | NE25: =+MG25*100 -> 0 | NF25: =+MH25*100 -> 0 | NG25: =+MI25*100 -> 0 | NH25: =+MJ25*100 -> 0 | NI25: =+MK25*100 -> 0 | NJ25: =+ML25*100 -> 0 | NK25: =+MM25*100 -> 0 | NL25: =+MN25*100 -> 0 | NM25: =+MO25*100 -> 0 | NN25: =+MP25*100 -> 0 | NO25: =+MQ25*100 -> 0 | NP25: =+MR25*100 -> 0 | NQ25: =+MS25*100 -> 0 | NR25: =+MT25*100 -> 0 | NS25: =+MU25*100 -> 0 | NT25: =+MV25*100 -> 0 | NU25: =+MW25*100 -> 0 | NV25: =+MX25*100 -> 0 | NW25: =+MY25*100 -> 0 | NX25: =+MZ25*100 -> 0 | NY25: =+NA25*100 -> 0 | NZ25: =+NB25*100 -> 0
C26: 14 | D26: 0 | E26: -0.08955285904 | F26: -0.1791057181 | G26: -0.2686585771 | H26: -0.3582114362 | I26: -0.4477642952 | J26: -0.5373171543 | K26: -0.6268700133 | L26: -0.7164228723 | M26: -0.7164228723 | N26: -0.2990636082 | O26: 0.118295656 | P26: 0.5356549202 | Q26: 0.9530141844 | R26: 1.370373449 | S26: 1.787732713 | T26: 0.330091977 | U26: -1.127548759 | V26: -1.127548759 | W26: -0.9485123005 | X26: -0.7694758422 | Y26: -0.5904393839 | Z26: -0.4114029255 | AA26: -0.07164228723 | AB26: 0.2225916076 | AC26: -0.7774083924 | AD26: 0.09548611111 | AE26: -0.07164228723 | AF26: 0.2942338948 | AG26: 0.8728945035 | AX26: 0.09548611111 | AZ26: 0 | BA26: -0.07164228723 | BP26: -0.07164228723 | BQ26: 0.2225916076 | CB26: =+$AB26 -> 0.2225916076 | CC26: =+$AC26 -> -0.7774083924 | CF26: -0.7774083924 | CG26: 0.09548611111 | CV26: 0.09548611111 | CW26: =-AB40 -> -0.02641105201 | DL26: -0.02641105201 | DM26: 0.009142287234 | EB26: =-AE40 -> 0.009142287234 | EC26: 0 | ES26: =+ES25+1 -> 1 | EU26: =+EU25+1/8 -> 0.125 | EV26: =$EU26-$EU26^3 -> 0.123046875 | EW26: =+EV26 -> 0.123046875 | FB26: =+(-EV26*$EK$14+EX26*$EK$12)/($EI$12*$EK$14-$EI$14*$EK$12)/2 -> -0.01309009309 | FC26: =+(-EW26*$EL$15+EY26*$EL$13)/($EJ$13*$EL$15-$EJ$15*$EL$13)/2 -> -0.013671875 | FD26: =-(EV26/2+$EI$12*FB26)/$EK$12 -> 0.002618018617 | FE26: =-(EW26/2+$EJ$13*FC26)/$EL$13 -> 0.004557291667 | FF26: 0.875 | FG26: =+FF26+FG$17*$FB26+FG$18*$FC26+FG$19*$FD26+FG$20*$FE26 -> 0.8482380319 | FH26: 0.125 | FI26: =+FH26+FI$17*$FB26+FI$18*$FC26+FI$19*$FD26+FI$20*$FE26 -> 0.1743868203 | FK26: =+FJ26+FK$17*$FB26+FK$18*$FC26+FK$19*$FD26+FK$20*$FE26 -> -0.02870124113 | FL26: -0.125 | FM26: -0.1517619681 | FO26: 0.02262485225 | FQ26: 0.02262485225 | FS26: -0.006076388889 | FU26: -0.006076388889 | FW26: =-(1-EU26)*(1-(1-EU26)^2)/6 -> -0.0341796875 | FX26: =+FX$20*$FB26 -> 0.002181682181 | FY26: =+FY$20*$FC26 -> 0.002278645833 | FZ26: =+FZ$20*$FD26 -> 0 | GA26: =+GA$20*$FE26 -> 0 | GB26: =+SUM(FW26:GA26) -> -0.02971935949 | GD26: =+EU26*(1-EU26^2)/6 -> 0.0205078125 | GE26: =+GE$20*$FB26 -> -0.004363364362 | GF26: =+GF$20*$FC26 -> -0.004557291667 | GG26: =+GG$20*$FD26 -> 0 | GH26: =+GH$20*$FE26 -> 0 | GI26: =+SUM(GD26:GH26) -> 0.01158715647 | GL26: =+GL$20*$FB26 -> 0.006545046543 | GM26: =+GM$20*$FC26 -> 0.0068359375 | GN26: =+GN$20*$FD26 -> -0.0006545046543 | GO26: =+GO$20*$FE26 -> -0.001139322917 | GP26: =+SUM(GK26:GO26) -> 0.01158715647 | GS26: =+GS$20*$FB26 -> -0.003272523271 | GT26: =+GT$20*$FC26 -> -0.00341796875 | GU26: =+GU$20*$FD26 -> 0.001309009309 | GV26: =+GV$20*$FE26 -> 0.002278645833 | GW26: =+SUM(GR26:GV26) -> -0.003102836879 | GZ26: =+GZ$20*$FB26 -> 0 | HA26: =+HA$20*$FC26 -> 0 | HB26: =+HB$20*$FD26 -> -0.001963513963 | HC26: =+HC$20*$FE26 -> -0.001139322917 | HD26: =+SUM(GY26:HC26) -> -0.003102836879 | HZ26: 0 | IA26: 0.109375 | IB26: 0.09375 | IC26: 0.078125 | ID26: 0.0625 | IE26: 0.046875 | IF26: 0.03125 | IG26: 0.015625 | IH26: 0 | IY26: =+HZ26+HZ$6*$FB26+HZ$7*$FC26+HZ$8*$FD26+HZ$9*$FE26 -> 0 | IZ26: =+IA26+IA$6*$FB26+IA$7*$FC26+IA$8*$FD26+IA$9*$FE26 -> 0.106029754 | JA26: =+IB26+IB$6*$FB26+IB$7*$FC26+IB$8*$FD26+IB$9*$FE26 -> 0.08705950798 | JB26: =+IC26+IC$6*$FB26+IC$7*$FC26+IC$8*$FD26+IC$9*$FE26 -> 0.06808926197 | JC26: =+ID26+ID$6*$FB26+ID$7*$FC26+ID$8*$FD26+ID$9*$FE26 -> 0.04911901596 | JD26: =+IE26+IE$6*$FB26+IE$7*$FC26+IE$8*$FD26+IE$9*$FE26 -> 0.03014876995 | JE26: =+IF26+IF$6*$FB26+IF$7*$FC26+IF$8*$FD26+IF$9*$FE26 -> 0.01117852394 | JF26: =+IG26+IG$6*$FB26+IG$7*$FC26+IG$8*$FD26+IG$9*$FE26 -> -0.007791722074 | JG26: =+IH26+IH$6*$FB26+IH$7*$FC26+IH$8*$FD26+IH$9*$FE26 -> -0.02676196809 | JH26: =+II26+II$6*$FB26+II$7*$FC26+II$8*$FD26+II$9*$FE26 -> -0.02676196809 | JI26: =+IJ26+IJ$6*$FB26+IJ$7*$FC26+IJ$8*$FD26+IJ$9*$FE26 -> -0.02251980829 | JJ26: =+IK26+IK$6*$FB26+IK$7*$FC26+IK$8*$FD26+IK$9*$FE26 -> -0.01827764849 | JK26: =+IL26+IL$6*$FB26+IL$7*$FC26+IL$8*$FD26+IL$9*$FE26 -> -0.0140354887 | JL26: =+IM26+IM$6*$FB26+IM$7*$FC26+IM$8*$FD26+IM$9*$FE26 -> -0.009793328901 | JM26: =+IN26+IN$6*$FB26+IN$7*$FC26+IN$8*$FD26+IN$9*$FE26 -> -0.005551169105 | JN26: =+IO26+IO$6*$FB26+IO$7*$FC26+IO$8*$FD26+IO$9*$FE26 -> -0.001309009309 | JO26: =+IP26+IP$6*$FB26+IP$7*$FC26+IP$8*$FD26+IP$9*$FE26 -> 0.002933150488 | JP26: =+IQ26+IQ$6*$FB26+IQ$7*$FC26+IQ$8*$FD26+IQ$9*$FE26 -> 0.007175310284 | JQ26: =+IR26+IR$6*$FB26+IR$7*$FC26+IR$8*$FD26+IR$9*$FE26 -> 0.007175310284 | JR26: =+IS26+IS$6*$FB26+IS$7*$FC26+IS$8*$FD26+IS$9*$FE26 -> 0.006035987367 | JS26: =+IT26+IT$6*$FB26+IT$7*$FC26+IT$8*$FD26+IT$9*$FE26 -> 0.00489666445 | JT26: =+IU26+IU$6*$FB26+IU$7*$FC26+IU$8*$FD26+IU$9*$FE26 -> 0.003757341534 | JU26: =+IV26+IV$6*$FB26+IV$7*$FC26+IV$8*$FD26+IV$9*$FE26 -> 0.002618018617 | JY26: 0 | JZ26: 1.06029754 | KA26: 0.8705950798 | KB26: 0.6808926197 | KC26: 0.4911901596 | KD26: 0.3014876995 | KE26: 0.1117852394 | KF26: -0.07791722074 | KG26: -0.2676196809 | KH26: -0.2676196809 | KI26: -0.2251980829 | KJ26: -0.1827764849 | KK26: -0.140354887 | KL26: -0.09793328901 | KM26: =+JM26*10 -> -0.05551169105 | KN26: =+JN26*10 -> -0.01309009309 | KO26: =+JO26*10 -> 0.02933150488 | KP26: =+JP26*10 -> 0.07175310284 | KQ26: 0.07175310284 | KR26: 0.06035987367 | KS26: 0.0489666445 | KT26: 0.03757341534 | KU26: 0.02618018617 | LB26: 0 | LC26: 0.003987630208 | LD26: 0.006591796875 | LE26: 0.007731119792 | LF26: 0.007649739583 | LG26: 0.006591796875 | LH26: 0.004801432292 | LI26: 0.002522786458 | LJ26: 0 | MF26: =+LB26+HZ$11*$FB26+HZ$12*$FC26+HZ$13*$FD26+HZ$14*$FE26 -> 0 | MG26: 0.003438800785 | MH26: 0.005546407497 | MI26: 0.006293709396 | MJ26: 0.005977116578 | MK26: 0.004893039135 | ML26: 0.003337887162 | MM26: 0.001608070752 | MN26: 0 | MO26: 0 | MP26: -0.001727023023 | MQ26: -0.002662334036 | MR26: -0.00295507147 | MS26: -0.002754373753 | MT26: -0.002209379318 | MU26: -0.001469226594 | MV26: -0.0006830540109 | MW26: 0 | MX26: 0 | MY26: 0.000462329134 | MZ26: 0.0007124555872 | NA26: 0.0007904336808 | NB26: 0.000736317736 | ND26: 0 | NE26: 0.3438800785 | NF26: 0.5546407497 | NG26: 0.6293709396 | NH26: 0.5977116578 | NI26: 0.4893039135 | NJ26: 0.3337887162 | NK26: 0.1608070752 | NL26: 0 | NM26: 0 | NN26: -0.1727023023 | NO26: -0.2662334036 | NP26: -0.295507147 | NQ26: -0.2754373753 | NR26: -0.2209379318 | NS26: -0.1469226594 | NT26: -0.06830540109 | NU26: 0 | NV26: 0 | NW26: 0.0462329134 | NX26: 0.07124555872 | NY26: 0.07904336808 | NZ26: 0.0736317736
C27: 15 | D27: 0 | E27: -0.04163376828 | F27: -0.08326753657 | G27: -0.1249013049 | H27: -0.1665350731 | I27: -0.2081688414 | J27: -0.2498026097 | K27: -0.291436378 | L27: -0.3330701463 | M27: -0.3330701463 | N27: -0.148995041 | O27: 0.03508006427 | P27: 0.2191551695 | Q27: 0.4032302748 | R27: 0.5873053801 | S27: 0.7713804854 | T27: 0.9554555906 | U27: -0.7354693041 | V27: -0.7354693041 | W27: -0.6186887051 | X27: -0.5019081062 | Y27: -0.3851275072 | Z27: -0.2683469082 | AA27: -0.03330701463 | AB27: 0.09817338948 | AC27: -0.9018266105 | AD27: 0.06228298611 | AE27: -0.03330701463 | AF27: 0.1314804041 | AG27: 0.9641095966 | AX27: 0.06228298611 | AZ27: 0 | BA27: -0.03330701463 | BP27: -0.03330701463 | BQ27: 0.09817338948 | CD27: =+$AB27 -> 0.09817338948 | CE27: =+$AC27 -> -0.9018266105 | CF27: -0.9018266105 | CG27: 0.06228298611 | CV27: 0.06228298611 | CW27: =-AB39 -> -0.01722720892 | DL27: -0.01722720892 | DM27: 0.005963264628 | EB27: =-AE39 -> 0.005963264628 | EC27: 0 | ES27: =+ES26+1 -> 2 | EU27: =+EU26+1/8 -> 0.25 | EV27: 0.234375 | EW27: 0.234375 | FB27: =+(-EV27*$EK$14+EX27*$EK$12)/($EI$12*$EK$14-$EI$14*$EK$12)/2 -> -0.02493351064 | FC27: =+(-EW27*$EL$15+EY27*$EL$13)/($EJ$13*$EL$15-$EJ$15*$EL$13)/2 -> -0.02604166667 | FD27: 0.004986702128 | FE27: 0.008680555556 | FF27: 0.75 | FG27: 0.6990248227 | FH27: 0.25 | FI27: 0.344070134 | FK27: -0.05466903073 | FL27: -0.25 | FM27: -0.3009751773 | FO27: 0.04309495666 | FQ27: 0.04309495666 | FS27: -0.01157407407 | FU27: -0.01157407407 | FW27: -0.0546875 | FX27: 0.004155585106 | FY27: 0.004340277778 | FZ27: 0 | GA27: 0 | GB27: -0.04619163712 | GD27: 0.0390625 | GE27: -0.008311170213 | GF27: -0.008680555556 | GG27: 0 | GH27: 0 | GI27: 0.02207077423 | GL27: 0.01246675532 | GM27: 0.01302083333 | GN27: -0.001246675532 | GO27: -0.002170138889 | GP27: 0.02207077423 | GS27: -0.00623337766 | GT27: -0.006510416667 | GU27: 0.002493351064 | GV27: 0.004340277778 | GW27: -0.005910165485 | GZ27: 0 | HA27: 0 | HB27: -0.003740026596 | HC27: -0.002170138889 | HD27: -0.005910165485 | HZ27: 0 | IA27: 0.09375 | IB27: 0.1875 | IC27: 0.15625 | ID27: 0.125 | IE27: 0.09375 | IF27: 0.0625 | IG27: 0.03125 | IH27: 0 | IY27: 0 | IZ27: 0.08737810284 | JA27: 0.1747562057 | JB27: 0.1371343085 | JC27: 0.09951241135 | JD27: 0.06189051418 | JE27: 0.02426861702 | JF27: -0.01335328014 | JG27: -0.0509751773 | JH27: -0.0509751773 | JI27: -0.04289487293 | JJ27: -0.03481456856 | JK27: -0.02673426418 | JL27: -0.01865395981 | JM27: -0.01057365544 | JN27: -0.002493351064 | JO27: 0.00558695331 | JP27: 0.01366725768 | JQ27: 0.01366725768 | JR27: 0.01149711879 | JS27: 0.009326979905 | JT27: 0.007156841017 | JU27: 0.004986702128 | JY27: 0 | JZ27: 0.8737810284 | KA27: 1.747562057 | KB27: 1.371343085 | KC27: 0.9951241135 | KD27: 0.6189051418 | KE27: 0.2426861702 | KF27: -0.1335328014 | KG27: -0.509751773 | KH27: -0.509751773 | KI27: -0.4289487293 | KJ27: -0.3481456856 | KK27: -0.2673426418 | KL27: -0.1865395981 | KM27: -0.1057365544 | KN27: -0.02493351064 | KO27: 0.0558695331 | KP27: 0.1366725768 | KQ27: 0.1366725768 | KR27: 0.1149711879 | KS27: 0.09326979905 | KT27: 0.07156841017 | KU27: 0.04986702128 | LB27: 0 | LC27: 0.006591796875 | LD27: 0.01171875 | LE27: 0.01424153646 | LF27: 0.01432291667 | LG27: 0.01245117188 | LH27: 0.009114583333 | LI27: 0.004801432292 | LJ27: 0 | MF27: 0 | MG27: 0.005546407497 | MH27: 0.009727532137 | MI27: 0.0115036119 | MJ27: 0.01113696809 | MK27: 0.009215442847 | ML27: 0.006326878324 | MM27: 0.003059116661 | MN27: 0 | MO27: 0 | MP27: -0.003289567663 | MQ27: -0.00507111245 | MR27: -0.005628707561 | MS27: -0.005246426197 | MT27: -0.004208341558 | MU27: -0.002798526845 | MV27: -0.001301055259 | MW27: 0 | MX27: 0 | MY27: 0.000880626922 | MZ27: 0.001357058261 | NA27: 0.001505587963 | NB27: 0.001402509973 | ND27: 0 | NE27: 0.5546407497 | NF27: 0.9727532137 | NG27: 1.15036119 | NH27: 1.113696809 | NI27: 0.9215442847 | NJ27: 0.6326878324 | NK27: 0.3059116661 | NL27: 0 | NM27: 0 | NN27: -0.3289567663 | NO27: -0.507111245 | NP27: -0.5628707561 | NQ27: -0.5246426197 | NR27: -0.4208341558 | NS27: -0.2798526845 | NT27: -0.1301055259 | NU27: 0 | NV27: 0 | NW27: 0.0880626922 | NX27: 0.1357058261 | NY27: 0.1505587963 | NZ27: 0.1402509973
C28: 16 | D28: 0 | E28: 0 | F28: 0 | G28: 0 | H28: 0 | I28: 0 | J28: 0 | K28: 0 | L28: 0 | M28: 0 | N28: 0 | O28: 0 | P28: 0 | Q28: 0 | R28: 0 | S28: 0 | T28: 0 | U28: 0 | V28: 0 | W28: 0 | X28: 0 | Y28: 0 | Z28: 0 | AA28: 0 | AB28: 0 | AC28: -1 | AD28: 0 | AE28: 0 | AF28: 0 | AG28: 1 | AX28: 0 | ES28: 3 | EU28: 0.375 | EV28: 0.322265625 | EW28: 0.322265625 | FB28: -0.03428357713 | FC28: -0.03580729167 | FD28: 0.006856715426 | FE28: 0.01193576389 | FF28: 0.625 | FG28: 0.5549091312 | FH28: 0.375 | FI28: 0.5043464342 | FK28: -0.07516991726 | FL28: -0.375 | FM28: -0.4450908688 | FO28: 0.05925556541 | FQ28: 0.05925556541 | FS28: -0.01591435185 | FU28: -0.01591435185 | FW28: -0.0634765625 | FX28: 0.005713929521 | FY28: 0.005967881944 | FZ28: 0 | GA28: 0 | GB28: -0.05179475103 | GD28: 0.0537109375 | GE28: -0.01142785904 | GF28: -0.01193576389 | GG28: 0 | GH28: 0 | GI28: 0.03034731457 | GL28: 0.01714178856 | GM28: 0.01790364583 | GN28: -0.001714178856 | GO28: -0.002983940972 | GP28: 0.03034731457 | GS28: -0.008570894282 | GT28: -0.008951822917 | GU28: 0.003428357713 | GV28: 0.005967881944 | GW28: -0.008126477541 | GZ28: 0 | HA28: 0 | HB28: -0.005142536569 | HC28: -0.002983940972 | HD28: -0.008126477541 | HZ28: 0 | IA28: 0.078125 | IB28: 0.15625 | IC28: 0.234375 | ID28: 0.1875 | IE28: 0.140625 | IF28: 0.09375 | IG28: 0.046875 | IH28: 0 | IY28: 0 | IZ28: 0.0693636414 | JA28: 0.1387272828 | JB28: 0.2080909242 | JC28: 0.1524545656 | JD28: 0.096818207 | JE28: 0.0411818484 | JF28: -0.0144545102 | JG28: -0.07009086879 | JH28: -0.07009086879 | JI28: -0.05898045028 | JJ28: -0.04787003177 | JK28: -0.03675961325 | JL28: -0.02564919474 | JM28: -0.01453877623 | JN28: -0.003428357713 | JO28: 0.007682060801 | JP28: 0.01879247931 | JQ28: 0.01879247931 | JR28: 0.01580853834 | JS28: 0.01282459737 | JT28: 0.009840656398 | JU28: 0.006856715426 | JY28: 0 | JZ28: 0.693636414 | KA28: 1.387272828 | KB28: 2.080909242 | KC28: 1.524545656 | KD28: 0.96818207 | KE28: 0.411818484 | KF28: -0.144545102 | KG28: -0.7009086879 | KH28: -0.7009086879 | KI28: -0.5898045028 | KJ28: -0.4787003177 | KK28: -0.3675961325 | KL28: -0.2564919474 | KM28: -0.1453877623 | KN28: -0.03428357713 | KO28: 0.07682060801 | KP28: 0.1879247931 | KQ28: 0.1879247931 | KR28: 0.1580853834 | KS28: 0.1282459737 | KT28: 0.09840656398 | KU28: 0.06856715426 | LB28: 0 | LC28: 0.007731119792 | LD28: 0.01424153646 | LE28: 0.01831054688 | LF28: 0.01904296875 | LG28: 0.01684570312 | LH28: 0.01245117188 | LI28: 0.006591796875 | LJ28: 0 | MF28: 0 | MG28: 0.006293709396 | MH28: 0.0115036119 | MI28: 0.0145459006 | MJ28: 0.01466228945 | MK28: 0.01239657571 | ML28: 0.008618077488 | MM28: 0.004196112883 | MN28: 0 | MO28: 0 | MP28: -0.004523155537 | MQ28: -0.006972779619 | MR28: -0.007739472896 | MS28: -0.007213836021 | MT28: -0.005786469642 | MU28: -0.003847974412 | MV28: -0.001788950981 | MW28: 0 | MX28: 0 | MY28: 0.001210862018 | MZ28: 0.001865955109 | NA28: 0.00207018345 | NB28: 0.001928451213 | ND28: 0 | NE28: 0.6293709396 | NF28: 1.15036119 | NG28: 1.45459006 | NH28: 1.466228945 | NI28: 1.239657571 | NJ28: 0.8618077488 | NK28: 0.4196112883 | NL28: 0 | NM28: 0 | NN28: -0.4523155537 | NO28: -0.6972779619 | NP28: -0.7739472896 | NQ28: -0.7213836021 | NR28: -0.5786469642 | NS28: -0.3847974412 | NT28: -0.1788950981 | NU28: 0 | NV28: 0 | NW28: 0.1210862018 | NX28: 0.1865955109 | NY28: 0.207018345 | NZ28: 0.1928451213
C29: =+C28 -> 16 | D29: 0 | E29: 0 | F29: 0 | G29: 0 | H29: 0 | I29: 0 | J29: 0 | K29: 0 | L29: 0 | M29: 0 | N29: 0 | O29: 0 | P29: 0 | Q29: 0 | R29: 0 | S29: 0 | T29: 0 | U29: 0 | V29: 0 | W29: 0 | X29: 0 | Y29: 0 | Z29: 0 | AA29: 0 | AB29: 0 | AC29: 0 | AD29: 1 | AE29: 0 | AF29: 0 | AG29: 1 | AX29: 0 | ES29: 4 | EU29: 0.5 | EV29: 0.375 | EW29: 0.375 | FB29: -0.03989361702 | FC29: -0.04166666667 | FD29: 0.007978723404 | FE29: 0.01388888889 | FF29: 0.5 | FG29: 0.4184397163 | FH29: 0.5 | FI29: 0.6505122143 | FK29: -0.08747044917 | FL29: -0.5 | FM29: -0.5815602837 | FO29: 0.06895193065 | FQ29: 0.06895193065 | FS29: -0.01851851852 | FU29: -0.01851851852 | FW29: -0.0625 | FX29: 0.00664893617 | FY29: 0.006944444444 | FZ29: 0 | GA29: 0 | GB29: -0.04890661939 | GD29: 0.0625 | GE29: -0.01329787234 | GF29: -0.01388888889 | GG29: 0 | GH29: 0 | GI29: 0.03531323877 | GL29: 0.01994680851 | GM29: 0.02083333333 | GN29: -0.001994680851 | GO29: -0.003472222222 | GP29: 0.03531323877 | GS29: -0.009973404255 | GT29: -0.01041666667 | GU29: 0.003989361702 | GV29: 0.006944444444 | GW29: -0.009456264775 | GZ29: 0 | HA29: 0 | HB29: -0.005984042553 | HC29: -0.003472222222 | HD29: -0.009456264775 | HZ29: 0 | IA29: 0.0625 | IB29: 0.125 | IC29: 0.1875 | ID29: 0.25 | IE29: 0.1875 | IF29: 0.125 | IG29: 0.0625 | IH29: 0 | IY29: 0 | IZ29: 0.05230496454 | JA29: 0.1046099291 | JB29: 0.1569148936 | JC29: 0.2092198582 | JD29: 0.1365248227 | JE29: 0.06382978723 | JF29: -0.008865248227 | JG29: -0.08156028369 | JH29: -0.08156028369 | JI29: -0.06863179669 | JJ29: -0.05570330969 | JK29: -0.0427748227 | JL29: -0.0298463357 | JM29: -0.0169178487 | JN29: -0.003989361702 | JO29: 0.008939125296 | JP29: 0.02186761229 | JQ29: 0.02186761229 | JR29: 0.01839539007 | JS29: 0.01492316785 | JT29: 0.01145094563 | JU29: 0.007978723404 | JY29: 0 | JZ29: 0.5230496454 | KA29: 1.046099291 | KB29: 1.569148936 | KC29: 2.092198582 | KD29: 1.365248227 | KE29: 0.6382978723 | KF29: -0.08865248227 | KG29: -0.8156028369 | KH29: -0.8156028369 | KI29: -0.6863179669 | KJ29: -0.5570330969 | KK29: -0.427748227 | KL29: -0.298463357 | KM29: -0.169178487 | KN29: -0.03989361702 | KO29: 0.08939125296 | KP29: 0.2186761229 | KQ29: 0.2186761229 | KR29: 0.1839539007 | KS29: 0.1492316785 | KT29: 0.1145094563 | KU29: 0.07978723404 | LB29: 0 | LC29: 0.007649739583 | LD29: 0.01432291667 | LE29: 0.01904296875 | LF29: 0.02083333333 | LG29: 0.01904296875 | LH29: 0.01432291667 | LI29: 0.007649739583 | LJ29: 0 | MF29: 0 | MG29: 0.005977116578 | MH29: 0.01113696809 | MI29: 0.01466228945 | MJ29: 0.0157358156 | MK29: 0.0138658023 | ML29: 0.009862588652 | MM29: 0.004862034574 | MN29: 0 | MO29: 0 | MP29: -0.005263308261 | MQ29: -0.00811377992 | MR29: -0.009005932098 | MS29: -0.008394281915 | MT29: -0.006733346493 | MU29: -0.004477642952 | MV29: -0.002081688414 | MW29: 0 | MX29: 0 | MY29: 0.001409003075 | MZ29: 0.002171293218 | NA29: 0.002408940741 | NB29: 0.002244015957 | ND29: 0 | NE29: 0.5977116578 | NF29: 1.113696809 | NG29: 1.466228945 | NH29: 1.57358156 | NI29: 1.38658023 | NJ29: 0.9862588652 | NK29: 0.4862034574 | NL29: 0 | NM29: 0 | NN29: -0.5263308261 | NO29: -0.811377992 | NP29: -0.9005932098 | NQ29: -0.8394281915 | NR29: -0.6733346493 | NS29: -0.4477642952 | NT29: -0.2081688414 | NU29: 0 | NV29: 0 | NW29: 0.1409003075 | NX29: 0.2171293218 | NY29: 0.2408940741 | NZ29: 0.2244015957
C30: =+C29+1 -> 17 | D30: 0 | E30: 0.0281800615 | F30: 0.05636012301 | G30: 0.08454018451 | H30: 0.112720246 | I30: 0.1409003075 | J30: 0.169080369 | K30: 0.1972604305 | L30: 0.225440492 | M30: 0.225440492 | N30: 0.1033268922 | O30: -0.01878670767 | P30: -0.1409003075 | Q30: -0.2630139074 | R30: -0.3851275072 | S30: -0.507241107 | T30: -0.6293547069 | U30: -0.7514683067 | V30: -0.7514683067 | W30: 0.9461228391 | X30: 0.7687139849 | Y30: 0.5913051308 | Z30: 0.4138962766 | AA30: 0.0225440492 | AB30: -0.06512725325 | AC30: -0.06512725325 | AD30: 0.9053819444 | AE30: 0.0225440492 | AF30: -0.08767130245 | AG30: 0.9705091977 | AX30: -0.09461805556 | AZ30: 0 | BA30: =+$AE30 -> 0.0225440492 | BP30: =+BA30 -> 0.0225440492 | BQ30: =+AB30 -> -0.06512725325 | CF30: =+BQ30 -> -0.06512725325 | CG30: =+$AD30 -> 0.9053819444 | CH30: =+$AD30 -> 0.9053819444 | CI30: =-$AD36 -> -0.09461805556 | CV30: =-$AD36 -> -0.09461805556 | CW30: =-$AB36 -> 0.02563072547 | DL30: =-$AB36 -> 0.02563072547 | DM30: =+EB30 -> -0.008872174202 | EB30: =-AE36 -> -0.008872174202 | EC30: 0 | ES30: 5 | EU30: 0.625 | EV30: 0.380859375 | EW30: 0.380859375 | FB30: -0.04051695479 | FC30: -0.04231770833 | FD30: 0.008103390957 | FE30: 0.01410590278 | FF30: 0.375 | FG30: 0.2921653369 | FH30: 0.625 | FI30: 0.7778639677 | FK30: -0.08883717494 | FL30: -0.625 | FM30: -0.7078346631 | FO30: 0.07002930457 | FQ30: 0.07002930457 | FS30: -0.01880787037 | FU30: -0.01880787037 | FW30: -0.0537109375 | FX30: 0.006752825798 | FY30: 0.007052951389 | FZ30: 0 | GA30: 0 | GB30: -0.03990516031 | GD30: 0.0634765625 | GE30: -0.0135056516 | GF30: -0.01410590278 | GG30: 0 | GH30: 0 | GI30: 0.03586500813 | GL30: 0.02025847739 | GM30: 0.02115885417 | GN30: -0.002025847739 | GO30: -0.003526475694 | GP30: 0.03586500813 | GS30: -0.0101292387 | GT30: -0.01057942708 | GU30: 0.004051695479 | GV30: 0.007052951389 | GW30: -0.009604018913 | GZ30: 0 | HA30: 0 | HB30: -0.006077543218 | HC30: -0.003526475694 | HD30: -0.009604018913 | HZ30: 0 | IA30: 0.046875 | IB30: 0.09375 | IC30: 0.140625 | ID30: 0.1875 | IE30: 0.234375 | IF30: 0.15625 | IG30: 0.078125 | IH30: 0 | IY30: 0 | IZ30: 0.03652066711 | JA30: 0.07304133422 | JB30: 0.1095620013 | JC30: 0.1460826684 | JD30: 0.1826033355 | JE30: 0.09412400266 | JF30: 0.00564466977 | JG30: -0.08283466312 | JH30: -0.08283466312 | JI30: -0.06970416851 | JJ30: -0.05657367391 | JK30: -0.0434431793 | JL30: -0.03031268469 | JM30: -0.01718219009 | JN30: -0.004051695479 | JO30: 0.009078799128 | JP30: 0.02220929374 | JQ30: 0.02220929374 | JR30: 0.01868281804 | JS30: 0.01515634235 | JT30: 0.01162986665 | JU30: 0.008103390957 | JY30: 0 | JZ30: 0.3652066711 | KA30: 0.7304133422 | KB30: 1.095620013 | KC30: 1.460826684 | KD30: 1.826033355 | KE30: 0.9412400266 | KF30: 0.0564466977 | KG30: -0.8283466312 | KH30: -0.8283466312 | KI30: -0.6970416851 | KJ30: -0.5657367391 | KK30: -0.434431793 | KL30: -0.3031268469 | KM30: -0.1718219009 | KN30: -0.04051695479 | KO30: 0.09078799128 | KP30: 0.2220929374 | KQ30: 0.2220929374 | KR30: 0.1868281804 | KS30: 0.1515634235 | KT30: 0.1162986665 | KU30: 0.08103390957 | LB30: 0 | LC30: 0.006591796875 | LD30: 0.01245117188 | LE30: 0.01684570312 | LF30: 0.01904296875 | LG30: 0.01831054688 | LH30: 0.01424153646 | LI30: 0.007731119792 | LJ30: 0 | MF30: 0 | MG30: 0.004893039135 | MH30: 0.009215442847 | MI30: 0.01239657571 | MJ30: 0.0138658023 | MK30: 0.0130524872 | ML30: 0.009711515819 | MM30: 0.004899856892 | MN30: 0 | MO30: 0 | MP30: -0.005345547453 | MQ30: -0.008240557731 | MR30: -0.009146649787 | MS30: -0.00852544257 | MT30: -0.006838555032 | MU30: -0.004547606123 | MV30: -0.002114214796 | MW30: 0 | MX30: 0 | MY30: 0.001431018748 | MZ30: 0.002205219675 | NA30: 0.00244658044 | NB30: 0.002279078707 | ND30: 0 | NE30: 0.4893039135 | NF30: 0.9215442847 | NG30: 1.239657571 | NH30: 1.38658023 | NI30: 1.30524872 | NJ30: 0.9711515819 | NK30: 0.4899856892 | NL30: 0 | NM30: 0 | NN30: -0.5345547453 | NO30: -0.8240557731 | NP30: -0.9146649787 | NQ30: -0.852544257 | NR30: -0.6838555032 | NS30: -0.4547606123 | NT30: -0.2114214796 | NU30: 0 | NV30: 0 | NW30: 0.1431018748 | NX30: 0.2205219675 | NY30: 0.244658044 | NZ30: 0.2279078707
C31: 18 | D31: 0 | E31: 0.04342586436 | F31: 0.08685172872 | G31: 0.1302775931 | H31: 0.1737034574 | I31: 0.2171293218 | J31: 0.2605551862 | K31: 0.3039810505 | L31: 0.3474069149 | M31: 0.3474069149 | N31: 0.1592281693 | O31: -0.02895057624 | P31: -0.2171293218 | Q31: -0.4053080674 | R31: -0.5934868129 | S31: -0.7816655585 | T31: -0.9698443041 | U31: -1.15802305 | V31: -1.15802305 | W31: 0.313331117 | X31: 1.784685284 | Y31: 1.38103945 | Z31: 0.977393617 | AA31: 0.03474069149 | AB31: -0.1003619976 | AC31: -0.1003619976 | AD31: 0.7847222222 | AE31: 0.03474069149 | AF31: -0.1351026891 | AG31: 0.8850842199 | AX31: -0.2152777778 | AZ31: 0 | BA31: =+$AE31 -> 0.03474069149 | BP31: =+BA31 -> 0.03474069149 | BQ31: =+AB31 -> -0.1003619976 | CF31: =+BQ31 -> -0.1003619976 | CG31: =+$AD31 -> 0.7847222222 | CJ31: =+$AD31 -> 0.7847222222 | CK31: =-$AD35 -> -0.2152777778 | CV31: =-$AD35 -> -0.2152777778 | CW31: =-$AB35 -> 0.05522310875 | DL31: =-$AB35 -> 0.05522310875 | DM31: =+EB31 -> -0.01911569149 | EB31: =-AE35 -> -0.01911569149 | EC31: 0 | ES31: 6 | EU31: 0.75 | EV31: 0.328125 | EW31: 0.328125 | FB31: -0.03490691489 | FC31: -0.03645833333 | FD31: 0.006981382979 | FE31: 0.01215277778 | FF31: 0.25 | FG31: 0.1786347518 | FH31: 0.75 | FI31: 0.8816981875 | FK31: -0.07653664303 | FL31: -0.75 | FM31: -0.8213652482 | FO31: 0.06033293932 | FQ31: 0.06033293932 | FS31: -0.0162037037 | FU31: -0.0162037037 | FW31: -0.0390625 | FX31: 0.005817819149 | FY31: 0.006076388889 | FZ31: 0 | GA31: 0 | GB31: -0.02716829196 | GD31: 0.0546875 | GE31: -0.0116356383 | GF31: -0.01215277778 | GG31: 0 | GH31: 0 | GI31: 0.03089908392 | GL31: 0.01745345745 | GM31: 0.01822916667 | GN31: -0.001745345745 | GO31: -0.003038194444 | GP31: 0.03089908392 | GS31: -0.008726728723 | GT31: -0.009114583333 | GU31: 0.003490691489 | GV31: 0.006076388889 | GW31: -0.008274231678 | GZ31: 0 | HA31: 0 | HB31: -0.005236037234 | HC31: -0.003038194444 | HD31: -0.008274231678 | HZ31: 0 | IA31: 0.03125 | IB31: 0.0625 | IC31: 0.09375 | ID31: 0.125 | IE31: 0.15625 | IF31: 0.1875 | IG31: 0.09375 | IH31: 0 | IY31: 0 | IZ31: 0.02232934397 | JA31: 0.04465868794 | JB31: 0.06698803191 | JC31: 0.08931737589 | JD31: 0.1116467199 | JE31: 0.1339760638 | JF31: 0.0313054078 | JG31: -0.07136524823 | JH31: -0.07136524823 | JI31: -0.0600528221 | JJ31: -0.04874039598 | JK31: -0.03742796986 | JL31: -0.02611554374 | JM31: -0.01480311761 | JN31: -0.003490691489 | JO31: 0.007821734634 | JP31: 0.01913416076 | JQ31: 0.01913416076 | JR31: 0.01609596631 | JS31: 0.01305777187 | JT31: 0.01001957742 | JU31: 0.006981382979 | JY31: 0 | JZ31: 0.2232934397 | KA31: 0.4465868794 | KB31: 0.6698803191 | KC31: 0.8931737589 | KD31: 1.116467199 | KE31: 1.339760638 | KF31: 0.313054078 | KG31: -0.7136524823 | KH31: -0.7136524823 | KI31: -0.600528221 | KJ31: -0.4874039598 | KK31: -0.3742796986 | KL31: -0.2611554374 | KM31: -0.1480311761 | KN31: -0.03490691489 | KO31: 0.07821734634 | KP31: 0.1913416076 | KQ31: 0.1913416076 | KR31: 0.1609596631 | KS31: 0.1305777187 | KT31: 0.1001957742 | KU31: 0.06981382979 | LB31: 0 | LC31: 0.004801432292 | LD31: 0.009114583333 | LE31: 0.01245117188 | LF31: 0.01432291667 | LG31: 0.01424153646 | LH31: 0.01171875 | LI31: 0.006591796875 | LJ31: 0 | MF31: 0 | MG31: 0.003337887162 | MH31: 0.006326878324 | MI31: 0.008618077488 | MJ31: 0.009862588652 | MK31: 0.009711515819 | ML31: 0.007815962988 | MM31: 0.004152554992 | MN31: 0 | MO31: 0 | MP31: -0.004605394729 | MQ31: -0.00709955743 | MR31: -0.007880190586 | MS31: -0.007344996676 | MT31: -0.005891678181 | MU31: -0.003917937583 | MV31: -0.001821477362 | MW31: 0 | MX31: 0 | MY31: 0.001232877691 | MZ31: 0.001899881566 | NA31: 0.002107823149 | NB31: 0.001963513963 | ND31: 0 | NE31: 0.3337887162 | NF31: 0.6326878324 | NG31: 0.8618077488 | NH31: 0.9862588652 | NI31: 0.9711515819 | NJ31: 0.7815962988 | NK31: 0.4152554992 | NL31: 0 | NM31: 0 | NN31: -0.4605394729 | NO31: -0.709955743 | NP31: -0.7880190586 | NQ31: -0.7344996676 | NR31: -0.5891678181 | NS31: -0.3917937583 | NT31: -0.1821477362 | NU31: 0 | NV31: 0 | NW31: 0.1232877691 | NX31: 0.1899881566 | NY31: 0.2107823149 | NZ31: 0.1963513963
C32: 19 | D32: 0 | E32: 0.04817881483 | F32: 0.09635762965 | G32: 0.1445364445 | H32: 0.1927152593 | I32: 0.2408940741 | J32: 0.289072889 | K32: 0.3372517038 | L32: 0.3854305186 | M32: 0.3854305186 | N32: 0.1766556544 | O32: -0.03211920988 | P32: -0.2408940741 | Q32: -0.4496689384 | R32: -0.6584438026 | S32: -0.8672186669 | T32: -1.075993531 | U32: -1.284768395 | V32: -1.284768395 | W32: -0.07220329122 | X32: 1.140361813 | Y32: 2.352926917 | Z32: 1.690492021 | AA32: 0.03854305186 | AB32: -0.1113465943 | AC32: -0.1113465943 | AD32: 0.6467013889 | AE32: 0.03854305186 | AF32: -0.1498896461 | AG32: 0.7580479832 | AX32: -0.3532986111 | AZ32: 0 | BA32: =+$AE32 -> 0.03854305186 | BP32: =+BA32 -> 0.03854305186 | BQ32: =+AB32 -> -0.1113465943 | CF32: =+BQ32 -> -0.1113465943 | CG32: =+$AD32 -> 0.6467013889 | CL32: =+$AD32 -> 0.6467013889 | CM32: =-$AD34 -> -0.3532986111 | CV32: =-$AD34 -> -0.3532986111 | CW32: =-$AB34 -> 0.08313478871 | DL32: =-$AB34 -> 0.08313478871 | DM32: =+EB32 -> -0.02877742686 | EB32: =-AE34 -> -0.02877742686 | EC32: 0 | ES32: 7 | EU32: 0.875 | EV32: 0.205078125 | EW32: 0.205078125 | FB32: -0.02181682181 | FC32: -0.02278645833 | FD32: 0.004363364362 | FE32: 0.007595486111 | FF32: 0.125 | FG32: 0.08039671986 | FH32: 0.875 | FI32: 0.9573113672 | FK32: -0.04783540189 | FL32: -0.875 | FM32: -0.9196032801 | FO32: 0.03770808708 | FQ32: 0.03770808708 | FS32: -0.01012731481 | FU32: -0.01012731481 | FW32: -0.0205078125 | FX32: 0.003636136968 | FY32: 0.003797743056 | FZ32: 0 | GA32: 0 | GB32: -0.01307393248 | GD32: 0.0341796875 | GE32: -0.007272273936 | GF32: -0.007595486111 | GG32: 0 | GH32: 0 | GI32: 0.01931192745 | GL32: 0.0109084109 | GM32: 0.01139322917 | GN32: -0.00109084109 | GO32: -0.001898871528 | GP32: 0.01931192745 | GS32: -0.005454205452 | GT32: -0.005696614583 | GU32: 0.002181682181 | GV32: 0.003797743056 | GW32: -0.005171394799 | GZ32: 0 | HA32: 0 | HB32: -0.003272523271 | HC32: -0.001898871528 | HD32: -0.005171394799 | HZ32: 0 | IA32: 0.015625 | IB32: 0.03125 | IC32: 0.046875 | ID32: 0.0625 | IE32: 0.078125 | IF32: 0.09375 | IG32: 0.109375 | IH32: 0 | IY32: 0 | IZ32: 0.01004958998 | JA32: 0.02009917996 | JB32: 0.03014876995 | JC32: 0.04019835993 | JD32: 0.05024794991 | JE32: 0.06029753989 | JF32: 0.07034712988 | JG32: -0.04460328014 | JH32: -0.04460328014 | JI32: -0.03753301382 | JJ32: -0.03046274749 | JK32: -0.02339248116 | JL32: -0.01632221483 | JM32: -0.009251948508 | JN32: -0.002181682181 | JO32: 0.004888584146 | JP32: 0.01195885047 | JQ32: 0.01195885047 | JR32: 0.01005997895 | JS32: 0.008161107417 | JT32: 0.006262235889 | JU32: 0.004363364362 | JY32: 0 | JZ32: 0.1004958998 | KA32: 0.2009917996 | KB32: 0.3014876995 | KC32: 0.4019835993 | KD32: 0.5024794991 | KE32: 0.6029753989 | KF32: 0.7034712988 | KG32: -0.4460328014 | KH32: -0.4460328014 | KI32: -0.3753301382 | KJ32: -0.3046274749 | KK32: -0.2339248116 | KL32: -0.1632221483 | KM32: -0.09251948508 | KN32: -0.02181682181 | KO32: 0.04888584146 | KP32: 0.1195885047 | KQ32: 0.1195885047 | KR32: 0.1005997895 | KS32: 0.08161107417 | KT32: 0.06262235889 | KU32: 0.04363364362 | LB32: 0 | LC32: 0.002522786458 | LD32: 0.004801432292 | LE32: 0.006591796875 | LF32: 0.007649739583 | LG32: 0.007731119792 | LH32: 0.006591796875 | LI32: 0.003987630208 | LJ32: 0 | MF32: 0 | MG32: 0.001608070752 | MH32: 0.003059116661 | MI32: 0.004196112883 | MJ32: 0.004862034574 | MK32: 0.004899856892 | ML32: 0.004152554992 | MM32: 0.002463104032 | MN32: 0 | MO32: 0 | MP32: -0.002878371705 | MQ32: -0.004437223394 | MR32: -0.004925119116 | MS32: -0.004590622922 | MT32: -0.003682298863 | MU32: -0.002448710989 | MV32: -0.001138423352 | MW32: 0 | MX32: 0 | MY32: 0.0007705485567 | MZ32: 0.001187425979 | NA32: 0.001317389468 | NB32: 0.001227196227 | ND32: 0 | NE32: 0.1608070752 | NF32: 0.3059116661 | NG32: 0.4196112883 | NH32: 0.4862034574 | NI32: 0.4899856892 | NJ32: 0.4152554992 | NK32: 0.2463104032 | NL32: 0 | NM32: 0 | NN32: -0.2878371705 | NO32: -0.4437223394 | NP32: -0.4925119116 | NQ32: -0.4590622922 | NR32: -0.3682298863 | NS32: -0.2448710989 | NT32: -0.1138423352 | NU32: 0 | NV32: 0 | NW32: 0.07705485567 | NX32: 0.1187425979 | NY32: 0.1317389468 | NZ32: 0.1227196227
C33: 20 | D33: 0 | E33: 0.04488031915 | F33: 0.0897606383 | G33: 0.1346409574 | H33: 0.1795212766 | I33: 0.2244015957 | J33: 0.2692819149 | K33: 0.314162234 | L33: 0.3590425532 | M33: 0.3590425532 | N33: 0.1645611702 | O33: -0.02992021277 | P33: -0.2244015957 | Q33: -0.4188829787 | R33: -0.6133643617 | S33: -0.8078457447 | T33: -1.002327128 | U33: -1.196808511 | V33: -1.196808511 | W33: -0.2593085106 | X33: 0.6781914894 | Y33: 1.615691489 | Z33: 2.553191489 | AA33: 0.03590425532 | AB33: -0.1037234043 | AC33: -0.1037234043 | AD33: 0.5 | AE33: 0.03590425532 | AF33: -0.1396276596 | AG33: 0.6037234043 | AX33: -0.5 | AZ33: 0 | BA33: =+$AE33 -> 0.03590425532 | BP33: =+BA33 -> 0.03590425532 | BQ33: =+AB33 -> -0.1037234043 | CF33: =+BQ33 -> -0.1037234043 | CG33: =+$AD33 -> 0.5 | CN33: =+$AD33 -> 0.5 | CO33: =-$AD33 -> -0.5 | CV33: =-$AD33 -> -0.5 | CW33: =-$AB33 -> 0.1037234043 | DL33: =-$AB33 -> 0.1037234043 | DM33: =+EB33 -> -0.03590425532 | EB33: =-AE33 -> -0.03590425532 | EC33: 0 | ES33: 8 | EU33: 1 | EV33: 0 | EW33: 0 | FB33: 0 | FC33: 0 | FD33: 0 | FE33: 0 | FF33: 0 | FG33: 0 | FH33: 1 | FI33: 1 | FK33: 0 | FL33: -1 | FM33: -1 | FO33: 0 | FQ33: 0 | FS33: 0 | FU33: 0 | FW33: 0 | FX33: 0 | FY33: 0 | FZ33: 0 | GA33: 0 | GB33: 0 | GD33: 0 | GE33: 0 | GF33: 0 | GG33: 0 | GH33: 0 | GI33: 0 | GL33: 0 | GM33: 0 | GN33: 0 | GO33: 0 | GP33: 0 | GS33: 0 | GT33: 0 | GU33: 0 | GV33: 0 | GW33: 0 | GZ33: 0 | HA33: 0 | HB33: 0 | HC33: 0 | HD33: 0 | HZ33: 0 | IA33: 0 | IB33: 0 | IC33: 0 | ID33: 0 | IE33: 0 | IF33: 0 | IG33: 0 | IH33: 0 | IY33: 0 | IZ33: 0 | JA33: 0 | JB33: 0 | JC33: 0 | JD33: 0 | JE33: 0 | JF33: 0 | JG33: 0 | JH33: 0 | JI33: 0 | JJ33: 0 | JK33: 0 | JL33: 0 | JM33: 0 | JN33: 0 | JO33: 0 | JP33: 0 | JQ33: 0 | JR33: 0 | JS33: 0 | JT33: 0 | JU33: 0 | JY33: 0 | JZ33: 0 | KA33: 0 | KB33: 0 | KC33: 0 | KD33: 0 | KE33: 0 | KF33: 0 | KG33: 0 | KH33: 0 | KI33: 0 | KJ33: 0 | KK33: 0 | KL33: 0 | KM33: 0 | KN33: 0 | KO33: 0 | KP33: 0 | KQ33: 0 | KR33: 0 | KS33: 0 | KT33: 0 | KU33: 0 | LB33: 0 | LC33: 0 | LD33: 0 | LE33: 0 | LF33: 0 | LG33: 0 | LH33: 0 | LI33: 0 | LJ33: 0 | MF33: 0 | MG33: 0 | MH33: 0 | MI33: 0 | MJ33: 0 | MK33: 0 | ML33: 0 | MM33: 0 | MN33: 0 | MO33: 0 | MP33: 0 | MQ33: 0 | MR33: 0 | MS33: 0 | MT33: 0 | MU33: 0 | MV33: 0 | MW33: 0 | MX33: 0 | MY33: 0 | MZ33: 0 | NA33: 0 | NB33: 0 | ND33: 0 | NE33: 0 | NF33: 0 | NG33: 0 | NH33: 0 | NI33: 0 | NJ33: 0 | NK33: 0 | NL33: 0 | NM33: 0 | NN33: 0 | NO33: 0 | NP33: 0 | NQ33: 0 | NR33: 0 | NS33: 0 | NT33: 0 | NU33: 0 | NV33: 0 | NW33: 0 | NX33: 0 | NY33: 0 | NZ33: 0
C34: 21 | D34: 0 | E34: 0.03597178358 | F34: 0.07194356715 | G34: 0.1079153507 | H34: 0.1438871343 | I34: 0.1798589179 | J34: 0.2158307015 | K34: 0.251802485 | L34: 0.2877742686 | M34: 0.2877742686 | N34: 0.1318965398 | O34: -0.02398118905 | P34: -0.1798589179 | Q34: -0.3357366467 | R34: -0.4916143756 | S34: -0.6474921044 | T34: -0.8033698332 | U34: -0.9592475621 | V34: -0.9592475621 | W34: -0.2968126662 | X34: 0.3656222296 | Y34: 1.028057125 | Z34: 1.690492021 | AA34: 0.02877742686 | AB34: -0.08313478871 | AC34: -0.08313478871 | AD34: 0.3532986111 | AE34: 0.02877742686 | AF34: -0.1119122156 | AG34: 0.4364333998 | AX34: -0.6467013889 | AZ34: 0 | ES34: =+ES33 -> 8 | ET34: 2 | EU34: 0 | EV34: =+(2*$EU34-3*$EU34^2+$EU34^3)*Input!$B$1^2 -> 0 | EW34: 0 | EX34: =+EV52 -> 0 | EY34: =+EX34 -> 0 | FB34: 0 | FC34: 0 | FD34: 0 | FE34: 0 | FG34: 0 | FH34: =1-EU34 -> 1 | FI34: 1 | FJ34: =+EU34 -> 0 | FK34: 0 | FM34: 0 | FN34: =1-$EU34 -> 1 | FO34: 1 | FP34: =-$EU34 -> 0 | FQ34: 0 | FS34: 0 | FU34: 0 | FX34: 0 | FY34: 0 | FZ34: 0 | GA34: 0 | GB34: 0 | GE34: 0 | GF34: 0 | GG34: 0 | GH34: 0 | GI34: 0 | GK34: =+FW25*Input!$B$1^2 -> 0 | GL34: 0 | GM34: 0 | GN34: 0 | GO34: 0 | GP34: 0 | GR34: =+GD25*Input!$B$1^2 -> 0 | GS34: 0 | GT34: 0 | GU34: 0 | GV34: 0 | GW34: 0 | GZ34: 0 | HA34: 0 | HB34: 0 | HC34: 0 | HD34: 0 | II34: 0 | IJ34: =+IF($EU34<=IJ$3,IJ$5/IJ$3*$EU34,IJ$5-IJ$5/(1-IJ$3)*($EU34-IJ$3))*Input!$B$1 -> 0 | IK34: =+IF($EU34<=IK$3,IK$5/IK$3*$EU34,IK$5-IK$5/(1-IK$3)*($EU34-IK$3))*Input!$B$1 -> 0 | IL34: =+IF($EU34<=IL$3,IL$5/IL$3*$EU34,IL$5-IL$5/(1-IL$3)*($EU34-IL$3))*Input!$B$1 -> 0 | IM34: =+IF($EU34<=IM$3,IM$5/IM$3*$EU34,IM$5-IM$5/(1-IM$3)*($EU34-IM$3))*Input!$B$1 -> 0 | IN34: =+IF($EU34<=IN$3,IN$5/IN$3*$EU34,IN$5-IN$5/(1-IN$3)*($EU34-IN$3))*Input!$B$1 -> 0 | IO34: =+IF($EU34<=IO$3,IO$5/IO$3*$EU34,IO$5-IO$5/(1-IO$3)*($EU34-IO$3))*Input!$B$1 -> 0 | IP34: =+IF($EU34<=IP$3,IP$5/IP$3*$EU34,IP$5-IP$5/(1-IP$3)*($EU34-IP$3))*Input!$B$1 -> 0 | IQ34: =+IF($EU34<=IQ$3,IQ$5/IQ$3*$EU34,IQ$5-IQ$5/(1-IQ$3)*($EU34-IQ$3))*Input!$B$1 -> 0 | IY34: 0 | IZ34: 0 | JA34: 0 | JB34: 0 | JC34: 0 | JD34: 0 | JE34: 0 | JF34: 0 | JG34: 0 | JH34: 0 | JI34: 0 | JJ34: 0 | JK34: 0 | JL34: 0 | JM34: 0 | JN34: 0 | JO34: 0 | JP34: 0 | JQ34: 0 | JR34: 0 | JS34: 0 | JT34: 0 | JU34: 0 | JY34: 0 | JZ34: 0 | KA34: 0 | KB34: 0 | KC34: 0 | KD34: 0 | KE34: 0 | KF34: 0 | KG34: 0 | KH34: 0 | KI34: 0 | KJ34: 0 | KK34: 0 | KL34: 0 | KM34: 0 | KN34: 0 | KO34: 0 | KP34: 0 | KQ34: 0 | KR34: 0 | KS34: 0 | KT34: 0 | KU34: 0 | LK34: =+IF($EU34<=II$3,1/6*(1-II$3)*$EU34*(1-(1-II$3)^2-$EU34^2),1/6*II$3*(1-$EU34)*(1-II$3^2-(1-$EU34)^2))*Input!$B$1^3 -> 0 | LL34: =+IF($EU34<=IJ$3,1/6*(1-IJ$3)*$EU34*(1-(1-IJ$3)^2-$EU34^2),1/6*IJ$3*(1-$EU34)*(1-IJ$3^2-(1-$EU34)^2))*Input!$B$1^3 -> 0 | LM34: =+IF($EU34<=IK$3,1/6*(1-IK$3)*$EU34*(1-(1-IK$3)^2-$EU34^2),1/6*IK$3*(1-$EU34)*(1-IK$3^2-(1-$EU34)^2))*Input!$B$1^3 -> 0 | LN34: =+IF($EU34<=IL$3,1/6*(1-IL$3)*$EU34*(1-(1-IL$3)^2-$EU34^2),1/6*IL$3*(1-$EU34)*(1-IL$3^2-(1-$EU34)^2))*Input!$B$1^3 -> 0 | LO34: =+IF($EU34<=IM$3,1/6*(1-IM$3)*$EU34*(1-(1-IM$3)^2-$EU34^2),1/6*IM$3*(1-$EU34)*(1-IM$3^2-(1-$EU34)^2))*Input!$B$1^3 -> 0 | LP34: =+IF($EU34<=IN$3,1/6*(1-IN$3)*$EU34*(1-(1-IN$3)^2-$EU34^2),1/6*IN$3*(1-$EU34)*(1-IN$3^2-(1-$EU34)^2))*Input!$B$1^3 -> 0 | LQ34: =+IF($EU34<=IO$3,1/6*(1-IO$3)*$EU34*(1-(1-IO$3)^2-$EU34^2),1/6*IO$3*(1-$EU34)*(1-IO$3^2-(1-$EU34)^2))*Input!$B$1^3 -> 0 | LR34: =+IF($EU34<=IP$3,1/6*(1-IP$3)*$EU34*(1-(1-IP$3)^2-$EU34^2),1/6*IP$3*(1-$EU34)*(1-IP$3^2-(1-$EU34)^2))*Input!$B$1^3 -> 0 | LS34: =+IF($EU34<=IQ$3,1/6*(1-IQ$3)*$EU34*(1-(1-IQ$3)^2-$EU34^2),1/6*IQ$3*(1-$EU34)*(1-IQ$3^2-(1-$EU34)^2))*Input!$B$1^3 -> 0 | MF34: 0 | MG34: 0 | MH34: 0 | MI34: 0 | MJ34: 0 | MK34: 0 | ML34: 0 | MM34: 0 | MN34: 0 | MO34: 0 | MP34: 0 | MQ34: 0 | MR34: 0 | MS34: 0 | MT34: 0 | MU34: 0 | MV34: 0 | MW34: 0 | MX34: 0 | MY34: 0 | MZ34: 0 | NA34: 0 | NB34: 0 | ND34: 0 | NE34: 0 | NF34: 0 | NG34: 0 | NH34: 0 | NI34: 0 | NJ34: 0 | NK34: 0 | NL34: 0 | NM34: 0 | NN34: 0 | NO34: 0 | NP34: 0 | NQ34: 0 | NR34: 0 | NS34: 0 | NT34: 0 | NU34: 0 | NV34: 0 | NW34: 0 | NX34: 0 | NY34: 0 | NZ34: 0
C35: 22 | D35: 0 | E35: 0.02389461436 | F35: 0.04778922872 | G35: 0.07168384309 | H35: 0.09557845745 | I35: 0.1194730718 | J35: 0.1433676862 | K35: 0.1672623005 | L35: 0.1911569149 | M35: 0.1911569149 | N35: 0.08761358599 | O35: -0.01592974291 | P35: -0.1194730718 | Q35: -0.2230164007 | R35: -0.3265597296 | S35: -0.4301030585 | T35: -0.5336463874 | U35: -0.6371897163 | V35: -0.6371897163 | W35: -0.233543883 | X35: 0.1701019504 | Y35: 0.5737477837 | Z35: 0.977393617 | AA35: 0.01911569149 | AB35: -0.05522310875 | AC35: -0.05522310875 | AD35: 0.2152777778 | AE35: 0.01911569149 | AF35: -0.07433880024 | AG35: 0.2705008865 | AX35: -0.7847222222 | ES35: =+ES34+1 -> 9 | EU35: =+EU34+1/8 -> 0.125 | EV35: =+(2*$EU35-3*$EU35^2+$EU35^3)*Input!$B$1^2 -> 0.4614257812 | EW35: 0.4614257812 | EX35: =+EV53 -> 0.2768554688 | EY35: =+EX35 -> 0.2768554688 | FB35: -0.04319730718 | FC35: -0.041015625 | FD35: -0.009817569814 | FE35: -0.01708984375 | FG35: -0.08421293218 | FH35: 0.875 | FI35: 0.9974166113 | FJ35: 0.125 | FK35: 0.1095827793 | FM35: -0.08421293218 | FN35: =1-$EU35 -> 0.875 | FO35: 0.9132036791 | FP35: -0.125 | FQ35: -0.08679632092 | FS35: 0.02278645833 | FU35: 0.02278645833 | FX35: 0.007199551197 | FY35: 0.0068359375 | FZ35: 0 | GA35: 0 | GB35: 0.0140354887 | GE35: -0.01439910239 | GF35: -0.013671875 | GG35: 0 | GH35: 0 | GI35: -0.02807097739 | GK35: =+FW26*Input!$B$1^2 -> -0.07690429688 | GL35: 0.02159865359 | GM35: 0.0205078125 | GN35: 0.002454392453 | GO35: 0.004272460938 | GP35: -0.02807097739 | GR35: =+GD26*Input!$B$1^2 -> 0.04614257812 | GS35: -0.0107993268 | GT35: -0.01025390625 | GU35: -0.004908784907 | GV35: -0.008544921875 | GW35: 0.0116356383 | GZ35: 0 | HA35: 0 | HB35: 0.00736317736 | HC35: 0.004272460938 | HD35: 0.0116356383 | II35: 0 | IJ35: =+IF($EU35<=IJ$3,IJ$5/IJ$3*$EU35,IJ$5-IJ$5/(1-IJ$3)*($EU35-IJ$3))*Input!$B$1 -> 0.1640625 | IK35: =+IF($EU35<=IK$3,IK$5/IK$3*$EU35,IK$5-IK$5/(1-IK$3)*($EU35-IK$3))*Input!$B$1 -> 0.140625 | IL35: =+IF($EU35<=IL$3,IL$5/IL$3*$EU35,IL$5-IL$5/(1-IL$3)*($EU35-IL$3))*Input!$B$1 -> 0.1171875 | IM35: =+IF($EU35<=IM$3,IM$5/IM$3*$EU35,IM$5-IM$5/(1-IM$3)*($EU35-IM$3))*Input!$B$1 -> 0.09375 | IN35: =+IF($EU35<=IN$3,IN$5/IN$3*$EU35,IN$5-IN$5/(1-IN$3)*($EU35-IN$3))*Input!$B$1 -> 0.0703125 | IO35: =+IF($EU35<=IO$3,IO$5/IO$3*$EU35,IO$5-IO$5/(1-IO$3)*($EU35-IO$3))*Input!$B$1 -> 0.046875 | IP35: =+IF($EU35<=IP$3,IP$5/IP$3*$EU35,IP$5-IP$5/(1-IP$3)*($EU35-IP$3))*Input!$B$1 -> 0.0234375 | IQ35: =+IF($EU35<=IQ$3,IQ$5/IQ$3*$EU35,IQ$5-IQ$5/(1-IQ$3)*($EU35-IQ$3))*Input!$B$1 -> 0 | IY35: 0 | IZ35: -0.01052661652 | JA35: -0.02105323305 | JB35: -0.03157984957 | JC35: -0.04210646609 | JD35: -0.05263308261 | JE35: -0.06315969914 | JF35: -0.07368631566 | JG35: -0.08421293218 | JH35: -0.08421293218 | JI35: 0.08701275765 | JJ35: 0.07073844747 | JK35: 0.0544641373 | JL35: 0.03818982713 | JM35: 0.02191551695 | JN35: 0.005641206782 | JO35: -0.01063310339 | JP35: -0.02690741356 | JQ35: -0.02690741356 | JR35: -0.02263495263 | JS35: -0.01836249169 | JT35: -0.01409003075 | JU35: -0.009817569814 | JY35: 0 | JZ35: -0.1052661652 | KA35: -0.2105323305 | KB35: -0.3157984957 | KC35: -0.4210646609 | KD35: -0.5263308261 | KE35: -0.6315969914 | KF35: -0.7368631566 | KG35: -0.8421293218 | KH35: -0.8421293218 | KI35: 0.8701275765 | KJ35: 0.7073844747 | KK35: 0.544641373 | KL35: 0.3818982713 | KM35: 0.2191551695 | KN35: 0.05641206782 | KO35: -0.1063310339 | KP35: -0.2690741356 | KQ35: -0.2690741356 | KR35: -0.2263495263 | KS35: -0.1836249169 | KT35: -0.1409003075 | KU35: -0.09817569814 | LK35: =+IF($EU35<=II$3,1/6*(1-II$3)*$EU35*(1-(1-II$3)^2-$EU35^2),1/6*II$3*(1-$EU35)*(1-II$3^2-(1-$EU35)^2))*Input!$B$1^3 -> 0 | LL35: =+IF($EU35<=IJ$3,1/6*(1-IJ$3)*$EU35*(1-(1-IJ$3)^2-$EU35^2),1/6*IJ$3*(1-$EU35)*(1-IJ$3^2-(1-$EU35)^2))*Input!$B$1^3 -> 0.01345825195 | LM35: =+IF($EU35<=IK$3,1/6*(1-IK$3)*$EU35*(1-(1-IK$3)^2-$EU35^2),1/6*IK$3*(1-$EU35)*(1-IK$3^2-(1-$EU35)^2))*Input!$B$1^3 -> 0.02224731445 | LN35: =+IF($EU35<=IL$3,1/6*(1-IL$3)*$EU35*(1-(1-IL$3)^2-$EU35^2),1/6*IL$3*(1-$EU35)*(1-IL$3^2-(1-$EU35)^2))*Input!$B$1^3 -> 0.0260925293 | LO35: =+IF($EU35<=IM$3,1/6*(1-IM$3)*$EU35*(1-(1-IM$3)^2-$EU35^2),1/6*IM$3*(1-$EU35)*(1-IM$3^2-(1-$EU35)^2))*Input!$B$1^3 -> 0.02581787109 | LP35: =+IF($EU35<=IN$3,1/6*(1-IN$3)*$EU35*(1-(1-IN$3)^2-$EU35^2),1/6*IN$3*(1-$EU35)*(1-IN$3^2-(1-$EU35)^2))*Input!$B$1^3 -> 0.02224731445 | LQ35: =+IF($EU35<=IO$3,1/6*(1-IO$3)*$EU35*(1-(1-IO$3)^2-$EU35^2),1/6*IO$3*(1-$EU35)*(1-IO$3^2-(1-$EU35)^2))*Input!$B$1^3 -> 0.01620483398 | LR35: =+IF($EU35<=IP$3,1/6*(1-IP$3)*$EU35*(1-(1-IP$3)^2-$EU35^2),1/6*IP$3*(1-$EU35)*(1-IP$3^2-(1-$EU35)^2))*Input!$B$1^3 -> 0.008514404297 | LS35: =+IF($EU35<=IQ$3,1/6*(1-IQ$3)*$EU35*(1-(1-IQ$3)^2-$EU35^2),1/6*IQ$3*(1-$EU35)*(1-IQ$3^2-(1-$EU35)^2))*Input!$B$1^3 -> 0 | MF35: 0 | MG35: -0.001727023023 | MH35: -0.003289567663 | MI35: -0.004523155537 | MJ35: -0.005263308261 | MK35: -0.005345547453 | ML35: -0.004605394729 | MM35: -0.002878371705 | MN35: 0 | MO35: 0 | MP35: 0.005740338183 | MQ35: 0.009520266918 | MR35: 0.01081329711 | MS35: 0.01019157247 | MT35: 0.008227236727 | MU35: 0.005492433589 | MV35: 0.002559306774 | MW35: 0 | MX35: 0 | MY35: -0.001733734253 | MZ35: -0.002671708452 | NA35: -0.002964126303 | NB35: -0.00276119151 | ND35: 0 | NE35: -0.1727023023 | NF35: -0.3289567663 | NG35: -0.4523155537 | NH35: -0.5263308261 | NI35: -0.5345547453 | NJ35: -0.4605394729 | NK35: -0.2878371705 | NL35: 0 | NM35: 0 | NN35: 0.5740338183 | NO35: 0.9520266918 | NP35: 1.081329711 | NQ35: 1.019157247 | NR35: 0.8227236727 | NS35: 0.5492433589 | NT35: 0.2559306774 | NU35: 0 | NV35: 0 | NW35: -0.1733734253 | NX35: -0.2671708452 | NY35: -0.2964126303 | NZ35: -0.276119151
C36: 23 | D36: 0 | E36: 0.01109021775 | F36: 0.02218043551 | G36: 0.03327065326 | H36: 0.04436087101 | I36: 0.05545108876 | J36: 0.06654130652 | K36: 0.07763152427 | L36: 0.08872174202 | M36: 0.08872174202 | N36: 0.04066413176 | O36: -0.007393478502 | P36: -0.05545108876 | Q36: -0.103508699 | R36: -0.1515663093 | S36: -0.1996239195 | T36: -0.2476815298 | U36: -0.2957391401 | V36: -0.2957391401 | W36: -0.1183302859 | X36: 0.05907856826 | Y36: 0.2364874224 | Z36: 0.4138962766 | AA36: 0.008872174202 | AB36: -0.02563072547 | AC36: -0.02563072547 | AD36: 0.09461805556 | AE36: 0.008872174202 | AF36: -0.03450289967 | AG36: 0.120248781 | AX36: -0.9053819444 | ES36: =+ES35+1 -> 10 | EU36: =+EU35+1/8 -> 0.25 | EV36: =+(2*$EU36-3*$EU36^2+$EU36^3)*Input!$B$1^2 -> 0.73828125 | EW36: 0.73828125 | EX36: 0.52734375 | EY36: 0.52734375 | FB36: -0.06732047872 | FC36: -0.0625 | FD36: -0.02169215426 | FE36: -0.03776041667 | FG36: -0.1298204787 | FH36: 0.75 | FI36: 0.9267324173 | FJ36: 0.25 | FK36: 0.2534352837 | FM36: -0.1298204787 | FN36: 0.75 | FO36: 0.7969119385 | FP36: -0.25 | FQ36: -0.2030880615 | FS36: 0.05034722222 | FU36: 0.05034722222 | FX36: 0.01122007979 | FY36: 0.01041666667 | FZ36: 0 | GA36: 0 | GB36: 0.02163674645 | GE36: -0.02244015957 | GF36: -0.02083333333 | GG36: 0 | GH36: 0 | GI36: -0.04327349291 | GK36: =+FW27*Input!$B$1^2 -> -0.123046875 | GL36: 0.03366023936 | GM36: 0.03125 | GN36: 0.005423038564 | GO36: 0.009440104167 | GP36: -0.04327349291 | GR36: =+GD27*Input!$B$1^2 -> 0.087890625 | GS36: -0.01683011968 | GT36: -0.015625 | GU36: -0.01084607713 | GV36: -0.01888020833 | GW36: 0.02570921986 | GZ36: 0 | HA36: 0 | HB36: 0.01626911569 | HC36: 0.009440104167 | HD36: 0.02570921986 | II36: 0 | IJ36: =+IF($EU36<=IJ$3,IJ$5/IJ$3*$EU36,IJ$5-IJ$5/(1-IJ$3)*($EU36-IJ$3))*Input!$B$1 -> 0.140625 | IK36: =+IF($EU36<=IK$3,IK$5/IK$3*$EU36,IK$5-IK$5/(1-IK$3)*($EU36-IK$3))*Input!$B$1 -> 0.28125 | IL36: =+IF($EU36<=IL$3,IL$5/IL$3*$EU36,IL$5-IL$5/(1-IL$3)*($EU36-IL$3))*Input!$B$1 -> 0.234375 | IM36: =+IF($EU36<=IM$3,IM$5/IM$3*$EU36,IM$5-IM$5/(1-IM$3)*($EU36-IM$3))*Input!$B$1 -> 0.1875 | IN36: =+IF($EU36<=IN$3,IN$5/IN$3*$EU36,IN$5-IN$5/(1-IN$3)*($EU36-IN$3))*Input!$B$1 -> 0.140625 | IO36: =+IF($EU36<=IO$3,IO$5/IO$3*$EU36,IO$5-IO$5/(1-IO$3)*($EU36-IO$3))*Input!$B$1 -> 0.09375 | IP36: =+IF($EU36<=IP$3,IP$5/IP$3*$EU36,IP$5-IP$5/(1-IP$3)*($EU36-IP$3))*Input!$B$1 -> 0.046875 | IQ36: =+IF($EU36<=IQ$3,IQ$5/IQ$3*$EU36,IQ$5-IQ$5/(1-IQ$3)*($EU36-IQ$3))*Input!$B$1 -> 0 | IY36: 0 | IZ36: -0.01622755984 | JA36: -0.03245511968 | JB36: -0.04868267952 | JC36: -0.06491023936 | JD36: -0.0811377992 | JE36: -0.09736535904 | JF36: -0.1135929189 | JG36: -0.1298204787 | JH36: -0.1298204787 | JI36: 0.01960050975 | JJ36: 0.1690214982 | JK36: 0.1309424867 | JL36: 0.09286347518 | JM36: 0.05478446365 | JN36: 0.01670545213 | JO36: -0.0213735594 | JP36: -0.05945257092 | JQ36: -0.05945257092 | JR36: -0.05001246676 | JS36: -0.04057236259 | JT36: -0.03113225842 | JU36: -0.02169215426 | JY36: 0 | JZ36: -0.1622755984 | KA36: -0.3245511968 | KB36: -0.4868267952 | KC36: -0.6491023936 | KD36: -0.811377992 | KE36: -0.9736535904 | KF36: -1.135929189 | KG36: -1.298204787 | KH36: -1.298204787 | KI36: 0.1960050975 | KJ36: 1.690214982 | KK36: 1.309424867 | KL36: 0.9286347518 | KM36: 0.5478446365 | KN36: 0.1670545213 | KO36: -0.213735594 | KP36: -0.5945257092 | KQ36: -0.5945257092 | KR36: -0.5001246676 | KS36: -0.4057236259 | KT36: -0.3113225842 | KU36: -0.2169215426 | LK36: =+IF($EU36<=II$3,1/6*(1-II$3)*$EU36*(1-(1-II$3)^2-$EU36^2),1/6*II$3*(1-$EU36)*(1-II$3^2-(1-$EU36)^2))*Input!$B$1^3 -> 0 | LL36: =+IF($EU36<=IJ$3,1/6*(1-IJ$3)*$EU36*(1-(1-IJ$3)^2-$EU36^2),1/6*IJ$3*(1-$EU36)*(1-IJ$3^2-(1-$EU36)^2))*Input!$B$1^3 -> 0.02224731445 | LM36: =+IF($EU36<=IK$3,1/6*(1-IK$3)*$EU36*(1-(1-IK$3)^2-$EU36^2),1/6*IK$3*(1-$EU36)*(1-IK$3^2-(1-$EU36)^2))*Input!$B$1^3 -> 0.03955078125 | LN36: =+IF($EU36<=IL$3,1/6*(1-IL$3)*$EU36*(1-(1-IL$3)^2-$EU36^2),1/6*IL$3*(1-$EU36)*(1-IL$3^2-(1-$EU36)^2))*Input!$B$1^3 -> 0.04806518555 | LO36: =+IF($EU36<=IM$3,1/6*(1-IM$3)*$EU36*(1-(1-IM$3)^2-$EU36^2),1/6*IM$3*(1-$EU36)*(1-IM$3^2-(1-$EU36)^2))*Input!$B$1^3 -> 0.04833984375 | LP36: =+IF($EU36<=IN$3,1/6*(1-IN$3)*$EU36*(1-(1-IN$3)^2-$EU36^2),1/6*IN$3*(1-$EU36)*(1-IN$3^2-(1-$EU36)^2))*Input!$B$1^3 -> 0.04202270508 | LQ36: =+IF($EU36<=IO$3,1/6*(1-IO$3)*$EU36*(1-(1-IO$3)^2-$EU36^2),1/6*IO$3*(1-$EU36)*(1-IO$3^2-(1-$EU36)^2))*Input!$B$1^3 -> 0.03076171875 | LR36: =+IF($EU36<=IP$3,1/6*(1-IP$3)*$EU36*(1-(1-IP$3)^2-$EU36^2),1/6*IP$3*(1-$EU36)*(1-IP$3^2-(1-$EU36)^2))*Input!$B$1^3 -> 0.01620483398 | LS36: =+IF($EU36<=IQ$3,1/6*(1-IQ$3)*$EU36*(1-(1-IQ$3)^2-$EU36^2),1/6*IQ$3*(1-$EU36)*(1-IQ$3^2-(1-$EU36)^2))*Input!$B$1^3 -> 0 | MF36: 0 | MG36: -0.002662334036 | MH36: -0.00507111245 | MI36: -0.006972779619 | MJ36: -0.00811377992 | MK36: -0.008240557731 | ML36: -0.00709955743 | MM36: -0.004437223394 | MN36: 0 | MO36: 0 | MP36: 0.009520266918 | MQ36: 0.01835145342 | MR36: 0.02233911068 | MS36: 0.02172332114 | MT36: =+LP36+IN$11*$FB36+IN$12*$FC36+IN$13*$FD36+IN$14*$FE36 -> 0.01784280006 | MU36: =+LQ36+IO$11*$FB36+IO$12*$FC36+IO$13*$FD36+IO$14*$FE36 -> 0.01203626267 | MV36: =+LR36+IP$11*$FB36+IP$12*$FC36+IP$13*$FD36+IP$14*$FE36 -> 0.005642424238 | MW36: =+LS36+IQ$11*$FB36+IQ$12*$FC36+IQ$13*$FD36+IQ$14*$FE36 -> 0 | MX36: =+LT36+IR$11*$FB36+IR$12*$FC36+IR$13*$FD36+IR$14*$FE36 -> 0 | MY36: =+LU36+IS$11*$FB36+IS$12*$FC36+IS$13*$FD36+IS$14*$FE36 -> -0.003830727111 | MZ36: =+LV36+IT$11*$FB36+IT$12*$FC36+IT$13*$FD36+IT$14*$FE36 -> -0.005903203437 | NA36: =+LW36+IU$11*$FB36+IU$12*$FC36+IU$13*$FD36+IU$14*$FE36 -> -0.006549307641 | NB36: =+LX36+IV$11*$FB36+IV$12*$FC36+IV$13*$FD36+IV$14*$FE36 -> -0.006100918384 | ND36: 0 | NE36: -0.2662334036 | NF36: -0.507111245 | NG36: -0.6972779619 | NH36: -0.811377992 | NI36: -0.8240557731 | NJ36: -0.709955743 | NK36: -0.4437223394 | NL36: 0 | NM36: 0 | NN36: 0.9520266918 | NO36: 1.835145342 | NP36: 2.233911068 | NQ36: 2.172332114 | NR36: 1.784280006 | NS36: 1.203626267 | NT36: 0.5642424238 | NU36: 0 | NV36: 0 | NW36: -0.3830727111 | NX36: -0.5903203437 | NY36: -0.6549307641 | NZ36: -0.6100918384
C37: 24 | D37: 0 | E37: 0 | F37: 0 | G37: 0 | H37: 0 | I37: 0 | J37: 0 | K37: 0 | L37: 0 | M37: 0 | N37: 0 | O37: 0 | P37: 0 | Q37: 0 | R37: 0 | S37: 0 | T37: 0 | U37: 0 | V37: 0 | W37: 0 | X37: 0 | Y37: 0 | Z37: 0 | AA37: 0 | AB37: 0 | AC37: 0 | AD37: 0 | AE37: 0 | AF37: 0 | AG37: 0 | AX37: -1 | ES37: 11 | EU37: 0.375 | EV37: =+(2*$EU37-3*$EU37^2+$EU37^3)*Input!$B$1^2 -> 0.8569335938 | EW37: 0.8569335938 | EX37: 0.7250976562 | EY37: 0.7250976562 | FB37: -0.07573553856 | FC37: -0.068359375 | FD37: -0.03319273604 | FE37: -0.05777994792 | FG37: -0.1440949136 | FH37: 0.625 | FI37: 0.8045097333 | FJ37: 0.375 | FK37: 0.4166251108 | FM37: -0.1440949136 | FN37: 0.625 | FO37: 0.6604148197 | FP37: -0.375 | FQ37: -0.3395851803 | FS37: 0.07703993056 | FU37: 0.07703993056 | FX37: 0.01262258976 | FY37: 0.01139322917 | FZ37: 0 | GA37: 0 | GB37: 0.02401581893 | GE37: -0.02524517952 | GF37: -0.02278645833 | GG37: 0 | GH37: 0 | GI37: -0.04803163785 | GK37: =+FW28*Input!$B$1^2 -> -0.1428222656 | GL37: 0.03786776928 | GM37: 0.0341796875 | GN37: 0.008298184009 | GO37: 0.01444498698 | GP37: -0.04803163785 | GR37: =+GD28*Input!$B$1^2 -> 0.1208496094 | GS37: -0.01893388464 | GT37: -0.01708984375 | GU37: -0.01659636802 | GV37: -0.02888997396 | GW37: 0.03933953901 | GZ37: 0 | HA37: 0 | HB37: 0.02489455203 | HC37: 0.01444498698 | HD37: 0.03933953901 | II37: 0 | IJ37: =+IF($EU37<=IJ$3,IJ$5/IJ$3*$EU37,IJ$5-IJ$5/(1-IJ$3)*($EU37-IJ$3))*Input!$B$1 -> 0.1171875 | IK37: =+IF($EU37<=IK$3,IK$5/IK$3*$EU37,IK$5-IK$5/(1-IK$3)*($EU37-IK$3))*Input!$B$1 -> 0.234375 | IL37: =+IF($EU37<=IL$3,IL$5/IL$3*$EU37,IL$5-IL$5/(1-IL$3)*($EU37-IL$3))*Input!$B$1 -> 0.3515625 | IM37: =+IF($EU37<=IM$3,IM$5/IM$3*$EU37,IM$5-IM$5/(1-IM$3)*($EU37-IM$3))*Input!$B$1 -> 0.28125 | IN37: =+IF($EU37<=IN$3,IN$5/IN$3*$EU37,IN$5-IN$5/(1-IN$3)*($EU37-IN$3))*Input!$B$1 -> 0.2109375 | IO37: =+IF($EU37<=IO$3,IO$5/IO$3*$EU37,IO$5-IO$5/(1-IO$3)*($EU37-IO$3))*Input!$B$1 -> 0.140625 | IP37: =+IF($EU37<=IP$3,IP$5/IP$3*$EU37,IP$5-IP$5/(1-IP$3)*($EU37-IP$3))*Input!$B$1 -> 0.0703125 | IQ37: =+IF($EU37<=IQ$3,IQ$5/IQ$3*$EU37,IQ$5-IQ$5/(1-IQ$3)*($EU37-IQ$3))*Input!$B$1 -> 0 | IY37: 0 | IZ37: -0.0180118642 | JA37: -0.03602372839 | JB37: -0.05403559259 | JC37: -0.07204745678 | JD37: -0.09005932098 | JE37: -0.1080711852 | JF37: -0.1260830494 | JG37: -0.1440949136 | JH37: -0.1440949136 | JI37: -0.02026713486 | JJ37: 0.1035606438 | JK37: 0.2273884225 | JL37: 0.1637162012 | JM37: 0.1000439799 | JN37: 0.03637175864 | JO37: -0.02730046266 | JP37: -0.09097268395 | JQ37: -0.09097268395 | JR37: -0.07652769697 | JS37: -0.06208271 | JT37: -0.04763772302 | JU37: -0.03319273604 | JY37: 0 | JZ37: -0.180118642 | KA37: -0.3602372839 | KB37: -0.5403559259 | KC37: -0.7204745678 | KD37: -0.9005932098 | KE37: -1.080711852 | KF37: -1.260830494 | KG37: -1.440949136 | KH37: -1.440949136 | KI37: -0.2026713486 | KJ37: 1.035606438 | KK37: 2.273884225 | KL37: 1.637162012 | KM37: 1.000439799 | KN37: 0.3637175864 | KO37: -0.2730046266 | KP37: -0.9097268395 | KQ37: -0.9097268395 | KR37: -0.7652769697 | KS37: -0.6208271 | KT37: -0.4763772302 | KU37: -0.3319273604 | LK37: =+IF($EU37<=II$3,1/6*(1-II$3)*$EU37*(1-(1-II$3)^2-$EU37^2),1/6*II$3*(1-$EU37)*(1-II$3^2-(1-$EU37)^2))*Input!$B$1^3 -> 0 | LL37: =+IF($EU37<=IJ$3,1/6*(1-IJ$3)*$EU37*(1-(1-IJ$3)^2-$EU37^2),1/6*IJ$3*(1-$EU37)*(1-IJ$3^2-(1-$EU37)^2))*Input!$B$1^3 -> 0.0260925293 | LM37: =+IF($EU37<=IK$3,1/6*(1-IK$3)*$EU37*(1-(1-IK$3)^2-$EU37^2),1/6*IK$3*(1-$EU37)*(1-IK$3^2-(1-$EU37)^2))*Input!$B$1^3 -> 0.04806518555 | LN37: =+IF($EU37<=IL$3,1/6*(1-IL$3)*$EU37*(1-(1-IL$3)^2-$EU37^2),1/6*IL$3*(1-$EU37)*(1-IL$3^2-(1-$EU37)^2))*Input!$B$1^3 -> 0.0617980957 | LO37: =+IF($EU37<=IM$3,1/6*(1-IM$3)*$EU37*(1-(1-IM$3)^2-$EU37^2),1/6*IM$3*(1-$EU37)*(1-IM$3^2-(1-$EU37)^2))*Input!$B$1^3 -> 0.06427001953 | LP37: =+IF($EU37<=IN$3,1/6*(1-IN$3)*$EU37*(1-(1-IN$3)^2-$EU37^2),1/6*IN$3*(1-$EU37)*(1-IN$3^2-(1-$EU37)^2))*Input!$B$1^3 -> 0.05685424805 | LQ37: =+IF($EU37<=IO$3,1/6*(1-IO$3)*$EU37*(1-(1-IO$3)^2-$EU37^2),1/6*IO$3*(1-$EU37)*(1-IO$3^2-(1-$EU37)^2))*Input!$B$1^3 -> 0.04202270508 | LR37: =+IF($EU37<=IP$3,1/6*(1-IP$3)*$EU37*(1-(1-IP$3)^2-$EU37^2),1/6*IP$3*(1-$EU37)*(1-IP$3^2-(1-$EU37)^2))*Input!$B$1^3 -> 0.02224731445 | LS37: =+IF($EU37<=IQ$3,1/6*(1-IQ$3)*$EU37*(1-(1-IQ$3)^2-$EU37^2),1/6*IQ$3*(1-$EU37)*(1-IQ$3^2-(1-$EU37)^2))*Input!$B$1^3 -> 0 | MF37: 0 | MG37: =+LC37+IA$11*$FB37+IA$12*$FC37+IA$13*$FD37+IA$14*$FE37 -> -0.00295507147 | MH37: =+LD37+IB$11*$FB37+IB$12*$FC37+IB$13*$FD37+IB$14*$FE37 -> -0.005628707561 | MI37: =+LE37+IC$11*$FB37+IC$12*$FC37+IC$13*$FD37+IC$14*$FE37 -> -0.007739472896 | MJ37: =+LF37+ID$11*$FB37+ID$12*$FC37+ID$13*$FD37+ID$14*$FE37 -> -0.009005932098 | MK37: =+LG37+IE$11*$FB37+IE$12*$FC37+IE$13*$FD37+IE$14*$FE37 -> -0.009146649787 | ML37: =+LH37+IF$11*$FB37+IF$12*$FC37+IF$13*$FD37+IF$14*$FE37 -> -0.007880190586 | MM37: =+LI37+IG$11*$FB37+IG$12*$FC37+IG$13*$FD37+IG$14*$FE37 -> -0.004925119116 | MN37: =+LJ37+IH$11*$FB37+IH$12*$FC37+IH$13*$FD37+IH$14*$FE37 -> 0 | MO37: =+LK37+II$11*$FB37+II$12*$FC37+II$13*$FD37+II$14*$FE37 -> 0 | MP37: =+LL37+IJ$11*$FB37+IJ$12*$FC37+IJ$13*$FD37+IJ$14*$FE37 -> 0.01081329711 | MQ37: =+LM37+IK$11*$FB37+IK$12*$FC37+IK$13*$FD37+IK$14*$FE37 -> 0.02233911068 | MR37: =+LN37+IL$11*$FB37+IL$12*$FC37+IL$13*$FD37+IL$14*$FE37 -> 0.03022412036 | MS37: =+LO37+IM$11*$FB37+IM$12*$FC37+IM$13*$FD37+IM$14*$FE37 -> 0.03121363863 | MT37: 0.0264475092 | MU37: 0.01816420859 | MV37: 0.008602213352 | MW37: 0 | MX37: 0 | MY37: -0.005861672949 | MZ37: -0.009032919052 | NA37: -0.01002156988 | NB37: -0.00933545701 | ND37: 0 | NE37: -0.295507147 | NF37: -0.5628707561 | NG37: -0.7739472896 | NH37: -0.9005932098 | NI37: -0.9146649787 | NJ37: -0.7880190586 | NK37: -0.4925119116 | NL37: 0 | NM37: 0 | NN37: 1.081329711 | NO37: 2.233911068 | NP37: 3.022412036 | NQ37: 3.121363863 | NR37: 2.64475092 | NS37: 1.816420859 | NT37: 0.8602213352 | NU37: 0 | NV37: 0 | NW37: -0.5861672949 | NX37: -0.9032919052 | NY37: -1.002156988 | NZ37: -0.933545701
C38: =+C37 -> 24 | D38: 0 | E38: 0 | F38: 0 | G38: 0 | H38: 0 | I38: 0 | J38: 0 | K38: 0 | L38: 0 | M38: 0 | N38: 0 | O38: 0 | P38: 0 | Q38: 0 | R38: 0 | S38: 0 | T38: 0 | U38: 0 | V38: 0 | W38: 0 | X38: 0 | Y38: 0 | Z38: 0 | AA38: 0 | AB38: 0 | AC38: 0 | AD38: 0 | AE38: 0 | AF38: 0 | AG38: 0 | AX38: 0 | ES38: 12 | EU38: 0.5 | EV38: =+(2*$EU38-3*$EU38^2+$EU38^3)*Input!$B$1^2 -> 0.84375 | EW38: 0.84375 | EX38: 0.84375 | EY38: 0.84375 | FB38: -0.07180851064 | FC38: -0.0625 | FD38: -0.04188829787 | FE38: -0.07291666667 | FG38: -0.1343085106 | FH38: 0.5 | FI38: 0.6473108747 | FJ38: 0.5 | FK38: 0.5842198582 | FM38: -0.1343085106 | FN38: 0.5 | FO38: 0.5130023641 | FP38: -0.5 | FQ38: -0.4869976359 | FS38: 0.09722222222 | FU38: 0.09722222222 | FX38: 0.01196808511 | FY38: 0.01041666667 | FZ38: 0 | GA38: 0 | GB38: 0.02238475177 | GE38: -0.02393617021 | GF38: -0.02083333333 | GG38: 0 | GH38: 0 | GI38: -0.04476950355 | GK38: =+FW29*Input!$B$1^2 -> -0.140625 | GL38: 0.03590425532 | GM38: 0.03125 | GN38: 0.01047207447 | GO38: 0.01822916667 | GP38: -0.04476950355 | GR38: =+GD29*Input!$B$1^2 -> 0.140625 | GS38: -0.01795212766 | GT38: -0.015625 | GU38: -0.02094414894 | GV38: -0.03645833333 | GW38: 0.04964539007 | GZ38: 0 | HA38: 0 | HB38: 0.0314162234 | HC38: 0.01822916667 | HD38: 0.04964539007 | II38: 0 | IJ38: =+IF($EU38<=IJ$3,IJ$5/IJ$3*$EU38,IJ$5-IJ$5/(1-IJ$3)*($EU38-IJ$3))*Input!$B$1 -> 0.09375 | IK38: =+IF($EU38<=IK$3,IK$5/IK$3*$EU38,IK$5-IK$5/(1-IK$3)*($EU38-IK$3))*Input!$B$1 -> 0.1875 | IL38: =+IF($EU38<=IL$3,IL$5/IL$3*$EU38,IL$5-IL$5/(1-IL$3)*($EU38-IL$3))*Input!$B$1 -> 0.28125 | IM38: =+IF($EU38<=IM$3,IM$5/IM$3*$EU38,IM$5-IM$5/(1-IM$3)*($EU38-IM$3))*Input!$B$1 -> 0.375 | IN38: =+IF($EU38<=IN$3,IN$5/IN$3*$EU38,IN$5-IN$5/(1-IN$3)*($EU38-IN$3))*Input!$B$1 -> 0.28125 | IO38: =+IF($EU38<=IO$3,IO$5/IO$3*$EU38,IO$5-IO$5/(1-IO$3)*($EU38-IO$3))*Input!$B$1 -> 0.1875 | IP38: =+IF($EU38<=IP$3,IP$5/IP$3*$EU38,IP$5-IP$5/(1-IP$3)*($EU38-IP$3))*Input!$B$1 -> 0.09375 | IQ38: =+IF($EU38<=IQ$3,IQ$5/IQ$3*$EU38,IQ$5-IQ$5/(1-IQ$3)*($EU38-IQ$3))*Input!$B$1 -> 0 | IY38: 0 | IZ38: -0.01678856383 | JA38: -0.03357712766 | JB38: -0.05036569149 | JC38: -0.06715425532 | JD38: -0.08394281915 | JE38: -0.100731383 | JF38: -0.1175199468 | JG38: -0.1343085106 | JH38: -0.1343085106 | JI38: -0.03812056738 | JJ38: 0.05806737589 | JK38: 0.1542553191 | JL38: 0.2504432624 | JM38: 0.1591312057 | JN38: 0.06781914894 | JO38: -0.0234929078 | JP38: -0.1148049645 | JQ38: -0.1148049645 | JR38: -0.09657579787 | JS38: -0.07834663121 | JT38: -0.06011746454 | JU38: -0.04188829787 | JY38: 0 | JZ38: -0.1678856383 | KA38: -0.3357712766 | KB38: -0.5036569149 | KC38: -0.6715425532 | KD38: -0.8394281915 | KE38: -1.00731383 | KF38: -1.175199468 | KG38: -1.343085106 | KH38: -1.343085106 | KI38: -0.3812056738 | KJ38: 0.5806737589 | KK38: 1.542553191 | KL38: 2.504432624 | KM38: 1.591312057 | KN38: 0.6781914894 | KO38: -0.234929078 | KP38: -1.148049645 | KQ38: -1.148049645 | KR38: -0.9657579787 | KS38: -0.7834663121 | KT38: -0.6011746454 | KU38: -0.4188829787 | LK38: =+IF($EU38<=II$3,1/6*(1-II$3)*$EU38*(1-(1-II$3)^2-$EU38^2),1/6*II$3*(1-$EU38)*(1-II$3^2-(1-$EU38)^2))*Input!$B$1^3 -> 0 | LL38: =+IF($EU38<=IJ$3,1/6*(1-IJ$3)*$EU38*(1-(1-IJ$3)^2-$EU38^2),1/6*IJ$3*(1-$EU38)*(1-IJ$3^2-(1-$EU38)^2))*Input!$B$1^3 -> 0.02581787109 | LM38: =+IF($EU38<=IK$3,1/6*(1-IK$3)*$EU38*(1-(1-IK$3)^2-$EU38^2),1/6*IK$3*(1-$EU38)*(1-IK$3^2-(1-$EU38)^2))*Input!$B$1^3 -> 0.04833984375 | LN38: =+IF($EU38<=IL$3,1/6*(1-IL$3)*$EU38*(1-(1-IL$3)^2-$EU38^2),1/6*IL$3*(1-$EU38)*(1-IL$3^2-(1-$EU38)^2))*Input!$B$1^3 -> 0.06427001953 | LO38: =+IF($EU38<=IM$3,1/6*(1-IM$3)*$EU38*(1-(1-IM$3)^2-$EU38^2),1/6*IM$3*(1-$EU38)*(1-IM$3^2-(1-$EU38)^2))*Input!$B$1^3 -> 0.0703125 | LP38: =+IF($EU38<=IN$3,1/6*(1-IN$3)*$EU38*(1-(1-IN$3)^2-$EU38^2),1/6*IN$3*(1-$EU38)*(1-IN$3^2-(1-$EU38)^2))*Input!$B$1^3 -> 0.06427001953 | LQ38: =+IF($EU38<=IO$3,1/6*(1-IO$3)*$EU38*(1-(1-IO$3)^2-$EU38^2),1/6*IO$3*(1-$EU38)*(1-IO$3^2-(1-$EU38)^2))*Input!$B$1^3 -> 0.04833984375 | LR38: =+IF($EU38<=IP$3,1/6*(1-IP$3)*$EU38*(1-(1-IP$3)^2-$EU38^2),1/6*IP$3*(1-$EU38)*(1-IP$3^2-(1-$EU38)^2))*Input!$B$1^3 -> 0.02581787109 | LS38: =+IF($EU38<=IQ$3,1/6*(1-IQ$3)*$EU38*(1-(1-IQ$3)^2-$EU38^2),1/6*IQ$3*(1-$EU38)*(1-IQ$3^2-(1-$EU38)^2))*Input!$B$1^3 -> 0 | MF38: 0 | MG38: -0.002754373753 | MH38: -0.005246426197 | MI38: -0.007213836021 | MJ38: -0.008394281915 | MK38: -0.00852544257 | ML38: -0.007344996676 | MM38: -0.004590622922 | MN38: 0 | MO38: 0 | MP38: 0.01019157247 | MQ38: 0.02172332114 | MR38: 0.03121363863 | MS38: 0.03528091755 | MT38: 0.03164218334 | MU38: 0.02240899269 | MV38: 0.01079153507 | MW38: 0 | MX38: 0 | MY38: -0.007397266144 | MZ38: -0.01139928939 | NA38: -0.01264693889 | NB38: -0.01178108378 | ND38: 0 | NE38: -0.2754373753 | NF38: -0.5246426197 | NG38: -0.7213836021 | NH38: -0.8394281915 | NI38: -0.852544257 | NJ38: -0.7344996676 | NK38: -0.4590622922 | NL38: 0 | NM38: 0 | NN38: 1.019157247 | NO38: 2.172332114 | NP38: 3.121363863 | NQ38: 3.528091755 | NR38: 3.164218334 | NS38: 2.240899269 | NT38: 1.079153507 | NU38: 0 | NV38: 0 | NW38: -0.7397266144 | NX38: -1.139928939 | NY38: -1.264693889 | NZ38: -1.178108378
C39: =+C38+1 -> 25 | D39: 0 | E39: -0.007454080785 | F39: -0.01490816157 | G39: -0.02236224235 | H39: -0.02981632314 | I39: -0.03727040392 | J39: -0.04472448471 | K39: -0.05217856549 | L39: -0.05963264628 | M39: -0.05963264628 | N39: -0.02733162954 | O39: 0.00496938719 | P39: 0.03727040392 | Q39: 0.06957142066 | R39: 0.1018724374 | S39: 0.1341734541 | T39: 0.1664744709 | U39: 0.1987754876 | V39: 0.1987754876 | W39: 0.08199488863 | X39: -0.03478571033 | Y39: -0.1515663093 | Z39: -0.2683469082 | AA39: -0.005963264628 | AB39: 0.01722720892 | AC39: 0.01722720892 | AD39: -0.06228298611 | AE39: -0.005963264628 | AF39: 0.02319047355 | AG39: -0.07951019504 | AX39: -0.06228298611 | ES39: 13 | EU39: 0.625 | EV39: =+(2*$EU39-3*$EU39^2+$EU39^3)*Input!$B$1^2 -> 0.7250976562 | EW39: 0.7250976562 | EX39: 0.8569335938 | EY39: 0.8569335938 | FB39: -0.05890541888 | FC39: -0.048828125 | FD39: -0.04534782247 | FE39: -0.07893880208 | FG39: -0.1077335439 | FH39: 0.375 | FI39: 0.4716981568 | FJ39: 0.625 | FK39: 0.7412871232 | FM39: -0.1077335439 | FN39: 0.375 | FO39: 0.3639646129 | FP39: -0.625 | FQ39: -0.6360353871 | FS39: 0.1052517361 | FU39: 0.1052517361 | FX39: 0.009817569814 | FY39: 0.008138020833 | FZ39: 0 | GA39: 0 | GB39: 0.01795559065 | GE39: -0.01963513963 | GF39: -0.01627604167 | GG39: 0 | GH39: 0 | GI39: -0.03591118129 | GK39: =+FW30*Input!$B$1^2 -> -0.1208496094 | GL39: 0.02945270944 | GM39: 0.0244140625 | GN39: 0.01133695562 | GO39: 0.01973470052 | GP39: -0.03591118129 | GR39: =+GD30*Input!$B$1^2 -> 0.1428222656 | GS39: -0.01472635472 | GT39: -0.01220703125 | GU39: -0.02267391124 | GV39: -0.03946940104 | GW39: 0.05374556738 | GZ39: 0 | HA39: 0 | HB39: 0.03401086686 | HC39: 0.01973470052 | HD39: 0.05374556738 | II39: 0 | IJ39: =+IF($EU39<=IJ$3,IJ$5/IJ$3*$EU39,IJ$5-IJ$5/(1-IJ$3)*($EU39-IJ$3))*Input!$B$1 -> 0.0703125 | IK39: =+IF($EU39<=IK$3,IK$5/IK$3*$EU39,IK$5-IK$5/(1-IK$3)*($EU39-IK$3))*Input!$B$1 -> 0.140625 | IL39: =+IF($EU39<=IL$3,IL$5/IL$3*$EU39,IL$5-IL$5/(1-IL$3)*($EU39-IL$3))*Input!$B$1 -> 0.2109375 | IM39: =+IF($EU39<=IM$3,IM$5/IM$3*$EU39,IM$5-IM$5/(1-IM$3)*($EU39-IM$3))*Input!$B$1 -> 0.28125 | IN39: =+IF($EU39<=IN$3,IN$5/IN$3*$EU39,IN$5-IN$5/(1-IN$3)*($EU39-IN$3))*Input!$B$1 -> 0.3515625 | IO39: =+IF($EU39<=IO$3,IO$5/IO$3*$EU39,IO$5-IO$5/(1-IO$3)*($EU39-IO$3))*Input!$B$1 -> 0.234375 | IP39: =+IF($EU39<=IP$3,IP$5/IP$3*$EU39,IP$5-IP$5/(1-IP$3)*($EU39-IP$3))*Input!$B$1 -> 0.1171875 | IQ39: =+IF($EU39<=IQ$3,IQ$5/IQ$3*$EU39,IQ$5-IQ$5/(1-IQ$3)*($EU39-IQ$3))*Input!$B$1 -> 0 | IY39: 0 | IZ39: -0.01346669299 | JA39: -0.02693338597 | JB39: -0.04040007896 | JC39: -0.05386677194 | JD39: -0.06733346493 | JE39: -0.08080015791 | JF39: -0.0942668509 | JG39: -0.1077335439 | JH39: -0.1077335439 | JI39: -0.03949017897 | JJ39: 0.02875318595 | JK39: 0.09699655086 | JL39: 0.1652399158 | JM39: 0.2334832807 | JN39: 0.1142266456 | JO39: -0.005029989473 | JP39: -0.1242866246 | JQ39: -0.1242866246 | JR39: -0.104551924 | JS39: -0.08481722352 | JT39: -0.06508252299 | JU39: -0.04534782247 | JY39: 0 | JZ39: -0.1346669299 | KA39: -0.2693338597 | KB39: -0.4040007896 | KC39: -0.5386677194 | KD39: -0.6733346493 | KE39: -0.8080015791 | KF39: -0.942668509 | KG39: -1.077335439 | KH39: -1.077335439 | KI39: -0.3949017897 | KJ39: 0.2875318595 | KK39: 0.9699655086 | KL39: 1.652399158 | KM39: 2.334832807 | KN39: 1.142266456 | KO39: -0.05029989473 | KP39: -1.242866246 | KQ39: -1.242866246 | KR39: -1.04551924 | KS39: -0.8481722352 | KT39: -0.6508252299 | KU39: -0.4534782247 | LK39: =+IF($EU39<=II$3,1/6*(1-II$3)*$EU39*(1-(1-II$3)^2-$EU39^2),1/6*II$3*(1-$EU39)*(1-II$3^2-(1-$EU39)^2))*Input!$B$1^3 -> 0 | LL39: =+IF($EU39<=IJ$3,1/6*(1-IJ$3)*$EU39*(1-(1-IJ$3)^2-$EU39^2),1/6*IJ$3*(1-$EU39)*(1-IJ$3^2-(1-$EU39)^2))*Input!$B$1^3 -> 0.02224731445 | LM39: =+IF($EU39<=IK$3,1/6*(1-IK$3)*$EU39*(1-(1-IK$3)^2-$EU39^2),1/6*IK$3*(1-$EU39)*(1-IK$3^2-(1-$EU39)^2))*Input!$B$1^3 -> 0.04202270508 | LN39: =+IF($EU39<=IL$3,1/6*(1-IL$3)*$EU39*(1-(1-IL$3)^2-$EU39^2),1/6*IL$3*(1-$EU39)*(1-IL$3^2-(1-$EU39)^2))*Input!$B$1^3 -> 0.05685424805 | LO39: =+IF($EU39<=IM$3,1/6*(1-IM$3)*$EU39*(1-(1-IM$3)^2-$EU39^2),1/6*IM$3*(1-$EU39)*(1-IM$3^2-(1-$EU39)^2))*Input!$B$1^3 -> 0.06427001953 | LP39: =+IF($EU39<=IN$3,1/6*(1-IN$3)*$EU39*(1-(1-IN$3)^2-$EU39^2),1/6*IN$3*(1-$EU39)*(1-IN$3^2-(1-$EU39)^2))*Input!$B$1^3 -> 0.0617980957 | LQ39: =+IF($EU39<=IO$3,1/6*(1-IO$3)*$EU39*(1-(1-IO$3)^2-$EU39^2),1/6*IO$3*(1-$EU39)*(1-IO$3^2-(1-$EU39)^2))*Input!$B$1^3 -> 0.04806518555 | LR39: =+IF($EU39<=IP$3,1/6*(1-IP$3)*$EU39*(1-(1-IP$3)^2-$EU39^2),1/6*IP$3*(1-$EU39)*(1-IP$3^2-(1-$EU39)^2))*Input!$B$1^3 -> 0.0260925293 | LS39: =+IF($EU39<=IQ$3,1/6*(1-IQ$3)*$EU39*(1-(1-IQ$3)^2-$EU39^2),1/6*IQ$3*(1-$EU39)*(1-IQ$3^2-(1-$EU39)^2))*Input!$B$1^3 -> 0 | MF39: 0 | MG39: -0.002209379318 | MH39: -0.004208341558 | MI39: -0.005786469642 | MJ39: -0.006733346493 | MK39: -0.006838555032 | ML39: -0.005891678181 | MM39: -0.003682298863 | MN39: 0 | MO39: 0 | MP39: 0.008227236727 | MQ39: 0.01784280006 | MR39: 0.0264475092 | MS39: 0.03164218334 | MT39: 0.0310276417 | MU39: 0.02330333629 | MV39: 0.01156325036 | MW39: 0 | MX39: 0 | MY39: -0.008008201072 | MZ39: -0.01234074856 | NA39: -0.01369144054 | NB39: -0.01275407507 | ND39: 0 | NE39: -0.2209379318 | NF39: -0.4208341558 | NG39: -0.5786469642 | NH39: -0.6733346493 | NI39: -0.6838555032 | NJ39: -0.5891678181 | NK39: -0.3682298863 | NL39: 0 | NM39: 0 | NN39: 0.8227236727 | NO39: 1.784280006 | NP39: 2.64475092 | NQ39: 3.164218334 | NR39: 3.10276417 | NS39: 2.330333629 | NT39: 1.156325036 | NU39: 0 | NV39: 0 | NW39: -0.8008201072 | NX39: -1.234074856 | NY39: -1.369144054 | NZ39: -1.275407507
C40: 26 | D40: 0 | E40: -0.01142785904 | F40: -0.02285571809 | G40: -0.03428357713 | H40: -0.04571143617 | I40: -0.05713929521 | J40: -0.06856715426 | K40: -0.0799950133 | L40: -0.09142287234 | M40: -0.09142287234 | N40: -0.04190214982 | O40: 0.007618572695 | P40: 0.05713929521 | Q40: 0.1066600177 | R40: 0.1561807402 | S40: 0.2057014628 | T40: 0.2552221853 | U40: 0.3047429078 | V40: 0.3047429078 | W40: 0.1257064495 | X40: -0.05333000887 | Y40: -0.2323664672 | Z40: -0.4114029255 | AA40: -0.009142287234 | AB40: 0.02641105201 | AC40: 0.02641105201 | AD40: -0.09548611111 | AE40: -0.009142287234 | AF40: 0.03555333924 | AG40: -0.1218971631 | AX40: -0.09548611111 | ES40: 14 | EU40: 0.75 | EV40: =+(2*$EU40-3*$EU40^2+$EU40^3)*Input!$B$1^2 -> 0.52734375 | EW40: 0.52734375 | EX40: 0.73828125 | EY40: 0.73828125 | FB40: -0.04039228723 | FC40: -0.03125 | FD40: -0.04114029255 | FE40: -0.07161458333 | FG40: -0.07164228723 | FH40: 0.25 | FI40: 0.2942338948 | FJ40: 0.75 | FK40: 0.8728945035 | FM40: -0.07164228723 | FN40: 0.25 | FO40: 0.2225916076 | FP40: -0.75 | FQ40: -0.7774083924 | FS40: 0.09548611111 | FU40: 0.09548611111 | FX40: 0.006732047872 | FY40: 0.005208333333 | FZ40: 0 | GA40: 0 | GB40: 0.01194038121 | GE40: -0.01346409574 | GF40: -0.01041666667 | GG40: 0 | GH40: 0 | GI40: -0.02388076241 | GK40: =+FW31*Input!$B$1^2 -> -0.087890625 | GL40: 0.02019614362 | GM40: 0.015625 | GN40: 0.01028507314 | GO40: 0.01790364583 | GP40: -0.02388076241 | GR40: =+GD31*Input!$B$1^2 -> 0.123046875 | GS40: -0.01009807181 | GT40: -0.0078125 | GU40: -0.02057014628 | GV40: -0.03580729167 | GW40: 0.04875886525 | GZ40: 0 | HA40: 0 | HB40: 0.03085521941 | HC40: 0.01790364583 | HD40: 0.04875886525 | II40: 0 | IJ40: =+IF($EU40<=IJ$3,IJ$5/IJ$3*$EU40,IJ$5-IJ$5/(1-IJ$3)*($EU40-IJ$3))*Input!$B$1 -> 0.046875 | IK40: =+IF($EU40<=IK$3,IK$5/IK$3*$EU40,IK$5-IK$5/(1-IK$3)*($EU40-IK$3))*Input!$B$1 -> 0.09375 | IL40: =+IF($EU40<=IL$3,IL$5/IL$3*$EU40,IL$5-IL$5/(1-IL$3)*($EU40-IL$3))*Input!$B$1 -> 0.140625 | IM40: =+IF($EU40<=IM$3,IM$5/IM$3*$EU40,IM$5-IM$5/(1-IM$3)*($EU40-IM$3))*Input!$B$1 -> 0.1875 | IN40: =+IF($EU40<=IN$3,IN$5/IN$3*$EU40,IN$5-IN$5/(1-IN$3)*($EU40-IN$3))*Input!$B$1 -> 0.234375 | IO40: =+IF($EU40<=IO$3,IO$5/IO$3*$EU40,IO$5-IO$5/(1-IO$3)*($EU40-IO$3))*Input!$B$1 -> 0.28125 | IP40: =+IF($EU40<=IP$3,IP$5/IP$3*$EU40,IP$5-IP$5/(1-IP$3)*($EU40-IP$3))*Input!$B$1 -> 0.140625 | IQ40: =+IF($EU40<=IQ$3,IQ$5/IQ$3*$EU40,IQ$5-IQ$5/(1-IQ$3)*($EU40-IQ$3))*Input!$B$1 -> 0 | IY40: 0 | IZ40: -0.008955285904 | JA40: -0.01791057181 | JB40: -0.02686585771 | JC40: -0.03582114362 | JD40: -0.04477642952 | JE40: -0.05373171543 | JF40: -0.06268700133 | JG40: -0.07164228723 | JH40: -0.07164228723 | JI40: -0.02990636082 | JJ40: 0.0118295656 | JK40: 0.05356549202 | JL40: 0.09530141844 | JM40: 0.1370373449 | JN40: 0.1787732713 | JO40: 0.0330091977 | JP40: -0.1127548759 | JQ40: -0.1127548759 | JR40: -0.09485123005 | JS40: -0.07694758422 | JT40: -0.05904393839 | JU40: -0.04114029255 | JY40: 0 | JZ40: -0.08955285904 | KA40: -0.1791057181 | KB40: -0.2686585771 | KC40: -0.3582114362 | KD40: -0.4477642952 | KE40: -0.5373171543 | KF40: -0.6268700133 | KG40: -0.7164228723 | KH40: -0.7164228723 | KI40: -0.2990636082 | KJ40: 0.118295656 | KK40: 0.5356549202 | KL40: 0.9530141844 | KM40: 1.370373449 | KN40: 1.787732713 | KO40: 0.330091977 | KP40: -1.127548759 | KQ40: -1.127548759 | KR40: -0.9485123005 | KS40: -0.7694758422 | KT40: -0.5904393839 | KU40: -0.4114029255 | LK40: =+IF($EU40<=II$3,1/6*(1-II$3)*$EU40*(1-(1-II$3)^2-$EU40^2),1/6*II$3*(1-$EU40)*(1-II$3^2-(1-$EU40)^2))*Input!$B$1^3 -> 0 | LL40: =+IF($EU40<=IJ$3,1/6*(1-IJ$3)*$EU40*(1-(1-IJ$3)^2-$EU40^2),1/6*IJ$3*(1-$EU40)*(1-IJ$3^2-(1-$EU40)^2))*Input!$B$1^3 -> 0.01620483398 | LM40: =+IF($EU40<=IK$3,1/6*(1-IK$3)*$EU40*(1-(1-IK$3)^2-$EU40^2),1/6*IK$3*(1-$EU40)*(1-IK$3^2-(1-$EU40)^2))*Input!$B$1^3 -> 0.03076171875 | LN40: =+IF($EU40<=IL$3,1/6*(1-IL$3)*$EU40*(1-(1-IL$3)^2-$EU40^2),1/6*IL$3*(1-$EU40)*(1-IL$3^2-(1-$EU40)^2))*Input!$B$1^3 -> 0.04202270508 | LO40: =+IF($EU40<=IM$3,1/6*(1-IM$3)*$EU40*(1-(1-IM$3)^2-$EU40^2),1/6*IM$3*(1-$EU40)*(1-IM$3^2-(1-$EU40)^2))*Input!$B$1^3 -> 0.04833984375 | LP40: =+IF($EU40<=IN$3,1/6*(1-IN$3)*$EU40*(1-(1-IN$3)^2-$EU40^2),1/6*IN$3*(1-$EU40)*(1-IN$3^2-(1-$EU40)^2))*Input!$B$1^3 -> 0.04806518555 | LQ40: =+IF($EU40<=IO$3,1/6*(1-IO$3)*$EU40*(1-(1-IO$3)^2-$EU40^2),1/6*IO$3*(1-$EU40)*(1-IO$3^2-(1-$EU40)^2))*Input!$B$1^3 -> 0.03955078125 | LR40: =+IF($EU40<=IP$3,1/6*(1-IP$3)*$EU40*(1-(1-IP$3)^2-$EU40^2),1/6*IP$3*(1-$EU40)*(1-IP$3^2-(1-$EU40)^2))*Input!$B$1^3 -> 0.02224731445 | LS40: =+IF($EU40<=IQ$3,1/6*(1-IQ$3)*$EU40*(1-(1-IQ$3)^2-$EU40^2),1/6*IQ$3*(1-$EU40)*(1-IQ$3^2-(1-$EU40)^2))*Input!$B$1^3 -> 0 | MF40: 0 | MG40: -0.001469226594 | MH40: -0.002798526845 | MI40: -0.003847974412 | MJ40: -0.004477642952 | MK40: -0.004547606123 | ML40: -0.003917937583 | MM40: -0.002448710989 | MN40: 0 | MO40: 0 | MP40: 0.005492433589 | MQ40: 0.01203626267 | MR40: 0.01816420859 | MS40: 0.02240899269 | MT40: 0.02330333629 | MU40: 0.01937996073 | MV40: 0.01027022017 | MW40: 0 | MX40: 0 | MY40: -0.007265172106 | MZ40: -0.01119573066 | NA40: -0.0124211007 | NB40: -0.01157070728 | ND40: 0 | NE40: -0.1469226594 | NF40: -0.2798526845 | NG40: -0.3847974412 | NH40: -0.4477642952 | NI40: -0.4547606123 | NJ40: -0.3917937583 | NK40: -0.2448710989 | NL40: 0 | NM40: 0 | NN40: 0.5492433589 | NO40: 1.203626267 | NP40: 1.816420859 | NQ40: 2.240899269 | NR40: 2.330333629 | NS40: 1.937996073 | NT40: 1.027022017 | NU40: 0 | NV40: 0 | NW40: -0.7265172106 | NX40: -1.119573066 | NY40: -1.24211007 | NZ40: -1.157070728
C41: 27 | D41: 0 | E41: -0.01259661735 | F41: -0.02519323471 | G41: -0.03778985206 | H41: -0.05038646941 | I41: -0.06298308677 | J41: -0.07557970412 | K41: -0.08817632148 | L41: -0.1007729388 | M41: -0.1007729388 | N41: -0.04618759696 | O41: 0.008397744902 | P41: 0.06298308677 | Q41: 0.1175684286 | R41: 0.1721537705 | S41: 0.2267391124 | T41: 0.2813244542 | U41: 0.3359097961 | V41: 0.3359097961 | W41: 0.1385627909 | X41: -0.05878421432 | Y41: -0.2561312195 | Z41: -0.4534782247 | AA41: -0.01007729388 | AB41: 0.02911218233 | AC41: 0.02911218233 | AD41: -0.1052517361 | AE41: -0.01007729388 | AF41: 0.03918947621 | AG41: -0.1343639184 | AX41: -0.1052517361 | ES41: 15 | EU41: 0.875 | EV41: =+(2*$EU41-3*$EU41^2+$EU41^3)*Input!$B$1^2 -> 0.2768554688 | EW41: 0.2768554688 | EX41: 0.4614257812 | EY41: 0.4614257812 | FB41: -0.01963513963 | FC41: -0.013671875 | FD41: -0.02683469082 | FE41: -0.04671223958 | FG41: -0.03330701463 | FH41: 0.125 | FI41: 0.1314804041 | FJ41: 0.875 | FK41: 0.9641095966 | FM41: -0.03330701463 | FN41: 0.125 | FO41: 0.09817338948 | FP41: -0.875 | FQ41: -0.9018266105 | FS41: 0.06228298611 | FU41: 0.06228298611 | FX41: 0.003272523271 | FY41: 0.002278645833 | FZ41: 0 | GA41: 0 | GB41: 0.005551169105 | GE41: -0.006545046543 | GF41: -0.004557291667 | GG41: 0 | GH41: 0 | GI41: -0.01110233821 | GK41: =+FW32*Input!$B$1^2 -> -0.04614257812 | GL41: 0.009817569814 | GM41: 0.0068359375 | GN41: 0.006708672706 | GO41: 0.0116780599 | GP41: -0.01110233821 | GR41: =+GD32*Input!$B$1^2 -> 0.07690429688 | GS41: -0.004908784907 | GT41: -0.00341796875 | GU41: -0.01341734541 | GV41: -0.02335611979 | GW41: 0.03180407801 | GZ41: 0 | HA41: 0 | HB41: 0.02012601812 | HC41: 0.0116780599 | HD41: 0.03180407801 | II41: 0 | IJ41: =+IF($EU41<=IJ$3,IJ$5/IJ$3*$EU41,IJ$5-IJ$5/(1-IJ$3)*($EU41-IJ$3))*Input!$B$1 -> 0.0234375 | IK41: =+IF($EU41<=IK$3,IK$5/IK$3*$EU41,IK$5-IK$5/(1-IK$3)*($EU41-IK$3))*Input!$B$1 -> 0.046875 | IL41: =+IF($EU41<=IL$3,IL$5/IL$3*$EU41,IL$5-IL$5/(1-IL$3)*($EU41-IL$3))*Input!$B$1 -> 0.0703125 | IM41: =+IF($EU41<=IM$3,IM$5/IM$3*$EU41,IM$5-IM$5/(1-IM$3)*($EU41-IM$3))*Input!$B$1 -> 0.09375 | IN41: =+IF($EU41<=IN$3,IN$5/IN$3*$EU41,IN$5-IN$5/(1-IN$3)*($EU41-IN$3))*Input!$B$1 -> 0.1171875 | IO41: =+IF($EU41<=IO$3,IO$5/IO$3*$EU41,IO$5-IO$5/(1-IO$3)*($EU41-IO$3))*Input!$B$1 -> 0.140625 | IP41: =+IF($EU41<=IP$3,IP$5/IP$3*$EU41,IP$5-IP$5/(1-IP$3)*($EU41-IP$3))*Input!$B$1 -> 0.1640625 | IQ41: =+IF($EU41<=IQ$3,IQ$5/IQ$3*$EU41,IQ$5-IQ$5/(1-IQ$3)*($EU41-IQ$3))*Input!$B$1 -> 0 | IY41: 0 | IZ41: -0.004163376828 | JA41: -0.008326753657 | JB41: -0.01249013049 | JC41: -0.01665350731 | JD41: -0.02081688414 | JE41: -0.02498026097 | JF41: -0.0291436378 | JG41: -0.03330701463 | JH41: -0.03330701463 | JI41: -0.0148995041 | JJ41: 0.003508006427 | JK41: 0.02191551695 | JL41: 0.04032302748 | JM41: 0.05873053801 | JN41: 0.07713804854 | JO41: 0.09554555906 | JP41: -0.07354693041 | JQ41: -0.07354693041 | JR41: -0.06186887051 | JS41: -0.05019081062 | JT41: -0.03851275072 | JU41: -0.02683469082 | JY41: 0 | JZ41: -0.04163376828 | KA41: -0.08326753657 | KB41: -0.1249013049 | KC41: -0.1665350731 | KD41: -0.2081688414 | KE41: -0.2498026097 | KF41: -0.291436378 | KG41: -0.3330701463 | KH41: -0.3330701463 | KI41: -0.148995041 | KJ41: 0.03508006427 | KK41: 0.2191551695 | KL41: 0.4032302748 | KM41: 0.5873053801 | KN41: 0.7713804854 | KO41: 0.9554555906 | KP41: -0.7354693041 | KQ41: -0.7354693041 | KR41: -0.6186887051 | KS41: -0.5019081062 | KT41: -0.3851275072 | KU41: -0.2683469082 | LK41: =+IF($EU41<=II$3,1/6*(1-II$3)*$EU41*(1-(1-II$3)^2-$EU41^2),1/6*II$3*(1-$EU41)*(1-II$3^2-(1-$EU41)^2))*Input!$B$1^3 -> 0 | LL41: =+IF($EU41<=IJ$3,1/6*(1-IJ$3)*$EU41*(1-(1-IJ$3)^2-$EU41^2),1/6*IJ$3*(1-$EU41)*(1-IJ$3^2-(1-$EU41)^2))*Input!$B$1^3 -> 0.008514404297 | LM41: =+IF($EU41<=IK$3,1/6*(1-IK$3)*$EU41*(1-(1-IK$3)^2-$EU41^2),1/6*IK$3*(1-$EU41)*(1-IK$3^2-(1-$EU41)^2))*Input!$B$1^3 -> 0.01620483398 | LN41: =+IF($EU41<=IL$3,1/6*(1-IL$3)*$EU41*(1-(1-IL$3)^2-$EU41^2),1/6*IL$3*(1-$EU41)*(1-IL$3^2-(1-$EU41)^2))*Input!$B$1^3 -> 0.02224731445 | LO41: =+IF($EU41<=IM$3,1/6*(1-IM$3)*$EU41*(1-(1-IM$3)^2-$EU41^2),1/6*IM$3*(1-$EU41)*(1-IM$3^2-(1-$EU41)^2))*Input!$B$1^3 -> 0.02581787109 | LP41: =+IF($EU41<=IN$3,1/6*(1-IN$3)*$EU41*(1-(1-IN$3)^2-$EU41^2),1/6*IN$3*(1-$EU41)*(1-IN$3^2-(1-$EU41)^2))*Input!$B$1^3 -> 0.0260925293 | LQ41: =+IF($EU41<=IO$3,1/6*(1-IO$3)*$EU41*(1-(1-IO$3)^2-$EU41^2),1/6*IO$3*(1-$EU41)*(1-IO$3^2-(1-$EU41)^2))*Input!$B$1^3 -> 0.02224731445 | LR41: =+IF($EU41<=IP$3,1/6*(1-IP$3)*$EU41*(1-(1-IP$3)^2-$EU41^2),1/6*IP$3*(1-$EU41)*(1-IP$3^2-(1-$EU41)^2))*Input!$B$1^3 -> 0.01345825195 | LS41: =+IF($EU41<=IQ$3,1/6*(1-IQ$3)*$EU41*(1-(1-IQ$3)^2-$EU41^2),1/6*IQ$3*(1-$EU41)*(1-IQ$3^2-(1-$EU41)^2))*Input!$B$1^3 -> 0 | MF41: 0 | MG41: -0.0006830540109 | MH41: -0.001301055259 | MI41: -0.001788950981 | MJ41: -0.002081688414 | MK41: -0.002114214796 | ML41: -0.001821477362 | MM41: -0.001138423352 | MN41: 0 | MO41: 0 | MP41: 0.002559306774 | MQ41: 0.005642424238 | MR41: 0.008602213352 | MS41: 0.01079153507 | MT41: 0.01156325036 | MU41: 0.01027022017 | MV41: 0.006265305458 | MW41: 0 | MX41: 0 | MY41: -0.004738873624 | MZ41: -0.007302669769 | NA41: -0.008101945228 | NB41: -0.007547256794 | ND41: 0 | NE41: -0.06830540109 | NF41: -0.1301055259 | NG41: -0.1788950981 | NH41: -0.2081688414 | NI41: -0.2114214796 | NJ41: -0.1821477362 | NK41: -0.1138423352 | NL41: 0 | NM41: 0 | NN41: 0.2559306774 | NO41: 0.5642424238 | NP41: 0.8602213352 | NQ41: 1.079153507 | NR41: 1.156325036 | NS41: 1.027022017 | NT41: 0.6265305458 | NU41: 0 | NV41: 0 | NW41: -0.4738873624 | NX41: -0.7302669769 | NY41: -0.8101945228 | NZ41: -0.7547256794
C42: 28 | D42: 0 | E42: -0.0116356383 | F42: -0.0232712766 | G42: -0.03490691489 | H42: -0.04654255319 | I42: -0.05817819149 | J42: -0.06981382979 | K42: -0.08144946809 | L42: -0.09308510638 | M42: -0.09308510638 | N42: -0.04266400709 | O42: 0.007757092199 | P42: 0.05817819149 | Q42: 0.1085992908 | R42: 0.1590203901 | S42: 0.2094414894 | T42: 0.2598625887 | U42: 0.3102836879 | V42: 0.3102836879 | W42: 0.1279920213 | X42: -0.05429964539 | Y42: -0.2365913121 | Z42: -0.4188829787 | AA42: -0.009308510638 | AB42: 0.02689125296 | AC42: 0.02689125296 | AD42: -0.09722222222 | AE42: -0.009308510638 | AF42: 0.03619976359 | AG42: -0.1241134752 | AX42: -0.09722222222 | ES42: 16 | EU42: 1 | EV42: =+(2*$EU42-3*$EU42^2+$EU42^3)*Input!$B$1^2 -> 0 | EW42: 0 | EX42: 0 | EY42: 0 | FB42: 0 | FC42: 0 | FD42: 0 | FE42: 0 | FG42: 0 | FH42: 0 | FI42: 0 | FJ42: 1 | FK42: 1 | FM42: 0 | FN42: 0 | FO42: 0 | FP42: -1 | FQ42: -1 | FS42: 0 | FU42: 0 | FX42: 0 | FY42: 0 | FZ42: 0 | GA42: 0 | GB42: 0 | GE42: 0 | GF42: 0 | GG42: 0 | GH42: 0 | GI42: 0 | GK42: =+FW33*Input!$B$1^2 -> 0 | GL42: 0 | GM42: 0 | GN42: 0 | GO42: 0 | GP42: 0 | GR42: =+GD33*Input!$B$1^2 -> 0 | GS42: 0 | GT42: 0 | GU42: 0 | GV42: 0 | GW42: 0 | GZ42: 0 | HA42: 0 | HB42: 0 | HC42: 0 | HD42: 0 | II42: 0 | IJ42: =+IF($EU42<=IJ$3,IJ$5/IJ$3*$EU42,IJ$5-IJ$5/(1-IJ$3)*($EU42-IJ$3))*Input!$B$1 -> 0 | IK42: =+IF($EU42<=IK$3,IK$5/IK$3*$EU42,IK$5-IK$5/(1-IK$3)*($EU42-IK$3))*Input!$B$1 -> 0 | IL42: =+IF($EU42<=IL$3,IL$5/IL$3*$EU42,IL$5-IL$5/(1-IL$3)*($EU42-IL$3))*Input!$B$1 -> 0 | IM42: =+IF($EU42<=IM$3,IM$5/IM$3*$EU42,IM$5-IM$5/(1-IM$3)*($EU42-IM$3))*Input!$B$1 -> 0 | IN42: =+IF($EU42<=IN$3,IN$5/IN$3*$EU42,IN$5-IN$5/(1-IN$3)*($EU42-IN$3))*Input!$B$1 -> 0 | IO42: =+IF($EU42<=IO$3,IO$5/IO$3*$EU42,IO$5-IO$5/(1-IO$3)*($EU42-IO$3))*Input!$B$1 -> 0 | IP42: =+IF($EU42<=IP$3,IP$5/IP$3*$EU42,IP$5-IP$5/(1-IP$3)*($EU42-IP$3))*Input!$B$1 -> 0 | IQ42: =+IF($EU42<=IQ$3,IQ$5/IQ$3*$EU42,IQ$5-IQ$5/(1-IQ$3)*($EU42-IQ$3))*Input!$B$1 -> 0 | IY42: 0 | IZ42: 0 | JA42: 0 | JB42: 0 | JC42: 0 | JD42: 0 | JE42: 0 | JF42: 0 | JG42: 0 | JH42: 0 | JI42: 0 | JJ42: 0 | JK42: 0 | JL42: 0 | JM42: 0 | JN42: 0 | JO42: 0 | JP42: 0 | JQ42: 0 | JR42: 0 | JS42: 0 | JT42: 0 | JU42: 0 | JY42: 0 | JZ42: 0 | KA42: 0 | KB42: 0 | KC42: 0 | KD42: 0 | KE42: 0 | KF42: 0 | KG42: 0 | KH42: 0 | KI42: 0 | KJ42: 0 | KK42: 0 | KL42: 0 | KM42: 0 | KN42: 0 | KO42: 0 | KP42: 0 | KQ42: 0 | KR42: 0 | KS42: 0 | KT42: 0 | KU42: 0 | LK42: =+IF($EU42<=II$3,1/6*(1-II$3)*$EU42*(1-(1-II$3)^2-$EU42^2),1/6*II$3*(1-$EU42)*(1-II$3^2-(1-$EU42)^2))*Input!$B$1^3 -> 0 | LL42: =+IF($EU42<=IJ$3,1/6*(1-IJ$3)*$EU42*(1-(1-IJ$3)^2-$EU42^2),1/6*IJ$3*(1-$EU42)*(1-IJ$3^2-(1-$EU42)^2))*Input!$B$1^3 -> 0 | LM42: =+IF($EU42<=IK$3,1/6*(1-IK$3)*$EU42*(1-(1-IK$3)^2-$EU42^2),1/6*IK$3*(1-$EU42)*(1-IK$3^2-(1-$EU42)^2))*Input!$B$1^3 -> 0 | LN42: =+IF($EU42<=IL$3,1/6*(1-IL$3)*$EU42*(1-(1-IL$3)^2-$EU42^2),1/6*IL$3*(1-$EU42)*(1-IL$3^2-(1-$EU42)^2))*Input!$B$1^3 -> 0 | LO42: =+IF($EU42<=IM$3,1/6*(1-IM$3)*$EU42*(1-(1-IM$3)^2-$EU42^2),1/6*IM$3*(1-$EU42)*(1-IM$3^2-(1-$EU42)^2))*Input!$B$1^3 -> 0 | LP42: =+IF($EU42<=IN$3,1/6*(1-IN$3)*$EU42*(1-(1-IN$3)^2-$EU42^2),1/6*IN$3*(1-$EU42)*(1-IN$3^2-(1-$EU42)^2))*Input!$B$1^3 -> 0 | LQ42: =+IF($EU42<=IO$3,1/6*(1-IO$3)*$EU42*(1-(1-IO$3)^2-$EU42^2),1/6*IO$3*(1-$EU42)*(1-IO$3^2-(1-$EU42)^2))*Input!$B$1^3 -> 0 | LR42: =+IF($EU42<=IP$3,1/6*(1-IP$3)*$EU42*(1-(1-IP$3)^2-$EU42^2),1/6*IP$3*(1-$EU42)*(1-IP$3^2-(1-$EU42)^2))*Input!$B$1^3 -> 0 | LS42: =+IF($EU42<=IQ$3,1/6*(1-IQ$3)*$EU42*(1-(1-IQ$3)^2-$EU42^2),1/6*IQ$3*(1-$EU42)*(1-IQ$3^2-(1-$EU42)^2))*Input!$B$1^3 -> 0 | MF42: 0 | MG42: 0 | MH42: 0 | MI42: 0 | MJ42: 0 | MK42: 0 | ML42: 0 | MM42: 0 | MN42: 0 | MO42: 0 | MP42: 0 | MQ42: 0 | MR42: 0 | MS42: 0 | MT42: 0 | MU42: 0 | MV42: 0 | MW42: 0 | MX42: 0 | MY42: 0 | MZ42: 0 | NA42: 0 | NB42: 0 | ND42: 0 | NE42: 0 | NF42: 0 | NG42: 0 | NH42: 0 | NI42: 0 | NJ42: 0 | NK42: 0 | NL42: 0 | NM42: 0 | NN42: 0 | NO42: 0 | NP42: 0 | NQ42: 0 | NR42: 0 | NS42: 0 | NT42: 0 | NU42: 0 | NV42: 0 | NW42: 0 | NX42: 0 | NY42: 0 | NZ42: 0
C43: 29 | D43: 0 | E43: -0.009220204455 | F43: -0.01844040891 | G43: -0.02766061336 | H43: -0.03688081782 | I43: -0.04610102227 | J43: -0.05532122673 | K43: -0.06454143118 | L43: -0.07376163564 | M43: -0.07376163564 | N43: -0.03380741633 | O43: 0.00614680297 | P43: 0.04610102227 | Q43: 0.08605524158 | R43: 0.1260094609 | S43: 0.1659636802 | T43: 0.2059178995 | U43: 0.2458721188 | V43: 0.2458721188 | W43: 0.101422249 | X43: -0.04302762079 | Y43: -0.1874774906 | Z43: -0.3319273604 | AA43: -0.007376163564 | AB43: 0.02130891696 | AC43: 0.02130891696 | AD43: -0.07703993056 | AE43: -0.007376163564 | AF43: 0.02868508053 | AG43: -0.09834884752 | AX43: -0.07703993056 | ES43: =+ES42 -> 16 | ET43: 3 | EU43: 0 | EX43: =3*(EU43-EU43^2)*Input!$B$1^2 -> 0 | EY43: =+($EU43-3*$EU43^2+2*$EU43^3)*Input!$B$1^2 -> 0 | FB43: 0 | FC43: 0 | FD43: 0 | FE43: 0 | FG43: 0 | FI43: 0 | FJ43: =1-EU43 -> 1 | FK43: 1 | FM43: 0 | FO43: 0 | FQ43: 0 | FR43: =1-$EU43 -> 1 | FS43: 1 | FT43: =-$EU43 -> 0 | FU43: 0 | FX43: 0 | FY43: 0 | FZ43: 0 | GA43: 0 | GB43: 0 | GE43: 0 | GF43: 0 | GG43: 0 | GH43: 0 | GI43: 0 | GL43: 0 | GM43: 0 | GN43: 0 | GO43: 0 | GP43: 0 | GS43: 0 | GT43: 0 | GU43: 0 | GV43: 0 | GW43: 0 | GY43: =+GK34 -> 0 | GZ43: 0 | HA43: 0 | HB43: 0 | HC43: 0 | HD43: 0 | IR43: 0 | IS43: =+IF($EU43<=IS$3,IS$5/IS$3*$EU43,IS$5-IS$5/(1-IS$3)*($EU43-IS$3))*Input!$B$1 -> 0 | IT43: =+IF($EU43<=IT$3,IT$5/IT$3*$EU43,IT$5-IT$5/(1-IT$3)*($EU43-IT$3))*Input!$B$1 -> 0 | IU43: =+IF($EU43<=IU$3,IU$5/IU$3*$EU43,IU$5-IU$5/(1-IU$3)*($EU43-IU$3))*Input!$B$1 -> 0 | IV43: =+IF($EU43<=IV$3,IV$5/IV$3*$EU43,IV$5-IV$5/(1-IV$3)*($EU43-IV$3))*Input!$B$1 -> 0 | IY43: 0 | IZ43: 0 | JA43: 0 | JB43: 0 | JC43: 0 | JD43: 0 | JE43: 0 | JF43: 0 | JG43: 0 | JH43: 0 | JI43: 0 | JJ43: 0 | JK43: 0 | JL43: 0 | JM43: 0 | JN43: 0 | JO43: 0 | JP43: 0 | JQ43: 0 | JR43: 0 | JS43: 0 | JT43: 0 | JU43: 0 | JY43: 0 | JZ43: 0 | KA43: 0 | KB43: 0 | KC43: 0 | KD43: 0 | KE43: 0 | KF43: 0 | KG43: 0 | KH43: 0 | KI43: 0 | KJ43: 0 | KK43: 0 | KL43: 0 | KM43: 0 | KN43: 0 | KO43: 0 | KP43: 0 | KQ43: 0 | KR43: 0 | KS43: 0 | KT43: 0 | KU43: 0 | LT43: =+IF($EU43<=IR$3,1/6*(1-IR$3)*$EU43*(1-(1-IR$3)^2-$EU43^2),1/6*IR$3*(1-$EU43)*(1-IR$3^2-(1-$EU43)^2))*Input!$B$1^3 -> 0 | LU43: =+IF($EU43<=IS$3,1/6*(1-IS$3)*$EU43*(1-(1-IS$3)^2-$EU43^2),1/6*IS$3*(1-$EU43)*(1-IS$3^2-(1-$EU43)^2))*Input!$B$1^3 -> 0 | LV43: =+IF($EU43<=IT$3,1/6*(1-IT$3)*$EU43*(1-(1-IT$3)^2-$EU43^2),1/6*IT$3*(1-$EU43)*(1-IT$3^2-(1-$EU43)^2))*Input!$B$1^3 -> 0 | LW43: =+IF($EU43<=IU$3,1/6*(1-IU$3)*$EU43*(1-(1-IU$3)^2-$EU43^2),1/6*IU$3*(1-$EU43)*(1-IU$3^2-(1-$EU43)^2))*Input!$B$1^3 -> 0 | LX43: =+IF($EU43<=IV$3,1/6*(1-IV$3)*$EU43*(1-(1-IV$3)^2-$EU43^2),1/6*IV$3*(1-$EU43)*(1-IV$3^2-(1-$EU43)^2))*Input!$B$1^3 -> 0 | MF43: 0 | MG43: 0 | MH43: 0 | MI43: 0 | MJ43: 0 | MK43: 0 | ML43: 0 | MM43: 0 | MN43: 0 | MO43: 0 | MP43: 0 | MQ43: 0 | MR43: 0 | MS43: 0 | MT43: 0 | MU43: 0 | MV43: 0 | MW43: 0 | MX43: 0 | MY43: 0 | MZ43: 0 | NA43: 0 | NB43: 0 | ND43: 0 | NE43: 0 | NF43: 0 | NG43: 0 | NH43: 0 | NI43: 0 | NJ43: 0 | NK43: 0 | NL43: 0 | NM43: 0 | NN43: 0 | NO43: 0 | NP43: 0 | NQ43: 0 | NR43: 0 | NS43: 0 | NT43: 0 | NU43: 0 | NV43: 0 | NW43: 0 | NX43: 0 | NY43: 0 | NZ43: 0
C44: 30 | D44: 0 | E44: -0.006025598404 | F44: -0.01205119681 | G44: -0.01807679521 | H44: -0.02410239362 | I44: -0.03012799202 | J44: -0.03615359043 | K44: -0.04217918883 | L44: -0.04820478723 | M44: -0.04820478723 | N44: -0.02209386082 | O44: 0.004017065603 | P44: 0.03012799202 | Q44: 0.05623891844 | R44: 0.08234984486 | S44: 0.1084607713 | T44: 0.1345716977 | U44: 0.1606826241 | V44: 0.1606826241 | W44: 0.06628158245 | X44: -0.02811945922 | Y44: -0.1225205009 | Z44: -0.2169215426 | AA44: -0.004820478723 | AB44: 0.01392582742 | AC44: 0.01392582742 | AD44: -0.05034722222 | AE44: -0.004820478723 | AF44: 0.01874630615 | AG44: -0.06427304965 | AX44: -0.05034722222 | ES44: =+ES43+1 -> 17 | EU44: =+EU43+1/8 -> 0.125 | EX44: =3*(EU44-EU44^2)*Input!$B$1^2 -> 0.73828125 | EY44: =+($EU44-3*$EU44^2+2*$EU44^3)*Input!$B$1^2 -> 0.1845703125 | FB44: 0.0157081117 | FC44: 0.0068359375 | FD44: -0.05236037234 | FE44: -0.02278645833 | FG44: =+FF44+FG$17*$FB44+FG$18*$FC44+FG$19*$FD44+FG$20*$FE44 -> 0.0225440492 | FI44: -0.08767130245 | FJ44: 0.875 | FK44: 0.9705091977 | FM44: 0.0225440492 | FO44: -0.06512725325 | FQ44: -0.06512725325 | FR44: =1-$EU44 -> 0.875 | FS44: 0.9053819444 | FT44: -0.125 | FU44: -0.09461805556 | FX44: -0.002618018617 | FY44: -0.001139322917 | FZ44: 0 | GA44: 0 | GB44: -0.003757341534 | GE44: 0.005236037234 | GF44: 0.002278645833 | GG44: 0 | GH44: 0 | GI44: 0.007514683067 | GL44: -0.007854055851 | GM44: -0.00341796875 | GN44: 0.01309009309 | GO44: 0.005696614583 | GP44: 0.007514683067 | GS44: 0.003927027926 | GT44: 0.001708984375 | GU44: -0.02618018617 | GV44: -0.01139322917 | GW44: -0.03193740304 | GY44: =+GK35 -> -0.07690429688 | GZ44: 0 | HA44: 0 | HB44: 0.03927027926 | HC44: 0.005696614583 | HD44: -0.03193740304 | IR44: 0 | IS44: =+IF($EU44<=IS$3,IS$5/IS$3*$EU44,IS$5-IS$5/(1-IS$3)*($EU44-IS$3))*Input!$B$1 -> 0.1640625 | IT44: =+IF($EU44<=IT$3,IT$5/IT$3*$EU44,IT$5-IT$5/(1-IT$3)*($EU44-IT$3))*Input!$B$1 -> 0.140625 | IU44: =+IF($EU44<=IU$3,IU$5/IU$3*$EU44,IU$5-IU$5/(1-IU$3)*($EU44-IU$3))*Input!$B$1 -> 0.1171875 | IV44: =+IF($EU44<=IV$3,IV$5/IV$3*$EU44,IV$5-IV$5/(1-IV$3)*($EU44-IV$3))*Input!$B$1 -> 0.09375 | IY44: 0 | IZ44: 0.00281800615 | JA44: 0.005636012301 | JB44: 0.008454018451 | JC44: 0.0112720246 | JD44: 0.01409003075 | JE44: 0.0169080369 | JF44: 0.01972604305 | JG44: 0.0225440492 | JH44: 0.0225440492 | JI44: 0.01033268922 | JJ44: -0.001878670767 | JK44: -0.01409003075 | JL44: -0.02630139074 | JM44: -0.03851275072 | JN44: -0.0507241107 | JO44: -0.06293547069 | JP44: -0.07514683067 | JQ44: -0.07514683067 | JR44: 0.09461228391 | JS44: 0.07687139849 | JT44: 0.05913051308 | JU44: 0.04138962766 | JY44: 0 | JZ44: 0.0281800615 | KA44: 0.05636012301 | KB44: 0.08454018451 | KC44: 0.112720246 | KD44: 0.1409003075 | KE44: 0.169080369 | KF44: 0.1972604305 | KG44: 0.225440492 | KH44: 0.225440492 | KI44: 0.1033268922 | KJ44: -0.01878670767 | KK44: -0.1409003075 | KL44: -0.2630139074 | KM44: -0.3851275072 | KN44: -0.507241107 | KO44: -0.6293547069 | KP44: -0.7514683067 | KQ44: -0.7514683067 | KR44: 0.9461228391 | KS44: 0.7687139849 | KT44: 0.5913051308 | KU44: 0.4138962766 | LT44: =+IF($EU44<=IR$3,1/6*(1-IR$3)*$EU44*(1-(1-IR$3)^2-$EU44^2),1/6*IR$3*(1-$EU44)*(1-IR$3^2-(1-$EU44)^2))*Input!$B$1^3 -> 0 | LU44: =+IF($EU44<=IS$3,1/6*(1-IS$3)*$EU44*(1-(1-IS$3)^2-$EU44^2),1/6*IS$3*(1-$EU44)*(1-IS$3^2-(1-$EU44)^2))*Input!$B$1^3 -> 0.01345825195 | LV44: =+IF($EU44<=IT$3,1/6*(1-IT$3)*$EU44*(1-(1-IT$3)^2-$EU44^2),1/6*IT$3*(1-$EU44)*(1-IT$3^2-(1-$EU44)^2))*Input!$B$1^3 -> 0.02224731445 | LW44: =+IF($EU44<=IU$3,1/6*(1-IU$3)*$EU44*(1-(1-IU$3)^2-$EU44^2),1/6*IU$3*(1-$EU44)*(1-IU$3^2-(1-$EU44)^2))*Input!$B$1^3 -> 0.0260925293 | LX44: =+IF($EU44<=IV$3,1/6*(1-IV$3)*$EU44*(1-(1-IV$3)^2-$EU44^2),1/6*IV$3*(1-$EU44)*(1-IV$3^2-(1-$EU44)^2))*Input!$B$1^3 -> 0.02581787109 | MF44: 0 | MG44: 0.000462329134 | MH44: 0.000880626922 | MI44: 0.001210862018 | MJ44: 0.001409003075 | MK44: 0.001431018748 | ML44: 0.001232877691 | MM44: 0.0007705485567 | MN44: 0 | MO44: 0 | MP44: -0.001733734253 | MQ44: -0.003830727111 | MR44: -0.005861672949 | MS44: -0.007397266144 | MT44: -0.008008201072 | MU44: -0.007265172106 | MV44: -0.004738873624 | MW44: 0 | MX44: 0 | MY44: 0.00631452114 | MZ44: 0.01040146199 | NA44: 0.01178589273 | NB44: 0.01109151637 | ND44: 0 | NE44: 0.0462329134 | NF44: 0.0880626922 | NG44: 0.1210862018 | NH44: 0.1409003075 | NI44: 0.1431018748 | NJ44: 0.1232877691 | NK44: 0.07705485567 | NL44: 0 | NM44: 0 | NN44: -0.1733734253 | NO44: -0.3830727111 | NP44: -0.5861672949 | NQ44: -0.7397266144 | NR44: -0.8008201072 | NS44: -0.7265172106 | NT44: -0.4738873624 | NU44: 0 | NV44: 0 | NW44: 0.631452114 | NX44: 1.040146199 | NY44: 1.178589273 | NZ44: 1.109151637
C45: 31 | D45: 0 | E45: -0.002727102726 | F45: -0.005454205452 | G45: -0.008181308178 | H45: -0.0109084109 | I45: -0.01363551363 | J45: -0.01636261636 | K45: -0.01908971908 | L45: -0.02181682181 | M45: -0.02181682181 | N45: -0.009999376662 | O45: 0.001818068484 | P45: 0.01363551363 | Q45: 0.02545295878 | R45: 0.03727040392 | S45: 0.04908784907 | T45: 0.06090529422 | U45: 0.07272273936 | V45: 0.07272273936 | W45: 0.02999812999 | X45: -0.01272647939 | Y45: -0.05545108876 | Z45: -0.09817569814 | AA45: -0.002181682181 | AB45: 0.006302637411 | AC45: 0.006302637411 | AD45: -0.02278645833 | AE45: -0.002181682181 | AF45: 0.008484319592 | AG45: -0.02908909574 | AX45: -0.02278645833 | ES45: =+ES44+1 -> 18 | EU45: =+EU44+1/8 -> 0.25 | EX45: =3*(EU45-EU45^2)*Input!$B$1^2 -> 1.265625 | EY45: =+($EU45-3*$EU45^2+2*$EU45^3)*Input!$B$1^2 -> 0.2109375 | FB45: 0.02692819149 | FC45: 0.0078125 | FD45: -0.0897606383 | FE45: -0.02604166667 | FG45: 0.03474069149 | FI45: -0.1351026891 | FJ45: 0.75 | FK45: 0.8850842199 | FM45: 0.03474069149 | FO45: -0.1003619976 | FQ45: -0.1003619976 | FR45: 0.75 | FS45: 0.7847222222 | FT45: -0.25 | FU45: -0.2152777778 | FX45: -0.004488031915 | FY45: -0.001302083333 | FZ45: 0 | GA45: 0 | GB45: -0.005790115248 | GE45: 0.00897606383 | GF45: 0.002604166667 | GG45: 0 | GH45: 0 | GI45: 0.0115802305 | GL45: -0.01346409574 | GM45: -0.00390625 | GN45: 0.02244015957 | GO45: 0.006510416667 | GP45: 0.0115802305 | GS45: 0.006732047872 | GT45: 0.001953125 | GU45: -0.04488031915 | GV45: -0.01302083333 | GW45: -0.04921597961 | GY45: -0.123046875 | GZ45: 0 | HA45: 0 | HB45: 0.06732047872 | HC45: 0.006510416667 | HD45: -0.04921597961 | IR45: 0 | IS45: =+IF($EU45<=IS$3,IS$5/IS$3*$EU45,IS$5-IS$5/(1-IS$3)*($EU45-IS$3))*Input!$B$1 -> 0.140625 | IT45: =+IF($EU45<=IT$3,IT$5/IT$3*$EU45,IT$5-IT$5/(1-IT$3)*($EU45-IT$3))*Input!$B$1 -> 0.28125 | IU45: =+IF($EU45<=IU$3,IU$5/IU$3*$EU45,IU$5-IU$5/(1-IU$3)*($EU45-IU$3))*Input!$B$1 -> 0.234375 | IV45: =+IF($EU45<=IV$3,IV$5/IV$3*$EU45,IV$5-IV$5/(1-IV$3)*($EU45-IV$3))*Input!$B$1 -> 0.1875 | IY45: 0 | IZ45: 0.004342586436 | JA45: 0.008685172872 | JB45: 0.01302775931 | JC45: 0.01737034574 | JD45: 0.02171293218 | JE45: 0.02605551862 | JF45: 0.03039810505 | JG45: 0.03474069149 | JH45: 0.03474069149 | JI45: 0.01592281693 | JJ45: -0.002895057624 | JK45: -0.02171293218 | JL45: -0.04053080674 | JM45: -0.05934868129 | JN45: -0.07816655585 | JO45: -0.09698443041 | JP45: -0.115802305 | JQ45: -0.115802305 | JR45: 0.0313331117 | JS45: 0.1784685284 | JT45: 0.138103945 | JU45: 0.0977393617 | JY45: 0 | JZ45: 0.04342586436 | KA45: 0.08685172872 | KB45: 0.1302775931 | KC45: 0.1737034574 | KD45: 0.2171293218 | KE45: 0.2605551862 | KF45: 0.3039810505 | KG45: 0.3474069149 | KH45: 0.3474069149 | KI45: 0.1592281693 | KJ45: -0.02895057624 | KK45: -0.2171293218 | KL45: -0.4053080674 | KM45: -0.5934868129 | KN45: -0.7816655585 | KO45: -0.9698443041 | KP45: -1.15802305 | KQ45: -1.15802305 | KR45: 0.313331117 | KS45: 1.784685284 | KT45: 1.38103945 | KU45: 0.977393617 | LT45: =+IF($EU45<=IR$3,1/6*(1-IR$3)*$EU45*(1-(1-IR$3)^2-$EU45^2),1/6*IR$3*(1-$EU45)*(1-IR$3^2-(1-$EU45)^2))*Input!$B$1^3 -> 0 | LU45: =+IF($EU45<=IS$3,1/6*(1-IS$3)*$EU45*(1-(1-IS$3)^2-$EU45^2),1/6*IS$3*(1-$EU45)*(1-IS$3^2-(1-$EU45)^2))*Input!$B$1^3 -> 0.02224731445 | LV45: =+IF($EU45<=IT$3,1/6*(1-IT$3)*$EU45*(1-(1-IT$3)^2-$EU45^2),1/6*IT$3*(1-$EU45)*(1-IT$3^2-(1-$EU45)^2))*Input!$B$1^3 -> 0.03955078125 | LW45: =+IF($EU45<=IU$3,1/6*(1-IU$3)*$EU45*(1-(1-IU$3)^2-$EU45^2),1/6*IU$3*(1-$EU45)*(1-IU$3^2-(1-$EU45)^2))*Input!$B$1^3 -> 0.04806518555 | LX45: =+IF($EU45<=IV$3,1/6*(1-IV$3)*$EU45*(1-(1-IV$3)^2-$EU45^2),1/6*IV$3*(1-$EU45)*(1-IV$3^2-(1-$EU45)^2))*Input!$B$1^3 -> 0.04833984375 | MF45: 0 | MG45: 0.0007124555872 | MH45: 0.001357058261 | MI45: 0.001865955109 | MJ45: 0.002171293218 | MK45: 0.002205219675 | ML45: 0.001899881566 | MM45: 0.001187425979 | MN45: 0 | MO45: 0 | MP45: -0.002671708452 | MQ45: -0.005903203437 | MR45: -0.009032919052 | MS45: -0.01139928939 | MT45: -0.01234074856 | MU45: -0.01119573066 | MV45: -0.007302669769 | MW45: 0 | MX45: 0 | MY45: 0.01040146199 | MZ45: 0.01970136927 | NA45: 0.02382562516 | NB45: 0.02309466423 | ND45: 0 | NE45: 0.07124555872 | NF45: 0.1357058261 | NG45: 0.1865955109 | NH45: 0.2171293218 | NI45: 0.2205219675 | NJ45: 0.1899881566 | NK45: 0.1187425979 | NL45: 0 | NM45: 0 | NN45: -0.2671708452 | NO45: -0.5903203437 | NP45: -0.9032919052 | NQ45: -1.139928939 | NR45: -1.234074856 | NS45: -1.119573066 | NT45: -0.7302669769 | NU45: 0 | NV45: 0 | NW45: 1.040146199 | NX45: 1.970136927 | NY45: 2.382562516 | NZ45: 2.309466423
C46: 32 | D46: 0 | E46: 0 | F46: 0 | G46: 0 | H46: 0 | I46: 0 | J46: 0 | K46: 0 | L46: 0 | M46: 0 | N46: 0 | O46: 0 | P46: 0 | Q46: 0 | R46: 0 | S46: 0 | T46: 0 | U46: 0 | V46: 0 | W46: 0 | X46: 0 | Y46: 0 | Z46: 0 | AA46: 0 | AB46: 0 | AC46: 0 | AD46: 0 | AE46: 0 | AF46: 0 | AG46: 0 | AX46: 0 | ES46: 19 | EU46: 0.375 | EX46: =3*(EU46-EU46^2)*Input!$B$1^2 -> 1.58203125 | EY46: =+($EU46-3*$EU46^2+2*$EU46^3)*Input!$B$1^2 -> 0.1318359375 | FB46: 0.03366023936 | FC46: 0.0048828125 | FD46: -0.1122007979 | FE46: -0.01627604167 | FG46: 0.03854305186 | FI46: -0.1498896461 | FJ46: 0.625 | FK46: 0.7580479832 | FM46: 0.03854305186 | FO46: -0.1113465943 | FQ46: -0.1113465943 | FR46: 0.625 | FS46: 0.6467013889 | FT46: -0.375 | FU46: -0.3532986111 | FX46: -0.005610039894 | FY46: -0.0008138020833 | FZ46: 0 | GA46: 0 | GB46: -0.006423841977 | GE46: 0.01122007979 | GF46: 0.001627604167 | GG46: 0 | GH46: 0 | GI46: 0.01284768395 | GL46: -0.01683011968 | GM46: -0.00244140625 | GN46: 0.02805019947 | GO46: 0.004069010417 | GP46: 0.01284768395 | GS46: 0.00841505984 | GT46: 0.001220703125 | GU46: -0.05610039894 | GV46: -0.008138020833 | GW46: -0.0546026568 | GY46: -0.1428222656 | GZ46: 0 | HA46: 0 | HB46: 0.0841505984 | HC46: 0.004069010417 | HD46: -0.0546026568 | IR46: 0 | IS46: =+IF($EU46<=IS$3,IS$5/IS$3*$EU46,IS$5-IS$5/(1-IS$3)*($EU46-IS$3))*Input!$B$1 -> 0.1171875 | IT46: =+IF($EU46<=IT$3,IT$5/IT$3*$EU46,IT$5-IT$5/(1-IT$3)*($EU46-IT$3))*Input!$B$1 -> 0.234375 | IU46: =+IF($EU46<=IU$3,IU$5/IU$3*$EU46,IU$5-IU$5/(1-IU$3)*($EU46-IU$3))*Input!$B$1 -> 0.3515625 | IV46: =+IF($EU46<=IV$3,IV$5/IV$3*$EU46,IV$5-IV$5/(1-IV$3)*($EU46-IV$3))*Input!$B$1 -> 0.28125 | IY46: 0 | IZ46: 0.004817881483 | JA46: 0.009635762965 | JB46: 0.01445364445 | JC46: 0.01927152593 | JD46: 0.02408940741 | JE46: 0.0289072889 | JF46: 0.03372517038 | JG46: 0.03854305186 | JH46: 0.03854305186 | JI46: 0.01766556544 | JJ46: -0.003211920988 | JK46: -0.02408940741 | JL46: -0.04496689384 | JM46: -0.06584438026 | JN46: -0.08672186669 | JO46: -0.1075993531 | JP46: -0.1284768395 | JQ46: -0.1284768395 | JR46: -0.007220329122 | JS46: 0.1140361813 | JT46: 0.2352926917 | JU46: 0.1690492021 | JY46: 0 | JZ46: 0.04817881483 | KA46: 0.09635762965 | KB46: 0.1445364445 | KC46: 0.1927152593 | KD46: 0.2408940741 | KE46: 0.289072889 | KF46: 0.3372517038 | KG46: 0.3854305186 | KH46: 0.3854305186 | KI46: 0.1766556544 | KJ46: -0.03211920988 | KK46: -0.2408940741 | KL46: -0.4496689384 | KM46: -0.6584438026 | KN46: -0.8672186669 | KO46: -1.075993531 | KP46: -1.284768395 | KQ46: -1.284768395 | KR46: -0.07220329122 | KS46: 1.140361813 | KT46: 2.352926917 | KU46: 1.690492021 | LT46: =+IF($EU46<=IR$3,1/6*(1-IR$3)*$EU46*(1-(1-IR$3)^2-$EU46^2),1/6*IR$3*(1-$EU46)*(1-IR$3^2-(1-$EU46)^2))*Input!$B$1^3 -> 0 | LU46: =+IF($EU46<=IS$3,1/6*(1-IS$3)*$EU46*(1-(1-IS$3)^2-$EU46^2),1/6*IS$3*(1-$EU46)*(1-IS$3^2-(1-$EU46)^2))*Input!$B$1^3 -> 0.0260925293 | LV46: =+IF($EU46<=IT$3,1/6*(1-IT$3)*$EU46*(1-(1-IT$3)^2-$EU46^2),1/6*IT$3*(1-$EU46)*(1-IT$3^2-(1-$EU46)^2))*Input!$B$1^3 -> 0.04806518555 | LW46: =+IF($EU46<=IU$3,1/6*(1-IU$3)*$EU46*(1-(1-IU$3)^2-$EU46^2),1/6*IU$3*(1-$EU46)*(1-IU$3^2-(1-$EU46)^2))*Input!$B$1^3 -> 0.0617980957 | LX46: =+IF($EU46<=IV$3,1/6*(1-IV$3)*$EU46*(1-(1-IV$3)^2-$EU46^2),1/6*IV$3*(1-$EU46)*(1-IV$3^2-(1-$EU46)^2))*Input!$B$1^3 -> 0.06427001953 | MF46: 0 | MG46: 0.0007904336808 | MH46: 0.001505587963 | MI46: 0.00207018345 | MJ46: 0.002408940741 | MK46: 0.00244658044 | ML46: 0.002107823149 | MM46: 0.001317389468 | MN46: 0 | MO46: 0 | MP46: -0.002964126303 | MQ46: -0.006549307641 | MR46: -0.01002156988 | MS46: -0.01264693889 | MT46: -0.01369144054 | MU46: -0.0124211007 | MV46: -0.008101945228 | MW46: 0 | MX46: 0 | MY46: 0.01178589273 | MZ46: 0.02382562516 | NA46: 0.03185627308 | NB46: 0.03271354513 | ND46: 0 | NE46: 0.07904336808 | NF46: 0.1505587963 | NG46: 0.207018345 | NH46: 0.2408940741 | NI46: 0.244658044 | NJ46: 0.2107823149 | NK46: 0.1317389468 | NL46: 0 | NM46: 0 | NN46: -0.2964126303 | NO46: -0.6549307641 | NP46: -1.002156988 | NQ46: -1.264693889 | NR46: -1.369144054 | NS46: -1.24211007 | NT46: -0.8101945228 | NU46: 0 | NV46: 0 | NW46: 1.178589273 | NX46: 2.382562516 | NY46: 3.185627308 | NZ46: 3.271354513
C47: 32 | D47: 0 | E47: 0 | F47: 0 | G47: 0 | H47: 0 | I47: 0 | J47: 0 | K47: 0 | L47: 0 | M47: 0 | N47: 0 | O47: 0 | P47: 0 | Q47: 0 | R47: 0 | S47: 0 | T47: 0 | U47: 0 | V47: 0 | W47: 0 | X47: 0 | Y47: 0 | Z47: 0 | AA47: 0 | AB47: 0 | AC47: 0 | AD47: 0 | AE47: 0 | AF47: 0 | AG47: 0 | AX47: 0 | ES47: 20 | EU47: 0.5 | EX47: =3*(EU47-EU47^2)*Input!$B$1^2 -> 1.6875 | EY47: =+($EU47-3*$EU47^2+2*$EU47^3)*Input!$B$1^2 -> 0 | FB47: 0.03590425532 | FC47: 0 | FD47: -0.1196808511 | FE47: 0 | FG47: 0.03590425532 | FI47: -0.1396276596 | FJ47: 0.5 | FK47: 0.6037234043 | FM47: 0.03590425532 | FO47: -0.1037234043 | FQ47: -0.1037234043 | FR47: 0.5 | FS47: 0.5 | FT47: -0.5 | FU47: -0.5 | FX47: -0.005984042553 | FY47: 0 | FZ47: 0 | GA47: 0 | GB47: -0.005984042553 | GE47: 0.01196808511 | GF47: 0 | GG47: 0 | GH47: 0 | GI47: 0.01196808511 | GL47: -0.01795212766 | GM47: 0 | GN47: 0.02992021277 | GO47: 0 | GP47: 0.01196808511 | GS47: 0.00897606383 | GT47: 0 | GU47: -0.05984042553 | GV47: 0 | GW47: -0.0508643617 | GY47: -0.140625 | GZ47: 0 | HA47: 0 | HB47: 0.0897606383 | HC47: 0 | HD47: -0.0508643617 | IR47: 0 | IS47: =+IF($EU47<=IS$3,IS$5/IS$3*$EU47,IS$5-IS$5/(1-IS$3)*($EU47-IS$3))*Input!$B$1 -> 0.09375 | IT47: =+IF($EU47<=IT$3,IT$5/IT$3*$EU47,IT$5-IT$5/(1-IT$3)*($EU47-IT$3))*Input!$B$1 -> 0.1875 | IU47: =+IF($EU47<=IU$3,IU$5/IU$3*$EU47,IU$5-IU$5/(1-IU$3)*($EU47-IU$3))*Input!$B$1 -> 0.28125 | IV47: =+IF($EU47<=IV$3,IV$5/IV$3*$EU47,IV$5-IV$5/(1-IV$3)*($EU47-IV$3))*Input!$B$1 -> 0.375 | IY47: 0 | IZ47: 0.004488031915 | JA47: 0.00897606383 | JB47: 0.01346409574 | JC47: 0.01795212766 | JD47: 0.02244015957 | JE47: 0.02692819149 | JF47: 0.0314162234 | JG47: 0.03590425532 | JH47: 0.03590425532 | JI47: 0.01645611702 | JJ47: -0.002992021277 | JK47: -0.02244015957 | JL47: -0.04188829787 | JM47: -0.06133643617 | JN47: -0.08078457447 | JO47: -0.1002327128 | JP47: -0.1196808511 | JQ47: -0.1196808511 | JR47: -0.02593085106 | JS47: 0.06781914894 | JT47: 0.1615691489 | JU47: 0.2553191489 | JY47: 0 | JZ47: 0.04488031915 | KA47: 0.0897606383 | KB47: 0.1346409574 | KC47: 0.1795212766 | KD47: 0.2244015957 | KE47: 0.2692819149 | KF47: 0.314162234 | KG47: 0.3590425532 | KH47: 0.3590425532 | KI47: 0.1645611702 | KJ47: -0.02992021277 | KK47: -0.2244015957 | KL47: -0.4188829787 | KM47: -0.6133643617 | KN47: -0.8078457447 | KO47: -1.002327128 | KP47: -1.196808511 | KQ47: -1.196808511 | KR47: -0.2593085106 | KS47: 0.6781914894 | KT47: 1.615691489 | KU47: 2.553191489 | LT47: =+IF($EU47<=IR$3,1/6*(1-IR$3)*$EU47*(1-(1-IR$3)^2-$EU47^2),1/6*IR$3*(1-$EU47)*(1-IR$3^2-(1-$EU47)^2))*Input!$B$1^3 -> 0 | LU47: =+IF($EU47<=IS$3,1/6*(1-IS$3)*$EU47*(1-(1-IS$3)^2-$EU47^2),1/6*IS$3*(1-$EU47)*(1-IS$3^2-(1-$EU47)^2))*Input!$B$1^3 -> 0.02581787109 | LV47: =+IF($EU47<=IT$3,1/6*(1-IT$3)*$EU47*(1-(1-IT$3)^2-$EU47^2),1/6*IT$3*(1-$EU47)*(1-IT$3^2-(1-$EU47)^2))*Input!$B$1^3 -> 0.04833984375 | LW47: =+IF($EU47<=IU$3,1/6*(1-IU$3)*$EU47*(1-(1-IU$3)^2-$EU47^2),1/6*IU$3*(1-$EU47)*(1-IU$3^2-(1-$EU47)^2))*Input!$B$1^3 -> 0.06427001953 | LX47: =+IF($EU47<=IV$3,1/6*(1-IV$3)*$EU47*(1-(1-IV$3)^2-$EU47^2),1/6*IV$3*(1-$EU47)*(1-IV$3^2-(1-$EU47)^2))*Input!$B$1^3 -> 0.0703125 | MF47: 0 | MG47: 0.000736317736 | MH47: 0.001402509973 | MI47: 0.001928451213 | MJ47: 0.002244015957 | MK47: 0.002279078707 | ML47: 0.001963513963 | MM47: 0.001227196227 | MN47: 0 | MO47: 0 | MP47: -0.00276119151 | MQ47: -0.006100918384 | MR47: -0.00933545701 | MS47: -0.01178108378 | MT47: -0.01275407507 | MU47: -0.01157070728 | MV47: -0.007547256794 | MW47: 0 | MX47: 0 | MY47: 0.01109151637 | MZ47: 0.02309466423 | NA47: 0.03271354513 | NB47: 0.03665226064 | ND47: 0 | NE47: 0.0736317736 | NF47: 0.1402509973 | NG47: 0.1928451213 | NH47: 0.2244015957 | NI47: 0.2279078707 | NJ47: 0.1963513963 | NK47: 0.1227196227 | NL47: 0 | NM47: 0 | NN47: -0.276119151 | NO47: -0.6100918384 | NP47: -0.933545701 | NQ47: -1.178108378 | NR47: -1.275407507 | NS47: -1.157070728 | NT47: -0.7547256794 | NU47: 0 | NV47: 0 | NW47: 1.109151637 | NX47: 2.309466423 | NY47: 3.271354513 | NZ47: 3.665226064
C48: =+C47+1 -> 33 | D48: 0 | E48: 0.001212045656 | F48: 0.002424091312 | G48: 0.003636136968 | H48: 0.004848182624 | I48: 0.00606022828 | J48: 0.007272273936 | K48: 0.008484319592 | L48: 0.009696365248 | M48: 0.009696365248 | N48: 0.004444167405 | O48: -0.0008080304374 | P48: -0.00606022828 | Q48: -0.01131242612 | R48: -0.01656462397 | S48: -0.02181682181 | T48: -0.02706901965 | U48: -0.03232121749 | V48: -0.03232121749 | W48: -0.01333250222 | X48: 0.005656213061 | Y48: 0.02464492834 | Z48: 0.04363364362 | AA48: 0.0009696365248 | AB48: -0.002801172183 | AC48: -0.002801172183 | AD48: 0.01012731481 | AE48: 0.0009696365248 | AF48: -0.003770808708 | AG48: 0.012928487 | AX48: 0.01012731481 | ES48: 21 | EU48: 0.625 | EX48: =3*(EU48-EU48^2)*Input!$B$1^2 -> 1.58203125 | EY48: =+($EU48-3*$EU48^2+2*$EU48^3)*Input!$B$1^2 -> -0.1318359375 | FB48: 0.03366023936 | FC48: -0.0048828125 | FD48: -0.1122007979 | FE48: 0.01627604167 | FG48: 0.02877742686 | FI48: -0.1119122156 | FJ48: 0.375 | FK48: 0.4364333998 | FM48: 0.02877742686 | FO48: -0.08313478871 | FQ48: -0.08313478871 | FR48: 0.375 | FS48: 0.3532986111 | FT48: -0.625 | FU48: -0.6467013889 | FX48: -0.005610039894 | FY48: 0.0008138020833 | FZ48: 0 | GA48: 0 | GB48: -0.00479623781 | GE48: 0.01122007979 | GF48: -0.001627604167 | GG48: 0 | GH48: 0 | GI48: 0.009592475621 | GL48: -0.01683011968 | GM48: 0.00244140625 | GN48: 0.02805019947 | GO48: -0.004069010417 | GP48: 0.009592475621 | GS48: 0.00841505984 | GT48: -0.001220703125 | GU48: -0.05610039894 | GV48: 0.008138020833 | GW48: -0.04076802139 | GY48: -0.1208496094 | GZ48: 0 | HA48: 0 | HB48: 0.0841505984 | HC48: -0.004069010417 | HD48: -0.04076802139 | IR48: 0 | IS48: =+IF($EU48<=IS$3,IS$5/IS$3*$EU48,IS$5-IS$5/(1-IS$3)*($EU48-IS$3))*Input!$B$1 -> 0.0703125 | IT48: =+IF($EU48<=IT$3,IT$5/IT$3*$EU48,IT$5-IT$5/(1-IT$3)*($EU48-IT$3))*Input!$B$1 -> 0.140625 | IU48: =+IF($EU48<=IU$3,IU$5/IU$3*$EU48,IU$5-IU$5/(1-IU$3)*($EU48-IU$3))*Input!$B$1 -> 0.2109375 | IV48: =+IF($EU48<=IV$3,IV$5/IV$3*$EU48,IV$5-IV$5/(1-IV$3)*($EU48-IV$3))*Input!$B$1 -> 0.28125 | IY48: 0 | IZ48: 0.003597178358 | JA48: 0.007194356715 | JB48: 0.01079153507 | JC48: 0.01438871343 | JD48: 0.01798589179 | JE48: 0.02158307015 | JF48: 0.0251802485 | JG48: 0.02877742686 | JH48: 0.02877742686 | JI48: 0.01318965398 | JJ48: -0.002398118905 | JK48: -0.01798589179 | JL48: -0.03357366467 | JM48: -0.04916143756 | JN48: -0.06474921044 | JO48: -0.08033698332 | JP48: -0.09592475621 | JQ48: -0.09592475621 | JR48: -0.02968126662 | JS48: 0.03656222296 | JT48: 0.1028057125 | JU48: 0.1690492021 | JY48: 0 | JZ48: 0.03597178358 | KA48: 0.07194356715 | KB48: 0.1079153507 | KC48: 0.1438871343 | KD48: 0.1798589179 | KE48: 0.2158307015 | KF48: 0.251802485 | KG48: 0.2877742686 | KH48: 0.2877742686 | KI48: 0.1318965398 | KJ48: -0.02398118905 | KK48: -0.1798589179 | KL48: -0.3357366467 | KM48: -0.4916143756 | KN48: -0.6474921044 | KO48: -0.8033698332 | KP48: -0.9592475621 | KQ48: -0.9592475621 | KR48: -0.2968126662 | KS48: 0.3656222296 | KT48: 1.028057125 | KU48: 1.690492021 | LT48: =+IF($EU48<=IR$3,1/6*(1-IR$3)*$EU48*(1-(1-IR$3)^2-$EU48^2),1/6*IR$3*(1-$EU48)*(1-IR$3^2-(1-$EU48)^2))*Input!$B$1^3 -> 0 | LU48: =+IF($EU48<=IS$3,1/6*(1-IS$3)*$EU48*(1-(1-IS$3)^2-$EU48^2),1/6*IS$3*(1-$EU48)*(1-IS$3^2-(1-$EU48)^2))*Input!$B$1^3 -> 0.02224731445 | LV48: =+IF($EU48<=IT$3,1/6*(1-IT$3)*$EU48*(1-(1-IT$3)^2-$EU48^2),1/6*IT$3*(1-$EU48)*(1-IT$3^2-(1-$EU48)^2))*Input!$B$1^3 -> 0.04202270508 | LW48: =+IF($EU48<=IU$3,1/6*(1-IU$3)*$EU48*(1-(1-IU$3)^2-$EU48^2),1/6*IU$3*(1-$EU48)*(1-IU$3^2-(1-$EU48)^2))*Input!$B$1^3 -> 0.05685424805 | LX48: =+IF($EU48<=IV$3,1/6*(1-IV$3)*$EU48*(1-(1-IV$3)^2-$EU48^2),1/6*IV$3*(1-$EU48)*(1-IV$3^2-(1-$EU48)^2))*Input!$B$1^3 -> 0.06427001953 | MF48: 0 | MG48: 0.0005901620743 | MH48: 0.001124118237 | MI48: 0.001545662576 | MJ48: 0.001798589179 | MK48: 0.001826692135 | ML48: 0.001573765531 | MM48: 0.0009836034572 | MN48: 0 | MO48: 0 | MP48: -0.002213107779 | MQ48: -0.00488991433 | MR48: -0.007482412014 | MS48: -0.009442593189 | MT48: -0.01022245022 | MU48: -0.009273975453 | MV48: -0.006049161262 | MW48: 0 | MX48: 0 | MY48: 0.008942035919 | MZ48: 0.01892755387 | NA48: 0.02762768116 | NB48: 0.03271354513 | ND48: 0 | NE48: 0.05901620743 | NF48: 0.1124118237 | NG48: 0.1545662576 | NH48: 0.1798589179 | NI48: 0.1826692135 | NJ48: 0.1573765531 | NK48: 0.09836034572 | NL48: 0 | NM48: 0 | NN48: -0.2213107779 | NO48: -0.488991433 | NP48: -0.7482412014 | NQ48: -0.9442593189 | NR48: -1.022245022 | NS48: -0.9273975453 | NT48: -0.6049161262 | NU48: 0 | NV48: 0 | NW48: 0.8942035919 | NX48: 1.892755387 | NY48: 2.762768116 | NZ48: 3.271354513
C49: 34 | D49: 0 | E49: 0.00193927305 | F49: 0.003878546099 | G49: 0.005817819149 | H49: 0.007757092199 | I49: 0.009696365248 | J49: 0.0116356383 | K49: 0.01357491135 | L49: 0.0155141844 | M49: 0.0155141844 | N49: 0.007110667849 | O49: -0.0012928487 | P49: -0.009696365248 | Q49: -0.0180998818 | R49: -0.02650339835 | S49: -0.03490691489 | T49: -0.04331043144 | U49: -0.05171394799 | V49: -0.05171394799 | W49: -0.02133200355 | X49: 0.009049940898 | Y49: 0.03943188534 | Z49: 0.06981382979 | AA49: 0.00155141844 | AB49: -0.004481875493 | AC49: -0.004481875493 | AD49: 0.0162037037 | AE49: 0.00155141844 | AF49: -0.006033293932 | AG49: 0.0206855792 | AX49: 0.0162037037 | ES49: 22 | EU49: 0.75 | EX49: =3*(EU49-EU49^2)*Input!$B$1^2 -> 1.265625 | EY49: =+($EU49-3*$EU49^2+2*$EU49^3)*Input!$B$1^2 -> -0.2109375 | FB49: 0.02692819149 | FC49: -0.0078125 | FD49: -0.0897606383 | FE49: 0.02604166667 | FG49: 0.01911569149 | FI49: -0.07433880024 | FJ49: 0.25 | FK49: 0.2705008865 | FM49: 0.01911569149 | FO49: -0.05522310875 | FQ49: -0.05522310875 | FR49: 0.25 | FS49: 0.2152777778 | FT49: -0.75 | FU49: -0.7847222222 | FX49: -0.004488031915 | FY49: 0.001302083333 | FZ49: 0 | GA49: 0 | GB49: -0.003185948582 | GE49: 0.00897606383 | GF49: -0.002604166667 | GG49: 0 | GH49: 0 | GI49: 0.006371897163 | GL49: -0.01346409574 | GM49: 0.00390625 | GN49: 0.02244015957 | GO49: -0.006510416667 | GP49: 0.006371897163 | GS49: 0.006732047872 | GT49: -0.001953125 | GU49: -0.04488031915 | GV49: 0.01302083333 | GW49: -0.02708056294 | GY49: -0.087890625 | GZ49: 0 | HA49: 0 | HB49: 0.06732047872 | HC49: -0.006510416667 | HD49: -0.02708056294 | IR49: 0 | IS49: =+IF($EU49<=IS$3,IS$5/IS$3*$EU49,IS$5-IS$5/(1-IS$3)*($EU49-IS$3))*Input!$B$1 -> 0.046875 | IT49: =+IF($EU49<=IT$3,IT$5/IT$3*$EU49,IT$5-IT$5/(1-IT$3)*($EU49-IT$3))*Input!$B$1 -> 0.09375 | IU49: =+IF($EU49<=IU$3,IU$5/IU$3*$EU49,IU$5-IU$5/(1-IU$3)*($EU49-IU$3))*Input!$B$1 -> 0.140625 | IV49: =+IF($EU49<=IV$3,IV$5/IV$3*$EU49,IV$5-IV$5/(1-IV$3)*($EU49-IV$3))*Input!$B$1 -> 0.1875 | IY49: 0 | IZ49: 0.002389461436 | JA49: 0.004778922872 | JB49: 0.007168384309 | JC49: 0.009557845745 | JD49: 0.01194730718 | JE49: 0.01433676862 | JF49: 0.01672623005 | JG49: 0.01911569149 | JH49: 0.01911569149 | JI49: 0.008761358599 | JJ49: -0.001592974291 | JK49: -0.01194730718 | JL49: -0.02230164007 | JM49: -0.03265597296 | JN49: -0.04301030585 | JO49: -0.05336463874 | JP49: -0.06371897163 | JQ49: -0.06371897163 | JR49: -0.0233543883 | JS49: 0.01701019504 | JT49: 0.05737477837 | JU49: 0.0977393617 | JY49: 0 | JZ49: 0.02389461436 | KA49: 0.04778922872 | KB49: 0.07168384309 | KC49: 0.09557845745 | KD49: 0.1194730718 | KE49: 0.1433676862 | KF49: 0.1672623005 | KG49: 0.1911569149 | KH49: 0.1911569149 | KI49: 0.08761358599 | KJ49: -0.01592974291 | KK49: -0.1194730718 | KL49: -0.2230164007 | KM49: -0.3265597296 | KN49: -0.4301030585 | KO49: -0.5336463874 | KP49: -0.6371897163 | KQ49: -0.6371897163 | KR49: -0.233543883 | KS49: 0.1701019504 | KT49: 0.5737477837 | KU49: 0.977393617 | LT49: =+IF($EU49<=IR$3,1/6*(1-IR$3)*$EU49*(1-(1-IR$3)^2-$EU49^2),1/6*IR$3*(1-$EU49)*(1-IR$3^2-(1-$EU49)^2))*Input!$B$1^3 -> 0 | LU49: =+IF($EU49<=IS$3,1/6*(1-IS$3)*$EU49*(1-(1-IS$3)^2-$EU49^2),1/6*IS$3*(1-$EU49)*(1-IS$3^2-(1-$EU49)^2))*Input!$B$1^3 -> 0.01620483398 | LV49: =+IF($EU49<=IT$3,1/6*(1-IT$3)*$EU49*(1-(1-IT$3)^2-$EU49^2),1/6*IT$3*(1-$EU49)*(1-IT$3^2-(1-$EU49)^2))*Input!$B$1^3 -> 0.03076171875 | LW49: =+IF($EU49<=IU$3,1/6*(1-IU$3)*$EU49*(1-(1-IU$3)^2-$EU49^2),1/6*IU$3*(1-$EU49)*(1-IU$3^2-(1-$EU49)^2))*Input!$B$1^3 -> 0.04202270508 | LX49: =+IF($EU49<=IV$3,1/6*(1-IV$3)*$EU49*(1-(1-IV$3)^2-$EU49^2),1/6*IV$3*(1-$EU49)*(1-IV$3^2-(1-$EU49)^2))*Input!$B$1^3 -> 0.04833984375 | MF49: 0 | MG49: 0.0003920210169 | MH49: 0.0007467066988 | MI49: 0.001026721711 | MJ49: 0.001194730718 | MK49: 0.001213398386 | ML49: 0.001045389378 | MM49: 0.0006533683615 | MN49: 0 | MO49: 0 | MP49: -0.001470078813 | MQ49: -0.00324817414 | MR49: -0.004970266464 | MS49: -0.00627233627 | MT49: -0.006790364042 | MU49: -0.006160330265 | MV49: -0.004018215423 | MW49: 0 | MX49: 0 | MY49: 0.00596115437 | MZ49: 0.01274336145 | NA49: 0.01892755387 | NB49: 0.02309466423 | ND49: 0 | NE49: 0.03920210169 | NF49: 0.07467066988 | NG49: 0.1026721711 | NH49: 0.1194730718 | NI49: 0.1213398386 | NJ49: 0.1045389378 | NK49: 0.06533683615 | NL49: 0 | NM49: 0 | NN49: -0.1470078813 | NO49: -0.324817414 | NP49: -0.4970266464 | NQ49: -0.627233627 | NR49: -0.6790364042 | NS49: -0.6160330265 | NT49: -0.4018215423 | NU49: 0 | NV49: 0 | NW49: 0.596115437 | NX49: 1.274336145 | NY49: 1.892755387 | NZ49: 2.309466423
C50: 35 | D50: 0 | E50: 0.002250941933 | F50: 0.004501883865 | G50: 0.006752825798 | H50: 0.00900376773 | I50: 0.01125470966 | J50: 0.0135056516 | K50: 0.01575659353 | L50: 0.01800753546 | M50: 0.01800753546 | N50: 0.008253453753 | O50: -0.001500627955 | P50: -0.01125470966 | Q50: -0.02100879137 | R50: -0.03076287308 | S50: -0.04051695479 | T50: -0.0502710365 | U50: -0.0600251182 | V50: -0.0600251182 | W50: -0.02476036126 | X50: 0.01050439569 | Y50: 0.04576915263 | Z50: 0.08103390957 | AA50: 0.001800753546 | AB50: -0.005202176911 | AC50: -0.005202176911 | AD50: 0.01880787037 | AE50: 0.001800753546 | AF50: -0.007002930457 | AG50: 0.02401004728 | AX50: 0.01880787037 | ES50: 23 | EU50: 0.875 | EX50: =3*(EU50-EU50^2)*Input!$B$1^2 -> 0.73828125 | EY50: =+($EU50-3*$EU50^2+2*$EU50^3)*Input!$B$1^2 -> -0.1845703125 | FB50: 0.0157081117 | FC50: -0.0068359375 | FD50: -0.05236037234 | FE50: 0.02278645833 | FG50: 0.008872174202 | FI50: -0.03450289967 | FJ50: 0.125 | FK50: 0.120248781 | FM50: 0.008872174202 | FO50: -0.02563072547 | FQ50: -0.02563072547 | FR50: 0.125 | FS50: 0.09461805556 | FT50: -0.875 | FU50: -0.9053819444 | FX50: -0.002618018617 | FY50: 0.001139322917 | FZ50: 0 | GA50: 0 | GB50: -0.0014786957 | GE50: 0.005236037234 | GF50: -0.002278645833 | GG50: 0 | GH50: 0 | GI50: 0.002957391401 | GL50: -0.007854055851 | GM50: 0.00341796875 | GN50: 0.01309009309 | GO50: -0.005696614583 | GP50: 0.002957391401 | GS50: 0.003927027926 | GT50: -0.001708984375 | GU50: -0.02618018617 | GV50: 0.01139322917 | GW50: -0.01256891345 | GY50: -0.04614257812 | GZ50: 0 | HA50: 0 | HB50: 0.03927027926 | HC50: -0.005696614583 | HD50: -0.01256891345 | IR50: 0 | IS50: =+IF($EU50<=IS$3,IS$5/IS$3*$EU50,IS$5-IS$5/(1-IS$3)*($EU50-IS$3))*Input!$B$1 -> 0.0234375 | IT50: =+IF($EU50<=IT$3,IT$5/IT$3*$EU50,IT$5-IT$5/(1-IT$3)*($EU50-IT$3))*Input!$B$1 -> 0.046875 | IU50: =+IF($EU50<=IU$3,IU$5/IU$3*$EU50,IU$5-IU$5/(1-IU$3)*($EU50-IU$3))*Input!$B$1 -> 0.0703125 | IV50: =+IF($EU50<=IV$3,IV$5/IV$3*$EU50,IV$5-IV$5/(1-IV$3)*($EU50-IV$3))*Input!$B$1 -> 0.09375 | IY50: 0 | IZ50: 0.001109021775 | JA50: 0.002218043551 | JB50: 0.003327065326 | JC50: 0.004436087101 | JD50: 0.005545108876 | JE50: 0.006654130652 | JF50: 0.007763152427 | JG50: 0.008872174202 | JH50: 0.008872174202 | JI50: 0.004066413176 | JJ50: -0.0007393478502 | JK50: -0.005545108876 | JL50: -0.0103508699 | JM50: -0.01515663093 | JN50: -0.01996239195 | JO50: -0.02476815298 | JP50: -0.02957391401 | JQ50: -0.02957391401 | JR50: -0.01183302859 | JS50: 0.005907856826 | JT50: 0.02364874224 | JU50: 0.04138962766 | JY50: 0 | JZ50: 0.01109021775 | KA50: 0.02218043551 | KB50: 0.03327065326 | KC50: 0.04436087101 | KD50: 0.05545108876 | KE50: 0.06654130652 | KF50: 0.07763152427 | KG50: 0.08872174202 | KH50: 0.08872174202 | KI50: 0.04066413176 | KJ50: -0.007393478502 | KK50: -0.05545108876 | KL50: -0.103508699 | KM50: -0.1515663093 | KN50: -0.1996239195 | KO50: -0.2476815298 | KP50: -0.2957391401 | KQ50: -0.2957391401 | KR50: -0.1183302859 | KS50: 0.05907856826 | KT50: 0.2364874224 | KU50: 0.4138962766 | LT50: =+IF($EU50<=IR$3,1/6*(1-IR$3)*$EU50*(1-(1-IR$3)^2-$EU50^2),1/6*IR$3*(1-$EU50)*(1-IR$3^2-(1-$EU50)^2))*Input!$B$1^3 -> 0 | LU50: =+IF($EU50<=IS$3,1/6*(1-IS$3)*$EU50*(1-(1-IS$3)^2-$EU50^2),1/6*IS$3*(1-$EU50)*(1-IS$3^2-(1-$EU50)^2))*Input!$B$1^3 -> 0.008514404297 | LV50: =+IF($EU50<=IT$3,1/6*(1-IT$3)*$EU50*(1-(1-IT$3)^2-$EU50^2),1/6*IT$3*(1-$EU50)*(1-IT$3^2-(1-$EU50)^2))*Input!$B$1^3 -> 0.01620483398 | LW50: =+IF($EU50<=IU$3,1/6*(1-IU$3)*$EU50*(1-(1-IU$3)^2-$EU50^2),1/6*IU$3*(1-$EU50)*(1-IU$3^2-(1-$EU50)^2))*Input!$B$1^3 -> 0.02224731445 | LX50: =+IF($EU50<=IV$3,1/6*(1-IV$3)*$EU50*(1-(1-IV$3)^2-$EU50^2),1/6*IV$3*(1-$EU50)*(1-IV$3^2-(1-$EU50)^2))*Input!$B$1^3 -> 0.02581787109 | MF50: 0 | MG50: 0.000181948885 | MH50: 0.0003465693048 | MI50: 0.0004765327941 | MJ50: 0.0005545108876 | MK50: 0.0005631751203 | ML50: 0.0004851970267 | MM50: 0.0003032481417 | MN50: 0 | MO50: 0 | MP50: -0.0006823083188 | MQ50: -0.001507576476 | MR50: -0.002306851935 | MS50: -0.00291118216 | MT50: -0.003151614615 | MU50: -0.002859196764 | MV50: -0.001864976071 | MW50: 0 | MX50: 0 | MY50: 0.002772574729 | MZ50: 0.00596115437 | NA50: 0.008942035919 | NB50: 0.01109151637 | ND50: 0 | NE50: 0.0181948885 | NF50: 0.03465693048 | NG50: 0.04765327941 | NH50: 0.05545108876 | NI50: 0.05631751203 | NJ50: 0.04851970267 | NK50: 0.03032481417 | NL50: 0 | NM50: 0 | NN50: -0.06823083188 | NO50: -0.1507576476 | NP50: -0.2306851935 | NQ50: -0.291118216 | NR50: -0.3151614615 | NS50: -0.2859196764 | NT50: -0.1864976071 | NU50: 0 | NV50: 0 | NW50: 0.2772574729 | NX50: 0.596115437 | NY50: 0.8942035919 | NZ50: 1.109151637
C51: 36 | D51: 0 | E51: 0.002216312057 | F51: 0.004432624113 | G51: 0.00664893617 | H51: 0.008865248227 | I51: 0.01108156028 | J51: 0.01329787234 | K51: 0.0155141844 | L51: 0.01773049645 | M51: 0.01773049645 | N51: 0.008126477541 | O51: -0.001477541371 | P51: -0.01108156028 | Q51: -0.0206855792 | R51: -0.03028959811 | S51: -0.03989361702 | T51: -0.04949763593 | U51: -0.05910165485 | V51: -0.05910165485 | W51: -0.02437943262 | X51: 0.0103427896 | Y51: 0.04506501182 | Z51: 0.07978723404 | AA51: 0.001773049645 | AB51: -0.00512214342 | AC51: -0.00512214342 | AD51: 0.01851851852 | AE51: 0.001773049645 | AF51: -0.006895193065 | AG51: 0.02364066194 | AX51: 0.01851851852 | ES51: 24 | EU51: 1 | EX51: =3*(EU51-EU51^2)*Input!$B$1^2 -> 0 | EY51: =+($EU51-3*$EU51^2+2*$EU51^3)*Input!$B$1^2 -> 0 | FB51: 0 | FC51: 0 | FD51: 0 | FE51: 0 | FG51: 0 | FI51: 0 | FJ51: 0 | FK51: 0 | FM51: 0 | FO51: 0 | FQ51: 0 | FR51: 0 | FS51: 0 | FT51: -1 | FU51: -1 | FX51: 0 | FY51: 0 | FZ51: 0 | GA51: 0 | GB51: 0 | GE51: 0 | GF51: 0 | GG51: 0 | GH51: 0 | GI51: 0 | GL51: 0 | GM51: 0 | GN51: 0 | GO51: 0 | GP51: 0 | GS51: 0 | GT51: 0 | GU51: 0 | GV51: 0 | GW51: 0 | GY51: 0 | GZ51: 0 | HA51: 0 | HB51: 0 | HC51: 0 | HD51: 0 | IR51: 0 | IS51: =+IF($EU51<=IS$3,IS$5/IS$3*$EU51,IS$5-IS$5/(1-IS$3)*($EU51-IS$3))*Input!$B$1 -> 0 | IT51: =+IF($EU51<=IT$3,IT$5/IT$3*$EU51,IT$5-IT$5/(1-IT$3)*($EU51-IT$3))*Input!$B$1 -> 0 | IU51: =+IF($EU51<=IU$3,IU$5/IU$3*$EU51,IU$5-IU$5/(1-IU$3)*($EU51-IU$3))*Input!$B$1 -> 0 | IV51: =+IF($EU51<=IV$3,IV$5/IV$3*$EU51,IV$5-IV$5/(1-IV$3)*($EU51-IV$3))*Input!$B$1 -> 0 | IY51: 0 | IZ51: 0 | JA51: 0 | JB51: 0 | JC51: 0 | JD51: 0 | JE51: 0 | JF51: 0 | JG51: 0 | JH51: 0 | JI51: 0 | JJ51: 0 | JK51: 0 | JL51: 0 | JM51: 0 | JN51: 0 | JO51: 0 | JP51: 0 | JQ51: 0 | JR51: 0 | JS51: 0 | JT51: 0 | JU51: 0 | JY51: 0 | JZ51: 0 | KA51: 0 | KB51: 0 | KC51: 0 | KD51: 0 | KE51: 0 | KF51: 0 | KG51: 0 | KH51: 0 | KI51: 0 | KJ51: 0 | KK51: 0 | KL51: 0 | KM51: 0 | KN51: 0 | KO51: 0 | KP51: 0 | KQ51: 0 | KR51: 0 | KS51: 0 | KT51: 0 | KU51: 0 | LT51: =+IF($EU51<=IR$3,1/6*(1-IR$3)*$EU51*(1-(1-IR$3)^2-$EU51^2),1/6*IR$3*(1-$EU51)*(1-IR$3^2-(1-$EU51)^2))*Input!$B$1^3 -> 0 | LU51: =+IF($EU51<=IS$3,1/6*(1-IS$3)*$EU51*(1-(1-IS$3)^2-$EU51^2),1/6*IS$3*(1-$EU51)*(1-IS$3^2-(1-$EU51)^2))*Input!$B$1^3 -> 0 | LV51: =+IF($EU51<=IT$3,1/6*(1-IT$3)*$EU51*(1-(1-IT$3)^2-$EU51^2),1/6*IT$3*(1-$EU51)*(1-IT$3^2-(1-$EU51)^2))*Input!$B$1^3 -> 0 | LW51: =+IF($EU51<=IU$3,1/6*(1-IU$3)*$EU51*(1-(1-IU$3)^2-$EU51^2),1/6*IU$3*(1-$EU51)*(1-IU$3^2-(1-$EU51)^2))*Input!$B$1^3 -> 0 | LX51: =+IF($EU51<=IV$3,1/6*(1-IV$3)*$EU51*(1-(1-IV$3)^2-$EU51^2),1/6*IV$3*(1-$EU51)*(1-IV$3^2-(1-$EU51)^2))*Input!$B$1^3 -> 0 | MF51: 0 | MG51: 0 | MH51: 0 | MI51: 0 | MJ51: 0 | MK51: 0 | ML51: 0 | MM51: 0 | MN51: 0 | MO51: 0 | MP51: 0 | MQ51: 0 | MR51: 0 | MS51: 0 | MT51: 0 | MU51: 0 | MV51: 0 | MW51: 0 | MX51: 0 | MY51: 0 | MZ51: 0 | NA51: 0 | NB51: 0 | ND51: 0 | NE51: 0 | NF51: 0 | NG51: 0 | NH51: 0 | NI51: 0 | NJ51: 0 | NK51: 0 | NL51: 0 | NM51: 0 | NN51: 0 | NO51: 0 | NP51: 0 | NQ51: 0 | NR51: 0 | NS51: 0 | NT51: 0 | NU51: 0 | NV51: 0 | NW51: 0 | NX51: 0 | NY51: 0 | NZ51: 0
C52: 37 | D52: 0 | E52: 0.001904643174 | F52: 0.003809286348 | G52: 0.005713929521 | H52: 0.007618572695 | I52: 0.009523215869 | J52: 0.01142785904 | K52: 0.01333250222 | L52: 0.01523714539 | M52: 0.01523714539 | N52: 0.006983691637 | O52: -0.001269762116 | P52: -0.009523215869 | Q52: -0.01777666962 | R52: -0.02603012337 | S52: -0.03428357713 | T52: -0.04253703088 | U52: -0.05079048463 | V52: -0.05079048463 | W52: -0.02095107491 | X52: 0.008888334811 | Y52: 0.03872774453 | Z52: 0.06856715426 | AA52: 0.001523714539 | AB52: -0.004401842002 | AC52: -0.004401842002 | AD52: 0.01591435185 | AE52: 0.001523714539 | AF52: -0.005925556541 | AG52: 0.02031619385 | AX52: 0.01591435185 | ES52: =+ES51 -> 24 | ET52: 4 | EU52: 0 | EV52: =($EU52-$EU52^3)*Input!$B$1^2 -> 0 | EW52: =-EV52 -> 0 | EX52: =+EV34 -> 0 | EY52: =-EW34 -> 0 | FB52: 0 | FC52: 0 | FD52: 0 | FE52: 0 | FG52: 0 | FI52: 0 | FK52: 0 | FM52: 0 | FO52: 0 | FQ52: 0 | FS52: 0 | FU52: 0 | FX52: 0 | FY52: 0 | FZ52: 0 | GA52: 0 | GB52: 0 | GE52: 0 | GF52: 0 | GG52: 0 | GH52: 0 | GI52: 0 | GL52: 0 | GM52: 0 | GN52: 0 | GO52: 0 | GP52: 0 | GS52: 0 | GT52: 0 | GU52: 0 | GV52: 0 | GW52: 0 | GZ52: 0 | HA52: 0 | HB52: 0 | HC52: 0 | HD52: 0 | IY52: 0 | IZ52: 0 | JA52: 0 | JB52: 0 | JC52: 0 | JD52: 0 | JE52: 0 | JF52: 0 | JG52: 0 | JH52: 0 | JI52: 0 | JJ52: 0 | JK52: 0 | JL52: 0 | JM52: 0 | JN52: 0 | JO52: 0 | JP52: 0 | JQ52: 0 | JR52: 0 | JS52: 0 | JT52: 0 | JU52: 0 | JY52: 0 | JZ52: 0 | KA52: 0 | KB52: 0 | KC52: 0 | KD52: 0 | KE52: 0 | KF52: 0 | KG52: 0 | KH52: 0 | KI52: 0 | KJ52: 0 | KK52: 0 | KL52: 0 | KM52: 0 | KN52: 0 | KO52: 0 | KP52: 0 | KQ52: 0 | KR52: 0 | KS52: 0 | KT52: 0 | KU52: 0 | MF52: 0 | MG52: 0 | MH52: 0 | MI52: 0 | MJ52: 0 | MK52: 0 | ML52: 0 | MM52: 0 | MN52: 0 | MO52: 0 | MP52: 0 | MQ52: 0 | MR52: 0 | MS52: 0 | MT52: 0 | MU52: 0 | MV52: 0 | MW52: 0 | MX52: 0 | MY52: 0 | MZ52: 0 | NA52: 0 | NB52: 0 | ND52: 0 | NE52: 0 | NF52: 0 | NG52: 0 | NH52: 0 | NI52: 0 | NJ52: 0 | NK52: 0 | NL52: 0 | NM52: 0 | NN52: 0 | NO52: 0 | NP52: 0 | NQ52: 0 | NR52: 0 | NS52: 0 | NT52: 0 | NU52: 0 | NV52: 0 | NW52: 0 | NX52: 0 | NY52: 0 | NZ52: 0
C53: 38 | D53: 0 | E53: 0.001385195035 | F53: 0.002770390071 | G53: 0.004155585106 | H53: 0.005540780142 | I53: 0.006925975177 | J53: 0.008311170213 | K53: 0.009696365248 | L53: 0.01108156028 | M53: 0.01108156028 | N53: 0.005079048463 | O53: -0.000923463357 | P53: -0.006925975177 | Q53: -0.012928487 | R53: -0.01893099882 | S53: -0.02493351064 | T53: -0.03093602246 | U53: -0.03693853428 | V53: -0.03693853428 | W53: -0.01523714539 | X53: 0.006464243499 | Y53: 0.02816563239 | Z53: 0.04986702128 | AA53: 0.001108156028 | AB53: -0.003201339638 | AC53: -0.003201339638 | AD53: 0.01157407407 | AE53: 0.001108156028 | AF53: -0.004309495666 | AG53: 0.01477541371 | AX53: 0.01157407407 | ES53: =+ES52+1 -> 25 | EU53: =+EU52+1/8 -> 0.125 | EV53: =($EU53-$EU53^3)*Input!$B$1^2 -> 0.2768554688 | EW53: =-EV53 -> -0.2768554688 | EX53: =+EV35 -> 0.4614257812 | EY53: =-EW35 -> -0.4614257812 | FB53: -0.01963513963 | FC53: 0.013671875 | FD53: -0.02683469082 | FE53: 0.04671223958 | FG53: -0.005963264628 | FI53: 0.02319047355 | FK53: -0.07951019504 | FM53: -0.005963264628 | FO53: 0.01722720892 | FQ53: 0.01722720892 | FS53: -0.06228298611 | FU53: -0.06228298611 | FX53: 0.003272523271 | FY53: -0.002278645833 | FZ53: 0 | GA53: 0 | GB53: 0.0009938774379 | GE53: -0.006545046543 | GF53: 0.004557291667 | GG53: 0 | GH53: 0 | GI53: -0.001987754876 | GL53: 0.009817569814 | GM53: -0.0068359375 | GN53: 0.006708672706 | GO53: -0.0116780599 | GP53: -0.001987754876 | GS53: -0.004908784907 | GT53: 0.00341796875 | GU53: -0.01341734541 | GV53: 0.02335611979 | GW53: 0.008447958223 | GZ53: 0 | HA53: 0 | HB53: 0.02012601812 | HC53: -0.0116780599 | HD53: 0.008447958223 | IY53: 0 | IZ53: -0.0007454080785 | JA53: -0.001490816157 | JB53: -0.002236224235 | JC53: -0.002981632314 | JD53: -0.003727040392 | JE53: -0.004472448471 | JF53: -0.005217856549 | JG53: -0.005963264628 | JH53: -0.005963264628 | JI53: -0.002733162954 | JJ53: 0.000496938719 | JK53: 0.003727040392 | JL53: 0.006957142066 | JM53: 0.01018724374 | JN53: 0.01341734541 | JO53: 0.01664744709 | JP53: 0.01987754876 | JQ53: 0.01987754876 | JR53: 0.008199488863 | JS53: -0.003478571033 | JT53: -0.01515663093 | JU53: -0.02683469082 | JY53: =+IY53*10 -> 0 | JZ53: =+IZ53*10 -> -0.007454080785 | KA53: =+JA53*10 -> -0.01490816157 | KB53: =+JB53*10 -> -0.02236224235 | KC53: =+JC53*10 -> -0.02981632314 | KD53: =+JD53*10 -> -0.03727040392 | KE53: =+JE53*10 -> -0.04472448471 | KF53: =+JF53*10 -> -0.05217856549 | KG53: =+JG53*10 -> -0.05963264628 | KH53: =+JH53*10 -> -0.05963264628 | KI53: =+JI53*10 -> -0.02733162954 | KJ53: =+JJ53*10 -> 0.00496938719 | KK53: =+JK53*10 -> 0.03727040392 | KL53: =+JL53*10 -> 0.06957142066 | KM53: =+JM53*10 -> 0.1018724374 | KN53: =+JN53*10 -> 0.1341734541 | KO53: =+JO53*10 -> 0.1664744709 | KP53: =+JP53*10 -> 0.1987754876 | KQ53: 0.1987754876 | KR53: 0.08199488863 | KS53: -0.03478571033 | KT53: -0.1515663093 | KU53: -0.2683469082 | MF53: 0 | MG53: -0.0001222935129 | MH53: -0.0002329400245 | MI53: -0.0003202925337 | MJ53: -0.0003727040392 | MK53: -0.0003785275398 | ML53: -0.0003261160343 | MM53: -0.0002038225215 | MN53: 0 | MO53: 0 | MP53: 0.0004586006733 | MQ53: 0.001013289107 | MR53: 0.001550507038 | MS53: 0.001956696206 | MT53: 0.002118298348 | MU53: 0.001921755202 | MV53: 0.001253508507 | MW53: 0 | MX53: 0 | MY53: -0.001864976071 | MZ53: -0.004018215423 | NA53: -0.006049161262 | NB53: -0.007547256794 | ND53: =+MF53*100 -> 0 | NE53: =+MG53*100 -> -0.01222935129 | NF53: =+MH53*100 -> -0.02329400245 | NG53: =+MI53*100 -> -0.03202925337 | NH53: =+MJ53*100 -> -0.03727040392 | NI53: =+MK53*100 -> -0.03785275398 | NJ53: =+ML53*100 -> -0.03261160343 | NK53: =+MM53*100 -> -0.02038225215 | NL53: =+MN53*100 -> 0 | NM53: =+MO53*100 -> 0 | NN53: =+MP53*100 -> 0.04586006733 | NO53: =+MQ53*100 -> 0.1013289107 | NP53: =+MR53*100 -> 0.1550507038 | NQ53: =+MS53*100 -> 0.1956696206 | NR53: =+MT53*100 -> 0.2118298348 | NS53: =+MU53*100 -> 0.1921755202 | NT53: =+MV53*100 -> 0.1253508507 | NU53: =+MW53*100 -> 0 | NV53: 0 | NW53: -0.1864976071 | NX53: -0.4018215423 | NY53: -0.6049161262 | NZ53: -0.7547256794
C54: 39 | D54: 0 | E54: 0.0007272273936 | F54: 0.001454454787 | G54: 0.002181682181 | H54: 0.002908909574 | I54: 0.003636136968 | J54: 0.004363364362 | K54: 0.005090591755 | L54: 0.005817819149 | M54: 0.005817819149 | N54: 0.002666500443 | O54: -0.0004848182624 | P54: -0.003636136968 | Q54: -0.006787455674 | R54: -0.009938774379 | S54: -0.01309009309 | T54: -0.01624141179 | U54: -0.0193927305 | V54: -0.0193927305 | W54: -0.00799950133 | X54: 0.003393727837 | Y54: 0.014786957 | Z54: 0.02618018617 | AA54: 0.0005817819149 | AB54: -0.00168070331 | AC54: -0.00168070331 | AD54: 0.006076388889 | AE54: 0.0005817819149 | AF54: -0.002262485225 | AG54: 0.007757092199 | AX54: 0.006076388889 | ES54: =+ES53+1 -> 26 | EU54: =+EU53+1/8 -> 0.25 | EV54: =($EU54-$EU54^3)*Input!$B$1^2 -> 0.52734375 | EW54: -0.52734375 | EX54: 0.73828125 | EY54: -0.73828125 | FB54: -0.04039228723 | FC54: 0.03125 | FD54: -0.04114029255 | FE54: 0.07161458333 | FG54: -0.009142287234 | FI54: 0.03555333924 | FK54: -0.1218971631 | FM54: -0.009142287234 | FO54: 0.02641105201 | FQ54: 0.02641105201 | FS54: -0.09548611111 | FU54: -0.09548611111 | FX54: 0.006732047872 | FY54: -0.005208333333 | FZ54: 0 | GA54: 0 | GB54: 0.001523714539 | GE54: -0.01346409574 | GF54: 0.01041666667 | GG54: 0 | GH54: 0 | GI54: -0.003047429078 | GL54: 0.02019614362 | GM54: -0.015625 | GN54: 0.01028507314 | GO54: -0.01790364583 | GP54: -0.003047429078 | GS54: -0.01009807181 | GT54: 0.0078125 | GU54: -0.02057014628 | GV54: 0.03580729167 | GW54: 0.01295157358 | GZ54: 0 | HA54: 0 | HB54: 0.03085521941 | HC54: -0.01790364583 | HD54: 0.01295157358 | IY54: 0 | IZ54: -0.001142785904 | JA54: -0.002285571809 | JB54: -0.003428357713 | JC54: -0.004571143617 | JD54: -0.005713929521 | JE54: -0.006856715426 | JF54: -0.00799950133 | JG54: -0.009142287234 | JH54: -0.009142287234 | JI54: -0.004190214982 | JJ54: 0.0007618572695 | JK54: 0.005713929521 | JL54: 0.01066600177 | JM54: 0.01561807402 | JN54: 0.02057014628 | JO54: 0.02552221853 | JP54: 0.03047429078 | JQ54: 0.03047429078 | JR54: 0.01257064495 | JS54: -0.005333000887 | JT54: -0.02323664672 | JU54: -0.04114029255 | JY54: 0 | JZ54: -0.01142785904 | KA54: -0.02285571809 | KB54: -0.03428357713 | KC54: -0.04571143617 | KD54: -0.05713929521 | KE54: -0.06856715426 | KF54: -0.0799950133 | KG54: -0.09142287234 | KH54: -0.09142287234 | KI54: -0.04190214982 | KJ54: 0.007618572695 | KK54: 0.05713929521 | KL54: 0.1066600177 | KM54: 0.1561807402 | KN54: 0.2057014628 | KO54: 0.2552221853 | KP54: 0.3047429078 | KQ54: 0.3047429078 | KR54: 0.1257064495 | KS54: -0.05333000887 | KT54: -0.2323664672 | KU54: -0.4114029255 | MF54: 0 | MG54: -0.0001874883124 | MH54: -0.0003571205951 | MI54: -0.0004910408182 | MJ54: -0.0005713929521 | MK54: -0.000580320967 | ML54: -0.0004999688331 | MM54: -0.0003124805207 | MN54: 0 | MO54: 0 | MP54: 0.0007030811716 | MQ54: 0.001553474589 | MR54: 0.002377083961 | MS54: 0.002999812999 | MT54: 0.003247565412 | MU54: 0.002946244909 | MV54: 0.001921755202 | MW54: 0 | MX54: 0 | MY54: -0.002859196764 | MZ54: -0.006160330265 | NA54: -0.009273975453 | NB54: -0.01157070728 | ND54: 0 | NE54: -0.01874883124 | NF54: -0.03571205951 | NG54: -0.04910408182 | NH54: -0.05713929521 | NI54: -0.0580320967 | NJ54: -0.04999688331 | NK54: -0.03124805207 | NL54: 0 | NM54: 0 | NN54: 0.07030811716 | NO54: 0.1553474589 | NP54: 0.2377083961 | NQ54: 0.2999812999 | NR54: 0.3247565412 | NS54: 0.2946244909 | NT54: 0.1921755202 | NU54: 0 | NV54: 0 | NW54: -0.2859196764 | NX54: -0.6160330265 | NY54: -0.9273975453 | NZ54: -1.157070728
C55: 40 | D55: 0 | E55: 0 | F55: 0 | G55: 0 | H55: 0 | I55: 0 | J55: 0 | K55: 0 | L55: 0 | M55: 0 | N55: 0 | O55: 0 | P55: 0 | Q55: 0 | R55: 0 | S55: 0 | T55: 0 | U55: 0 | V55: 0 | W55: 0 | X55: 0 | Y55: 0 | Z55: 0 | AA55: 0 | AB55: 0 | AC55: 0 | AD55: 0 | AE55: 0 | AF55: 0 | AG55: 0 | AX55: 0 | ES55: 27 | EU55: 0.375 | EV55: =($EU55-$EU55^3)*Input!$B$1^2 -> 0.7250976562 | EW55: -0.7250976562 | EX55: 0.8569335938 | EY55: -0.8569335938 | FB55: -0.05890541888 | FC55: 0.048828125 | FD55: -0.04534782247 | FE55: 0.07893880208 | FG55: -0.01007729388 | FI55: 0.03918947621 | FK55: -0.1343639184 | FM55: -0.01007729388 | FO55: 0.02911218233 | FQ55: 0.02911218233 | FS55: -0.1052517361 | FU55: -0.1052517361 | FX55: 0.009817569814 | FY55: -0.008138020833 | FZ55: 0 | GA55: 0 | GB55: 0.00167954898 | GE55: -0.01963513963 | GF55: 0.01627604167 | GG55: 0 | GH55: 0 | GI55: -0.003359097961 | GL55: 0.02945270944 | GM55: -0.0244140625 | GN55: 0.01133695562 | GO55: -0.01973470052 | GP55: -0.003359097961 | GS55: -0.01472635472 | GT55: 0.01220703125 | GU55: -0.02267391124 | GV55: 0.03946940104 | GW55: 0.01427616633 | GZ55: 0 | HA55: 0 | HB55: 0.03401086686 | HC55: -0.01973470052 | HD55: 0.01427616633 | IY55: 0 | IZ55: -0.001259661735 | JA55: -0.002519323471 | JB55: -0.003778985206 | JC55: -0.005038646941 | JD55: -0.006298308677 | JE55: -0.007557970412 | JF55: -0.008817632148 | JG55: -0.01007729388 | JH55: -0.01007729388 | JI55: -0.004618759696 | JJ55: 0.0008397744902 | JK55: 0.006298308677 | JL55: 0.01175684286 | JM55: 0.01721537705 | JN55: 0.02267391124 | JO55: 0.02813244542 | JP55: 0.03359097961 | JQ55: 0.03359097961 | JR55: 0.01385627909 | JS55: -0.005878421432 | JT55: -0.02561312195 | JU55: -0.04534782247 | JY55: 0 | JZ55: -0.01259661735 | KA55: -0.02519323471 | KB55: -0.03778985206 | KC55: -0.05038646941 | KD55: -0.06298308677 | KE55: -0.07557970412 | KF55: -0.08817632148 | KG55: -0.1007729388 | KH55: -0.1007729388 | KI55: -0.04618759696 | KJ55: 0.008397744902 | KK55: 0.06298308677 | KL55: 0.1175684286 | KM55: 0.1721537705 | KN55: 0.2267391124 | KO55: 0.2813244542 | KP55: 0.3359097961 | KQ55: 0.3359097961 | KR55: 0.1385627909 | KS55: -0.05878421432 | KT55: -0.2561312195 | KU55: -0.4534782247 | MF55: 0 | MG55: -0.0002066632535 | MH55: -0.0003936442923 | MI55: -0.0005412609019 | MJ55: -0.0006298308677 | MK55: -0.000639671975 | ML55: -0.0005511020092 | MM55: -0.0003444387558 | MN55: 0 | MO55: 0 | MP55: 0.0007749872005 | MQ55: 0.001712352672 | MR55: 0.002620194821 | MS55: 0.003306612055 | MT55: 0.003579702783 | MU55: 0.003247565412 | MV55: 0.002118298348 | MW55: 0 | MX55: 0 | MY55: -0.003151614615 | MZ55: -0.006790364042 | NA55: -0.01022245022 | NB55: -0.01275407507 | ND55: 0 | NE55: -0.02066632535 | NF55: -0.03936442923 | NG55: -0.05412609019 | NH55: -0.06298308677 | NI55: -0.0639671975 | NJ55: -0.05511020092 | NK55: -0.03444387558 | NL55: 0 | NM55: 0 | NN55: 0.07749872005 | NO55: 0.1712352672 | NP55: 0.2620194821 | NQ55: 0.3306612055 | NR55: 0.3579702783 | NS55: 0.3247565412 | NT55: 0.2118298348 | NU55: 0 | NV55: 0 | NW55: -0.3151614615 | NX55: -0.6790364042 | NY55: -1.022245022 | NZ55: -1.275407507
D56: ×L1/10 | AA56: ×1 | ES56: 28 | EU56: 0.5 | EV56: =($EU56-$EU56^3)*Input!$B$1^2 -> 0.84375 | EW56: -0.84375 | EX56: 0.84375 | EY56: -0.84375 | FB56: -0.07180851064 | FC56: 0.0625 | FD56: -0.04188829787 | FE56: 0.07291666667 | FG56: -0.009308510638 | FI56: 0.03619976359 | FK56: -0.1241134752 | FM56: -0.009308510638 | FO56: 0.02689125296 | FQ56: 0.02689125296 | FS56: -0.09722222222 | FU56: -0.09722222222 | FX56: 0.01196808511 | FY56: -0.01041666667 | FZ56: 0 | GA56: 0 | GB56: 0.00155141844 | GE56: -0.02393617021 | GF56: 0.02083333333 | GG56: 0 | GH56: 0 | GI56: -0.003102836879 | GL56: 0.03590425532 | GM56: -0.03125 | GN56: 0.01047207447 | GO56: -0.01822916667 | GP56: -0.003102836879 | GS56: -0.01795212766 | GT56: 0.015625 | GU56: -0.02094414894 | GV56: 0.03645833333 | GW56: 0.01318705674 | GZ56: 0 | HA56: 0 | HB56: 0.0314162234 | HC56: -0.01822916667 | HD56: 0.01318705674 | IY56: 0 | IZ56: -0.00116356383 | JA56: -0.00232712766 | JB56: -0.003490691489 | JC56: -0.004654255319 | JD56: -0.005817819149 | JE56: -0.006981382979 | JF56: -0.008144946809 | JG56: -0.009308510638 | JH56: -0.009308510638 | JI56: -0.004266400709 | JJ56: 0.0007757092199 | JK56: 0.005817819149 | JL56: 0.01085992908 | JM56: 0.01590203901 | JN56: 0.02094414894 | JO56: 0.02598625887 | JP56: 0.03102836879 | JQ56: 0.03102836879 | JR56: 0.01279920213 | JS56: -0.005429964539 | JT56: -0.02365913121 | JU56: -0.04188829787 | JY56: 0 | JZ56: -0.0116356383 | KA56: -0.0232712766 | KB56: -0.03490691489 | KC56: -0.04654255319 | KD56: -0.05817819149 | KE56: -0.06981382979 | KF56: -0.08144946809 | KG56: -0.09308510638 | KH56: -0.09308510638 | KI56: -0.04266400709 | KJ56: 0.007757092199 | KK56: 0.05817819149 | KL56: 0.1085992908 | KM56: 0.1590203901 | KN56: 0.2094414894 | KO56: 0.2598625887 | KP56: 0.3102836879 | KQ56: 0.3102836879 | KR56: 0.1279920213 | KS56: -0.05429964539 | KT56: -0.2365913121 | KU56: -0.4188829787 | MF56: 0 | MG56: -0.0001908971908 | MH56: -0.0003636136968 | MI56: -0.0004999688331 | MJ56: -0.0005817819149 | MK56: -0.0005908722573 | ML56: -0.0005090591755 | MM56: -0.0003181619847 | MN56: 0 | MO56: 0 | MP56: 0.0007158644656 | MQ56: 0.001581719581 | MR56: 0.002420303669 | MS56: 0.003054355053 | MT56: 0.003306612055 | MU56: 0.002999812999 | MV56: 0.001956696206 | MW56: 0 | MX56: 0 | MY56: -0.00291118216 | MZ56: -0.00627233627 | NA56: -0.009442593189 | NB56: -0.01178108378 | ND56: 0 | NE56: -0.01908971908 | NF56: -0.03636136968 | NG56: -0.04999688331 | NH56: -0.05817819149 | NI56: -0.05908722573 | NJ56: -0.05090591755 | NK56: -0.03181619847 | NL56: 0 | NM56: 0 | NN56: 0.07158644656 | NO56: 0.1581719581 | NP56: 0.2420303669 | NQ56: 0.3054355053 | NR56: 0.3306612055 | NS56: 0.2999812999 | NT56: 0.1956696206 | NU56: 0 | NV56: 0 | NW56: -0.291118216 | NX56: -0.627233627 | NY56: -0.9442593189 | NZ56: -1.178108378
C57: Span 1 | D57: =+JY79 -> 0 | E57: 0.4789080969 | F57: 0.8015661939 | G57: 0.9679742908 | H57: 0.9781323877 | I57: 0.8320404846 | J57: 0.5296985816 | K57: 0.07110667849 | L57: -0.5437352246 | M57: -0.5437352246 | N57: =+KI79 -> -0.4575453113 | O57: -0.371355398 | P57: -0.2851654846 | Q57: -0.1989755713 | R57: -0.112785658 | S57: -0.02659574468 | T57: 0.05959416864 | U57: 0.145784082 | V57: 0.145784082 | W57: 0.1226359338 | X57: =+KS79 -> 0.09948778566 | Y57: 0.07633963751 | Z57: 0.05319148936 | AA57: =+FM79 -> -0.5543735225 | AB57: =+FO79 -> 0.04596795377 | AC57: =+FQ79 -> 0.04596795377 | AD57: =+FS79 -> -0.01234567901 | AE57: =+FG79 -> 0.4456264775 | AF57: =+FI79 -> 0.6003414762 | AG57: =+FK79 -> -0.05831363278 | AX57: =+FU79 -> -0.01234567901 | AZ57: 0 | BA57: =+AE57 -> 0.4456264775 | BP57: =+AA57 -> -0.5543735225 | BQ57: 0.04596795377 | CF57: =+AC57 -> 0.04596795377 | CG57: -0.01234567901 | CV57: =-AD61 -> -0.01234567901 | CW57: =-AC61 -> 0.00341476228 | DL57: =-AB61 -> 0.00341476228 | DM57: =-AA61 -> -0.001182033097 | EB57: =-AE61 -> -0.001182033097 | EC57: 0 | ES57: 29 | EU57: 0.625 | EV57: =($EU57-$EU57^3)*Input!$B$1^2 -> 0.8569335938 | EW57: -0.8569335938 | EX57: 0.7250976562 | EY57: -0.7250976562 | FB57: -0.07573553856 | FC57: 0.068359375 | FD57: -0.03319273604 | FE57: 0.05777994792 | FG57: -0.007376163564 | FI57: 0.02868508053 | FK57: -0.09834884752 | FM57: -0.007376163564 | FO57: 0.02130891696 | FQ57: 0.02130891696 | FS57: -0.07703993056 | FU57: -0.07703993056 | FX57: 0.01262258976 | FY57: -0.01139322917 | FZ57: 0 | GA57: 0 | GB57: 0.001229360594 | GE57: -0.02524517952 | GF57: 0.02278645833 | GG57: 0 | GH57: 0 | GI57: -0.002458721188 | GL57: 0.03786776928 | GM57: -0.0341796875 | GN57: 0.008298184009 | GO57: -0.01444498698 | GP57: -0.002458721188 | GS57: -0.01893388464 | GT57: 0.01708984375 | GU57: -0.01659636802 | GV57: 0.02888997396 | GW57: 0.01044956505 | GZ57: 0 | HA57: 0 | HB57: 0.02489455203 | HC57: -0.01444498698 | HD57: 0.01044956505 | IY57: 0 | IZ57: -0.0009220204455 | JA57: -0.001844040891 | JB57: -0.002766061336 | JC57: -0.003688081782 | JD57: -0.004610102227 | JE57: -0.005532122673 | JF57: -0.006454143118 | JG57: -0.007376163564 | JH57: -0.007376163564 | JI57: -0.003380741633 | JJ57: 0.000614680297 | JK57: 0.004610102227 | JL57: 0.008605524158 | JM57: 0.01260094609 | JN57: 0.01659636802 | JO57: 0.02059178995 | JP57: 0.02458721188 | JQ57: 0.02458721188 | JR57: 0.0101422249 | JS57: -0.004302762079 | JT57: -0.01874774906 | JU57: -0.03319273604 | JY57: 0 | JZ57: -0.009220204455 | KA57: -0.01844040891 | KB57: -0.02766061336 | KC57: -0.03688081782 | KD57: -0.04610102227 | KE57: -0.05532122673 | KF57: -0.06454143118 | KG57: -0.07376163564 | KH57: -0.07376163564 | KI57: -0.03380741633 | KJ57: 0.00614680297 | KK57: 0.04610102227 | KL57: 0.08605524158 | KM57: 0.1260094609 | KN57: 0.1659636802 | KO57: 0.2059178995 | KP57: 0.2458721188 | KQ57: 0.2458721188 | KR57: 0.101422249 | KS57: -0.04302762079 | KT57: -0.1874774906 | KU57: -0.3319273604 | MF57: 0 | MG57: -0.0001512689793 | MH57: -0.0002881313892 | MI57: -0.0003961806602 | MJ57: -0.0004610102227 | MK57: -0.0004682135075 | ML57: -0.0004033839449 | MM57: -0.0002521149656 | MN57: 0 | MO57: 0 | MP57: 0.0005672586725 | MQ57: 0.001253371543 | MR57: 0.001917874559 | MS57: 0.002420303669 | MT57: 0.002620194821 | MU57: 0.002377083961 | MV57: 0.001550507038 | MW57: 0 | MX57: 0 | MY57: -0.002306851935 | MZ57: -0.004970266464 | NA57: -0.007482412014 | NB57: -0.00933545701 | ND57: 0 | NE57: -0.01512689793 | NF57: -0.02881313892 | NG57: -0.03961806602 | NH57: -0.04610102227 | NI57: -0.04682135075 | NJ57: -0.04033839449 | NK57: -0.02521149656 | NL57: 0 | NM57: 0 | NN57: 0.05672586725 | NO57: 0.1253371543 | NP57: 0.1917874559 | NQ57: 0.2420303669 | NR57: 0.2620194821 | NS57: 0.2377083961 | NT57: 0.1550507038 | NU57: 0 | NV57: 0 | NW57: -0.2306851935 | NX57: -0.4970266464 | NY57: -0.7482412014 | NZ57: -0.933545701
C58: Span 2 | D58: 0 | E58: -0.1678856383 | F58: -0.3357712766 | G58: -0.5036569149 | H58: -0.6715425532 | I58: -0.8394281915 | J58: -1.00731383 | K58: -1.175199468 | L58: -1.343085106 | M58: -1.343085106 | N58: -0.08823692376 | O58: 0.8150487589 | P58: 1.366771941 | Q58: 1.566932624 | R58: 1.415530807 | S58: 0.9125664894 | T58: 0.05803967199 | U58: -1.148049645 | V58: -1.148049645 | W58: -0.9657579787 | X58: -0.7834663121 | Y58: -0.6011746454 | Z58: -0.4188829787 | AA58: =+FM80 -> -0.1343085106 | AB58: =+FO80 -> 0.7630023641 | AC58: =+FQ80 -> -0.7369976359 | AD58: =+FS80 -> 0.09722222222 | AE58: =+FG80 -> -0.1343085106 | AF58: =+FI80 -> 0.8973108747 | AG58: =+FK80 -> 0.8342198582 | AX58: =+FU80 -> 0.09722222222 | AZ58: 0 | BA58: -0.1343085106 | BP58: -0.1343085106 | BQ58: 0.7630023641 | CF58: -0.7369976359 | CG58: 0.09722222222 | CV58: =-AD60 -> 0.09722222222 | CW58: =-AC60 -> -0.02689125296 | DL58: =-AB60 -> -0.02689125296 | DM58: =-AA60 -> 0.009308510638 | EB58: =-AE60 -> 0.009308510638 | EC58: 0 | ES58: 30 | EU58: 0.75 | EV58: =($EU58-$EU58^3)*Input!$B$1^2 -> 0.73828125 | EW58: -0.73828125 | EX58: 0.52734375 | EY58: -0.52734375 | FB58: -0.06732047872 | FC58: 0.0625 | FD58: -0.02169215426 | FE58: 0.03776041667 | FG58: -0.004820478723 | FI58: 0.01874630615 | FK58: -0.06427304965 | FM58: -0.004820478723 | FO58: 0.01392582742 | FQ58: 0.01392582742 | FS58: -0.05034722222 | FU58: -0.05034722222 | FX58: 0.01122007979 | FY58: -0.01041666667 | FZ58: 0 | GA58: 0 | GB58: 0.0008034131206 | GE58: -0.02244015957 | GF58: 0.02083333333 | GG58: 0 | GH58: 0 | GI58: -0.001606826241 | GL58: 0.03366023936 | GM58: -0.03125 | GN58: 0.005423038564 | GO58: -0.009440104167 | GP58: -0.001606826241 | GS58: -0.01683011968 | GT58: 0.015625 | GU58: -0.01084607713 | GV58: 0.01888020833 | GW58: 0.006829011525 | GZ58: 0 | HA58: 0 | HB58: 0.01626911569 | HC58: -0.009440104167 | HD58: 0.006829011525 | IY58: 0 | IZ58: -0.0006025598404 | JA58: -0.001205119681 | JB58: -0.001807679521 | JC58: -0.002410239362 | JD58: -0.003012799202 | JE58: -0.003615359043 | JF58: -0.004217918883 | JG58: -0.004820478723 | JH58: -0.004820478723 | JI58: -0.002209386082 | JJ58: 0.0004017065603 | JK58: 0.003012799202 | JL58: 0.005623891844 | JM58: 0.008234984486 | JN58: 0.01084607713 | JO58: 0.01345716977 | JP58: 0.01606826241 | JQ58: 0.01606826241 | JR58: 0.006628158245 | JS58: -0.002811945922 | JT58: -0.01225205009 | JU58: -0.02169215426 | JY58: 0 | JZ58: -0.006025598404 | KA58: -0.01205119681 | KB58: -0.01807679521 | KC58: -0.02410239362 | KD58: -0.03012799202 | KE58: -0.03615359043 | KF58: -0.04217918883 | KG58: -0.04820478723 | KH58: -0.04820478723 | KI58: -0.02209386082 | KJ58: 0.004017065603 | KK58: 0.03012799202 | KL58: 0.05623891844 | KM58: 0.08234984486 | KN58: 0.1084607713 | KO58: 0.1345716977 | KP58: 0.1606826241 | KQ58: 0.1606826241 | KR58: 0.06628158245 | KS58: -0.02811945922 | KT58: -0.1225205009 | KU58: -0.2169215426 | MF58: 0 | MG58: -9.885747382e-05 | MH58: -0.0001882999501 | MI58: -0.0002589124314 | MJ58: -0.0003012799202 | MK58: -0.000305987419 | ML58: -0.0002636199302 | MM58: -0.0001647624564 | MN58: 0 | MO58: 0 | MP58: 0.0003707155268 | MQ58: 0.0008191047831 | MR58: 0.001253371543 | MS58: 0.001581719581 | MT58: 0.001712352672 | MU58: 0.001553474589 | MV58: 0.001013289107 | MW58: 0 | MX58: 0 | MY58: -0.001507576476 | MZ58: -0.00324817414 | NA58: -0.00488991433 | NB58: -0.006100918384 | ND58: 0 | NE58: -0.009885747382 | NF58: -0.01882999501 | NG58: -0.02589124314 | NH58: -0.03012799202 | NI58: -0.0305987419 | NJ58: -0.02636199302 | NK58: -0.01647624564 | NL58: 0 | NM58: 0 | NN58: 0.03707155268 | NO58: 0.08191047831 | NP58: 0.1253371543 | NQ58: 0.1581719581 | NR58: 0.1712352672 | NS58: 0.1553474589 | NT58: 0.1013289107 | NU58: 0 | NV58: 0 | NW58: -0.1507576476 | NX58: -0.324817414 | NY58: -0.488991433 | NZ58: -0.6100918384
C59: Span 3 | D59: 0 | E59: 0.04488031915 | F59: 0.0897606383 | G59: 0.1346409574 | H59: 0.1795212766 | I59: 0.2244015957 | J59: 0.2692819149 | K59: 0.314162234 | L59: 0.3590425532 | M59: 0.3590425532 | N59: 0.1645611702 | O59: -0.02992021277 | P59: -0.2244015957 | Q59: -0.4188829787 | R59: -0.6133643617 | S59: -0.8078457447 | T59: -1.002327128 | U59: -1.196808511 | V59: -1.196808511 | W59: 0.03366023936 | X59: 0.9125664894 | Y59: 1.439910239 | Z59: 1.615691489 | AA59: =+FM81 -> 0.03590425532 | AB59: =+FO81 -> -0.1037234043 | AC59: =+FQ81 -> -0.1037234043 | AD59: =+FS81 -> 0.75 | AE59: =+FG81 -> 0.03590425532 | AF59: =+FI81 -> -0.1396276596 | AG59: =+FK81 -> 0.8537234043 | AX59: =+FU81 -> -0.75 | AZ59: 0 | BA59: 0.03590425532 | BP59: 0.03590425532 | BQ59: -0.1037234043 | CF59: -0.1037234043 | CG59: 0.75 | CV59: =-AD59 -> -0.75 | CW59: =-AC59 -> 0.1037234043 | DL59: =-AB59 -> 0.1037234043 | DM59: =-AA59 -> -0.03590425532 | EB59: =-AE59 -> -0.03590425532 | EC59: 0 | ES59: 31 | EU59: 0.875 | EV59: =($EU59-$EU59^3)*Input!$B$1^2 -> 0.4614257812 | EW59: -0.4614257812 | EX59: 0.2768554688 | EY59: -0.2768554688 | FB59: -0.04319730718 | FC59: 0.041015625 | FD59: -0.009817569814 | FE59: 0.01708984375 | FG59: -0.002181682181 | FI59: 0.008484319592 | FK59: -0.02908909574 | FM59: -0.002181682181 | FO59: 0.006302637411 | FQ59: 0.006302637411 | FS59: -0.02278645833 | FU59: -0.02278645833 | FX59: 0.007199551197 | FY59: -0.0068359375 | FZ59: 0 | GA59: 0 | GB59: 0.0003636136968 | GE59: -0.01439910239 | GF59: 0.013671875 | GG59: 0 | GH59: 0 | GI59: -0.0007272273936 | GL59: 0.02159865359 | GM59: -0.0205078125 | GN59: 0.002454392453 | GO59: -0.004272460938 | GP59: -0.0007272273936 | GS59: -0.0107993268 | GT59: 0.01025390625 | GU59: -0.004908784907 | GV59: 0.008544921875 | GW59: 0.003090716423 | GZ59: 0 | HA59: 0 | HB59: 0.00736317736 | HC59: -0.004272460938 | HD59: 0.003090716423 | IY59: 0 | IZ59: -0.0002727102726 | JA59: -0.0005454205452 | JB59: -0.0008181308178 | JC59: -0.00109084109 | JD59: -0.001363551363 | JE59: -0.001636261636 | JF59: -0.001908971908 | JG59: -0.002181682181 | JH59: -0.002181682181 | JI59: -0.0009999376662 | JJ59: 0.0001818068484 | JK59: 0.001363551363 | JL59: 0.002545295878 | JM59: 0.003727040392 | JN59: 0.004908784907 | JO59: 0.006090529422 | JP59: 0.007272273936 | JQ59: 0.007272273936 | JR59: 0.002999812999 | JS59: -0.001272647939 | JT59: -0.005545108876 | JU59: -0.009817569814 | JY59: 0 | JZ59: -0.002727102726 | KA59: -0.005454205452 | KB59: -0.008181308178 | KC59: -0.0109084109 | KD59: -0.01363551363 | KE59: -0.01636261636 | KF59: -0.01908971908 | KG59: -0.02181682181 | KH59: -0.02181682181 | KI59: -0.009999376662 | KJ59: 0.001818068484 | KK59: 0.01363551363 | KL59: 0.02545295878 | KM59: 0.03727040392 | KN59: 0.04908784907 | KO59: 0.06090529422 | KP59: 0.07272273936 | KQ59: 0.07272273936 | KR59: 0.02999812999 | KS59: -0.01272647939 | KT59: -0.05545108876 | KU59: -0.09817569814 | MF59: 0 | MG59: -4.47415291e-05 | MH59: -8.522196019e-05 | MI59: -0.0001171801953 | MJ59: -0.0001363551363 | MK59: -0.0001384856853 | ML59: -0.0001193107443 | MM59: -7.456921517e-05 | MN59: 0 | MO59: 0 | MP59: 0.0001677807341 | MQ59: 0.0003707155268 | MR59: 0.0005672586725 | MS59: 0.0007158644656 | MT59: 0.0007749872005 | MU59: 0.0007030811716 | MV59: 0.0004586006733 | MW59: 0 | MX59: 0 | MY59: -0.0006823083188 | MZ59: -0.001470078813 | NA59: -0.002213107779 | NB59: -0.00276119151 | ND59: 0 | NE59: -0.00447415291 | NF59: -0.008522196019 | NG59: -0.01171801953 | NH59: -0.01363551363 | NI59: -0.01384856853 | NJ59: -0.01193107443 | NK59: -0.007456921517 | NL59: 0 | NM59: 0 | NN59: 0.01677807341 | NO59: 0.03707155268 | NP59: 0.05672586725 | NQ59: 0.07158644656 | NR59: 0.07749872005 | NS59: 0.07030811716 | NT59: 0.04586006733 | NU59: 0 | NV59: 0 | NW59: -0.06823083188 | NX59: -0.1470078813 | NY59: -0.2213107779 | NZ59: -0.276119151
C60: Span 4 | D60: 0 | E60: -0.0116356383 | F60: -0.0232712766 | G60: -0.03490691489 | H60: -0.04654255319 | I60: -0.05817819149 | J60: -0.06981382979 | K60: -0.08144946809 | L60: -0.09308510638 | M60: -0.09308510638 | N60: -0.04266400709 | O60: 0.007757092199 | P60: 0.05817819149 | Q60: 0.1085992908 | R60: 0.1590203901 | S60: 0.2094414894 | T60: 0.2598625887 | U60: 0.3102836879 | V60: 0.3102836879 | W60: 0.1279920213 | X60: -0.05429964539 | Y60: -0.2365913121 | Z60: -0.4188829787 | AA60: =+FM82 -> -0.009308510638 | AB60: =+FO82 -> 0.02689125296 | AC60: =+FQ82 -> 0.02689125296 | AD60: =+FS82 -> -0.09722222222 | AE60: =+FG82 -> -0.009308510638 | AF60: =+FI82 -> 0.03619976359 | AG60: =+FK82 -> -0.1241134752 | AX60: =+FU82 -> -0.09722222222 | AZ60: 0 | BA60: -0.009308510638 | BP60: -0.009308510638 | BQ60: 0.02689125296 | CF60: 0.02689125296 | CG60: -0.09722222222 | CV60: =-AD58 -> -0.09722222222 | CW60: =-AC58 -> 0.7369976359 | DL60: =-AB58 -> -0.7630023641 | DM60: =-AA58 -> 0.1343085106 | EB60: =-AE58 -> 0.1343085106 | EC60: 0 | ES60: 32 | EU60: 1 | EV60: =($EU60-$EU60^3)*Input!$B$1^2 -> 0 | EW60: 0 | EX60: 0 | EY60: 0 | FB60: 0 | FC60: 0 | FD60: 0 | FE60: 0 | FG60: 0 | FI60: 0 | FK60: 0 | FM60: 0 | FO60: 0 | FQ60: 0 | FS60: 0 | FU60: 0 | FX60: 0 | FY60: 0 | FZ60: 0 | GA60: 0 | GB60: 0 | GE60: 0 | GF60: 0 | GG60: 0 | GH60: 0 | GI60: 0 | GL60: 0 | GM60: 0 | GN60: 0 | GO60: 0 | GP60: 0 | GS60: 0 | GT60: 0 | GU60: 0 | GV60: 0 | GW60: 0 | GZ60: 0 | HA60: 0 | HB60: 0 | HC60: 0 | HD60: 0 | IY60: 0 | IZ60: 0 | JA60: 0 | JB60: 0 | JC60: 0 | JD60: 0 | JE60: 0 | JF60: 0 | JG60: 0 | JH60: 0 | JI60: 0 | JJ60: 0 | JK60: 0 | JL60: 0 | JM60: 0 | JN60: 0 | JO60: 0 | JP60: 0 | JQ60: 0 | JR60: 0 | JS60: 0 | JT60: 0 | JU60: 0 | JY60: 0 | JZ60: 0 | KA60: 0 | KB60: 0 | KC60: 0 | KD60: 0 | KE60: 0 | KF60: 0 | KG60: 0 | KH60: 0 | KI60: 0 | KJ60: 0 | KK60: 0 | KL60: 0 | KM60: 0 | KN60: 0 | KO60: 0 | KP60: 0 | KQ60: 0 | KR60: 0 | KS60: 0 | KT60: 0 | KU60: 0 | MF60: 0 | MG60: 0 | MH60: 0 | MI60: 0 | MJ60: 0 | MK60: 0 | ML60: 0 | MM60: 0 | MN60: 0 | MO60: 0 | MP60: 0 | MQ60: 0 | MR60: 0 | MS60: 0 | MT60: 0 | MU60: 0 | MV60: 0 | MW60: 0 | MX60: 0 | MY60: 0 | MZ60: 0 | NA60: 0 | NB60: 0 | ND60: 0 | NE60: 0 | NF60: 0 | NG60: 0 | NH60: 0 | NI60: 0 | NJ60: 0 | NK60: 0 | NL60: 0 | NM60: 0 | NN60: 0 | NO60: 0 | NP60: 0 | NQ60: 0 | NR60: 0 | NS60: 0 | NT60: 0 | NU60: 0 | NV60: 0 | NW60: 0 | NX60: 0 | NY60: 0 | NZ60: 0
C61: Span 5 | D61: 0 | E61: 0.001477541371 | F61: 0.002955082742 | G61: 0.004432624113 | H61: 0.005910165485 | I61: 0.007387706856 | J61: 0.008865248227 | K61: 0.0103427896 | L61: 0.01182033097 | M61: 0.01182033097 | N61: 0.005417651694 | O61: -0.0009850275808 | P61: -0.007387706856 | Q61: -0.01379038613 | R61: -0.02019306541 | S61: -0.02659574468 | T61: -0.03299842396 | U61: -0.03940110323 | V61: -0.03940110323 | W61: -0.01625295508 | X61: 0.006895193065 | Y61: 0.03004334121 | Z61: 0.05319148936 | AA61: =+FM83 -> 0.001182033097 | AB61: =+FO83 -> -0.00341476228 | AC61: =+FQ83 -> -0.00341476228 | AD61: =+FS83 -> 0.01234567901 | AE61: =+FG83 -> 0.001182033097 | AF61: =+FI83 -> -0.004596795377 | AG61: =+FK83 -> 0.01576044129 | AX61: =+FU83 -> 0.01234567901 | AZ61: 0 | BA61: 0.001182033097 | BP61: 0.001182033097 | BQ61: -0.00341476228 | CF61: -0.00341476228 | CG61: 0.01234567901 | CV61: =-AD57 -> 0.01234567901 | CW61: =-AC57 -> -0.04596795377 | DL61: =-AB57 -> -0.04596795377 | DM61: =-AA57 -> 0.5543735225 | EB61: =-AE57 -> -0.4456264775 | EC61: 0 | ES61: =+ES60 -> 32 | ET61: 5 | EU61: 0 | EV61: =+(2*$EU61-3*$EU61^2+$EU61^3) -> 0 | EW61: 0 | FB61: 0 | FC61: 0 | FD61: 0 | FE61: 0 | FG61: 0 | FI61: 0 | FK61: 0 | FM61: 0 | FO61: 0 | FQ61: 0 | FS61: 0 | FU61: 0 | FX61: 0 | FY61: 0 | FZ61: 0 | GA61: 0 | GB61: 0 | GE61: 0 | GF61: 0 | GG61: 0 | GH61: 0 | GI61: 0 | GL61: 0 | GM61: 0 | GN61: 0 | GO61: 0 | GP61: 0 | GS61: 0 | GT61: 0 | GU61: 0 | GV61: 0 | GW61: 0 | GZ61: 0 | HA61: 0 | HB61: 0 | HC61: 0 | HD61: 0 | IY61: 0 | IZ61: 0 | JA61: 0 | JB61: 0 | JC61: 0 | JD61: 0 | JE61: 0 | JF61: 0 | JG61: 0 | JH61: 0 | JI61: 0 | JJ61: 0 | JK61: 0 | JL61: 0 | JM61: 0 | JN61: 0 | JO61: 0 | JP61: 0 | JQ61: 0 | JR61: 0 | JS61: 0 | JT61: 0 | JU61: 0 | JY61: =+IY61*10 -> 0 | JZ61: =+IZ61*10 -> 0 | KA61: =+JA61*10 -> 0 | KB61: =+JB61*10 -> 0 | KC61: =+JC61*10 -> 0 | KD61: =+JD61*10 -> 0 | KE61: =+JE61*10 -> 0 | KF61: =+JF61*10 -> 0 | KG61: =+JG61*10 -> 0 | KH61: =+JH61*10 -> 0 | KI61: =+JI61*10 -> 0 | KJ61: =+JJ61*10 -> 0 | KK61: =+JK61*10 -> 0 | KL61: =+JL61*10 -> 0 | KM61: =+JM61*10 -> 0 | KN61: =+JN61*10 -> 0 | KO61: =+JO61*10 -> 0 | KP61: =+JP61*10 -> 0 | KQ61: =+JQ61*10 -> 0 | KR61: =+JR61*10 -> 0 | KS61: =+JS61*10 -> 0 | KT61: =+JT61*10 -> 0 | KU61: =+JU61*10 -> 0 | MF61: =+LB61+HZ$11*$FB61+HZ$12*$FC61+HZ$13*$FD61+HZ$14*$FE61 -> 0 | MG61: =+LC61+IA$11*$FB61+IA$12*$FC61+IA$13*$FD61+IA$14*$FE61 -> 0 | MH61: =+LD61+IB$11*$FB61+IB$12*$FC61+IB$13*$FD61+IB$14*$FE61 -> 0 | MI61: =+LE61+IC$11*$FB61+IC$12*$FC61+IC$13*$FD61+IC$14*$FE61 -> 0 | MJ61: =+LF61+ID$11*$FB61+ID$12*$FC61+ID$13*$FD61+ID$14*$FE61 -> 0 | MK61: =+LG61+IE$11*$FB61+IE$12*$FC61+IE$13*$FD61+IE$14*$FE61 -> 0 | ML61: =+LH61+IF$11*$FB61+IF$12*$FC61+IF$13*$FD61+IF$14*$FE61 -> 0 | MM61: =+LI61+IG$11*$FB61+IG$12*$FC61+IG$13*$FD61+IG$14*$FE61 -> 0 | MN61: =+LJ61+IH$11*$FB61+IH$12*$FC61+IH$13*$FD61+IH$14*$FE61 -> 0 | MO61: =+LK61+II$11*$FB61+II$12*$FC61+II$13*$FD61+II$14*$FE61 -> 0 | MP61: =+LL61+IJ$11*$FB61+IJ$12*$FC61+IJ$13*$FD61+IJ$14*$FE61 -> 0 | MQ61: =+LM61+IK$11*$FB61+IK$12*$FC61+IK$13*$FD61+IK$14*$FE61 -> 0 | MR61: =+LN61+IL$11*$FB61+IL$12*$FC61+IL$13*$FD61+IL$14*$FE61 -> 0 | MS61: =+LO61+IM$11*$FB61+IM$12*$FC61+IM$13*$FD61+IM$14*$FE61 -> 0 | MT61: =+LP61+IN$11*$FB61+IN$12*$FC61+IN$13*$FD61+IN$14*$FE61 -> 0 | MU61: =+LQ61+IO$11*$FB61+IO$12*$FC61+IO$13*$FD61+IO$14*$FE61 -> 0 | MV61: =+LR61+IP$11*$FB61+IP$12*$FC61+IP$13*$FD61+IP$14*$FE61 -> 0 | MW61: =+LS61+IQ$11*$FB61+IQ$12*$FC61+IQ$13*$FD61+IQ$14*$FE61 -> 0 | MX61: =+LT61+IR$11*$FB61+IR$12*$FC61+IR$13*$FD61+IR$14*$FE61 -> 0 | MY61: =+LU61+IS$11*$FB61+IS$12*$FC61+IS$13*$FD61+IS$14*$FE61 -> 0 | MZ61: =+LV61+IT$11*$FB61+IT$12*$FC61+IT$13*$FD61+IT$14*$FE61 -> 0 | NA61: =+LW61+IU$11*$FB61+IU$12*$FC61+IU$13*$FD61+IU$14*$FE61 -> 0 | NB61: =+LX61+IV$11*$FB61+IV$12*$FC61+IV$13*$FD61+IV$14*$FE61 -> 0 | ND61: =+MF61*100 -> 0 | NE61: =+MG61*100 -> 0 | NF61: =+MH61*100 -> 0 | NG61: =+MI61*100 -> 0 | NH61: =+MJ61*100 -> 0 | NI61: =+MK61*100 -> 0 | NJ61: =+ML61*100 -> 0 | NK61: =+MM61*100 -> 0 | NL61: =+MN61*100 -> 0 | NM61: =+MO61*100 -> 0 | NN61: =+MP61*100 -> 0 | NO61: =+MQ61*100 -> 0 | NP61: =+MR61*100 -> 0 | NQ61: =+MS61*100 -> 0 | NR61: =+MT61*100 -> 0 | NS61: =+MU61*100 -> 0 | NT61: =+MV61*100 -> 0 | NU61: =+MW61*100 -> 0 | NV61: =+MX61*100 -> 0 | NW61: =+MY61*100 -> 0 | NX61: =+MZ61*100 -> 0 | NY61: =+NA61*100 -> 0 | NZ61: =+NB61*100 -> 0
C62: Sum | D62: =+JY85 -> 0 | E62: 0.3457446809 | F62: 0.5352393617 | G62: 0.5684840426 | H62: 0.4454787234 | I62: 0.1662234043 | J62: -0.2692819149 | K62: -0.861037234 | L62: -1.609042553 | M62: -1.609042553 | N62: -0.4184674202 | O62: 0.4205452128 | P62: 0.9079953457 | Q62: 1.043882979 | R62: 0.8282081117 | S62: 0.2609707447 | T62: -0.6578291223 | U62: -1.928191489 | V62: -1.928191489 | W62: -0.6977227394 | X62: 0.1811835106 | Y62: 0.7085272606 | Z62: 0.8843085106 | AA62: =+FM85 -> -0.6609042553 | AB62: =+FO85 -> 0.7287234043 | AC62: =+FQ85 -> -0.7712765957 | AD62: =+FS85 -> 0.75 | AE62: =+FG85 -> 0.3390957447 | AF62: =+FI85 -> 1.38962766 | AG62: =+FK85 -> 1.521276596 | AX62: =+FU85 -> -0.75 | AZ62: 0 | BA62: 0.3390957447 | BP62: -0.6609042553 | BQ62: 0.7287234043 | CF62: -0.7712765957 | CG62: 0.75 | CV62: =-AD62 -> -0.75 | CW62: =-AC62 -> 0.7712765957 | DL62: =-AB62 -> -0.7287234043 | DM62: =-AA62 -> 0.6609042553 | EB62: =-AE62 -> -0.3390957447 | EC62: 0 | ES62: =+ES61+1 -> 33 | EU62: =+EU61+1/8 -> 0.125 | EV62: =+(2*$EU62-3*$EU62^2+$EU62^3) -> 0.205078125 | EW62: -0.205078125 | FB62: -0.02181682181 | FC62: 0.02278645833 | FD62: 0.004363364362 | FE62: -0.007595486111 | FG62: 0.0009696365248 | FI62: -0.003770808708 | FK62: 0.012928487 | FM62: 0.0009696365248 | FO62: -0.002801172183 | FQ62: -0.002801172183 | FS62: 0.01012731481 | FU62: 0.01012731481 | FX62: 0.003636136968 | FY62: -0.003797743056 | FZ62: 0 | GA62: 0 | GB62: -0.0001616060875 | GE62: -0.007272273936 | GF62: 0.007595486111 | GG62: 0 | GH62: 0 | GI62: 0.0003232121749 | GL62: 0.0109084109 | GM62: -0.01139322917 | GN62: -0.00109084109 | GO62: 0.001898871528 | GP62: 0.0003232121749 | GS62: -0.005454205452 | GT62: 0.005696614583 | GU62: 0.002181682181 | GV62: -0.003797743056 | GW62: -0.001373651743 | GZ62: 0 | HA62: 0 | HB62: -0.003272523271 | HC62: 0.001898871528 | HD62: -0.001373651743 | IY62: 0 | IZ62: 0.0001212045656 | JA62: 0.0002424091312 | JB62: 0.0003636136968 | JC62: 0.0004848182624 | JD62: 0.000606022828 | JE62: 0.0007272273936 | JF62: 0.0008484319592 | JG62: 0.0009696365248 | JH62: 0.0009696365248 | JI62: 0.0004444167405 | JJ62: -8.080304374e-05 | JK62: -0.000606022828 | JL62: -0.001131242612 | JM62: -0.001656462397 | JN62: -0.002181682181 | JO62: -0.002706901965 | JP62: -0.003232121749 | JQ62: -0.003232121749 | JR62: -0.001333250222 | JS62: 0.0005656213061 | JT62: 0.002464492834 | JU62: 0.004363364362 | JY62: 0 | JZ62: 0.001212045656 | KA62: 0.002424091312 | KB62: 0.003636136968 | KC62: 0.004848182624 | KD62: 0.00606022828 | KE62: 0.007272273936 | KF62: 0.008484319592 | KG62: 0.009696365248 | KH62: 0.009696365248 | KI62: 0.004444167405 | KJ62: -0.0008080304374 | KK62: -0.00606022828 | KL62: -0.01131242612 | KM62: -0.01656462397 | KN62: -0.02181682181 | KO62: -0.02706901965 | KP62: -0.03232121749 | KQ62: -0.03232121749 | KR62: -0.01333250222 | KS62: 0.005656213061 | KT62: 0.02464492834 | KU62: 0.04363364362 | MF62: 0 | MG62: 1.988512404e-05 | MH62: 3.787642675e-05 | MI62: 5.208008678e-05 | MJ62: 6.06022828e-05 | MK62: 6.154919347e-05 | ML62: 5.302699745e-05 | MM62: 3.314187341e-05 | MN62: 0 | MO62: 0 | MP62: -7.456921517e-05 | MQ62: -0.0001647624564 | MR62: -0.0002521149656 | MS62: -0.0003181619847 | MT62: -0.0003444387558 | MU62: -0.0003124805207 | MV62: -0.0002038225215 | MW62: 0 | MX62: 0 | MY62: 0.0003032481417 | MZ62: 0.0006533683615 | NA62: 0.0009836034572 | NB62: 0.001227196227 | ND62: 0 | NE62: 0.001988512404 | NF62: 0.003787642675 | NG62: 0.005208008678 | NH62: 0.00606022828 | NI62: 0.006154919347 | NJ62: 0.005302699745 | NK62: 0.003314187341 | NL62: 0 | NM62: 0 | NN62: -0.007456921517 | NO62: -0.01647624564 | NP62: -0.02521149656 | NQ62: -0.03181619847 | NR62: -0.03444387558 | NS62: -0.03124805207 | NT62: -0.02038225215 | NU62: 0 | NV62: 0 | NW62: 0.03032481417 | NX62: 0.06533683615 | NY62: 0.09836034572 | NZ62: 0.1227196227
D63: ×L12/10 | AA63: ×L1 | ES63: =+ES62+1 -> 34 | EU63: =+EU62+1/8 -> 0.25 | EV63: 0.328125 | EW63: -0.328125 | FB63: -0.03490691489 | FC63: 0.03645833333 | FD63: 0.006981382979 | FE63: -0.01215277778 | FG63: 0.00155141844 | FI63: -0.006033293932 | FK63: 0.0206855792 | FM63: 0.00155141844 | FO63: -0.004481875493 | FQ63: -0.004481875493 | FS63: 0.0162037037 | FU63: 0.0162037037 | FX63: 0.005817819149 | FY63: -0.006076388889 | FZ63: 0 | GA63: 0 | GB63: -0.00025856974 | GE63: -0.0116356383 | GF63: 0.01215277778 | GG63: 0 | GH63: 0 | GI63: 0.0005171394799 | GL63: 0.01745345745 | GM63: -0.01822916667 | GN63: -0.001745345745 | GO63: 0.003038194444 | GP63: 0.0005171394799 | GS63: -0.008726728723 | GT63: 0.009114583333 | GU63: 0.003490691489 | GV63: -0.006076388889 | GW63: -0.00219784279 | GZ63: 0 | HA63: 0 | HB63: -0.005236037234 | HC63: 0.003038194444 | HD63: -0.00219784279 | IY63: 0 | IZ63: 0.000193927305 | JA63: 0.0003878546099 | JB63: 0.0005817819149 | JC63: 0.0007757092199 | JD63: 0.0009696365248 | JE63: 0.00116356383 | JF63: 0.001357491135 | JG63: 0.00155141844 | JH63: 0.00155141844 | JI63: 0.0007110667849 | JJ63: -0.00012928487 | JK63: -0.0009696365248 | JL63: -0.00180998818 | JM63: -0.002650339835 | JN63: -0.003490691489 | JO63: -0.004331043144 | JP63: -0.005171394799 | JQ63: -0.005171394799 | JR63: -0.002133200355 | JS63: 0.0009049940898 | JT63: 0.003943188534 | JU63: 0.006981382979 | JY63: 0 | JZ63: 0.00193927305 | KA63: 0.003878546099 | KB63: 0.005817819149 | KC63: 0.007757092199 | KD63: 0.009696365248 | KE63: 0.0116356383 | KF63: 0.01357491135 | KG63: 0.0155141844 | KH63: 0.0155141844 | KI63: 0.007110667849 | KJ63: -0.0012928487 | KK63: -0.009696365248 | KL63: -0.0180998818 | KM63: -0.02650339835 | KN63: -0.03490691489 | KO63: -0.04331043144 | KP63: -0.05171394799 | KQ63: -0.05171394799 | KR63: -0.02133200355 | KS63: 0.009049940898 | KT63: 0.03943188534 | KU63: 0.06981382979 | MF63: 0 | MG63: 3.181619847e-05 | MH63: 6.06022828e-05 | MI63: 8.332813885e-05 | MJ63: 9.696365248e-05 | MK63: 9.847870955e-05 | ML63: 8.484319592e-05 | MM63: 5.302699745e-05 | MN63: 0 | MO63: 0 | MP63: -0.0001193107443 | MQ63: -0.0002636199302 | MR63: -0.0004033839449 | MS63: -0.0005090591755 | MT63: -0.0005511020092 | MU63: -0.0004999688331 | MV63: -0.0003261160343 | MW63: 0 | MX63: 0 | MY63: 0.0004851970267 | MZ63: 0.001045389378 | NA63: 0.001573765531 | NB63: 0.001963513963 | ND63: 0 | NE63: 0.003181619847 | NF63: 0.00606022828 | NG63: 0.008332813885 | NH63: 0.009696365248 | NI63: 0.009847870955 | NJ63: 0.008484319592 | NK63: 0.005302699745 | NL63: 0 | NM63: 0 | NN63: -0.01193107443 | NO63: -0.02636199302 | NP63: -0.04033839449 | NQ63: -0.05090591755 | NR63: -0.05511020092 | NS63: -0.04999688331 | NT63: -0.03261160343 | NU63: 0 | NV63: 0 | NW63: 0.04851970267 | NX63: 0.1045389378 | NY63: 0.1573765531 | NZ63: 0.1963513963
ES64: 35 | EU64: 0.375 | EV64: 0.380859375 | EW64: -0.380859375 | FB64: -0.04051695479 | FC64: 0.04231770833 | FD64: 0.008103390957 | FE64: -0.01410590278 | FG64: 0.001800753546 | FI64: -0.007002930457 | FK64: 0.02401004728 | FM64: 0.001800753546 | FO64: -0.005202176911 | FQ64: -0.005202176911 | FS64: 0.01880787037 | FU64: 0.01880787037 | FX64: 0.006752825798 | FY64: -0.007052951389 | FZ64: 0 | GA64: 0 | GB64: -0.000300125591 | GE64: -0.0135056516 | GF64: 0.01410590278 | GG64: 0 | GH64: 0 | GI64: 0.000600251182 | GL64: 0.02025847739 | GM64: -0.02115885417 | GN64: -0.002025847739 | GO64: 0.003526475694 | GP64: 0.000600251182 | GS64: -0.0101292387 | GT64: 0.01057942708 | GU64: 0.004051695479 | GV64: -0.007052951389 | GW64: -0.002551067524 | GZ64: 0 | HA64: 0 | HB64: -0.006077543218 | HC64: 0.003526475694 | HD64: -0.002551067524 | IY64: 0 | IZ64: 0.0002250941933 | JA64: 0.0004501883865 | JB64: 0.0006752825798 | JC64: 0.000900376773 | JD64: 0.001125470966 | JE64: 0.00135056516 | JF64: 0.001575659353 | JG64: 0.001800753546 | JH64: 0.001800753546 | JI64: 0.0008253453753 | JJ64: -0.0001500627955 | JK64: -0.001125470966 | JL64: -0.002100879137 | JM64: -0.003076287308 | JN64: -0.004051695479 | JO64: -0.00502710365 | JP64: -0.00600251182 | JQ64: -0.00600251182 | JR64: -0.002476036126 | JS64: 0.001050439569 | JT64: 0.004576915263 | JU64: 0.008103390957 | JY64: 0 | JZ64: 0.002250941933 | KA64: 0.004501883865 | KB64: 0.006752825798 | KC64: 0.00900376773 | KD64: 0.01125470966 | KE64: 0.0135056516 | KF64: 0.01575659353 | KG64: 0.01800753546 | KH64: 0.01800753546 | KI64: 0.008253453753 | KJ64: -0.001500627955 | KK64: -0.01125470966 | KL64: -0.02100879137 | KM64: -0.03076287308 | KN64: -0.04051695479 | KO64: -0.0502710365 | KP64: -0.0600251182 | KQ64: -0.0600251182 | KR64: -0.02476036126 | KS64: 0.01050439569 | KT64: 0.04576915263 | KU64: 0.08103390957 | MF64: 0 | MG64: 3.692951608e-05 | MH64: 7.034193539e-05 | MI64: 9.672016117e-05 | MJ64: 0.0001125470966 | MK64: 0.000114305645 | ML64: 9.847870955e-05 | MM64: 6.154919347e-05 | MN64: 0 | MO64: 0 | MP64: -0.0001384856853 | MQ64: -0.000305987419 | MR64: -0.0004682135075 | MS64: -0.0005908722573 | MT64: -0.000639671975 | MU64: -0.000580320967 | MV64: -0.0003785275398 | MW64: 0 | MX64: 0 | MY64: 0.0005631751203 | MZ64: 0.001213398386 | NA64: 0.001826692135 | NB64: 0.002279078707 | ND64: 0 | NE64: 0.003692951608 | NF64: 0.007034193539 | NG64: 0.009672016117 | NH64: 0.01125470966 | NI64: 0.0114305645 | NJ64: 0.009847870955 | NK64: 0.006154919347 | NL64: 0 | NM64: 0 | NN64: -0.01384856853 | NO64: -0.0305987419 | NP64: -0.04682135075 | NQ64: -0.05908722573 | NR64: -0.0639671975 | NS64: -0.0580320967 | NT64: -0.03785275398 | NU64: 0 | NV64: 0 | NW64: 0.05631751203 | NX64: 0.1213398386 | NY64: 0.1826692135 | NZ64: 0.2279078707
D65: Deflection | AA65: Slope | ES65: 36 | EU65: 0.5 | EV65: 0.375 | EW65: -0.375 | FB65: -0.03989361702 | FC65: 0.04166666667 | FD65: 0.007978723404 | FE65: -0.01388888889 | FG65: 0.001773049645 | FI65: -0.006895193065 | FK65: 0.02364066194 | FM65: 0.001773049645 | FO65: -0.00512214342 | FQ65: -0.00512214342 | FS65: 0.01851851852 | FU65: 0.01851851852 | FX65: 0.00664893617 | FY65: -0.006944444444 | FZ65: 0 | GA65: 0 | GB65: -0.0002955082742 | GE65: -0.01329787234 | GF65: 0.01388888889 | GG65: 0 | GH65: 0 | GI65: 0.0005910165485 | GL65: 0.01994680851 | GM65: -0.02083333333 | GN65: -0.001994680851 | GO65: 0.003472222222 | GP65: 0.0005910165485 | GS65: -0.009973404255 | GT65: 0.01041666667 | GU65: 0.003989361702 | GV65: -0.006944444444 | GW65: -0.002511820331 | GZ65: 0 | HA65: 0 | HB65: -0.005984042553 | HC65: 0.003472222222 | HD65: -0.002511820331 | IY65: 0 | IZ65: 0.0002216312057 | JA65: 0.0004432624113 | JB65: 0.000664893617 | JC65: 0.0008865248227 | JD65: 0.001108156028 | JE65: 0.001329787234 | JF65: 0.00155141844 | JG65: 0.001773049645 | JH65: 0.001773049645 | JI65: 0.0008126477541 | JJ65: -0.0001477541371 | JK65: -0.001108156028 | JL65: -0.00206855792 | JM65: -0.003028959811 | JN65: -0.003989361702 | JO65: -0.004949763593 | JP65: -0.005910165485 | JQ65: -0.005910165485 | JR65: -0.002437943262 | JS65: 0.00103427896 | JT65: 0.004506501182 | JU65: 0.007978723404 | JY65: 0 | JZ65: 0.002216312057 | KA65: 0.004432624113 | KB65: 0.00664893617 | KC65: 0.008865248227 | KD65: 0.01108156028 | KE65: 0.01329787234 | KF65: 0.0155141844 | KG65: 0.01773049645 | KH65: 0.01773049645 | KI65: 0.008126477541 | KJ65: -0.001477541371 | KK65: -0.01108156028 | KL65: -0.0206855792 | KM65: -0.03028959811 | KN65: -0.03989361702 | KO65: -0.04949763593 | KP65: -0.05910165485 | KQ65: -0.05910165485 | KR65: -0.02437943262 | KS65: 0.0103427896 | KT65: 0.04506501182 | KU65: 0.07978723404 | MF65: 0 | MG65: 3.636136968e-05 | MH65: 6.925975177e-05 | MI65: 9.523215869e-05 | MJ65: 0.0001108156028 | MK65: 0.0001125470966 | ML65: 9.696365248e-05 | MM65: 6.06022828e-05 | MN65: 0 | MO65: 0 | MP65: -0.0001363551363 | MQ65: -0.0003012799202 | MR65: -0.0004610102227 | MS65: -0.0005817819149 | MT65: -0.0006298308677 | MU65: -0.0005713929521 | MV65: -0.0003727040392 | MW65: 0 | MX65: 0 | MY65: 0.0005545108876 | MZ65: 0.001194730718 | NA65: 0.001798589179 | NB65: 0.002244015957 | ND65: 0 | NE65: 0.003636136968 | NF65: 0.006925975177 | NG65: 0.009523215869 | NH65: 0.01108156028 | NI65: 0.01125470966 | NJ65: 0.009696365248 | NK65: 0.00606022828 | NL65: 0 | NM65: 0 | NN65: -0.01363551363 | NO65: -0.03012799202 | NP65: -0.04610102227 | NQ65: -0.05817819149 | NR65: -0.06298308677 | NS65: -0.05713929521 | NT65: -0.03727040392 | NU65: 0 | NV65: 0 | NW65: 0.05545108876 | NX65: 0.1194730718 | NY65: 0.1798589179 | NZ65: 0.2244015957
D66: 0 | E66: =+D66+1 -> 1 | F66: 2 | G66: 3 | H66: 4 | I66: 5 | J66: 6 | K66: 7 | L66: 8 | M66: =+L66 -> 8 | N66: =+M66+1 -> 9 | O66: 10 | P66: 11 | Q66: 12 | R66: 13 | S66: 14 | T66: 15 | U66: 16 | V66: 16 | W66: =+V66+1 -> 17 | X66: =+W66+1 -> 18 | Y66: =+X66+1 -> 19 | Z66: =+Y66+1 -> 20 | AA66: SA | AB66: lSB | AC66: lSC | ES66: 37 | EU66: 0.625 | EV66: 0.322265625 | EW66: -0.322265625 | FB66: -0.03428357713 | FC66: 0.03580729167 | FD66: 0.006856715426 | FE66: -0.01193576389 | FG66: 0.001523714539 | FI66: -0.005925556541 | FK66: 0.02031619385 | FM66: 0.001523714539 | FO66: -0.004401842002 | FQ66: -0.004401842002 | FS66: 0.01591435185 | FU66: 0.01591435185 | FX66: 0.005713929521 | FY66: -0.005967881944 | FZ66: 0 | GA66: 0 | GB66: -0.0002539524232 | GE66: -0.01142785904 | GF66: 0.01193576389 | GG66: 0 | GH66: 0 | GI66: 0.0005079048463 | GL66: 0.01714178856 | GM66: -0.01790364583 | GN66: -0.001714178856 | GO66: 0.002983940972 | GP66: 0.0005079048463 | GS66: -0.008570894282 | GT66: 0.008951822917 | GU66: 0.003428357713 | GV66: -0.005967881944 | GW66: -0.002158595597 | GZ66: 0 | HA66: 0 | HB66: -0.005142536569 | HC66: 0.002983940972 | HD66: -0.002158595597 | IY66: 0 | IZ66: 0.0001904643174 | JA66: 0.0003809286348 | JB66: 0.0005713929521 | JC66: 0.0007618572695 | JD66: 0.0009523215869 | JE66: 0.001142785904 | JF66: 0.001333250222 | JG66: 0.001523714539 | JH66: 0.001523714539 | JI66: 0.0006983691637 | JJ66: -0.0001269762116 | JK66: -0.0009523215869 | JL66: -0.001777666962 | JM66: -0.002603012337 | JN66: -0.003428357713 | JO66: -0.004253703088 | JP66: -0.005079048463 | JQ66: -0.005079048463 | JR66: -0.002095107491 | JS66: 0.0008888334811 | JT66: 0.003872774453 | JU66: 0.006856715426 | JY66: 0 | JZ66: 0.001904643174 | KA66: 0.003809286348 | KB66: 0.005713929521 | KC66: 0.007618572695 | KD66: 0.009523215869 | KE66: 0.01142785904 | KF66: 0.01333250222 | KG66: 0.01523714539 | KH66: 0.01523714539 | KI66: 0.006983691637 | KJ66: -0.001269762116 | KK66: -0.009523215869 | KL66: -0.01777666962 | KM66: -0.02603012337 | KN66: -0.03428357713 | KO66: -0.04253703088 | KP66: -0.05079048463 | KQ66: -0.05079048463 | KR66: -0.02095107491 | KS66: 0.008888334811 | KT66: 0.03872774453 | KU66: 0.06856715426 | MF66: 0 | MG66: 3.124805207e-05 | MH66: 5.952009918e-05 | MI66: 8.184013637e-05 | MJ66: 9.523215869e-05 | MK66: 9.672016117e-05 | ML66: 8.332813885e-05 | MM66: 5.208008678e-05 | MN66: 0 | MO66: 0 | MP66: -0.0001171801953 | MQ66: -0.0002589124314 | MR66: -0.0003961806602 | MS66: -0.0004999688331 | MT66: -0.0005412609019 | MU66: -0.0004910408182 | MV66: -0.0003202925337 | MW66: 0 | MX66: 0 | MY66: 0.0004765327941 | MZ66: 0.001026721711 | NA66: 0.001545662576 | NB66: 0.001928451213 | ND66: 0 | NE66: 0.003124805207 | NF66: 0.005952009918 | NG66: 0.008184013637 | NH66: 0.009523215869 | NI66: 0.009672016117 | NJ66: 0.008332813885 | NK66: 0.005208008678 | NL66: 0 | NM66: 0 | NN66: -0.01171801953 | NO66: -0.02589124314 | NP66: -0.03961806602 | NQ66: -0.04999688331 | NR66: -0.05412609019 | NS66: -0.04910408182 | NT66: -0.03202925337 | NU66: 0 | NV66: 0 | NW66: 0.04765327941 | NX66: 0.1026721711 | NY66: 0.1545662576 | NZ66: 0.1928451213
D67: =+E67+1 -> 40 | E67: 39 | F67: 38 | G67: 37 | H67: 36 | I67: 35 | J67: 34 | K67: 33 | L67: =+M67 -> 32 | M67: =+N67+1 -> 32 | N67: 31 | O67: 30 | P67: 29 | Q67: 28 | R67: 27 | S67: 26 | T67: 25 | U67: 24 | V67: =+W67+1 -> 24 | W67: =+X67+1 -> 23 | X67: =+Y67+1 -> 22 | Y67: =+Z67+1 -> 21 | Z67: =+Z66 -> 20 | ES67: 38 | EU67: 0.75 | EV67: 0.234375 | EW67: -0.234375 | FB67: -0.02493351064 | FC67: 0.02604166667 | FD67: 0.004986702128 | FE67: -0.008680555556 | FG67: 0.001108156028 | FI67: -0.004309495666 | FK67: 0.01477541371 | FM67: 0.001108156028 | FO67: -0.003201339638 | FQ67: -0.003201339638 | FS67: 0.01157407407 | FU67: 0.01157407407 | FX67: 0.004155585106 | FY67: -0.004340277778 | FZ67: 0 | GA67: 0 | GB67: -0.0001846926714 | GE67: -0.008311170213 | GF67: 0.008680555556 | GG67: 0 | GH67: 0 | GI67: 0.0003693853428 | GL67: 0.01246675532 | GM67: -0.01302083333 | GN67: -0.001246675532 | GO67: 0.002170138889 | GP67: 0.0003693853428 | GS67: -0.00623337766 | GT67: 0.006510416667 | GU67: 0.002493351064 | GV67: -0.004340277778 | GW67: -0.001569887707 | GZ67: 0 | HA67: 0 | HB67: -0.003740026596 | HC67: 0.002170138889 | HD67: -0.001569887707 | IY67: 0 | IZ67: 0.0001385195035 | JA67: 0.0002770390071 | JB67: 0.0004155585106 | JC67: 0.0005540780142 | JD67: 0.0006925975177 | JE67: 0.0008311170213 | JF67: 0.0009696365248 | JG67: 0.001108156028 | JH67: 0.001108156028 | JI67: 0.0005079048463 | JJ67: -9.23463357e-05 | JK67: -0.0006925975177 | JL67: -0.0012928487 | JM67: -0.001893099882 | JN67: -0.002493351064 | JO67: -0.003093602246 | JP67: -0.003693853428 | JQ67: -0.003693853428 | JR67: -0.001523714539 | JS67: 0.0006464243499 | JT67: 0.002816563239 | JU67: 0.004986702128 | JY67: 0 | JZ67: 0.001385195035 | KA67: 0.002770390071 | KB67: 0.004155585106 | KC67: 0.005540780142 | KD67: 0.006925975177 | KE67: 0.008311170213 | KF67: 0.009696365248 | KG67: 0.01108156028 | KH67: 0.01108156028 | KI67: 0.005079048463 | KJ67: -0.000923463357 | KK67: -0.006925975177 | KL67: -0.012928487 | KM67: -0.01893099882 | KN67: -0.02493351064 | KO67: -0.03093602246 | KP67: -0.03693853428 | KQ67: -0.03693853428 | KR67: -0.01523714539 | KS67: 0.006464243499 | KT67: 0.02816563239 | KU67: 0.04986702128 | MF67: 0 | MG67: 2.272585605e-05 | MH67: 4.328734486e-05 | MI67: 5.952009918e-05 | MJ67: 6.925975177e-05 | MK67: 7.034193539e-05 | ML67: 6.06022828e-05 | MM67: 3.787642675e-05 | MN67: 0 | MO67: 0 | MP67: -8.522196019e-05 | MQ67: -0.0001882999501 | MR67: -0.0002881313892 | MS67: -0.0003636136968 | MT67: -0.0003936442923 | MU67: -0.0003571205951 | MV67: -0.0002329400245 | MW67: 0 | MX67: 0 | MY67: 0.0003465693048 | MZ67: 0.0007467066988 | NA67: 0.001124118237 | NB67: 0.001402509973 | ND67: 0 | NE67: 0.002272585605 | NF67: 0.004328734486 | NG67: 0.005952009918 | NH67: 0.006925975177 | NI67: 0.007034193539 | NJ67: 0.00606022828 | NK67: 0.003787642675 | NL67: 0 | NM67: 0 | NN67: -0.008522196019 | NO67: -0.01882999501 | NP67: -0.02881313892 | NQ67: -0.03636136968 | NR67: -0.03936442923 | NS67: -0.03571205951 | NT67: -0.02329400245 | NU67: 0 | NV67: 0 | NW67: 0.03465693048 | NX67: 0.07467066988 | NY67: 0.1124118237 | NZ67: 0.1402509973
C68: =+E68 -> 0 | D68: =+ND25 -> 0 | E68: =+NE25 -> 0 | F68: =+NF25 -> 0 | G68: =+NG25 -> 0 | H68: =+NH25 -> 0 | I68: =+NI25 -> 0 | J68: =+NJ25 -> 0 | K68: =+NK25 -> 0 | L68: =+NL25 -> 0 | M68: =+NM25 -> 0 | N68: =+NN25 -> 0 | O68: =+NO25 -> 0 | P68: =+NP25 -> 0 | Q68: =+NQ25 -> 0 | R68: =+NR25 -> 0 | S68: =+NS25 -> 0 | T68: =+NT25 -> 0 | U68: =+NU25 -> 0 | V68: =+NV25 -> 0 | W68: =+NW25 -> 0 | X68: =+NX25 -> 0 | Y68: =+NY25 -> 0 | Z68: =+NZ25 -> 0 | AA68: =+GB25*10 -> 0 | AB68: =+GI25*10 -> 0 | AC68: =+GW25*10 -> 0 | ES68: 39 | EU68: 0.875 | EV68: 0.123046875 | EW68: -0.123046875 | FB68: -0.01309009309 | FC68: 0.013671875 | FD68: 0.002618018617 | FE68: -0.004557291667 | FG68: 0.0005817819149 | FI68: -0.002262485225 | FK68: 0.007757092199 | FM68: 0.0005817819149 | FO68: -0.00168070331 | FQ68: -0.00168070331 | FS68: 0.006076388889 | FU68: 0.006076388889 | FX68: 0.002181682181 | FY68: -0.002278645833 | FZ68: 0 | GA68: 0 | GB68: -9.696365248e-05 | GE68: -0.004363364362 | GF68: 0.004557291667 | GG68: 0 | GH68: 0 | GI68: 0.000193927305 | GL68: 0.006545046543 | GM68: -0.0068359375 | GN68: -0.0006545046543 | GO68: 0.001139322917 | GP68: 0.000193927305 | GS68: -0.003272523271 | GT68: 0.00341796875 | GU68: 0.001309009309 | GV68: -0.002278645833 | GW68: -0.0008241910461 | GZ68: 0 | HA68: 0 | HB68: -0.001963513963 | HC68: 0.001139322917 | HD68: -0.0008241910461 | IY68: 0 | IZ68: 7.272273936e-05 | JA68: 0.0001454454787 | JB68: 0.0002181682181 | JC68: 0.0002908909574 | JD68: 0.0003636136968 | JE68: 0.0004363364362 | JF68: 0.0005090591755 | JG68: 0.0005817819149 | JH68: 0.0005817819149 | JI68: 0.0002666500443 | JJ68: -4.848182624e-05 | JK68: -0.0003636136968 | JL68: -0.0006787455674 | JM68: -0.0009938774379 | JN68: -0.001309009309 | JO68: -0.001624141179 | JP68: -0.00193927305 | JQ68: -0.00193927305 | JR68: -0.000799950133 | JS68: 0.0003393727837 | JT68: 0.0014786957 | JU68: 0.002618018617 | JY68: 0 | JZ68: 0.0007272273936 | KA68: 0.001454454787 | KB68: 0.002181682181 | KC68: 0.002908909574 | KD68: 0.003636136968 | KE68: 0.004363364362 | KF68: 0.005090591755 | KG68: 0.005817819149 | KH68: 0.005817819149 | KI68: 0.002666500443 | KJ68: -0.0004848182624 | KK68: -0.003636136968 | KL68: -0.006787455674 | KM68: -0.009938774379 | KN68: -0.01309009309 | KO68: -0.01624141179 | KP68: -0.0193927305 | KQ68: -0.0193927305 | KR68: -0.00799950133 | KS68: 0.003393727837 | KT68: 0.014786957 | KU68: 0.02618018617 | MF68: 0 | MG68: 1.193107443e-05 | MH68: 2.272585605e-05 | MI68: 3.124805207e-05 | MJ68: 3.636136968e-05 | MK68: 3.692951608e-05 | ML68: 3.181619847e-05 | MM68: 1.988512404e-05 | MN68: 0 | MO68: 0 | MP68: -4.47415291e-05 | MQ68: -9.885747382e-05 | MR68: -0.0001512689793 | MS68: -0.0001908971908 | MT68: -0.0002066632535 | MU68: -0.0001874883124 | MV68: -0.0001222935129 | MW68: 0 | MX68: 0 | MY68: 0.000181948885 | MZ68: 0.0003920210169 | NA68: 0.0005901620743 | NB68: 0.000736317736 | ND68: 0 | NE68: 0.001193107443 | NF68: 0.002272585605 | NG68: 0.003124805207 | NH68: 0.003636136968 | NI68: 0.003692951608 | NJ68: 0.003181619847 | NK68: 0.001988512404 | NL68: 0 | NM68: 0 | NN68: -0.00447415291 | NO68: -0.009885747382 | NP68: -0.01512689793 | NQ68: -0.01908971908 | NR68: -0.02066632535 | NS68: -0.01874883124 | NT68: -0.01222935129 | NU68: 0 | NV68: 0 | NW68: 0.0181948885 | NX68: 0.03920210169 | NY68: 0.05901620743 | NZ68: 0.0736317736
C69: =+C68+1 -> 1 | D69: 0 | E69: 0.3438800785 | F69: 0.5546407497 | G69: 0.6293709396 | H69: 0.5977116578 | I69: 0.4893039135 | J69: 0.3337887162 | K69: 0.1608070752 | L69: 0 | M69: 0 | N69: -0.1727023023 | O69: -0.2662334036 | P69: -0.295507147 | Q69: -0.2754373753 | R69: -0.2209379318 | S69: -0.1469226594 | T69: -0.06830540109 | U69: 0 | V69: 0 | W69: 0.0462329134 | X69: 0.07124555872 | Y69: 0.07904336808 | Z69: 0.0736317736 | AA69: -0.2971935949 | AB69: 0.1158715647 | AC69: -0.03102836879 | ES69: 40 | EU69: 1 | EV69: 0 | EW69: 0 | FB69: 0 | FC69: 0 | FD69: 0 | FE69: 0 | FG69: 0 | FI69: 0 | FK69: 0 | FM69: 0 | FO69: 0 | FQ69: 0 | FS69: 0 | FU69: 0 | FX69: 0 | FY69: 0 | FZ69: 0 | GA69: 0 | GB69: 0 | GE69: 0 | GF69: 0 | GG69: 0 | GH69: 0 | GI69: 0 | GL69: 0 | GM69: 0 | GN69: 0 | GO69: 0 | GP69: 0 | GS69: 0 | GT69: 0 | GU69: 0 | GV69: 0 | GW69: 0 | GZ69: 0 | HA69: 0 | HB69: 0 | HC69: 0 | HD69: 0 | IY69: 0 | IZ69: 0 | JA69: 0 | JB69: 0 | JC69: 0 | JD69: 0 | JE69: 0 | JF69: 0 | JG69: 0 | JH69: 0 | JI69: 0 | JJ69: 0 | JK69: 0 | JL69: 0 | JM69: 0 | JN69: 0 | JO69: 0 | JP69: 0 | JQ69: 0 | JR69: 0 | JS69: 0 | JT69: 0 | JU69: 0 | JY69: 0 | JZ69: 0 | KA69: 0 | KB69: 0 | KC69: 0 | KD69: 0 | KE69: 0 | KF69: 0 | KG69: 0 | KH69: 0 | KI69: 0 | KJ69: 0 | KK69: 0 | KL69: 0 | KM69: 0 | KN69: 0 | KO69: 0 | KP69: 0 | KQ69: 0 | KR69: 0 | KS69: 0 | KT69: 0 | KU69: 0 | MF69: 0 | MG69: 0 | MH69: 0 | MI69: 0 | MJ69: 0 | MK69: 0 | ML69: 0 | MM69: 0 | MN69: 0 | MO69: 0 | MP69: 0 | MQ69: 0 | MR69: 0 | MS69: 0 | MT69: 0 | MU69: 0 | MV69: 0 | MW69: 0 | MX69: 0 | MY69: 0 | MZ69: 0 | NA69: 0 | NB69: 0 | ND69: 0 | NE69: 0 | NF69: 0 | NG69: 0 | NH69: 0 | NI69: 0 | NJ69: 0 | NK69: 0 | NL69: 0 | NM69: 0 | NN69: 0 | NO69: 0 | NP69: 0 | NQ69: 0 | NR69: 0 | NS69: 0 | NT69: 0 | NU69: 0 | NV69: 0 | NW69: 0 | NX69: 0 | NY69: 0 | NZ69: 0
C70: 2 | D70: 0 | E70: 0.5546407497 | F70: 0.9727532137 | G70: 1.15036119 | H70: 1.113696809 | I70: 0.9215442847 | J70: 0.6326878324 | K70: 0.3059116661 | L70: 0 | M70: 0 | N70: -0.3289567663 | O70: -0.507111245 | P70: -0.5628707561 | Q70: -0.5246426197 | R70: -0.4208341558 | S70: -0.2798526845 | T70: -0.1301055259 | U70: 0 | V70: 0 | W70: 0.0880626922 | X70: 0.1357058261 | Y70: 0.1505587963 | Z70: 0.1402509973 | AA70: -0.4619163712 | AB70: 0.2207077423 | AC70: -0.05910165485
C71: 3 | D71: 0 | E71: 0.6293709396 | F71: 1.15036119 | G71: 1.45459006 | H71: 1.466228945 | I71: 1.239657571 | J71: 0.8618077488 | K71: 0.4196112883 | L71: 0 | M71: 0 | N71: -0.4523155537 | O71: -0.6972779619 | P71: -0.7739472896 | Q71: -0.7213836021 | R71: -0.5786469642 | S71: -0.3847974412 | T71: -0.1788950981 | U71: 0 | V71: 0 | W71: 0.1210862018 | X71: 0.1865955109 | Y71: 0.207018345 | Z71: 0.1928451213 | AA71: -0.5179475103 | AB71: 0.3034731457 | AC71: -0.08126477541
C72: 4 | D72: 0 | E72: 0.5977116578 | F72: 1.113696809 | G72: 1.466228945 | H72: 1.57358156 | I72: 1.38658023 | J72: 0.9862588652 | K72: 0.4862034574 | L72: 0 | M72: 0 | N72: -0.5263308261 | O72: -0.811377992 | P72: -0.9005932098 | Q72: -0.8394281915 | R72: -0.6733346493 | S72: -0.4477642952 | T72: -0.2081688414 | U72: 0 | V72: 0 | W72: 0.1409003075 | X72: 0.2171293218 | Y72: 0.2408940741 | Z72: 0.2244015957 | AA72: -0.4890661939 | AB72: 0.3531323877 | AC72: -0.09456264775 | IX72: 1 | IY72: =+HZ5/2 -> 0 | IZ72: =+IA5/2 -> 0.0546875 | JA72: 0.09375 | JB72: 0.1171875 | JC72: 0.125 | JD72: 0.1171875 | JE72: 0.09375 | JF72: 0.0546875 | JG72: 0 | ME72: 1 | MF72: =+(HZ$4*(0.5*HZ$3^2-0.5*HZ$3^2*HZ$4^2-0.25*HZ$3^4)+HZ$3*(0.5*HZ$4^2-0.5*HZ$3^2*HZ$4^2-0.25*HZ$4^4))/6 -> 0 | MG72: 0.005055745443 | MH72: 0.00927734375 | MI72: 0.01205444336 | MJ72: 0.01302083333 | MK72: 0.01205444336 | ML72: 0.00927734375 | MM72: 0.005055745443 | MN72: 0
C73: 5 | D73: 0 | E73: 0.4893039135 | F73: 0.9215442847 | G73: 1.239657571 | H73: 1.38658023 | I73: 1.30524872 | J73: 0.9711515819 | K73: 0.4899856892 | L73: 0 | M73: 0 | N73: -0.5345547453 | O73: -0.8240557731 | P73: -0.9146649787 | Q73: -0.852544257 | R73: -0.6838555032 | S73: -0.4547606123 | T73: -0.2114214796 | U73: 0 | V73: 0 | W73: 0.1431018748 | X73: 0.2205219675 | Y73: 0.244658044 | Z73: 0.2279078707 | AA73: -0.3990516031 | AB73: 0.3586500813 | AC73: -0.09604018913 | IX73: 2 | JH73: =+II5/2*Input!$B$1^2 -> 0 | JI73: =+IJ5/2*Input!$B$1^2 -> 0.123046875 | JJ73: =+IK5/2*Input!$B$1^2 -> 0.2109375 | JK73: =+IL5/2*Input!$B$1^2 -> 0.263671875 | JL73: =+IM5/2*Input!$B$1^2 -> 0.28125 | JM73: =+IN5/2*Input!$B$1^2 -> 0.263671875 | JN73: =+IO5/2*Input!$B$1^2 -> 0.2109375 | JO73: =+IP5/2*Input!$B$1^2 -> 0.123046875 | JP73: =+IQ5/2*Input!$B$1^2 -> 0 | ME73: 2 | MO73: =+(II$4*(0.5*II$3^2-0.5*II$3^2*II$4^2-0.25*II$3^4)+II$3*(0.5*II$4^2-0.5*II$3^2*II$4^2-0.25*II$4^4))/6*Input!$B$1^4 -> 0 | MP73: =+(IJ$4*(0.5*IJ$3^2-0.5*IJ$3^2*IJ$4^2-0.25*IJ$3^4)+IJ$3*(0.5*IJ$4^2-0.5*IJ$3^2*IJ$4^2-0.25*IJ$4^4))/6*Input!$B$1^4 -> 0.0255947113 | MQ73: =+(IK$4*(0.5*IK$3^2-0.5*IK$3^2*IK$4^2-0.25*IK$3^4)+IK$3*(0.5*IK$4^2-0.5*IK$3^2*IK$4^2-0.25*IK$4^4))/6*Input!$B$1^4 -> 0.04696655273 | MR73: =+(IL$4*(0.5*IL$3^2-0.5*IL$3^2*IL$4^2-0.25*IL$3^4)+IL$3*(0.5*IL$4^2-0.5*IL$3^2*IL$4^2-0.25*IL$4^4))/6*Input!$B$1^4 -> 0.06102561951 | MS73: =+(IM$4*(0.5*IM$3^2-0.5*IM$3^2*IM$4^2-0.25*IM$3^4)+IM$3*(0.5*IM$4^2-0.5*IM$3^2*IM$4^2-0.25*IM$4^4))/6*Input!$B$1^4 -> 0.06591796875 | MT73: =+(IN$4*(0.5*IN$3^2-0.5*IN$3^2*IN$4^2-0.25*IN$3^4)+IN$3*(0.5*IN$4^2-0.5*IN$3^2*IN$4^2-0.25*IN$4^4))/6*Input!$B$1^4 -> 0.06102561951 | MU73: =+(IO$4*(0.5*IO$3^2-0.5*IO$3^2*IO$4^2-0.25*IO$3^4)+IO$3*(0.5*IO$4^2-0.5*IO$3^2*IO$4^2-0.25*IO$4^4))/6*Input!$B$1^4 -> 0.04696655273 | MV73: =+(IP$4*(0.5*IP$3^2-0.5*IP$3^2*IP$4^2-0.25*IP$3^4)+IP$3*(0.5*IP$4^2-0.5*IP$3^2*IP$4^2-0.25*IP$4^4))/6*Input!$B$1^4 -> 0.0255947113 | MW73: =+(IQ$4*(0.5*IQ$3^2-0.5*IQ$3^2*IQ$4^2-0.25*IQ$3^4)+IQ$3*(0.5*IQ$4^2-0.5*IQ$3^2*IQ$4^2-0.25*IQ$4^4))/6*Input!$B$1^4 -> 0
C74: 6 | D74: 0 | E74: 0.3337887162 | F74: 0.6326878324 | G74: 0.8618077488 | H74: 0.9862588652 | I74: 0.9711515819 | J74: 0.7815962988 | K74: 0.4152554992 | L74: 0 | M74: 0 | N74: -0.4605394729 | O74: -0.709955743 | P74: -0.7880190586 | Q74: -0.7344996676 | R74: -0.5891678181 | S74: -0.3917937583 | T74: -0.1821477362 | U74: 0 | V74: 0 | W74: 0.1232877691 | X74: 0.1899881566 | Y74: 0.2107823149 | Z74: 0.1963513963 | AA74: -0.2716829196 | AB74: 0.3089908392 | AC74: -0.08274231678 | IX74: 3 | JQ74: =+IR5/2*Input!$B$1^2 -> 0 | JR74: =+IS5/2*Input!$B$1^2 -> 0.123046875 | JS74: =+IT5/2*Input!$B$1^2 -> 0.2109375 | JT74: =+IU5/2*Input!$B$1^2 -> 0.263671875 | JU74: =+IV5/2*Input!$B$1^2 -> 0.28125 | ME74: 3 | MX74: =+(IR$4*(0.5*IR$3^2-0.5*IR$3^2*IR$4^2-0.25*IR$3^4)+IR$3*(0.5*IR$4^2-0.5*IR$3^2*IR$4^2-0.25*IR$4^4))/6*Input!$B$1^4 -> 0 | MY74: =+(IS$4*(0.5*IS$3^2-0.5*IS$3^2*IS$4^2-0.25*IS$3^4)+IS$3*(0.5*IS$4^2-0.5*IS$3^2*IS$4^2-0.25*IS$4^4))/6*Input!$B$1^4 -> 0.0255947113 | MZ74: =+(IT$4*(0.5*IT$3^2-0.5*IT$3^2*IT$4^2-0.25*IT$3^4)+IT$3*(0.5*IT$4^2-0.5*IT$3^2*IT$4^2-0.25*IT$4^4))/6*Input!$B$1^4 -> 0.04696655273 | NA74: =+(IU$4*(0.5*IU$3^2-0.5*IU$3^2*IU$4^2-0.25*IU$3^4)+IU$3*(0.5*IU$4^2-0.5*IU$3^2*IU$4^2-0.25*IU$4^4))/6*Input!$B$1^4 -> 0.06102561951 | NB74: =+(IV$4*(0.5*IV$3^2-0.5*IV$3^2*IV$4^2-0.25*IV$3^4)+IV$3*(0.5*IV$4^2-0.5*IV$3^2*IV$4^2-0.25*IV$4^4))/6*Input!$B$1^4 -> 0.06591796875
C75: 7 | D75: 0 | E75: 0.1608070752 | F75: 0.3059116661 | G75: 0.4196112883 | H75: 0.4862034574 | I75: 0.4899856892 | J75: 0.4152554992 | K75: 0.2463104032 | L75: 0 | M75: 0 | N75: -0.2878371705 | O75: -0.4437223394 | P75: -0.4925119116 | Q75: -0.4590622922 | R75: -0.3682298863 | S75: -0.2448710989 | T75: -0.1138423352 | U75: 0 | V75: 0 | W75: 0.07705485567 | X75: 0.1187425979 | Y75: 0.1317389468 | Z75: 0.1227196227 | AA75: -0.1307393248 | AB75: 0.1931192745 | AC75: -0.05171394799 | IX75: 4 | ME75: 4
C76: 8 | D76: 0 | E76: 0 | F76: 0 | G76: 0 | H76: 0 | I76: 0 | J76: 0 | K76: 0 | L76: 0 | M76: 0 | N76: 0 | O76: 0 | P76: 0 | Q76: 0 | R76: 0 | S76: 0 | T76: 0 | U76: 0 | V76: 0 | W76: 0 | X76: 0 | Y76: 0 | Z76: 0 | AA76: 0 | AB76: 0 | AC76: 0 | IX76: 5 | ME76: 5
C77: =+C76 -> 8 | D77: 0 | E77: 0 | F77: 0 | G77: 0 | H77: 0 | I77: 0 | J77: 0 | K77: 0 | L77: 0 | M77: 0 | N77: 0 | O77: 0 | P77: 0 | Q77: 0 | R77: 0 | S77: 0 | T77: 0 | U77: 0 | V77: 0 | W77: 0 | X77: 0 | Y77: 0 | Z77: 0 | AA77: 0 | AB77: 0 | AC77: 0
C78: =+C77+1 -> 9 | D78: 0 | E78: -0.1727023023 | F78: -0.3289567663 | G78: -0.4523155537 | H78: -0.5263308261 | I78: -0.5345547453 | J78: -0.4605394729 | K78: -0.2878371705 | L78: 0 | M78: 0 | N78: 0.5740338183 | O78: 0.9520266918 | P78: 1.081329711 | Q78: 1.019157247 | R78: 0.8227236727 | S78: 0.5492433589 | T78: 0.2559306774 | U78: 0 | V78: 0 | W78: -0.1733734253 | X78: -0.2671708452 | Y78: -0.2964126303 | Z78: -0.276119151 | AA78: 0.140354887 | AB78: -0.2807097739 | AC78: 0.116356383 | FA78: Span | FB78: Fx(1) | FC78: Fx(2) | FD78: Fx(3) | FE78: Fx(4)
C79: 10 | D79: 0 | E79: -0.2662334036 | F79: -0.507111245 | G79: -0.6972779619 | H79: -0.811377992 | I79: -0.8240557731 | J79: -0.709955743 | K79: -0.4437223394 | L79: 0 | M79: 0 | N79: 0.9520266918 | O79: 1.835145342 | P79: 2.233911068 | Q79: 2.172332114 | R79: 1.784280006 | S79: 1.203626267 | T79: 0.5642424238 | U79: 0 | V79: 0 | W79: -0.3830727111 | X79: -0.5903203437 | Y79: -0.6549307641 | Z79: -0.6100918384 | AA79: 0.2163674645 | AB79: -0.4327349291 | AC79: 0.2570921986 | FA79: 1 | FB79: =+(-EI19*$EK$14+EK19*$EK$12)/($EI$12*$EK$14-$EI$14*$EK$12)/2 -> -0.02659574468 | FC79: =+(-EJ19*$EL$15+EL19*$EL$13)/($EJ$13*$EL$15-$EJ$15*$EL$13)/2 -> -0.02777777778 | FD79: =-(EI19/2+$EI$12*FB79)/$EK$12 -> 0.005319148936 | FE79: =-(EJ19/2+$EJ$13*FC79)/$EL$13 -> 0.009259259259 | FF79: 0.5 | FG79: =FF79+FG$17*$FB79+FG$18*$FC79+FG$19*$FD79+FG$20*$FE79 -> 0.4456264775 | FH79: 0.5 | FI79: =FH79+FI$17*$FB79+FI$18*$FC79+FI$19*$FD79+FI$20*$FE79 -> 0.6003414762 | FK79: =FJ79+FK$17*$FB79+FK$18*$FC79+FK$19*$FD79+FK$20*$FE79 -> -0.05831363278 | FL79: -0.5 | FM79: =FL79+FM$17*$FB79+FM$18*$FC79+FM$19*$FD79+FM$20*$FE79 -> -0.5543735225 | FO79: =FN79+FO$17*$FB79+FO$18*$FC79+FO$19*$FD79+FO$20*$FE79 -> 0.04596795377 | FQ79: =FP79+FQ$17*$FB79+FQ$18*$FC79+FQ$19*$FD79+FQ$20*$FE79 -> 0.04596795377 | FS79: =FR79+FS$17*$FB79+FS$18*$FC79+FS$19*$FD79+FS$20*$FE79 -> -0.01234567901 | FU79: =FT79+FU$17*$FB79+FU$18*$FC79+FU$19*$FD79+FU$20*$FE79 -> -0.01234567901 | FW79: -0.04166666667 | FX79: =+FX$20*$FB79 -> 0.004432624113 | FY79: =+FY$20*$FC79 -> 0.00462962963 | FZ79: =+FZ$20*$FD79 -> 0 | GA79: =+GA$20*$FE79 -> 0 | GB79: =+SUM(FW79:GA79) -> -0.03260441292 | GD79: 0.04166666667 | GE79: =+GE$20*$FB79 -> -0.008865248227 | GF79: =+GF$20*$FC79 -> -0.009259259259 | GG79: =+GG$20*$FD79 -> 0 | GH79: =+GH$20*$FE79 -> 0 | GI79: =+SUM(GD79:GH79) -> 0.02354215918 | GL79: =+GL$20*$FB79 -> 0.01329787234 | GM79: =+GM$20*$FC79 -> 0.01388888889 | GN79: =+GN$20*$FD79 -> -0.001329787234 | GO79: =+GO$20*$FE79 -> -0.002314814815 | GP79: =+SUM(GK79:GO79) -> 0.02354215918 | GS79: =+GS$20*$FB79 -> -0.00664893617 | GT79: =+GT$20*$FC79 -> -0.006944444444 | GU79: =+GU$20*$FD79 -> 0.002659574468 | GV79: =+GV$20*$FE79 -> 0.00462962963 | GW79: =+SUM(GR79:GV79) -> -0.006304176517 | GZ79: =+GZ$20*$FB79 -> 0 | HA79: =+HA$20*$FC79 -> 0 | HB79: =+HB$20*$FD79 -> -0.003989361702 | HC79: =+HC$20*$FE79 -> -0.002314814815 | HD79: =+SUM(GY79:HC79) -> -0.006304176517 | IY79: =+IY72+HZ$6*$FB79+HZ$7*$FC79+HZ$8*$FD79+HZ$9*$FE79 -> 0 | IZ79: 0.04789080969 | JA79: 0.08015661939 | JB79: 0.09679742908 | JC79: 0.09781323877 | JD79: 0.08320404846 | JE79: 0.05296985816 | JF79: 0.007110667849 | JG79: -0.05437352246 | JH79: -0.05437352246 | JI79: =+JI72+IJ$6*$FB79+IJ$7*$FC79+IJ$8*$FD79+IJ$9*$FE79 -> -0.04575453113 | JJ79: -0.0371355398 | JK79: -0.02851654846 | JL79: -0.01989755713 | JM79: -0.0112785658 | JN79: -0.002659574468 | JO79: 0.005959416864 | JP79: 0.0145784082 | JQ79: 0.0145784082 | JR79: 0.01226359338 | JS79: =+JS72+IT$6*$FB79+IT$7*$FC79+IT$8*$FD79+IT$9*$FE79 -> 0.009948778566 | JT79: 0.007633963751 | JU79: 0.005319148936 | JY79: =+IY79*10 -> 0 | JZ79: 0.4789080969 | KA79: 0.8015661939 | KB79: 0.9679742908 | KC79: 0.9781323877 | KD79: 0.8320404846 | KE79: 0.5296985816 | KF79: 0.07110667849 | KG79: -0.5437352246 | KH79: -0.5437352246 | KI79: -0.4575453113 | KJ79: -0.371355398 | KK79: -0.2851654846 | KL79: -0.1989755713 | KM79: =+JM79*10 -> -0.112785658 | KN79: -0.02659574468 | KO79: 0.05959416864 | KP79: 0.145784082 | KQ79: =+JQ79*10 -> 0.145784082 | KR79: =+JR79*10 -> 0.1226359338 | KS79: =+JS79*10 -> 0.09948778566 | KT79: =+JT79*10 -> 0.07633963751 | KU79: =+JU79*10 -> 0.05319148936 | MF79: =+MF72+HZ$11*$FB79+HZ$12*$FC79+HZ$13*$FD79+HZ$14*$FE79 -> 0 | MG79: 0.003940663439 | MH79: 0.007153378029 | MI79: 0.009133990493 | MJ79: 0.00962248818 | MK79: 0.008602999063 | ML79: 0.006303791741 | MM79: 0.003197275437 | MN79: 0 | MO79: 0 | MP79: =+MP72+IJ$11*$FB79+IJ$12*$FC79+IJ$13*$FD79+IJ$14*$FE79 -> -0.003508872174 | MQ79: -0.005409186613 | MR79: -0.006003954732 | MS79: -0.005596187943 | MT79: -0.004488897662 | MU79: -0.002985095301 | MV79: -0.001387792276 | MW79: 0 | MX79: 0 | MY79: 0.0009393353834 | MZ79: =+MZ72+IT$11*$FB79+IT$12*$FC79+IT$13*$FD79+IT$14*$FE79 -> 0.001447528812 | NA79: 0.001605960494 | NB79: 0.001496010638 | ND79: =+MF79*100 -> 0 | NE79: =+MG79*100 -> 0.3940663439 | NF79: 0.7153378029 | NG79: 0.9133990493 | NH79: 0.962248818 | NI79: 0.8602999063 | NJ79: 0.6303791741 | NK79: 0.3197275437 | NL79: 0 | NM79: 0 | NN79: -0.3508872174 | NO79: -0.5409186613 | NP79: -0.6003954732 | NQ79: -0.5596187943 | NR79: -0.4488897662 | NS79: -0.2985095301 | NT79: -0.1387792276 | NU79: 0 | NV79: 0 | NW79: 0.09393353834 | NX79: 0.1447528812 | NY79: 0.1605960494 | NZ79: 0.1496010638
C80: 11 | D80: 0 | E80: -0.295507147 | F80: -0.5628707561 | G80: -0.7739472896 | H80: -0.9005932098 | I80: -0.9146649787 | J80: -0.7880190586 | K80: -0.4925119116 | L80: 0 | M80: 0 | N80: 1.081329711 | O80: 2.233911068 | P80: 3.022412036 | Q80: 3.121363863 | R80: 2.64475092 | S80: 1.816420859 | T80: 0.8602213352 | U80: 0 | V80: 0 | W80: -0.5861672949 | X80: -0.9032919052 | Y80: -1.002156988 | Z80: -0.933545701 | AA80: 0.2401581893 | AB80: -0.4803163785 | AC80: 0.3933953901 | FA80: 2 | FB80: =+(-EI20*$EK$14+EK20*$EK$12)/($EI$12*$EK$14-$EI$14*$EK$12)/2 -> -0.07180851064 | FC80: =+(-EJ20*$EL$15+EL20*$EL$13)/($EJ$13*$EL$15-$EJ$15*$EL$13)/2 -> -0.0625 | FD80: =-(EI20/2+$EI$12*FB80)/$EK$12 -> -0.04188829787 | FE80: =-(EJ20/2+$EJ$13*FC80)/$EL$13 -> -0.07291666667 | FG80: =FF80+FG$17*$FB80+FG$18*$FC80+FG$19*$FD80+FG$20*$FE80 -> -0.1343085106 | FH80: =0.5*Input!B1 -> 0.75 | FI80: =FH80+FI$17*$FB80+FI$18*$FC80+FI$19*$FD80+FI$20*$FE80 -> 0.8973108747 | FJ80: =0.5*Input!B1 -> 0.75 | FK80: =FJ80+FK$17*$FB80+FK$18*$FC80+FK$19*$FD80+FK$20*$FE80 -> 0.8342198582 | FM80: =FL80+FM$17*$FB80+FM$18*$FC80+FM$19*$FD80+FM$20*$FE80 -> -0.1343085106 | FN80: =0.5*Input!B1 -> 0.75 | FO80: =FN80+FO$17*$FB80+FO$18*$FC80+FO$19*$FD80+FO$20*$FE80 -> 0.7630023641 | FP80: =-0.5*Input!B1 -> -0.75 | FQ80: =FP80+FQ$17*$FB80+FQ$18*$FC80+FQ$19*$FD80+FQ$20*$FE80 -> -0.7369976359 | FS80: =FR80+FS$17*$FB80+FS$18*$FC80+FS$19*$FD80+FS$20*$FE80 -> 0.09722222222 | FU80: =FT80+FU$17*$FB80+FU$18*$FC80+FU$19*$FD80+FU$20*$FE80 -> 0.09722222222 | FX80: 0.01196808511 | FY80: 0.01041666667 | FZ80: 0 | GA80: 0 | GB80: 0.02238475177 | GE80: -0.02393617021 | GF80: -0.02083333333 | GG80: 0 | GH80: 0 | GI80: -0.04476950355 | GK80: =-0.0416666666666667*Input!B1^3 -> -0.140625 | GL80: 0.03590425532 | GM80: 0.03125 | GN80: 0.01047207447 | GO80: 0.01822916667 | GP80: -0.04476950355 | GR80: =0.0416666666666667*Input!B1^3 -> 0.140625 | GS80: -0.01795212766 | GT80: -0.015625 | GU80: -0.02094414894 | GV80: -0.03645833333 | GW80: 0.04964539007 | GZ80: 0 | HA80: 0 | HB80: 0.0314162234 | HC80: 0.01822916667 | HD80: 0.04964539007 | IY80: 0 | IZ80: -0.01678856383 | JA80: -0.03357712766 | JB80: -0.05036569149 | JC80: -0.06715425532 | JD80: -0.08394281915 | JE80: -0.100731383 | JF80: -0.1175199468 | JG80: -0.1343085106 | JH80: -0.1343085106 | JI80: -0.008823692376 | JJ80: 0.08150487589 | JK80: 0.1366771941 | JL80: 0.1566932624 | JM80: 0.1415530807 | JN80: 0.09125664894 | JO80: 0.005803967199 | JP80: -0.1148049645 | JQ80: -0.1148049645 | JR80: -0.09657579787 | JS80: -0.07834663121 | JT80: -0.06011746454 | JU80: -0.04188829787 | JY80: 0 | JZ80: -0.1678856383 | KA80: -0.3357712766 | KB80: -0.5036569149 | KC80: -0.6715425532 | KD80: -0.8394281915 | KE80: -1.00731383 | KF80: -1.175199468 | KG80: -1.343085106 | KH80: -1.343085106 | KI80: -0.08823692376 | KJ80: 0.8150487589 | KK80: 1.366771941 | KL80: 1.566932624 | KM80: 1.415530807 | KN80: 0.9125664894 | KO80: 0.05803967199 | KP80: -1.148049645 | KQ80: -1.148049645 | KR80: -0.9657579787 | KS80: -0.7834663121 | KT80: -0.6011746454 | KU80: -0.4188829787 | MF80: 0 | MG80: -0.002754373753 | MH80: -0.005246426197 | MI80: -0.007213836021 | MJ80: -0.008394281915 | MK80: -0.00852544257 | ML80: -0.007344996676 | MM80: -0.004590622922 | MN80: 0 | MO80: 0 | MP80: 0.009968412683 | MQ80: 0.02035003013 | MR80: 0.02796923861 | MS80: 0.0308863863 | MT80: 0.02839778332 | MU80: 0.02103570167 | MV80: 0.01056837528 | MW80: 0 | MX80: 0 | MY80: -0.007397266144 | MZ80: -0.01139928939 | NA80: -0.01264693889 | NB80: -0.01178108378 | ND80: =+MF80*100 -> 0 | NE80: -0.2754373753 | NF80: -0.5246426197 | NG80: -0.7213836021 | NH80: -0.8394281915 | NI80: -0.852544257 | NJ80: -0.7344996676 | NK80: -0.4590622922 | NL80: 0 | NM80: 0 | NN80: 0.9968412683 | NO80: 2.035003013 | NP80: 2.796923861 | NQ80: 3.08863863 | NR80: 2.839778332 | NS80: 2.103570167 | NT80: 1.056837528 | NU80: 0 | NV80: 0 | NW80: -0.7397266144 | NX80: -1.139928939 | NY80: -1.264693889 | NZ80: -1.178108378
C81: 12 | D81: 0 | E81: -0.2754373753 | F81: -0.5246426197 | G81: -0.7213836021 | H81: -0.8394281915 | I81: -0.852544257 | J81: -0.7344996676 | K81: -0.4590622922 | L81: 0 | M81: 0 | N81: 1.019157247 | O81: 2.172332114 | P81: 3.121363863 | Q81: 3.528091755 | R81: 3.164218334 | S81: 2.240899269 | T81: 1.079153507 | U81: 0 | V81: 0 | W81: -0.7397266144 | X81: -1.139928939 | Y81: -1.264693889 | Z81: -1.178108378 | AA81: 0.2238475177 | AB81: -0.4476950355 | AC81: 0.4964539007 | FA81: 3 | FB81: =+(-EI21*$EK$14+EK21*$EK$12)/($EI$12*$EK$14-$EI$14*$EK$12)/2 -> 0.03590425532 | FC81: =+(-EJ21*$EL$15+EL21*$EL$13)/($EJ$13*$EL$15-$EJ$15*$EL$13)/2 -> 0 | FD81: =-(EI21/2+$EI$12*FB81)/$EK$12 -> -0.1196808511 | FE81: =-(EJ21/2+$EJ$13*FC81)/$EL$13 -> 0 | FG81: =FF81+FG$17*$FB81+FG$18*$FC81+FG$19*$FD81+FG$20*$FE81 -> 0.03590425532 | FI81: =FH81+FI$17*$FB81+FI$18*$FC81+FI$19*$FD81+FI$20*$FE81 -> -0.1396276596 | FJ81: =+FJ80 -> 0.75 | FK81: =FJ81+FK$17*$FB81+FK$18*$FC81+FK$19*$FD81+FK$20*$FE81 -> 0.8537234043 | FM81: =FL81+FM$17*$FB81+FM$18*$FC81+FM$19*$FD81+FM$20*$FE81 -> 0.03590425532 | FO81: =FN81+FO$17*$FB81+FO$18*$FC81+FO$19*$FD81+FO$20*$FE81 -> -0.1037234043 | FQ81: =FP81+FQ$17*$FB81+FQ$18*$FC81+FQ$19*$FD81+FQ$20*$FE81 -> -0.1037234043 | FR81: =0.5*Input!B1 -> 0.75 | FS81: =FR81+FS$17*$FB81+FS$18*$FC81+FS$19*$FD81+FS$20*$FE81 -> 0.75 | FT81: =-FR81 -> -0.75 | FU81: =FT81+FU$17*$FB81+FU$18*$FC81+FU$19*$FD81+FU$20*$FE81 -> -0.75 | FX81: -0.005984042553 | FY81: 0 | FZ81: 0 | GA81: 0 | GB81: -0.005984042553 | GE81: 0.01196808511 | GF81: 0 | GG81: 0 | GH81: 0 | GI81: 0.01196808511 | GL81: -0.01795212766 | GM81: 0 | GN81: 0.02992021277 | GO81: 0 | GP81: 0.01196808511 | GS81: 0.00897606383 | GT81: 0 | GU81: -0.05984042553 | GV81: 0 | GW81: -0.0508643617 | GY81: =-0.0416666666666667*Input!B1^3 -> -0.140625 | GZ81: 0 | HA81: 0 | HB81: 0.0897606383 | HC81: 0 | HD81: -0.0508643617 | IY81: 0 | IZ81: 0.004488031915 | JA81: 0.00897606383 | JB81: 0.01346409574 | JC81: 0.01795212766 | JD81: 0.02244015957 | JE81: 0.02692819149 | JF81: 0.0314162234 | JG81: 0.03590425532 | JH81: 0.03590425532 | JI81: 0.01645611702 | JJ81: -0.002992021277 | JK81: -0.02244015957 | JL81: -0.04188829787 | JM81: -0.06133643617 | JN81: -0.08078457447 | JO81: -0.1002327128 | JP81: -0.1196808511 | JQ81: -0.1196808511 | JR81: 0.003366023936 | JS81: 0.09125664894 | JT81: 0.1439910239 | JU81: 0.1615691489 | JY81: 0 | JZ81: 0.04488031915 | KA81: 0.0897606383 | KB81: 0.1346409574 | KC81: 0.1795212766 | KD81: 0.2244015957 | KE81: 0.2692819149 | KF81: 0.314162234 | KG81: 0.3590425532 | KH81: 0.3590425532 | KI81: 0.1645611702 | KJ81: -0.02992021277 | KK81: -0.2244015957 | KL81: -0.4188829787 | KM81: -0.6133643617 | KN81: -0.8078457447 | KO81: -1.002327128 | KP81: -1.196808511 | KQ81: -1.196808511 | KR81: 0.03366023936 | KS81: 0.9125664894 | KT81: 1.439910239 | KU81: 1.615691489 | MF81: 0 | MG81: 0.000736317736 | MH81: 0.001402509973 | MI81: 0.001928451213 | MJ81: 0.002244015957 | MK81: 0.002279078707 | ML81: 0.001963513963 | MM81: 0.001227196227 | MN81: 0 | MO81: 0 | MP81: -0.00276119151 | MQ81: -0.006100918384 | MR81: -0.00933545701 | MS81: -0.01178108378 | MT81: -0.01275407507 | MU81: -0.01157070728 | MV81: -0.007547256794 | MW81: 0 | MX81: 0 | MY81: 0.01086835658 | MZ81: 0.02172137321 | NA81: 0.02946914511 | NB81: 0.03225772939 | ND81: =+MF81*100 -> 0 | NE81: 0.0736317736 | NF81: 0.1402509973 | NG81: 0.1928451213 | NH81: 0.2244015957 | NI81: 0.2279078707 | NJ81: 0.1963513963 | NK81: 0.1227196227 | NL81: 0 | NM81: 0 | NN81: -0.276119151 | NO81: -0.6100918384 | NP81: -0.933545701 | NQ81: -1.178108378 | NR81: -1.275407507 | NS81: -1.157070728 | NT81: -0.7547256794 | NU81: 0 | NV81: 0 | NW81: 1.086835658 | NX81: 2.172137321 | NY81: 2.946914511 | NZ81: 3.225772939
C82: 13 | D82: 0 | E82: -0.2209379318 | F82: -0.4208341558 | G82: -0.5786469642 | H82: -0.6733346493 | I82: -0.6838555032 | J82: -0.5891678181 | K82: -0.3682298863 | L82: 0 | M82: 0 | N82: 0.8227236727 | O82: 1.784280006 | P82: 2.64475092 | Q82: 3.164218334 | R82: 3.10276417 | S82: 2.330333629 | T82: 1.156325036 | U82: 0 | V82: 0 | W82: -0.8008201072 | X82: -1.234074856 | Y82: -1.369144054 | Z82: -1.275407507 | AA82: 0.1795559065 | AB82: -0.3591118129 | AC82: 0.5374556738 | FA82: 4 | FB82: =+(-EI22*$EK$14+EK22*$EK$12)/($EI$12*$EK$14-$EI$14*$EK$12)/2 -> -0.07180851064 | FC82: =+(-EJ22*$EL$15+EL22*$EL$13)/($EJ$13*$EL$15-$EJ$15*$EL$13)/2 -> 0.0625 | FD82: =-(EI22/2+$EI$12*FB82)/$EK$12 -> -0.04188829787 | FE82: =-(EJ22/2+$EJ$13*FC82)/$EL$13 -> 0.07291666667 | FG82: =FF82+FG$17*$FB82+FG$18*$FC82+FG$19*$FD82+FG$20*$FE82 -> -0.009308510638 | FI82: =FH82+FI$17*$FB82+FI$18*$FC82+FI$19*$FD82+FI$20*$FE82 -> 0.03619976359 | FK82: =FJ82+FK$17*$FB82+FK$18*$FC82+FK$19*$FD82+FK$20*$FE82 -> -0.1241134752 | FM82: =FL82+FM$17*$FB82+FM$18*$FC82+FM$19*$FD82+FM$20*$FE82 -> -0.009308510638 | FO82: =FN82+FO$17*$FB82+FO$18*$FC82+FO$19*$FD82+FO$20*$FE82 -> 0.02689125296 | FQ82: =FP82+FQ$17*$FB82+FQ$18*$FC82+FQ$19*$FD82+FQ$20*$FE82 -> 0.02689125296 | FS82: =FR82+FS$17*$FB82+FS$18*$FC82+FS$19*$FD82+FS$20*$FE82 -> -0.09722222222 | FU82: =FT82+FU$17*$FB82+FU$18*$FC82+FU$19*$FD82+FU$20*$FE82 -> -0.09722222222 | FX82: 0.01196808511 | FY82: -0.01041666667 | FZ82: 0 | GA82: 0 | GB82: 0.00155141844 | GE82: -0.02393617021 | GF82: 0.02083333333 | GG82: 0 | GH82: 0 | GI82: -0.003102836879 | GL82: 0.03590425532 | GM82: -0.03125 | GN82: 0.01047207447 | GO82: -0.01822916667 | GP82: -0.003102836879 | GS82: -0.01795212766 | GT82: 0.015625 | GU82: -0.02094414894 | GV82: 0.03645833333 | GW82: 0.01318705674 | GZ82: 0 | HA82: 0 | HB82: 0.0314162234 | HC82: -0.01822916667 | HD82: 0.01318705674 | IY82: 0 | IZ82: -0.00116356383 | JA82: -0.00232712766 | JB82: -0.003490691489 | JC82: -0.004654255319 | JD82: -0.005817819149 | JE82: -0.006981382979 | JF82: -0.008144946809 | JG82: -0.009308510638 | JH82: -0.009308510638 | JI82: -0.004266400709 | JJ82: 0.0007757092199 | JK82: 0.005817819149 | JL82: 0.01085992908 | JM82: 0.01590203901 | JN82: 0.02094414894 | JO82: 0.02598625887 | JP82: 0.03102836879 | JQ82: 0.03102836879 | JR82: 0.01279920213 | JS82: -0.005429964539 | JT82: -0.02365913121 | JU82: -0.04188829787 | JY82: 0 | JZ82: -0.0116356383 | KA82: -0.0232712766 | KB82: -0.03490691489 | KC82: -0.04654255319 | KD82: -0.05817819149 | KE82: -0.06981382979 | KF82: -0.08144946809 | KG82: -0.09308510638 | KH82: -0.09308510638 | KI82: -0.04266400709 | KJ82: 0.007757092199 | KK82: 0.05817819149 | KL82: 0.1085992908 | KM82: =+JM82*10 -> 0.1590203901 | KN82: =+JN82*10 -> 0.2094414894 | KO82: =+JO82*10 -> 0.2598625887 | KP82: =+JP82*10 -> 0.3102836879 | KQ82: 0.3102836879 | KR82: 0.1279920213 | KS82: -0.05429964539 | KT82: -0.2365913121 | KU82: -0.4188829787 | MF82: 0 | MG82: -0.0001908971908 | MH82: -0.0003636136968 | MI82: -0.0004999688331 | MJ82: -0.0005817819149 | MK82: -0.0005908722573 | ML82: -0.0005090591755 | MM82: -0.0003181619847 | MN82: 0 | MO82: 0 | MP82: 0.0007158644656 | MQ82: 0.001581719581 | MR82: 0.002420303669 | MS82: 0.003054355053 | MT82: 0.003306612055 | MU82: 0.002999812999 | MV82: 0.001956696206 | MW82: 0 | MX82: 0 | MY82: -0.00291118216 | MZ82: -0.00627233627 | NA82: -0.009442593189 | NB82: -0.01178108378 | ND82: =+MF82*100 -> 0 | NE82: -0.01908971908 | NF82: -0.03636136968 | NG82: -0.04999688331 | NH82: -0.05817819149 | NI82: -0.05908722573 | NJ82: -0.05090591755 | NK82: -0.03181619847 | NL82: 0 | NM82: 0 | NN82: 0.07158644656 | NO82: 0.1581719581 | NP82: 0.2420303669 | NQ82: 0.3054355053 | NR82: 0.3306612055 | NS82: 0.2999812999 | NT82: 0.1956696206 | NU82: 0 | NV82: 0 | NW82: -0.291118216 | NX82: -0.627233627 | NY82: -0.9442593189 | NZ82: -1.178108378
C83: 14 | D83: 0 | E83: -0.1469226594 | F83: -0.2798526845 | G83: -0.3847974412 | H83: -0.4477642952 | I83: -0.4547606123 | J83: -0.3917937583 | K83: -0.2448710989 | L83: 0 | M83: 0 | N83: 0.5492433589 | O83: 1.203626267 | P83: 1.816420859 | Q83: 2.240899269 | R83: 2.330333629 | S83: 1.937996073 | T83: 1.027022017 | U83: 0 | V83: 0 | W83: -0.7265172106 | X83: -1.119573066 | Y83: -1.24211007 | Z83: -1.157070728 | AA83: 0.1194038121 | AB83: -0.2388076241 | AC83: 0.4875886525 | FA83: 5 | FB83: =+(-EI23*$EK$14+EK23*$EK$12)/($EI$12*$EK$14-$EI$14*$EK$12)/2 -> -0.02659574468 | FC83: =+(-EJ23*$EL$15+EL23*$EL$13)/($EJ$13*$EL$15-$EJ$15*$EL$13)/2 -> 0.02777777778 | FD83: =-(EI23/2+$EI$12*FB83)/$EK$12 -> 0.005319148936 | FE83: =-(EJ23/2+$EJ$13*FC83)/$EL$13 -> -0.009259259259 | FG83: =FF83+FG$17*$FB83+FG$18*$FC83+FG$19*$FD83+FG$20*$FE83 -> 0.001182033097 | FI83: =FH83+FI$17*$FB83+FI$18*$FC83+FI$19*$FD83+FI$20*$FE83 -> -0.004596795377 | FK83: =FJ83+FK$17*$FB83+FK$18*$FC83+FK$19*$FD83+FK$20*$FE83 -> 0.01576044129 | FM83: =FL83+FM$17*$FB83+FM$18*$FC83+FM$19*$FD83+FM$20*$FE83 -> 0.001182033097 | FO83: =FN83+FO$17*$FB83+FO$18*$FC83+FO$19*$FD83+FO$20*$FE83 -> -0.00341476228 | FQ83: =FP83+FQ$17*$FB83+FQ$18*$FC83+FQ$19*$FD83+FQ$20*$FE83 -> -0.00341476228 | FS83: =FR83+FS$17*$FB83+FS$18*$FC83+FS$19*$FD83+FS$20*$FE83 -> 0.01234567901 | FU83: =FT83+FU$17*$FB83+FU$18*$FC83+FU$19*$FD83+FU$20*$FE83 -> 0.01234567901 | FX83: 0.004432624113 | FY83: -0.00462962963 | FZ83: 0 | GA83: 0 | GB83: -0.0001970055162 | GE83: -0.008865248227 | GF83: 0.009259259259 | GG83: 0 | GH83: 0 | GI83: 0.0003940110323 | GL83: 0.01329787234 | GM83: -0.01388888889 | GN83: -0.001329787234 | GO83: 0.002314814815 | GP83: 0.0003940110323 | GS83: -0.00664893617 | GT83: 0.006944444444 | GU83: 0.002659574468 | GV83: -0.00462962963 | GW83: -0.001674546887 | GZ83: 0 | HA83: 0 | HB83: -0.003989361702 | HC83: 0.002314814815 | HD83: -0.001674546887 | IY83: 0 | IZ83: 0.0001477541371 | JA83: 0.0002955082742 | JB83: 0.0004432624113 | JC83: 0.0005910165485 | JD83: 0.0007387706856 | JE83: 0.0008865248227 | JF83: 0.00103427896 | JG83: 0.001182033097 | JH83: 0.001182033097 | JI83: 0.0005417651694 | JJ83: -9.850275808e-05 | JK83: -0.0007387706856 | JL83: -0.001379038613 | JM83: -0.002019306541 | JN83: -0.002659574468 | JO83: -0.003299842396 | JP83: -0.003940110323 | JQ83: -0.003940110323 | JR83: -0.001625295508 | JS83: 0.0006895193065 | JT83: 0.003004334121 | JU83: 0.005319148936 | JY83: =+IY83*10 -> 0 | JZ83: =+IZ83*10 -> 0.001477541371 | KA83: =+JA83*10 -> 0.002955082742 | KB83: =+JB83*10 -> 0.004432624113 | KC83: =+JC83*10 -> 0.005910165485 | KD83: =+JD83*10 -> 0.007387706856 | KE83: =+JE83*10 -> 0.008865248227 | KF83: =+JF83*10 -> 0.0103427896 | KG83: =+JG83*10 -> 0.01182033097 | KH83: =+JH83*10 -> 0.01182033097 | KI83: =+JI83*10 -> 0.005417651694 | KJ83: =+JJ83*10 -> -0.0009850275808 | KK83: =+JK83*10 -> -0.007387706856 | KL83: =+JL83*10 -> -0.01379038613 | KM83: =+JM83*10 -> -0.02019306541 | KN83: =+JN83*10 -> -0.02659574468 | KO83: =+JO83*10 -> -0.03299842396 | KP83: =+JP83*10 -> -0.03940110323 | KQ83: -0.03940110323 | KR83: -0.01625295508 | KS83: 0.006895193065 | KT83: 0.03004334121 | KU83: 0.05319148936 | MF83: 0 | MG83: 2.424091312e-05 | MH83: 4.617316785e-05 | MI83: 6.348810579e-05 | MJ83: 7.387706856e-05 | MK83: 7.503139775e-05 | ML83: 6.464243499e-05 | MM83: 4.040152187e-05 | MN83: 0 | MO83: 0 | MP83: -9.09034242e-05 | MQ83: -0.0002008532801 | MR83: -0.0003073401485 | MS83: -0.0003878546099 | MT83: -0.0004198872451 | MU83: -0.0003809286348 | MV83: -0.0002484693595 | MW83: 0 | MX83: 0 | MY83: 0.0003696739251 | MZ83: 0.0007964871454 | NA83: 0.001199059453 | NB83: 0.001496010638 | ND83: =+MF83*100 -> 0 | NE83: 0.002424091312 | NF83: 0.004617316785 | NG83: 0.006348810579 | NH83: 0.007387706856 | NI83: 0.007503139775 | NJ83: 0.006464243499 | NK83: 0.004040152187 | NL83: 0 | NM83: 0 | NN83: -0.00909034242 | NO83: -0.02008532801 | NP83: -0.03073401485 | NQ83: -0.03878546099 | NR83: -0.04198872451 | NS83: -0.03809286348 | NT83: -0.02484693595 | NU83: 0 | NV83: 0 | NW83: 0.03696739251 | NX83: 0.07964871454 | NY83: 0.1199059453 | NZ83: 0.1496010638
C84: 15 | D84: 0 | E84: -0.06830540109 | F84: -0.1301055259 | G84: -0.1788950981 | H84: -0.2081688414 | I84: -0.2114214796 | J84: -0.1821477362 | K84: -0.1138423352 | L84: 0 | M84: 0 | N84: 0.2559306774 | O84: 0.5642424238 | P84: 0.8602213352 | Q84: 1.079153507 | R84: 1.156325036 | S84: 1.027022017 | T84: 0.6265305458 | U84: 0 | V84: 0 | W84: -0.4738873624 | X84: -0.7302669769 | Y84: -0.8101945228 | Z84: -0.7547256794 | AA84: 0.05551169105 | AB84: -0.1110233821 | AC84: 0.3180407801
C85: 16 | D85: 0 | E85: 0 | F85: 0 | G85: 0 | H85: 0 | I85: 0 | J85: 0 | K85: 0 | L85: 0 | M85: 0 | N85: 0 | O85: 0 | P85: 0 | Q85: 0 | R85: 0 | S85: 0 | T85: 0 | U85: 0 | V85: 0 | W85: 0 | X85: 0 | Y85: 0 | Z85: 0 | AA85: 0 | AB85: 0 | AC85: 0 | FG85: =+SUM(FG79:FG84) -> 0.3390957447 | FI85: =+SUM(FI79:FI84) -> 1.38962766 | FK85: =+SUM(FK79:FK84) -> 1.521276596 | FM85: =+SUM(FM79:FM84) -> -0.6609042553 | FO85: =+SUM(FO79:FO84) -> 0.7287234043 | FQ85: =+SUM(FQ79:FQ84) -> -0.7712765957 | FS85: =+SUM(FS79:FS84) -> 0.75 | FU85: =+SUM(FU79:FU84) -> -0.75 | GB85: =+SUM(GB79:GB84) -> -0.01484929078 | GI85: =+SUM(GI79:GI84) -> -0.01196808511 | GP85: =+SUM(GP79:GP84) -> -0.01196808511 | GW85: =+SUM(GW79:GW84) -> 0.003989361702 | HD85: =+SUM(HD79:HD84) -> 0.003989361702 | IY85: =+SUM(IY79:IY84) -> 0 | IZ85: =+SUM(IZ79:IZ84) -> 0.03457446809 | JA85: 0.05352393617 | JB85: 0.05684840426 | JC85: 0.04454787234 | JD85: 0.01662234043 | JE85: -0.02692819149 | JF85: -0.0861037234 | JG85: -0.1609042553 | JH85: -0.1609042553 | JI85: -0.04184674202 | JJ85: 0.04205452128 | JK85: 0.09079953457 | JL85: 0.1043882979 | JM85: 0.08282081117 | JN85: 0.02609707447 | JO85: -0.06578291223 | JP85: -0.1928191489 | JQ85: -0.1928191489 | JR85: -0.06977227394 | JS85: 0.01811835106 | JT85: 0.07085272606 | JU85: 0.08843085106 | JY85: =+IY85*10 -> 0 | JZ85: 0.3457446809 | KA85: 0.5352393617 | KB85: 0.5684840426 | KC85: 0.4454787234 | KD85: 0.1662234043 | KE85: -0.2692819149 | KF85: -0.861037234 | KG85: -1.609042553 | KH85: -1.609042553 | KI85: -0.4184674202 | KJ85: 0.4205452128 | KK85: 0.9079953457 | KL85: 1.043882979 | KM85: =+JM85*10 -> 0.8282081117 | KN85: 0.2609707447 | KO85: -0.6578291223 | KP85: -1.928191489 | KQ85: =+JQ85*10 -> -1.928191489 | KR85: =+JR85*10 -> -0.6977227394 | KS85: =+JS85*10 -> 0.1811835106 | KT85: =+JT85*10 -> 0.7085272606 | KU85: =+JU85*10 -> 0.8843085106 | MF85: =+SUM(MF79:MF84) -> 0 | MG85: =+SUM(MG79:MG84) -> 0.001755951144 | MH85: 0.002992021277 | MI85: 0.003412124958 | MJ85: 0.002964317376 | MK85: 0.00184079434 | ML85: 0.0004778922872 | MM85: -0.0004439117215 | MN85: 0 | MO85: 0 | MP85: 0.00432331004 | MQ85: 0.01022079143 | MR85: 0.01474279038 | MS85: 0.01617561503 | MT85: 0.0140415354 | MU85: 0.009098783452 | MV85: 0.003341553059 | MW85: 0 | MX85: 0 | MY85: 0.001868917587 | MZ85: 0.006293763506 | NA85: 0.01018463297 | NB85: 0.01168758311 | ND85: =+MF85*100 -> 0 | NE85: =+MG85*100 -> 0.1755951144 | NF85: 0.2992021277 | NG85: 0.3412124958 | NH85: 0.2964317376 | NI85: 0.184079434 | NJ85: 0.04778922872 | NK85: -0.04439117215 | NL85: 0 | NM85: 0 | NN85: 0.432331004 | NO85: 1.022079143 | NP85: 1.474279038 | NQ85: 1.617561503 | NR85: 1.40415354 | NS85: 0.9098783452 | NT85: 0.3341553059 | NU85: 0 | NV85: 0 | NW85: 0.1868917587 | NX85: 0.6293763506 | NY85: 1.018463297 | NZ85: 1.168758311
C86: =+C85 -> 16 | D86: 0 | E86: 0 | F86: 0 | G86: 0 | H86: 0 | I86: 0 | J86: 0 | K86: 0 | L86: 0 | M86: 0 | N86: 0 | O86: 0 | P86: 0 | Q86: 0 | R86: 0 | S86: 0 | T86: 0 | U86: 0 | V86: 0 | W86: 0 | X86: 0 | Y86: 0 | Z86: 0 | AA86: 0 | AB86: 0 | AC86: 0
C87: =+C86+1 -> 17 | D87: 0 | E87: 0.0462329134 | F87: 0.0880626922 | G87: 0.1210862018 | H87: 0.1409003075 | I87: 0.1431018748 | J87: 0.1232877691 | K87: 0.07705485567 | L87: 0 | M87: 0 | N87: -0.1733734253 | O87: -0.3830727111 | P87: -0.5861672949 | Q87: -0.7397266144 | R87: -0.8008201072 | S87: -0.7265172106 | T87: -0.4738873624 | U87: 0 | V87: 0 | W87: 0.631452114 | X87: 1.040146199 | Y87: 1.178589273 | Z87: 1.109151637 | AA87: -0.03757341534 | AB87: 0.07514683067 | AC87: -0.3193740304
C88: 18 | D88: 0 | E88: 0.07124555872 | F88: 0.1357058261 | G88: 0.1865955109 | H88: 0.2171293218 | I88: 0.2205219675 | J88: 0.1899881566 | K88: 0.1187425979 | L88: 0 | M88: 0 | N88: -0.2671708452 | O88: -0.5903203437 | P88: -0.9032919052 | Q88: -1.139928939 | R88: -1.234074856 | S88: -1.119573066 | T88: -0.7302669769 | U88: 0 | V88: 0 | W88: 1.040146199 | X88: 1.970136927 | Y88: 2.382562516 | Z88: 2.309466423 | AA88: -0.05790115248 | AB88: 0.115802305 | AC88: -0.4921597961
C89: 19 | D89: 0 | E89: 0.07904336808 | F89: 0.1505587963 | G89: 0.207018345 | H89: 0.2408940741 | I89: 0.244658044 | J89: 0.2107823149 | K89: 0.1317389468 | L89: 0 | M89: 0 | N89: -0.2964126303 | O89: -0.6549307641 | P89: -1.002156988 | Q89: -1.264693889 | R89: -1.369144054 | S89: -1.24211007 | T89: -0.8101945228 | U89: 0 | V89: 0 | W89: 1.178589273 | X89: 2.382562516 | Y89: 3.185627308 | Z89: 3.271354513 | AA89: -0.06423841977 | AB89: 0.1284768395 | AC89: -0.546026568
C90: 20 | D90: 0 | E90: 0.0736317736 | F90: 0.1402509973 | G90: 0.1928451213 | H90: 0.2244015957 | I90: 0.2279078707 | J90: 0.1963513963 | K90: 0.1227196227 | L90: 0 | M90: 0 | N90: -0.276119151 | O90: -0.6100918384 | P90: -0.933545701 | Q90: -1.178108378 | R90: -1.275407507 | S90: -1.157070728 | T90: -0.7547256794 | U90: 0 | V90: 0 | W90: 1.109151637 | X90: 2.309466423 | Y90: 3.271354513 | Z90: 3.665226064 | AA90: -0.05984042553 | AB90: 0.1196808511 | AC90: -0.508643617
C91: 21 | D91: 0 | E91: 0.05901620743 | F91: 0.1124118237 | G91: 0.1545662576 | H91: 0.1798589179 | I91: 0.1826692135 | J91: 0.1573765531 | K91: 0.09836034572 | L91: 0 | M91: 0 | N91: -0.2213107779 | O91: -0.488991433 | P91: -0.7482412014 | Q91: -0.9442593189 | R91: -1.022245022 | S91: -0.9273975453 | T91: -0.6049161262 | U91: 0 | V91: 0 | W91: 0.8942035919 | X91: 1.892755387 | Y91: 2.762768116 | Z91: 3.271354513 | AA91: -0.0479623781 | AB91: 0.09592475621 | AC91: -0.4076802139
C92: 22 | D92: 0 | E92: 0.03920210169 | F92: 0.07467066988 | G92: 0.1026721711 | H92: 0.1194730718 | I92: 0.1213398386 | J92: 0.1045389378 | K92: 0.06533683615 | L92: 0 | M92: 0 | N92: -0.1470078813 | O92: -0.324817414 | P92: -0.4970266464 | Q92: -0.627233627 | R92: -0.6790364042 | S92: -0.6160330265 | T92: -0.4018215423 | U92: 0 | V92: 0 | W92: 0.596115437 | X92: 1.274336145 | Y92: 1.892755387 | Z92: 2.309466423 | AA92: -0.03185948582 | AB92: 0.06371897163 | AC92: -0.2708056294
C93: 23 | D93: 0 | E93: 0.0181948885 | F93: 0.03465693048 | G93: 0.04765327941 | H93: 0.05545108876 | I93: 0.05631751203 | J93: 0.04851970267 | K93: 0.03032481417 | L93: 0 | M93: 0 | N93: -0.06823083188 | O93: -0.1507576476 | P93: -0.2306851935 | Q93: -0.291118216 | R93: -0.3151614615 | S93: -0.2859196764 | T93: -0.1864976071 | U93: 0 | V93: 0 | W93: 0.2772574729 | X93: 0.596115437 | Y93: 0.8942035919 | Z93: 1.109151637 | AA93: -0.014786957 | AB93: 0.02957391401 | AC93: -0.1256891345
C94: 24 | D94: 0 | E94: 0 | F94: 0 | G94: 0 | H94: 0 | I94: 0 | J94: 0 | K94: 0 | L94: 0 | M94: 0 | N94: 0 | O94: 0 | P94: 0 | Q94: 0 | R94: 0 | S94: 0 | T94: 0 | U94: 0 | V94: 0 | W94: 0 | X94: 0 | Y94: 0 | Z94: 0 | AA94: 0 | AB94: 0 | AC94: 0
C95: 24 | D95: 0 | E95: 0 | F95: 0 | G95: 0 | H95: 0 | I95: 0 | J95: 0 | K95: 0 | L95: 0 | M95: 0 | N95: 0 | O95: 0 | P95: 0 | Q95: 0 | R95: 0 | S95: 0 | T95: 0 | U95: 0 | V95: 0 | W95: 0 | X95: 0 | Y95: 0 | Z95: 0 | AA95: 0 | AB95: 0 | AC95: 0
C96: =+C95+1 -> 25 | D96: 0 | E96: -0.01222935129 | F96: -0.02329400245 | G96: -0.03202925337 | H96: -0.03727040392 | I96: -0.03785275398 | J96: -0.03261160343 | K96: -0.02038225215 | L96: 0 | M96: 0 | N96: 0.04586006733 | O96: 0.1013289107 | P96: 0.1550507038 | Q96: 0.1956696206 | R96: 0.2118298348 | S96: 0.1921755202 | T96: 0.1253508507 | U96: 0 | V96: 0 | W96: -0.1864976071 | X96: -0.4018215423 | Y96: -0.6049161262 | Z96: -0.7547256794 | AA96: 0.009938774379 | AB96: -0.01987754876 | AC96: 0.08447958223
C97: 26 | D97: 0 | E97: -0.01874883124 | F97: -0.03571205951 | G97: -0.04910408182 | H97: -0.05713929521 | I97: -0.0580320967 | J97: -0.04999688331 | K97: -0.03124805207 | L97: 0 | M97: 0 | N97: 0.07030811716 | O97: 0.1553474589 | P97: 0.2377083961 | Q97: 0.2999812999 | R97: 0.3247565412 | S97: 0.2946244909 | T97: 0.1921755202 | U97: 0 | V97: 0 | W97: -0.2859196764 | X97: -0.6160330265 | Y97: -0.9273975453 | Z97: -1.157070728 | AA97: 0.01523714539 | AB97: -0.03047429078 | AC97: 0.1295157358
C98: 27 | D98: 0 | E98: -0.02066632535 | F98: -0.03936442923 | G98: -0.05412609019 | H98: -0.06298308677 | I98: -0.0639671975 | J98: -0.05511020092 | K98: -0.03444387558 | L98: 0 | M98: 0 | N98: 0.07749872005 | O98: 0.1712352672 | P98: 0.2620194821 | Q98: 0.3306612055 | R98: 0.3579702783 | S98: 0.3247565412 | T98: 0.2118298348 | U98: 0 | V98: 0 | W98: -0.3151614615 | X98: -0.6790364042 | Y98: -1.022245022 | Z98: -1.275407507 | AA98: 0.0167954898 | AB98: -0.03359097961 | AC98: 0.1427616633
C99: 28 | D99: 0 | E99: -0.01908971908 | F99: -0.03636136968 | G99: -0.04999688331 | H99: -0.05817819149 | I99: -0.05908722573 | J99: -0.05090591755 | K99: -0.03181619847 | L99: 0 | M99: 0 | N99: 0.07158644656 | O99: 0.1581719581 | P99: 0.2420303669 | Q99: 0.3054355053 | R99: 0.3306612055 | S99: 0.2999812999 | T99: 0.1956696206 | U99: 0 | V99: 0 | W99: -0.291118216 | X99: -0.627233627 | Y99: -0.9442593189 | Z99: -1.178108378 | AA99: 0.0155141844 | AB99: -0.03102836879 | AC99: 0.1318705674
C100: 29 | D100: 0 | E100: -0.01512689793 | F100: -0.02881313892 | G100: -0.03961806602 | H100: -0.04610102227 | I100: -0.04682135075 | J100: -0.04033839449 | K100: -0.02521149656 | L100: 0 | M100: 0 | N100: 0.05672586725 | O100: 0.1253371543 | P100: 0.1917874559 | Q100: 0.2420303669 | R100: 0.2620194821 | S100: 0.2377083961 | T100: 0.1550507038 | U100: 0 | V100: 0 | W100: -0.2306851935 | X100: -0.4970266464 | Y100: -0.7482412014 | Z100: -0.933545701 | AA100: 0.01229360594 | AB100: -0.02458721188 | AC100: 0.1044956505
C101: 30 | D101: 0 | E101: -0.009885747382 | F101: -0.01882999501 | G101: -0.02589124314 | H101: -0.03012799202 | I101: -0.0305987419 | J101: -0.02636199302 | K101: -0.01647624564 | L101: 0 | M101: 0 | N101: 0.03707155268 | O101: 0.08191047831 | P101: 0.1253371543 | Q101: 0.1581719581 | R101: 0.1712352672 | S101: 0.1553474589 | T101: 0.1013289107 | U101: 0 | V101: 0 | W101: -0.1507576476 | X101: -0.324817414 | Y101: -0.488991433 | Z101: -0.6100918384 | AA101: 0.008034131206 | AB101: -0.01606826241 | AC101: 0.06829011525
C102: 31 | D102: 0 | E102: -0.00447415291 | F102: -0.008522196019 | G102: -0.01171801953 | H102: -0.01363551363 | I102: -0.01384856853 | J102: -0.01193107443 | K102: -0.007456921517 | L102: 0 | M102: 0 | N102: 0.01677807341 | O102: 0.03707155268 | P102: 0.05672586725 | Q102: 0.07158644656 | R102: 0.07749872005 | S102: 0.07030811716 | T102: 0.04586006733 | U102: 0 | V102: 0 | W102: -0.06823083188 | X102: -0.1470078813 | Y102: -0.2213107779 | Z102: -0.276119151 | AA102: 0.003636136968 | AB102: -0.007272273936 | AC102: 0.03090716423
C103: 32 | D103: 0 | E103: 0 | F103: 0 | G103: 0 | H103: 0 | I103: 0 | J103: 0 | K103: 0 | L103: 0 | M103: 0 | N103: 0 | O103: 0 | P103: 0 | Q103: 0 | R103: 0 | S103: 0 | T103: 0 | U103: 0 | V103: 0 | W103: 0 | X103: 0 | Y103: 0 | Z103: 0 | AA103: 0 | AB103: 0 | AC103: 0
C104: 32 | D104: 0 | E104: 0 | F104: 0 | G104: 0 | H104: 0 | I104: 0 | J104: 0 | K104: 0 | L104: 0 | M104: 0 | N104: 0 | O104: 0 | P104: 0 | Q104: 0 | R104: 0 | S104: 0 | T104: 0 | U104: 0 | V104: 0 | W104: 0 | X104: 0 | Y104: 0 | Z104: 0 | AA104: 0 | AB104: 0 | AC104: 0
C105: =+C104+1 -> 33 | D105: 0 | E105: 0.001988512404 | F105: 0.003787642675 | G105: 0.005208008678 | H105: 0.00606022828 | I105: 0.006154919347 | J105: 0.005302699745 | K105: 0.003314187341 | L105: 0 | M105: 0 | N105: -0.007456921517 | O105: -0.01647624564 | P105: -0.02521149656 | Q105: -0.03181619847 | R105: -0.03444387558 | S105: -0.03124805207 | T105: -0.02038225215 | U105: 0 | V105: 0 | W105: 0.03032481417 | X105: 0.06533683615 | Y105: 0.09836034572 | Z105: 0.1227196227 | AA105: -0.001616060875 | AB105: 0.003232121749 | AC105: -0.01373651743
C106: 34 | D106: 0 | E106: 0.003181619847 | F106: 0.00606022828 | G106: 0.008332813885 | H106: 0.009696365248 | I106: 0.009847870955 | J106: 0.008484319592 | K106: 0.005302699745 | L106: 0 | M106: 0 | N106: -0.01193107443 | O106: -0.02636199302 | P106: -0.04033839449 | Q106: -0.05090591755 | R106: -0.05511020092 | S106: -0.04999688331 | T106: -0.03261160343 | U106: 0 | V106: 0 | W106: 0.04851970267 | X106: 0.1045389378 | Y106: 0.1573765531 | Z106: 0.1963513963 | AA106: -0.0025856974 | AB106: 0.005171394799 | AC106: -0.0219784279
C107: 35 | D107: 0 | E107: 0.003692951608 | F107: 0.007034193539 | G107: 0.009672016117 | H107: 0.01125470966 | I107: 0.0114305645 | J107: 0.009847870955 | K107: 0.006154919347 | L107: 0 | M107: 0 | N107: -0.01384856853 | O107: -0.0305987419 | P107: -0.04682135075 | Q107: -0.05908722573 | R107: -0.0639671975 | S107: -0.0580320967 | T107: -0.03785275398 | U107: 0 | V107: 0 | W107: 0.05631751203 | X107: 0.1213398386 | Y107: 0.1826692135 | Z107: 0.2279078707 | AA107: -0.00300125591 | AB107: 0.00600251182 | AC107: -0.02551067524
C108: 36 | D108: 0 | E108: 0.003636136968 | F108: 0.006925975177 | G108: 0.009523215869 | H108: 0.01108156028 | I108: 0.01125470966 | J108: 0.009696365248 | K108: 0.00606022828 | L108: 0 | M108: 0 | N108: -0.01363551363 | O108: -0.03012799202 | P108: -0.04610102227 | Q108: -0.05817819149 | R108: -0.06298308677 | S108: -0.05713929521 | T108: -0.03727040392 | U108: 0 | V108: 0 | W108: 0.05545108876 | X108: 0.1194730718 | Y108: 0.1798589179 | Z108: 0.2244015957 | AA108: -0.002955082742 | AB108: 0.005910165485 | AC108: -0.02511820331
C109: 37 | D109: 0 | E109: 0.003124805207 | F109: 0.005952009918 | G109: 0.008184013637 | H109: 0.009523215869 | I109: 0.009672016117 | J109: 0.008332813885 | K109: 0.005208008678 | L109: 0 | M109: 0 | N109: -0.01171801953 | O109: -0.02589124314 | P109: -0.03961806602 | Q109: -0.04999688331 | R109: -0.05412609019 | S109: -0.04910408182 | T109: -0.03202925337 | U109: 0 | V109: 0 | W109: 0.04765327941 | X109: 0.1026721711 | Y109: 0.1545662576 | Z109: 0.1928451213 | AA109: -0.002539524232 | AB109: 0.005079048463 | AC109: -0.02158595597
C110: 38 | D110: 0 | E110: 0.002272585605 | F110: 0.004328734486 | G110: 0.005952009918 | H110: 0.006925975177 | I110: 0.007034193539 | J110: 0.00606022828 | K110: 0.003787642675 | L110: 0 | M110: 0 | N110: -0.008522196019 | O110: -0.01882999501 | P110: -0.02881313892 | Q110: -0.03636136968 | R110: -0.03936442923 | S110: -0.03571205951 | T110: -0.02329400245 | U110: 0 | V110: 0 | W110: 0.03465693048 | X110: 0.07467066988 | Y110: 0.1124118237 | Z110: 0.1402509973 | AA110: -0.001846926714 | AB110: 0.003693853428 | AC110: -0.01569887707
C111: 39 | D111: 0 | E111: 0.001193107443 | F111: 0.002272585605 | G111: 0.003124805207 | H111: 0.003636136968 | I111: 0.003692951608 | J111: 0.003181619847 | K111: 0.001988512404 | L111: 0 | M111: 0 | N111: -0.00447415291 | O111: -0.009885747382 | P111: -0.01512689793 | Q111: -0.01908971908 | R111: -0.02066632535 | S111: -0.01874883124 | T111: -0.01222935129 | U111: 0 | V111: 0 | W111: 0.0181948885 | X111: 0.03920210169 | Y111: 0.05901620743 | Z111: 0.0736317736 | AA111: -0.0009696365248 | AB111: 0.00193927305 | AC111: -0.008241910461
C112: 40 | D112: 0 | E112: 0 | F112: 0 | G112: 0 | H112: 0 | I112: 0 | J112: 0 | K112: 0 | L112: 0 | M112: 0 | N112: 0 | O112: 0 | P112: 0 | Q112: 0 | R112: 0 | S112: 0 | T112: 0 | U112: 0 | V112: 0 | W112: 0 | X112: 0 | Y112: 0 | Z112: 0 | AA112: 0 | AB112: 0 | AC112: 0
D113: ×L13/(100×EI) | AA113: ×(L12/EI)/10
C114: Span 1 | D114: =+ND79 -> 0 | E114: 0.3940663439 | F114: 0.7153378029 | G114: 0.9133990493 | H114: 0.962248818 | I114: 0.8602999063 | J114: 0.6303791741 | K114: 0.3197275437 | L114: 0 | M114: 0 | N114: =+NN79 -> -0.3508872174 | O114: -0.5409186613 | P114: -0.6003954732 | Q114: -0.5596187943 | R114: -0.4488897662 | S114: -0.2985095301 | T114: -0.1387792276 | U114: 0 | V114: 0 | W114: 0.09393353834 | X114: =+NX79 -> 0.1447528812 | Y114: 0.1605960494 | Z114: 0.1496010638 | AA114: =+GB79*10 -> -0.3260441292 | AB114: =+GI79*10 -> 0.2354215918 | AC114: =+GW79*10 -> -0.06304176517
C115: Span 2 | D115: 0 | E115: -0.2754373753 | F115: -0.5246426197 | G115: -0.7213836021 | H115: -0.8394281915 | I115: -0.852544257 | J115: -0.7344996676 | K115: -0.4590622922 | L115: 0 | M115: 0 | N115: 0.9968412683 | O115: 2.035003013 | P115: 2.796923861 | Q115: 3.08863863 | R115: 2.839778332 | S115: 2.103570167 | T115: 1.056837528 | U115: 0 | V115: 0 | W115: -0.7397266144 | X115: -1.139928939 | Y115: -1.264693889 | Z115: -1.178108378 | AA115: =+GB80*10 -> 0.2238475177 | AB115: =+GI80*10 -> -0.4476950355 | AC115: =+GW80*10 -> 0.4964539007
C116: Span 3 | D116: 0 | E116: 0.0736317736 | F116: 0.1402509973 | G116: 0.1928451213 | H116: 0.2244015957 | I116: 0.2279078707 | J116: 0.1963513963 | K116: 0.1227196227 | L116: 0 | M116: 0 | N116: -0.276119151 | O116: -0.6100918384 | P116: -0.933545701 | Q116: -1.178108378 | R116: -1.275407507 | S116: -1.157070728 | T116: -0.7547256794 | U116: 0 | V116: 0 | W116: 1.086835658 | X116: 2.172137321 | Y116: 2.946914511 | Z116: 3.225772939 | AA116: =+GB81*10 -> -0.05984042553 | AB116: =+GI81*10 -> 0.1196808511 | AC116: =+GW81*10 -> -0.508643617
C117: Span 4 | D117: 0 | E117: -0.01908971908 | F117: -0.03636136968 | G117: -0.04999688331 | H117: -0.05817819149 | I117: -0.05908722573 | J117: -0.05090591755 | K117: -0.03181619847 | L117: 0 | M117: 0 | N117: 0.07158644656 | O117: 0.1581719581 | P117: 0.2420303669 | Q117: 0.3054355053 | R117: 0.3306612055 | S117: 0.2999812999 | T117: 0.1956696206 | U117: 0 | V117: 0 | W117: -0.291118216 | X117: -0.627233627 | Y117: -0.9442593189 | Z117: -1.178108378 | AA117: =+GB82*10 -> 0.0155141844 | AB117: =+GI82*10 -> -0.03102836879 | AC117: =+GW82*10 -> 0.1318705674
C118: Span 5 | D118: 0 | E118: 0.002424091312 | F118: 0.004617316785 | G118: 0.006348810579 | H118: 0.007387706856 | I118: 0.007503139775 | J118: 0.006464243499 | K118: 0.004040152187 | L118: 0 | M118: 0 | N118: -0.00909034242 | O118: -0.02008532801 | P118: -0.03073401485 | Q118: -0.03878546099 | R118: -0.04198872451 | S118: -0.03809286348 | T118: -0.02484693595 | U118: 0 | V118: 0 | W118: 0.03696739251 | X118: 0.07964871454 | Y118: 0.1199059453 | Z118: 0.1496010638 | AA118: =+GB83*10 -> -0.001970055162 | AB118: =+GI83*10 -> 0.003940110323 | AC118: =+GW83*10 -> -0.01674546887
C119: Sum | D119: =+ND85 -> 0 | E119: 0.1755951144 | F119: 0.2992021277 | G119: 0.3412124958 | H119: 0.2964317376 | I119: 0.184079434 | J119: 0.04778922872 | K119: -0.04439117215 | L119: 0 | M119: 0 | N119: 0.432331004 | O119: 1.022079143 | P119: 1.474279038 | Q119: 1.617561503 | R119: 1.40415354 | S119: 0.9098783452 | T119: 0.3341553059 | U119: 0 | V119: 0 | W119: 0.1868917587 | X119: 0.6293763506 | Y119: 1.018463297 | Z119: 1.168758311 | AA119: =+GB85*10 -> -0.1484929078 | AB119: =+GI85*10 -> -0.1196808511 | AC119: =+GW85*10 -> 0.03989361702
D120: ×L14/(100×EI) | AA120: ×(L13/EI)/10
